Workbook

Sheet Chart Index (hidden)
A7: Preview | B7: Sheet (and graph link) | C7: Chart Title | D7: Chart Series
B8: طراحی همه الگوها | C8: رسم دستی چادر2 | D8: انحنا, صاف
B9: طراحی همه الگوها | C9: رسم دستی چادر 3 | D9: انحنا, صاف
B10: طراحی همه الگوها | C10: رسم دستی چادر 5 | D10: انحنا, صاف
B11: طراحی همه الگوها | C11: طراحی چادرها و رسم چادر 4 | D11: شبیه ساز دست خمیده و سر, شبیه ساز دامن, رسم یا طراحی چادر4
B12: طراحی همه الگوها | C12: چادر1 و مقنعه برای پرینت | D12: شبیه ساز دست خمیده و سر, شبیه ساز دامن, چادر 1 با نقطه گذاری
B13: طراحی همه الگوها | C13: شلوار پشت | D13: 1شبیه ساز, 2کمر شلوار, 3وسط شلوار و خط اتو, 4پهلو, 6فاق, 7لبه پایین, 9کمر جدا, اطلاعات اندام در شلوار
B14: طراحی همه الگوها | C14: طراحی پشت یقه | D14: شبیه ساز برش, شبیه ساز انحنا, طراحی یقه گرد
B15: طراحی همه الگوها | C15: طراحی جلو یقه | D15: شبیه ساز اندام, طراحی یقه شکاری
B16: طراحی همه الگوها | C16: شلوار جلو | D16: 1شبیه ساز جلو, 2کمر شلوار, 3وسط شلوار, 4پهلو, 6فاق, 7لبه پایین شلوار, 8زیپ, 9کمر جدا, 10جیب مردانه, 11جیب جین, اطلاعات اندام در شلوار
B17: طراحی همه الگوها | C17: طراحی جلو دامن ترک با کمر پهن | D17: شبیه ساز دامن تنگ, کمر پهن, خط مرکزی جلو کمر, خطوط اصلی دامن ترک, خطوط فرعی دامن ترک, خط اوزمان, پیلی
B18: طراحی همه الگوها | C18: طراحی پشت دامن ترک با کمر پهن | D18: شبیه ساز دامن تنگ, کمر یکسره, خطوط اصلی دامن ترک, خطوط فرعی دامن ترک, پیلی
B19: طراحی همه الگوها | C19: آستین | D19: شبیه ساز آستین, آستین بلند یا کوتاه, مچ آستین بلند یا کوتاه
B20: طراحی همه الگوها | C20: الگو پشت | D20: 0 اطلاعات اندام, 72شبیه ساز بالاتنه بدون ساسون, 2شبیه ساز دامن, 5حلقه آستین بدون ساسون, 6سرشانه بدون ساسون, 10پهلو صاف وپایین لباس, 17یقه گرد , 18خط پشت در پیراهن, 24بدون شیفت ساسون کمر
B21: طراحی همه الگوها | C21: یقه و کلاه | D21: شومیزیه
B22: طراحی همه الگوها | C22: الگو جلو | D22: 0اطلاعات اندام, 1شبیه ساز بالاتنه, 2شبیه ساز دامن, 6حلقه آستین بدون ساسون , 7سرشانه بدون ساسون, 11پهلو صاف , 22یقه گرد چرخیده, 23جادکمه یقه گرد در پیراهن, 29پایین پیراهن بدون ترک, 70ساسون کمر, 76جادکمه متصل به یقه

Sheet محاسبات (hidden)
A1: height_print | B1: 36.57461229
A2: width_print | B2: 36.74853665
A3: charts_resized
A4: print_body_chartS
A5: ActiveWindow.Zoom | B5: 15
A6: per_font_size_chart | B6: =0.1*'طراحی مدل 16'!B322 -> 0.8
A7: ChartFieldRange( باید خالی باشد )
A8: show_temp_print_sheet | B8: 0
A9: per_line_size_chart | F9: نقاط ورودی | J9: رسم چادر شماره 1 و مقنعه چانه دار | N9: نقاط ورودی | R9: رسم مقنعه دراپه | V9: رسم دستی چادر 2 (بر حسب سانتیمتر) | Y9: رسم چادر شماره 2 | AG9: نقاط ورودی | AK9: طراحی چادر شماره 2 | AS9: طراحی چادر شماره 3 | AW9: رسم دستی چادر 3 (بر حسب سانتیمتر) | AZ9: رسم چادر شماره 3 | BH9: رسم دستی چادر 4 | BN9: رسم و طراحی چادر شماره 4 | BZ9: رسم چادر شماره 5 | CH9: طراحی چادر شماره 5 | CL9: طراحی چادر شماره 5 | CU9: پروسیجر یافتن راس سوم مثلث با داشتن دو راس و دو ضلع | DA9: پروسیجر چرخش یک نقطه حول نقطه دیگر | DG9: کامل شده | DJ9: رسم باکس زیپ دامن- باکس دوطرفه راست و چپ | DK9: مولفه افقی | DL9: مولفه عمودی | DO9: به دست آوردن راس سوم مثلث وقتی دو راس و دو ضلع را داریم | DU9: جلو(k''5 →k6) | DV9: =SQRT(POWER((#REF!-#REF!),2)+POWER((#REF!-#REF!),2)) ->  | DW9: ضلع راست | EI9: قرینه
F10: مولفه افقی | G10: مولفه عمودی | H10: اسم نقطه | J10: مولفه افقی | K10: مولفه عمودی | L10: اسم نقطه | N10: مولفه افقی | O10: مولفه عمودی | P10: اسم نقطه | R10: مولفه افقی | S10: مولفه عمودی | T10: اسم نقطه | Z10: صاف | AD10: انحنا | AG10: اسم نقطه | AH10: مولفه افقی | AI10: مولفه عمودی | AK10: =AH21 -> 5 | AL10: 171.507985 | AM10: s6 | AO10: طراحی چادر شماره 3 | AS10: =AP12 -> 5 | AT10: 171.507985 | AU10: s'6 | BA10: صاف | BE10: انحنا | BN10: رسم دستی چادر4 با نقطه گذاری | BS10: خطوط پرینت الگو یا طراحی چادر4 | BV10: رسم دستی چادر 5 (بر حسب سانتیمتر) | CA10: صاف | CE10: انحنا | CH10: اسم نقطه | CI10: مولفه افقی | CJ10: مولفه عمودی | CL10: =CI14 -> 5 | CM10: =CJ14 -> 171.507985 | CN10: s'6 | CW10: اطلاعات ورودی | DA10: رادیان | DB10: =-#REF! ->  | DC10: زاویه چرخش | DD10: چرخش مخالف عقربه های ساعت | DI10: نقطه ورودی بالا | DJ10: b5 | DK10: =#REF! ->  | DL10: =#REF! ->  | DO10: درجه α1 | DP10: رادیان α1 | DQ10: xdp'6 | DR10: ydp'6 | DS10: (dp4→dp'6) | DT10: (dp4→dp6)-(dp4→dp'6) | DU10: (k6 →45)جلو | DV10: =SQRT(POWER((#REF!-#REF!),2)+POWER((#REF!-#REF!),2)) ->  | DW10: ضلع چپ | EI10: =-EE10+EJ9 -> 0 | EJ10: =EF10 -> 0
F11: =DB406 -> 5 | G11: =DC406 -> 170.995 | H11: شبیه ساز s15 | J11: =F36 -> 83.7 | K11: =G36 -> 175.7 | L11: j5 | N11: =DB404 -> 5 | O11: =DC404 -> 151.6 | P11: شبیه ساز s5 | R11: =N24 -> 5 | S11: =O24 -> 100.3015 | T11: d6 | Y11: =W35+'طراحی همه الگوها'!U190 -> 14.8 | Z11: =Z12 -> 0 | AA11: 5 | AC11: =Y15 -> 14.8 | AD11: =Z15 -> 26.8 | AE11: 11 | AG11: s2 | AH11: =DB401 -> 9.184712 | AI11: =DC401 -> 167.0425 | AK11: 12.15422679 | AL11: 169.1767909 | AM11: s7 | AO11: اسم نقطه | AP11: مولفه افقی | AQ11: مولفه عمودی | AS11: 11.3028193 | AT11: 168.5010643 | AU11: s'7 | AZ11: =W35 -> 0 | BA11: ='طراحی همه الگوها'!U210+AX33 -> 170.7 | BB11: 1 | BD11: =AZ30 -> 182.7 | BE11: =BA30 -> 170.7 | BF11: 11 | BN11: =BJ29 -> 5 | BO11: =BK30 -> -7 | BP11: 2 | BR11: =BJ30 -> -4.6 | BS11: =BK30 -> -7 | BT11: 3 | BZ11: =BZ15-'طراحی همه الگوها'!U274 -> 66.5 | CA11: =CA15 -> 103 | CB11: خط پهلو | CD11: =BZ30 -> 95.4 | CE11: =CA30 -> 114.1 | CF11: 13 | CH11: s1 | CI11: =DB400 -> 5 | CJ11: =DC400 -> 169 | CL11: 12.56881135 | CM11: 168.6043019 | CN11: s''7 | CU11: اسم نقطه | CV11: مولفه افقی | CW11: مولفه عمودی | DA11: مولفه افقی | DB11: مولفه عمودی | DC11: اسم نقطه | DE11: نقطه خروجی چرخیده | DI11: نقطه ورودی پایین | DJ11: b6 | DK11: =#REF! ->  | DL11: =#REF! ->  | DN11: 2 | DO11: -100 | DP11: =RADIANS(DO11) -> -1.745329252 | DQ11: =DV13+DV10*COS(DP11) ->  | DR11: =DW13-DV10*SIN(DP11) ->  | DS11: =SQRT(POWER((DV12-DQ11),2)+POWER((DW12-DR11),2)) ->  | DT11: =ABS(DV9-DS11) ->  | DU11: اسم نقطه | DV11: مولفه افقی | DW11: مولفه عمودی | EI11: =-EE11+EJ9 -> 0 | EJ11: 0
G12: ='متغیرها '!C52 -> 5 | H12: شیفت عمودی | J12: =F33 -> 5 | K12: =G33 -> 175.7 | L12: j1 | N12: =F34 -> 5 | O12: =G34 -> 109 | P12: j2 | R12: =N22 -> 5 | S12: =O22 -> 186.2165 | T12: d3 | Y12: =W35 -> 0 | Z12: =O33 -> 0 | AA12: 2 | AC12: ='طراحی همه الگوها'!U190+'طراحی همه الگوها'!U199 -> 36.8 | AD12: =Z12+'طراحی همه الگوها'!U201 -> 29.8 | AE12: 17 | AG12: s3 | AH12: =DB402 -> 10.97816 | AI12: =DC402 -> 161.17 | AK12: 28.84742264 | AL12: 152.0813677 | AM12: s8 | AO12: s'6 | AP12: =AH14 -> 5 | AQ12: =1.003*AI14 -> 171.507985 | AS12: 26.00939765 | AT12: 147.4526192 | AU12: s'8 | AZ12: =W35 -> 0 | BA12: =BA11-'طراحی همه الگوها'!U212 -> 98.8 | BB12: 4 | BD12: =BD13+0.7*(BD11-BD13) -> 181.14 | BE12: =BE13+0.4*(BE11-BE13) -> 147.9 | BF12: 13' | BN12: =BJ29 -> 5 | BO12: =BK29 -> 175.7 | BP12: 1 | BR12: =BJ32 -> 11.17834665 | BS12: =BK32 -> -7.826908109 | BT12: 6 | CD12: =CD11+0.45*(CD15-CD11) -> 107.01 | CE12: =CE11+0.25*(CE15-CE11) -> 141.225 | CF12: 13' | CH12: s3 | CI12: =DB402 -> 10.97816 | CJ12: =DC402 -> 161.17 | CL12: 25.18349693 | CM12: 148.2785199 | CN12: s''8 | CT12: راس پایین | CU12: منهای شیفتa50 | CV12: =BL37 -> 96.54144004 | CW12: =BM37 -> 0 | CX12: ضلع پایین | CY12: =BT25 -> 8 | DA12: =#REF! ->  | DB12: =#REF! ->  | DC12: a40 | DD12: نقطه مرکزی چرخش | DE12: مولفه افقی | DF12: مولفه عمودی | DG12: اسم نقطه | DI12: متغیر ورودی پهنا | DJ12: a20 | DK12: =#REF! ->  | DL12: (سانتیمتر) | DO12: =DO11+DN11 -> -98 | DP12: =RADIANS(DO12) -> -1.710422667 | DQ12: =DV13+DV10*COS(DP12) ->  | DR12: =DW13-DV10*SIN(DP12) ->  | DS12: =SQRT(POWER((DV12-DQ12),2)+POWER((DW12-DR12),2)) ->  | DT12: =ABS(DV9-DS12) ->  | DU12: پشتk''5 | DV12: =DK33 ->  | DW12: =DL33 ->  | DX12: راس راست | EI12: =-EE12+EJ9 -> 0 | EJ12: 0
F13: دور سر | G13: ='متغیرها '!U85 -> 57 | H13: w12 | O13: =G19 -> 165 | P13: تمام قد | Y13: =W35 -> 0 | Z13: ='طراحی همه الگوها'!U188+O33 -> 178.7 | AA13: 1 | AC13: =Y19 -> 58.7 | AD13: =Z19 -> 35.4 | AE13: 10 | AG13: خط سینه | AH13: =DT400 -> 5 | AI13: =DU400 -> 124.1 | AK13: 46.73298962 | AL13: 140.4253973 | AM13: s9 | AO13: s'7 | AP13: =AP12+0.12*(AP16-AP12) -> 11.3028193 | AQ13: =AQ16+0.95*(AQ12-AQ16) -> 168.5010643 | AS13: 41.76644589 | AT13: 129.4110949 | AU13: s'9 | AZ13: =W35 -> 0 | BA13: =AX33 -> 0 | BB13: 2 | BD13: =AZ29-'طراحی همه الگوها'!U220 -> 177.5 | BE13: =BA29 -> 132.7 | BF13: 13 | BZ13: 0 | CA13: =BW42 -> 0 | CB13: 1 | CD13: =CD11+0.75*(CD15-CD11) -> 114.75 | CE13: =CE11+0.5*(CE15-CE11) -> 168.35 | CF13: 28 | CH13: s5 | CI13: =DB404 -> 5 | CJ13: =DC404 -> 151.6 | CL13: 40.32111963 | CM13: 129.6949479 | CN13: s''9 | CT13: راس بالا | CU13: منهای شیفتe18 | CV13: =BV27-BQ21 -> 0 | CW13: =BW27 -> 0 | CX13: ضلع بالا | CY13: =BT26 -> 0 | DA13: =#REF!-#REF!+#REF! ->  | DB13: =#REF! ->  | DC13: a48-b16+f22 | DD13: نقطه قبل از چرخش | DE13: =IF(DB13>DB12,IF(DA13>DA12,DA12+SQRT(POWER(DA13-DA12,2)+POWER(DB13-DB12,2))*COS(ATAN((DB13-DB12)/(DA13-DA12+0.000123))+DB10),DA12-SQRT(POWER(DA13-DA12,2)+POWER(DB13-DB12,2))*COS(ATAN((DB13-DB12)/(DA12-DA13+0.000123))-DB10)),IF(DA13>DA12,DA12+SQRT(POWER(DA13-DA12,2)+POWER(DB13-DB12,2))*COS(ATAN((DB12-DB13)/(DA13-DA12+0.000123))-DB10),DA12-SQRT(POWER(DA13-DA12,2)+POWER(DB13-DB12,2))*COS(ATAN((DB12-DB13)/(DA12-DA13+0.000123))+DB10))) ->  | DF13: =IF(DB13>DB12,IF(DA13>DA12,DB12+SQRT(POWER(DA13-DA12,2)+POWER(DB13-DB12,2))*SIN(ATAN((DB13-DB12)/(DA13-DA12+0.000123))+DB10),DB12+SQRT(POWER(DA13-DA12,2)+POWER(DB13-DB12,2))*SIN(ATAN((DB13-DB12)/(DA12-DA13+0.000123))-DB10)),IF(DA13>DA12,DB12-SQRT(POWER(DA13-DA12,2)+POWER(DB13-DB12,2))*SIN(ATAN((DB12-DB13)/(DA13-DA12+0.000123))-DB10),DB12-SQRT(POWER(DA13-DA12,2)+POWER(DB13-DB12,2))*SIN(ATAN((DB12-DB13)/(DA12-DA13+0.000123))+DB10))) ->  | DG13: e52 | DI13: متغیر ورودی طول | DJ13: a21 | DK13: =#REF! ->  | DO13: =DO12+DN11 -> -96 | DP13: -1.675516082 | DQ13: =DV13+DV10*COS(DP13) ->  | DR13: =DW13-DV10*SIN(DP13) ->  | DS13: =SQRT(POWER((DV12-DQ13),2)+POWER((DW12-DR13),2)) ->  | DT13: =ABS(DV9-DS13) ->  | DU13: 42پشت | DV13: =DK35 -> 1 | DW13: =DL35 -> 0 | DX13: راس چپ | EI13: =-EE13+EJ9 -> 0 | EJ13: 0
G14: ='متغیرها '!U76 -> 82 | H14: t3 | J14: =F33 -> 5 | K14: =G33 -> 175.7 | L14: j1 | O14: ='متغیرها '!C52 -> 5 | P14: شیفت عمودی | R14: =N22 -> 5 | S14: =O22 -> 186.2165 | T14: d3 | Y14: =W35+'طراحی همه الگوها'!U190 -> 14.8 | Z14: =Z13 -> 178.7 | AA14: 4 | AC14: ='طراحی همه الگوها'!U190+'طراحی همه الگوها'!U192+'طراحی همه الگوها'!U202 -> 69.6 | AD14: =Z12+'طراحی همه الگوها'!U204 -> 33.9 | AE14: 20 | AG14: s15 | AH14: =DB406 -> 5 | AI14: =DC406 -> 170.995 | AK14: 64.61855661 | AL14: 132.6547504 | AM14: s10 | AO14: s'8 | AP14: =AP12+0.4*(AP16-AP12) -> 26.00939765 | AQ14: =AQ16+0.6*(AQ12-AQ16) -> 147.4526192 | AS14: 57.52349413 | AT14: 111.3695706 | AU14: s'10 | AZ14: =W35+'طراحی همه الگوها'!U216 -> 110 | BA14: =BA13 -> 0 | BB14: 8 | BN14: =BJ31 -> 13.9 | BO14: =BK31 -> 5 | BP14: 5 | BR14: =BJ32 -> 11.17834665 | BS14: =BK32 -> -7.826908109 | BT14: 6 | BZ14: =BZ13+'طراحی همه الگوها'!U249 -> 83.7 | CA14: =CA13 -> 0 | CB14: 2 | CD14: =CD11+0.95*(CD15-CD11) -> 119.91 | CE14: =CE11+0.8*(CE15-CE11) -> 200.9 | CF14: 13''' | CH14: s'6 | CI14: =AP12 -> 5 | CJ14: =AQ12 -> 171.507985 | CL14: 55.45874232 | CM14: 113.4343224 | CN14: s''10 | CT14: c19 | CU14: =ATAN((CV13-CV12)/(CW13-CW12)) ->  | CW14: محاسبات | DK14: ماکزیمم متغیر ورودی ضریب طول | DL14: 20 | DO14: =DO13+DN11 -> -94 | DP14: -1.640609497 | DQ14: =DV13+DV10*COS(DP14) ->  | DR14: =DW13-DV10*SIN(DP14) ->  | DS14: =SQRT(POWER((DV12-DQ14),2)+POWER((DW12-DR14),2)) ->  | DT14: =ABS(DV9-DS14) ->  | DU14: k6 | DV14: =DV13+DV10*COS(RADIANS(DN24)) ->  | DW14: =DW13-DV10*SIN(RADIANS(DN24)) ->  | DX14: راس سوم | EI14: =-EE14+EJ9 -> 0 | EJ14: 0
G15: ='متغیرها '!U56 -> 103 | H15: e | J15: =F34 -> 5 | K15: =G34 -> 109 | L15: j2 | N15: محاسبات | R15: =N23 -> 78.045 | S15: =O23 -> 113.1715 | T15: d4 | Y15: =W35+'طراحی همه الگوها'!U190 -> 14.8 | Z15: =Z12+'طراحی همه الگوها'!U195 -> 26.8 | AA15: 11 | AC15: =Y23 -> 80.4 | AD15: =Z23 -> 27.714 | AE15: 7 | AG15: زاویه متوسط سرشانه | AH15: ='متغیرها '!B245 -> 0.3164156761 | AI15: α2 | AO15: s'9 | AP15: =AP12+0.7*(AP16-AP12) -> 41.76644589 | AQ15: =AQ16+0.3*(AQ12-AQ16) -> 129.4110949 | AZ15: =AZ14 -> 110 | BA15: =BA14+'طراحی همه الگوها'!U221 -> 5.2 | BB15: 14 | BD15: =AZ13 -> 0 | BE15: =BA13 -> 0 | BF15: 2 | BN15: =BJ29 -> 5 | BO15: =BK31 -> 5 | BP15: 4 | BR15: =BR14+0.3*(BR17-BR14) -> 30.17425761 | BS15: =BS14+0.05*(BS17-BS14) -> -6.75842778 | BT15: 6'' | BZ15: =BZ13+'طراحی همه الگوها'!U249 -> 83.7 | CA15: =CA13+'طراحی همه الگوها'!U251 -> 103 | CB15: 4 | CD15: =BZ34 -> 121.2 | CE15: =CA34 -> 222.6 | CF15: 15 | CH15: s''7 | CI15: =CI14+0.15*(CI18-CI14) -> 12.56881135 | CJ15: =CJ18+0.95*(CJ14-CJ18) -> 168.6043019 | CL15: 63.71774953 | CM15: 105.1753152 | CN15: k4 شبیه ساز | CU15: درجه α | CV15: x | CW15: y | CX15: c21 | CY15: c'17 | DA15: پروسیجر چرخش چند نقطه حول نقطه دیگر | DG15: کامل شده | DI15: m1 | DJ15: =ATAN(IF(DK11>DK10,1,-1)*(DK11-DK10)/(DL10-DL11)) ->  | DK15: m2 | DL15: =SQRT(POWER(DK10-DK11,2)+POWER(DL10-DL11,2)) ->  | DO15: =DO14+DN11 -> -92 | DP15: -1.605702912 | DQ15: =DV13+DV10*COS(DP15) ->  | DR15: =DW13-DV10*SIN(DP15) ->  | DS15: =SQRT(POWER((DV12-DQ15),2)+POWER((DW12-DR15),2)) ->  | DT15: =ABS(DV9-DS15) ->  | DU15: رسم مثلث | EI15: =-EE15+EJ9 -> 0 | EJ15: 0
G16: ='متغیرها '!U58 -> 105 | H16: g | N16: (d1 → d2) | O16: =0.45*'متغیرها '!U85 -> 25.65 | Y16: =W35+'طراحی همه الگوها'!U190 -> 14.8 | Z16: =Z12 -> 0 | AA16: 5 | AG16: دست صاف شبیه ساز k4 | AH16: =F406 -> 77.92355218 | AI16: =J406 -> 128.2984799 | AK16: =AH26 -> 59.17321846 | AL16: =AI26 -> 116.0235059 | AM16: s12 | AO16: s'10 | AP16: =AX39-('متغیرها '!C19*'متغیرها '!U83)*COS(AH15+RADIANS(AX38)) -> 57.52349413 | AQ16: =AY39+('متغیرها '!C19*'متغیرها '!U83)*SIN(AH15+RADIANS(AX38)) -> 111.3695706 | AS16: =AP18 -> 46.91689241 | AT16: 100.7629688 | AU16: s'12 | AZ16: =W35+'طراحی همه الگوها'!U216 -> 110 | BA16: =BA13+'طراحی همه الگوها'!U217 -> 72.7 | BB16: 9 | BD16: =BD15+0.3*(BD18-BD15) -> 17.76 | BE16: =BE15+0.15*(BE18-BE15) -> 2.055 | BF16: 16' | BN16: =BJ29 -> 5 | BO16: =BK30 -> -7 | BP16: 2 | BR16: =BR14+0.7*(BR17-BR14) -> 55.50213889 | BS16: =BS14+0.4*(BS17-BS14) -> 0.720934518 | BT16: 6''' | BZ16: =BZ13+'طراحی همه الگوها'!U249-'طراحی همه الگوها'!U255 -> 76.8 | CA16: =CA15 -> 103 | CB16: 8 | CH16: s''8 | CI16: =CI14+0.4*(CI18-CI14) -> 25.18349693 | CJ16: =CJ18+0.6*(CJ14-CJ18) -> 148.2785199 | CU16: 2 | CV16: =CV12+CY12*SIN(RADIANS(CU16)+CU14) ->  | CW16: =CW12+CY12*COS(RADIANS(CU16)+CU14) ->  | CX16: =IF(CV13>CV16,ATAN((CW13-CW16)/(CV13-CV16)),ATAN((CW13-CW16)/(CV16-CV13))) ->  | CY16: =IF(CV13>CV16,(CV13-CV16)/COS(CX16),(CV16-CV13)/COS(CX16)) ->  | DA16: رادیان | DB16: 1 | DC16: زاویه چرخش | DD16: چرخش مخالف عقربه های ساعت | DI16: نقطه خروجی بالا | DJ16: b28 | DK16: =DK10+IF(DK11>DK10,1,-1)*DK12*COS(DJ15) ->  | DL16: =DL10+DK12*SIN(DJ15) ->  | DO16: =DO15+DN11 -> -90 | DP16: -1.570796327 | DQ16: =DV13+DV10*COS(DP16) ->  | DR16: =DW13-DV10*SIN(DP16) ->  | DS16: =SQRT(POWER((DV12-DQ16),2)+POWER((DW12-DR16),2)) ->  | DT16: =ABS(DV9-DS16) ->  | DU16: =DU12 -> پشتk''5 | EI16: =-EE16+EJ9 -> 0 | EJ16: 0
F17: محاسبات | J17: =F34 -> 5 | K17: =G34 -> 109 | L17: j2 | N17: (d1 →d4) | O17: ='طراحی همه الگوها'!U178+'طراحی همه الگوها'!U177 -> 78.7 | R17: =N28 -> 5 | S17: =O28 -> 106.883105 | T17: j'2 | Y17: =Y16+'طراحی همه الگوها'!U192 -> 58.7 | Z17: =Z12 -> 0 | AA17: 8 | AC17: =Y16 -> 14.8 | AD17: =Z16 -> 0 | AE17: 5 | AG17: شبیه ساز 26 | AH17: =DX388 -> 5 | AI17: =DY388 -> 141.8211711 | AK17: =AK16+0.25*(AK19-AK16) -> 63.87991384 | AL17: =AL19+0.5*(AL16-AL19) -> 60.51175296 | AM17: s12' | AO17: s'11 | AP17: =AP27-'طراحی همه الگوها'!U226*SIN(AH15+RADIANS(AX38)) -> 53.88896527 | AQ17: =AQ27-'طراحی همه الگوها'!U226*COS(AH15+RADIANS(AX38)) -> 95.3465309 | AS17: 56.54182469 | AT17: 52.88148442 | AU17: s''13 | AZ17: =AZ24 -> 61.2 | BA17: =BA12+'طراحی همه الگوها'!U215 -> 102.7 | BB17: 7 | BD17: =W35+'طراحی همه الگوها'!U227 -> 35.52 | BE17: =BE15+'طراحی همه الگوها'!U228 -> 6.2 | BF17: 22 | BN17: =BJ30 -> -4.6 | BO17: =BK30 -> -7 | BP17: 3 | BR17: =BJ34 -> 74.49804985 | BS17: =BK34 -> 13.54269846 | BT17: 8 | BZ17: =BZ13 -> 0 | CA17: =CA15 -> 103 | CB17: 3 | CD17: =BZ32 -> 0 | CE17: =CA32 -> 128.5 | CF17: 18 | CH17: s''9 | CI17: =CI14+0.7*(CI18-CI14) -> 40.32111963 | CJ17: =CJ18+0.28*(CJ14-CJ18) -> 129.6949479 | CL17: =CI19 -> 63.71774953 | CM17: 105.1753152 | CN17: k4 شبیه ساز | CU17: 4 | CV17: =CV12+CY12*SIN(RADIANS(CU17)+CU14) ->  | CW17: =CW12+CY12*COS(RADIANS(CU17)+CU14) ->  | CX17: =IF(CV13>CV17,ATAN((CW13-CW17)/(CV13-CV17)),ATAN((CW13-CW17)/(CV17-CV13))) ->  | CY17: =IF(CV13>CV17,(CV13-CV17)/COS(CX17),(CV17-CV13)/COS(CX17)) ->  | DA17: مولفه افقی | DB17: مولفه عمودی | DC17: اسم نقطه | DE17: نقطه خروجی چرخیده | DI17: نقطه خروجی پایین | DJ17: b27 | DK17: =DK18+IF(DK11>DK10,1,-1)*DK12*COS(DJ15) ->  | DL17: =DL18+DK12*SIN(DJ15) ->  | DO17: =DO16+DN11 -> -88 | DP17: -1.535889742 | DQ17: =DV13+DV10*COS(DP17) ->  | DR17: =DW13-DV10*SIN(DP17) ->  | DS17: =SQRT(POWER((DV12-DQ17),2)+POWER((DW12-DR17),2)) ->  | DT17: =ABS(DV9-DS17) ->  | DU17: 42پشت | DV17: 1 | DW17: 0 | EI17: =-EE17+EJ9 -> 0 | EJ17: 0
F18: قد سرشانه تا زمین | G18: =0.5*(G14+G15+G16) -> 145 | J18: =F44 -> 17 | K18: =G44 -> 109 | L18: j13 | N18: (d5 →d6) | O18: =5+0.1*O17 -> 12.87 | Y18: =Y16+'طراحی همه الگوها'!U192 -> 58.7 | Z18: =Z12+'طراحی همه الگوها'!U193 -> 13.9 | AA18: 9 | AC18: ='طراحی همه الگوها'!U190+'طراحی همه الگوها'!U199 -> 36.8 | AD18: =Z12+'طراحی همه الگوها'!U200 -> 4.9 | AE18: 16 | AK18: =AK16+0.6*(AK19-AK16) -> 70.46928738 | AL18: =AL19+0.2*(AL16-AL19) -> 27.20470118 | AM18: s12'' | AO18: s'12 | AP18: =AP16-'طراحی همه الگوها'!U225*SIN(AH15+RADIANS(AX38)) -> 46.91689241 | AQ18: =AQ16-'طراحی همه الگوها'!U225*COS(AH15+RADIANS(AX38)) -> 100.7629688 | AS18: 64.56260158 | AT18: 28.94074221 | AU18: s'''13 | AZ18: =W35+'طراحی همه الگوها'!U216 -> 110 | BA18: =BA16+'طراحی همه الگوها'!U218 -> 132.7 | BB18: 10 | BD18: =W35+'طراحی همه الگوها'!U222 -> 59.2 | BE18: =BA13+'طراحی همه الگوها'!U223 -> 13.7 | BF18: 16 | BZ18: =BZ13 -> 0 | CA18: =CA17-'طراحی همه الگوها'!U252 -> 88.6 | CB18: 5 | CD18: =CD17+'طراحی همه الگوها'!U268 -> 22.4 | CE18: =CA31+'طراحی همه الگوها'!U269 -> 129.4 | CF18: 24 | CH18: s''10 | CI18: =AX39-0.2*'متغیرها '!U83*COS(AH15+RADIANS(AX38)) -> 55.45874232 | CJ18: =AY39+0.2*'متغیرها '!U83*SIN(AH15+RADIANS(AX38)) -> 113.4343224 | CL18: 52.73383321 | CM18: 81.15381727 | CN18: s''11 | CU18: 6 | CV18: =CV12+CY12*SIN(RADIANS(CU18)+CU14) ->  | CW18: =CW12+CY12*COS(RADIANS(CU18)+CU14) ->  | CX18: =IF(CV13>CV18,ATAN((CW13-CW18)/(CV13-CV18)),ATAN((CW13-CW18)/(CV18-CV13))) ->  | CY18: =IF(CV13>CV18,(CV13-CV18)/COS(CX18),(CV18-CV13)/COS(CX18)) ->  | DA18: 2 | DB18: 1 | DC18: a40 | DD18: نقطه مرکزی چرخش | DE18: مولفه افقی | DF18: مولفه عمودی | DG18: اسم نقطه | DI18: نقطه خروجی میانه | DJ18: b26 | DK18: =DK10+IF(DK11>DK10,1,-1)*DK13*DL15*SIN(DJ15)/DL14 ->  | DL18: =DL10-DK13*DL15*COS(DJ15)/DL14 ->  | DO18: =DO17+DN11 -> -86 | DP18: -1.500983157 | DQ18: =DV13+DV10*COS(DP18) ->  | DR18: =DW13-DV10*SIN(DP18) ->  | DS18: =SQRT(POWER((DV12-DQ18),2)+POWER((DW12-DR18),2)) ->  | DT18: =ABS(DV9-DS18) ->  | EI18: =-EE18+EJ9 -> 0 | EJ18: 0
F19: تمام قد | G19: =ROUND(G18+IF(G13>51.5,0.35,IF(G13>50.5,0.33,0.31))*G13,0) -> 165 | N19: نقاط خروجی در مقنعه دراپه | R19: =N21 -> 5 | S19: =O21 -> 150.05 | T19: d2 | Y19: =Y16+'طراحی همه الگوها'!U192 -> 58.7 | Z19: =Z12+'طراحی همه الگوها'!U194 -> 35.4 | AA19: 10 | AC19: =Y18 -> 58.7 | AD19: =Z18 -> 13.9 | AE19: 9 | AG19: طراحی چادر شماره 2 | AK19: =AH28 -> 78 | AL19: =AI28 -> 5 | AM19: s13 | AO19: s''13 | AP19: =AP18+0.3*(AP21-AP18) -> 56.54182469 | AQ19: =AQ21+0.5*(AQ18-AQ21) -> 52.88148442 | AS19: 79 | AT19: 5 | AU19: s'13 | AZ19: =W35+'طراحی همه الگوها'!U216 -> 110 | BA19: =BA16 -> 72.7 | BB19: 9 | BD19: =BD18+0.5*(BD20-BD18) -> 84.6 | BE19: =BE20+0.8*(BE18-BE20) -> 12 | BF19: 14' | BN19: =BJ29 -> 5 | BO19: =BK35 -> 117.4869368 | BP19: 13 | BR19: =BJ31 -> 13.9 | BS19: =BK31 -> 5 | BT19: 5 | BZ19: =BZ13 -> 0 | CA19: =CA13 -> 0 | CB19: 1 | CD19: =CD17+'طراحی همه الگوها'!U270 -> 44.9 | CE19: =CA31+'طراحی همه الگوها'!U271 -> 133.3 | CF19: 26 | CH19: k4 شبیه ساز | CI19: =K384 -> 63.71774953 | CJ19: =L384 -> 105.1753152 | CL19: 30.76600058 | CM19: 61.93661895 | CN19: s'11 | CU19: 8 | CV19: =CV12+CY12*SIN(RADIANS(CU19)+CU14) ->  | CW19: =CW12+CY12*COS(RADIANS(CU19)+CU14) ->  | CX19: =IF(CV13>CV19,ATAN((CW13-CW19)/(CV13-CV19)),ATAN((CW13-CW19)/(CV19-CV13))) ->  | CY19: =IF(CV13>CV19,(CV13-CV19)/COS(CX19),(CV19-CV13)/COS(CX19)) ->  | DA19: 1 | DB19: 2 | DC19: نقطه 1 | DD19: نقطه قبل از چرخش | DE19: =IF(DB19>DB18,IF(DA19>DA18,DA18+SQRT(POWER(DA19-DA18,2)+POWER(DB19-DB18,2))*COS(ATAN((DB19-DB18)/(DA19-DA18+0.000123))+DB16),DA18-SQRT(POWER(DA19-DA18,2)+POWER(DB19-DB18,2))*COS(ATAN((DB19-DB18)/(DA18-DA19+0.000123))-DB16)),IF(DA19>DA18,DA18+SQRT(POWER(DA19-DA18,2)+POWER(DB19-DB18,2))*COS(ATAN((DB18-DB19)/(DA19-DA18+0.000123))-DB16),DA18-SQRT(POWER(DA19-DA18,2)+POWER(DB19-DB18,2))*COS(ATAN((DB18-DB19)/(DA18-DA19+0.000123))+DB16))) -> 0.6182452327 | DF19: =IF(DB19>DB18,IF(DA19>DA18,DB18+SQRT(POWER(DA19-DA18,2)+POWER(DB19-DB18,2))*SIN(ATAN((DB19-DB18)/(DA19-DA18+0.000123))+DB16),DB18+SQRT(POWER(DA19-DA18,2)+POWER(DB19-DB18,2))*SIN(ATAN((DB19-DB18)/(DA18-DA19+0.000123))-DB16)),IF(DA19>DA18,DB18-SQRT(POWER(DA19-DA18,2)+POWER(DB19-DB18,2))*SIN(ATAN((DB18-DB19)/(DA19-DA18+0.000123))-DB16),DB18-SQRT(POWER(DA19-DA18,2)+POWER(DB19-DB18,2))*SIN(ATAN((DB18-DB19)/(DA18-DA19+0.000123))+DB16))) -> 0.6987463478 | DG19: نقطه چرخیده | DO19: =DO18+DN11 -> -84 | DP19: -1.466076572 | DQ19: =DV13+DV10*COS(DP19) ->  | DR19: =DW13-DV10*SIN(DP19) ->  | DS19: =SQRT(POWER((DV12-DQ19),2)+POWER((DW12-DR19),2)) ->  | DT19: =ABS(DV9-DS19) ->  | DU19: =DU13 -> 42پشت | DV19: =DV13 -> 1 | DW19: =DW13 -> 0 | EI19: =-EE19+EJ9 -> 0 | EJ19: 0
F20: j4 | G20: =IF('متغیرها '!C5<1,'متغیرها '!C5*'متغیرها '!U59,IF('متغیرها '!C5<2,'متغیرها '!U59+('متغیرها '!C5-1)*('متغیرها '!U60-'متغیرها '!U59),IF('متغیرها '!C5<3,'متغیرها '!U60+('متغیرها '!C5-2)*(I105-'متغیرها '!U60),I105+('متغیرها '!C5-3)*(H127-H126)))) -> 104 | J20: =F43 -> 17 | K20: =G43 -> 167.1 | L20: j12 | N20: مولفه افقی | O20: مولفه عمودی | P20: اسم نقطه | AC20: ='طراحی همه الگوها'!U190+'طراحی همه الگوها'!U192+'طراحی همه الگوها'!U202 -> 69.6 | AD20: =Z12+'طراحی همه الگوها'!U203 -> 20.1 | AE20: 19 | AG20: اسم نقطه | AH20: مولفه افقی | AI20: مولفه عمودی | AO20: s'''13 | AP20: =AP18+0.55*(AP21-AP18) -> 64.56260158 | AQ20: =AQ21+0.25*(AQ18-AQ21) -> 28.94074221 | BD20: =AZ14 -> 110 | BE20: =BA14+'طراحی همه الگوها'!U221 -> 5.2 | BF20: 14 | BN20: =BJ35 -> 36.66544106 | BO20: =BK35 -> 117.4869368 | BP20: 9 | BR20: =BJ33 -> 25.98341737 | BS20: =BK33 -> 5.633265071 | BT20: 7 | CD20: =BZ37 -> 56.1 | CE20: =CA37 -> 137.2 | CF20: 17 | CH20: s''11 | CI20: =CI22+0.8*(CI19-CI22) -> 52.73383321 | CJ20: =CJ22+0.5*(CJ19-CJ22) -> 81.15381727 | CL20: 8.798167944 | CM20: 57.13231937 | CN20: s11 | CU20: 10 | CV20: =CV12+CY12*SIN(RADIANS(CU20)+CU14) ->  | CW20: =CW12+CY12*COS(RADIANS(CU20)+CU14) ->  | CX20: =IF(CV13>CV20,ATAN((CW13-CW20)/(CV13-CV20)),ATAN((CW13-CW20)/(CV20-CV13))) ->  | CY20: =IF(CV13>CV20,(CV13-CV20)/COS(CX20),(CV20-CV13)/COS(CX20)) ->  | DA20: 1 | DB20: 2 | DC20: نقطه2 | DD20: نقطه قبل از چرخش | DE20: =IF(DB20>DB18,IF(DA20>DA18,DA18+SQRT(POWER(DA20-DA18,2)+POWER(DB20-DB18,2))*COS(ATAN((DB20-DB18)/(DA20-DA18+0.000123))+DB16),DA18-SQRT(POWER(DA20-DA18,2)+POWER(DB20-DB18,2))*COS(ATAN((DB20-DB18)/(DA18-DA20+0.000123))-DB16)),IF(DA20>DA18,DA18+SQRT(POWER(DA20-DA18,2)+POWER(DB20-DB18,2))*COS(ATAN((DB18-DB20)/(DA20-DA18+0.000123))-DB16),DA18-SQRT(POWER(DA20-DA18,2)+POWER(DB20-DB18,2))*COS(ATAN((DB18-DB20)/(DA18-DA20+0.000123))+DB16))) -> 0.6182452327 | DF20: =IF(DB20>DB18,IF(DA20>DA18,DB18+SQRT(POWER(DA20-DA18,2)+POWER(DB20-DB18,2))*SIN(ATAN((DB20-DB18)/(DA20-DA18+0.000123))+DB16),DB18+SQRT(POWER(DA20-DA18,2)+POWER(DB20-DB18,2))*SIN(ATAN((DB20-DB18)/(DA18-DA20+0.000123))-DB16)),IF(DA20>DA18,DB18-SQRT(POWER(DA20-DA18,2)+POWER(DB20-DB18,2))*SIN(ATAN((DB18-DB20)/(DA20-DA18+0.000123))-DB16),DB18-SQRT(POWER(DA20-DA18,2)+POWER(DB20-DB18,2))*SIN(ATAN((DB18-DB20)/(DA18-DA20+0.000123))+DB16))) -> 0.6987463478 | DG20: نقطه چرخیده | DJ20: رسم باکس زیپ دامن- باکس راست | DK20: مولفه افقی | DL20: مولفه عمودی | DO20: =DO19+DN11 -> -82 | DP20: -1.431169987 | DQ20: =DV13+DV10*COS(DP20) ->  | DR20: =DW13-DV10*SIN(DP20) ->  | DS20: =SQRT(POWER((DV12-DQ20),2)+POWER((DW12-DR20),2)) ->  | DT20: =ABS(DV9-DS20) ->  | DU20: =DU14 -> k6 | DV20: =#REF! ->  | DW20: =#REF! ->  | EI20: =-EE20+EJ9 -> 0 | EJ20: 0
F21: رسم دستی چادر 1 یا مقنعه چانه دار(بر حسب سانتیمتر) | J21: =F35 -> 17 | K21: =G35 -> 175.7 | L21: j3 | N21: =N11 -> 5 | O21: =O13+0.1*'متغیرها '!U85-O16+O14 -> 150.05 | P21: d2 | T21: انحنا | Y21: =Y16+'طراحی همه الگوها'!U192 -> 58.7 | Z21: =Z12 -> 0 | AA21: 8 | AC21: =Y23 -> 80.4 | AD21: =Z23 -> 27.714 | AE21: 7 | AG21: s6 | AH21: =AH14 -> 5 | AI21: =1.003*AI14 -> 171.507985 | AK21: =AH32 -> 5 | AL21: =AI32 -> 168.9 | AM21: s17 | AO21: s'13 | AP21: =AH17+0.5*('طراحی همه الگوها'!U216+'طراحی همه الگوها'!U210-'طراحی همه الگوها'!U217-'طراحی همه الگوها'!U218) -> 79 | AQ21: =AX33+AH42 -> 5 | AS21: =AP25 -> 5 | AT21: =AQ25 -> 168.9 | AU21: s'17 | AZ21: =W35 -> 0 | BA21: =BA12 -> 98.8 | BB21: 4 | BZ21: =BZ13+'طراحی همه الگوها'!U249-'طراحی همه الگوها'!U253 -> 56.1 | CA21: =CA15 -> 103 | CB21: 6 | CH21: s'11 | CI21: =CI22+0.4*(CI19-CI22) -> 30.76600058 | CJ21: =CJ22+0.1*(CJ19-CJ22) -> 61.93661895 | CU21: 12 | CV21: =CV12+CY12*SIN(RADIANS(CU21)+CU14) ->  | CW21: =CW12+CY12*COS(RADIANS(CU21)+CU14) ->  | CX21: =IF(CV13>CV21,ATAN((CW13-CW21)/(CV13-CV21)),ATAN((CW13-CW21)/(CV21-CV13))) ->  | CY21: =IF(CV13>CV21,(CV13-CV21)/COS(CX21),(CV21-CV13)/COS(CX21)) ->  | DA21: 1 | DB21: 2 | DC21: نقطه 3 | DD21: نقطه قبل از چرخش | DE21: =IF(DB21>DB18,IF(DA21>DA18,DA18+SQRT(POWER(DA21-DA18,2)+POWER(DB21-DB18,2))*COS(ATAN((DB21-DB18)/(DA21-DA18+0.000123))+DB16),DA18-SQRT(POWER(DA21-DA18,2)+POWER(DB21-DB18,2))*COS(ATAN((DB21-DB18)/(DA18-DA21+0.000123))-DB16)),IF(DA21>DA18,DA18+SQRT(POWER(DA21-DA18,2)+POWER(DB21-DB18,2))*COS(ATAN((DB18-DB21)/(DA21-DA18+0.000123))-DB16),DA18-SQRT(POWER(DA21-DA18,2)+POWER(DB21-DB18,2))*COS(ATAN((DB18-DB21)/(DA18-DA21+0.000123))+DB16))) -> 0.6182452327 | DF21: =IF(DB21>DB18,IF(DA21>DA18,DB18+SQRT(POWER(DA21-DA18,2)+POWER(DB21-DB18,2))*SIN(ATAN((DB21-DB18)/(DA21-DA18+0.000123))+DB16),DB18+SQRT(POWER(DA21-DA18,2)+POWER(DB21-DB18,2))*SIN(ATAN((DB21-DB18)/(DA18-DA21+0.000123))-DB16)),IF(DA21>DA18,DB18-SQRT(POWER(DA21-DA18,2)+POWER(DB21-DB18,2))*SIN(ATAN((DB18-DB21)/(DA21-DA18+0.000123))-DB16),DB18-SQRT(POWER(DA21-DA18,2)+POWER(DB21-DB18,2))*SIN(ATAN((DB18-DB21)/(DA18-DA21+0.000123))+DB16))) -> 0.6987463478 | DG21: نقطه چرخیده | DI21: نقطه ورودی بالا | DJ21: su3 | DK21: =#REF! ->  | DL21: =#REF! ->  | DO21: =DO20+DN11 -> -80 | DP21: -1.396263402 | DQ21: =DV13+DV10*COS(DP21) ->  | DR21: =DW13-DV10*SIN(DP21) ->  | DS21: =SQRT(POWER((DV12-DQ21),2)+POWER((DW12-DR21),2)) ->  | DT21: =ABS(DV9-DS21) ->  | EI21: =-EE21+EJ9 -> 0 | EJ21: 0
N22: =N21 -> 5 | O22: =O21+1.41*O16 -> 186.2165 | P22: d3 | R22: =N24 -> 5 | S22: =O24 -> 100.3015 | T22: d6 | Y22: =W35+'طراحی همه الگوها'!U189 -> 80.4 | Z22: =Z12 -> 0 | AA22: 6 | AG22: s7 | AH22: =AH21+0.12*(AH25-AH21) -> 12.15422679 | AI22: =AI25+0.94*(AI21-AI25) -> 169.1767909 | AK22: =AH33 -> 7.98908 | AL22: =AI33 -> 166.581 | AM22: s18 | AO22: s'14 | AP22: =AH11+AH40*COS(AH38) -> 10.97816 | AQ22: =AI11-AH40*SIN(AH38) -> 161.17 | AS22: =AP26 -> 8.586896 | AT22: =AQ26 -> 166.581 | AU22: s'18 | AZ22: =W35+'طراحی همه الگوها'!U213 -> 46.7 | BA22: =BA12 -> 98.8 | BB22: 5 | BD22: =BD18 -> 59.2 | BE22: =BE18 -> 13.7 | BF22: 16 | BN22: =BJ29 -> 5 | BO22: =BK37 -> 98.41322882 | BP22: 12 | BR22: =BJ33 -> 25.98341737 | BS22: =BK33 -> 5.633265071 | BT22: 7 | BZ22: =BZ13+'طراحی همه الگوها'!U249-'طراحی همه الگوها'!U253 -> 56.1 | CA22: =CA15-'طراحی همه الگوها'!U254 -> 79.9 | CB22: 7 | CD22: =BZ18 -> 0 | CE22: =CA18 -> 88.6 | CF22: 5 | CH22: s11 | CI22: =0.7*CI15 -> 8.798167944 | CJ22: =CJ15-'طراحی همه الگوها'!U263+1.2*SQRT(POWER(CI15-CI14,2)+POWER(CJ15-CJ14,2)) -> 57.13231937 | CL22: =CI28 -> 5 | CM22: =CJ28 -> 168.9 | CN22: s''17 | CU22: 14 | CV22: =CV12+CY12*SIN(RADIANS(CU22)+CU14) ->  | CW22: =CW12+CY12*COS(RADIANS(CU22)+CU14) ->  | CX22: =IF(CV13>CV22,ATAN((CW13-CW22)/(CV13-CV22)),ATAN((CW13-CW22)/(CV22-CV13))) ->  | CY22: =IF(CV13>CV22,(CV13-CV22)/COS(CX22),(CV22-CV13)/COS(CX22)) ->  | DA22: 1 | DB22: 2 | DC22: نقطه 4 | DD22: نقطه قبل از چرخش | DE22: =IF(DB22>DB18,IF(DA22>DA18,DA18+SQRT(POWER(DA22-DA18,2)+POWER(DB22-DB18,2))*COS(ATAN((DB22-DB18)/(DA22-DA18+0.000123))+DB16),DA18-SQRT(POWER(DA22-DA18,2)+POWER(DB22-DB18,2))*COS(ATAN((DB22-DB18)/(DA18-DA22+0.000123))-DB16)),IF(DA22>DA18,DA18+SQRT(POWER(DA22-DA18,2)+POWER(DB22-DB18,2))*COS(ATAN((DB18-DB22)/(DA22-DA18+0.000123))-DB16),DA18-SQRT(POWER(DA22-DA18,2)+POWER(DB22-DB18,2))*COS(ATAN((DB18-DB22)/(DA18-DA22+0.000123))+DB16))) -> 0.6182452327 | DF22: =IF(DB22>DB18,IF(DA22>DA18,DB18+SQRT(POWER(DA22-DA18,2)+POWER(DB22-DB18,2))*SIN(ATAN((DB22-DB18)/(DA22-DA18+0.000123))+DB16),DB18+SQRT(POWER(DA22-DA18,2)+POWER(DB22-DB18,2))*SIN(ATAN((DB22-DB18)/(DA18-DA22+0.000123))-DB16)),IF(DA22>DA18,DB18-SQRT(POWER(DA22-DA18,2)+POWER(DB22-DB18,2))*SIN(ATAN((DB18-DB22)/(DA22-DA18+0.000123))-DB16),DB18-SQRT(POWER(DA22-DA18,2)+POWER(DB22-DB18,2))*SIN(ATAN((DB18-DB22)/(DA18-DA22+0.000123))+DB16))) -> 0.6987463478 | DG22: نقطه چرخیده | DI22: نقطه ورودی پایین | DJ22: sd3 | DK22: =#REF! ->  | DL22: =#REF! ->  | DN22: به روش تخمین | DO22: =DO21+DN11 -> -78 | DP22: -1.361356817 | DQ22: =DV13+DV10*COS(DP22) ->  | DR22: =DW13-DV10*SIN(DP22) ->  | DS22: =SQRT(POWER((DV12-DQ22),2)+POWER((DW12-DR22),2)) ->  | DT22: =ABS(DV9-DS22) ->  | DU22: =DU14 -> k6 | DV22: =#REF! ->  | DW22: =#REF! ->  | EI22: =-EE22+EJ9 -> 0 | EJ22: 0
J23: =F42 -> 27.3 | K23: =G42 -> 175.7 | L23: j11 | N23: =0.7*(O17+O16)+N21 -> 78.045 | O23: =O22-0.7*(O16+O17) -> 113.1715 | P23: d4 | R23: =N25 -> 19.609 | S23: =O25 -> 100.3015 | T23: d7 | Y23: =W35+'طراحی همه الگوها'!U189 -> 80.4 | Z23: =Z12+'طراحی همه الگوها'!U191 -> 27.714 | AA23: 7 | AC23: =Y13 -> 0 | AD23: =Z13 -> 178.7 | AE23: 1 | AG23: s8 | AH23: =AH21+0.4*(AH25-AH21) -> 28.84742264 | AI23: =AI25+0.5*(AI21-AI25) -> 152.0813677 | AK23: =AH29 -> 10.97816 | AL23: =AI29 -> 161.17 | AM23: s14 | AO23: s'16 | AP23: =AH13 -> 5 | AQ23: =AI13 -> 124.1 | AS23: =AP22 -> 10.97816 | AT23: =AQ22 -> 161.17 | AU23: s'14 | AZ23: =W35+'طراحی همه الگوها'!U213+'طراحی همه الگوها'!U214 -> 61.2 | BA23: =BA12 -> 98.8 | BB23: 6 | BD23: =BD18 -> 59.2 | BE23: =BA13 -> 0 | BF23: 15 | BN23: =BJ37 -> 61.2149891 | BO23: =BK37 -> 98.41322882 | BP23: 11 | BR23: =BR22+0.3*(BR25-BR22) -> 40.53780712 | BS23: =MIN(BS22,BS25)+IF(BS25>BS22,0.15,0.9)*ABS(BS25-BS22) -> 6.819680079 | BT23: 7'' | CD23: =CD22+'طراحی همه الگوها'!U264 -> 22.4 | CE23: =CA17-'طراحی همه الگوها'!U265 -> 87.7 | CF23: 20 | CH23: s12 | CI23: =CI24 -> 24.4075 | CJ23: =CJ24+'طراحی همه الگوها'!U257 -> 114.2599133 | CL23: =CI29 -> 7.98908 | CM23: =CJ29 -> 166.581 | CN23: s''18 | CU23: 16 | CV23: =CV12+CY12*SIN(RADIANS(CU23)+CU14) ->  | CW23: =CW12+CY12*COS(RADIANS(CU23)+CU14) ->  | CX23: =IF(CV13>CV23,ATAN((CW13-CW23)/(CV13-CV23)),ATAN((CW13-CW23)/(CV23-CV13))) ->  | CY23: =IF(CV13>CV23,(CV13-CV23)/COS(CX23),(CV23-CV13)/COS(CX23)) ->  | DA23: 1 | DB23: 2 | DC23: نقطه 5 | DD23: نقطه قبل از چرخش | DE23: =IF(DB23>DB18,IF(DA23>DA18,DA18+SQRT(POWER(DA23-DA18,2)+POWER(DB23-DB18,2))*COS(ATAN((DB23-DB18)/(DA23-DA18+0.000123))+DB16),DA18-SQRT(POWER(DA23-DA18,2)+POWER(DB23-DB18,2))*COS(ATAN((DB23-DB18)/(DA18-DA23+0.000123))-DB16)),IF(DA23>DA18,DA18+SQRT(POWER(DA23-DA18,2)+POWER(DB23-DB18,2))*COS(ATAN((DB18-DB23)/(DA23-DA18+0.000123))-DB16),DA18-SQRT(POWER(DA23-DA18,2)+POWER(DB23-DB18,2))*COS(ATAN((DB18-DB23)/(DA18-DA23+0.000123))+DB16))) -> 0.6182452327 | DF23: =IF(DB23>DB18,IF(DA23>DA18,DB18+SQRT(POWER(DA23-DA18,2)+POWER(DB23-DB18,2))*SIN(ATAN((DB23-DB18)/(DA23-DA18+0.000123))+DB16),DB18+SQRT(POWER(DA23-DA18,2)+POWER(DB23-DB18,2))*SIN(ATAN((DB23-DB18)/(DA18-DA23+0.000123))-DB16)),IF(DA23>DA18,DB18-SQRT(POWER(DA23-DA18,2)+POWER(DB23-DB18,2))*SIN(ATAN((DB18-DB23)/(DA23-DA18+0.000123))-DB16),DB18-SQRT(POWER(DA23-DA18,2)+POWER(DB23-DB18,2))*SIN(ATAN((DB18-DB23)/(DA18-DA23+0.000123))+DB16))) -> 0.6987463478 | DG23: نقطه چرخیده | DI23: متغیر ورودی پهنا | DJ23: a20 | DK23: =#REF! ->  | DL23: (سانتیمتر) | DN23: بهینه α1 | DO23: =DO22+DN11 -> -76 | DP23: -1.326450232 | DQ23: =DV13+DV10*COS(DP23) ->  | DR23: =DW13-DV10*SIN(DP23) ->  | DS23: =SQRT(POWER((DV12-DQ23),2)+POWER((DW12-DR23),2)) ->  | DT23: =ABS(DV9-DS23) ->  | DU23: =DU12 -> پشتk''5 | DV23: =DV12 ->  | DW23: =DW12 ->  | EI23: =-EE23+EJ9 -> 0 | EJ23: 0
J24: =F43 -> 17 | K24: =G43 -> 167.1 | L24: j12 | N24: =N21 -> 5 | O24: =O23-O18+'متغیرها '!C6*0.1*'متغیرها '!U85*0.7 -> 100.3015 | P24: d6 | R24: =N27 -> 56.1315 | S24: =O27 -> 101.5885 | T24: d9 | Y24: =W35+'طراحی همه الگوها'!U189 -> 80.4 | Z24: =Z13-'طراحی همه الگوها'!U198 -> 161.2 | AA24: 14 | AG24: s9 | AH24: =AH21+0.7*(AH25-AH21) -> 46.73298962 | AI24: =AI25+0.2*(AI21-AI25) -> 140.4253973 | AO24: s'15 | AP24: =AP23+0.7*(AP22-AP23) -> 9.184712 | AQ24: =AQ23+0.5*(AQ22-AQ23) -> 142.635 | AS24: =AP24 -> 9.184712 | AT24: =AQ24 -> 142.635 | AU24: s'15 | AZ24: =AZ23 -> 61.2 | BA24: =BA17 -> 102.7 | BB24: 7 | BR24: =BR22+0.7*(BR25-BR22) -> 59.94366011 | BS24: =MIN(BS22,BS25)+0.5*ABS(BS25-BS22) -> 9.587981764 | BT24: 7''' | BZ24: =BZ15 -> 83.7 | CA24: =CA15 -> 103 | CB24: 4 | CD24: =CD22+'طراحی همه الگوها'!U266 -> 44.9 | CE24: =CA17-'طراحی همه الگوها'!U267 -> 83.8 | CF24: 22 | CH24: 41 شبیه ساز | CI24: =DT395 -> 24.4075 | CJ24: =DU395 -> 110.1599133 | CL24: =CI12 -> 10.97816 | CM24: =CJ12 -> 161.17 | CN24: s3 | CU24: 18 | CV24: =CV12+CY12*SIN(RADIANS(CU24)+CU14) ->  | CW24: =CW12+CY12*COS(RADIANS(CU24)+CU14) ->  | CX24: =IF(CV13>CV24,ATAN((CW13-CW24)/(CV13-CV24)),ATAN((CW13-CW24)/(CV24-CV13))) ->  | CY24: =IF(CV13>CV24,(CV13-CV24)/COS(CX24),(CV24-CV13)/COS(CX24)) ->  | DA24: 1 | DB24: 2 | DC24: نقطه 6 | DD24: نقطه قبل از چرخش | DE24: =IF(DB24>DB18,IF(DA24>DA18,DA18+SQRT(POWER(DA24-DA18,2)+POWER(DB24-DB18,2))*COS(ATAN((DB24-DB18)/(DA24-DA18+0.000123))+DB16),DA18-SQRT(POWER(DA24-DA18,2)+POWER(DB24-DB18,2))*COS(ATAN((DB24-DB18)/(DA18-DA24+0.000123))-DB16)),IF(DA24>DA18,DA18+SQRT(POWER(DA24-DA18,2)+POWER(DB24-DB18,2))*COS(ATAN((DB18-DB24)/(DA24-DA18+0.000123))-DB16),DA18-SQRT(POWER(DA24-DA18,2)+POWER(DB24-DB18,2))*COS(ATAN((DB18-DB24)/(DA18-DA24+0.000123))+DB16))) -> 0.6182452327 | DF24: =IF(DB24>DB18,IF(DA24>DA18,DB18+SQRT(POWER(DA24-DA18,2)+POWER(DB24-DB18,2))*SIN(ATAN((DB24-DB18)/(DA24-DA18+0.000123))+DB16),DB18+SQRT(POWER(DA24-DA18,2)+POWER(DB24-DB18,2))*SIN(ATAN((DB24-DB18)/(DA18-DA24+0.000123))-DB16)),IF(DA24>DA18,DB18-SQRT(POWER(DA24-DA18,2)+POWER(DB24-DB18,2))*SIN(ATAN((DB18-DB24)/(DA24-DA18+0.000123))-DB16),DB18-SQRT(POWER(DA24-DA18,2)+POWER(DB24-DB18,2))*SIN(ATAN((DB18-DB24)/(DA18-DA24+0.000123))+DB16))) -> 0.6987463478 | DG24: نقطه چرخیده | DI24: متغیر ورودی طول | DJ24: a21 | DK24: 1 | DN24: =IF(DT12>DT11,DO11,IF(DT13>DT12,DO12,IF(DT14>DT13,DO13,IF(DT15>DT14,DO14,IF(DT16>DT15,DO15,IF(DT17>DT16,DO16,IF(DT18>DT17,DO17,IF(DT19>DT18,DO18,IF(DT20>DT19,DO19,IF(DT21>DT20,DO20,IF(DT22>DT21,DO21,IF(DT23>DT22,DO22,IF(DT24>DT23,DO23,IF(DT25>DT24,DO24,IF(DT26>DT25,DO25,IF(DT27>DT26,DO26,IF(DT28>DT27,DO27,IF(DT29>DT28,DO28,IF(DT30>DT29,DO29,IF(DT31>DT30,DO30,IF(DT32>DT31,DO31,IF(DT33>DT32,DO32,IF(DT34>DT33,DO33,IF(DT35>DT34,DO34,IF(DT36>DT35,DO35,IF(DT37>DT36,DO36,IF(DT38>DT37,DO37,IF(DT39>DT38,DO38,IF(DT40>DT39,DO39,IF(DT41>DT40,DO40,IF(DT42>DT41,DO41,IF(DT43>DT42,DO42,IF(DT44>DT43,DO43,IF(DT45>DT44,DO44,IF(DT46>DT45,DO45,IF(DT47>DT46,DO46,IF(DT48>DT47,DO47,IF(DT49>DT48,DO48,IF(DT50>DT49,DO49,IF(DT51>DT50,DO50,IF(DT52>DT51,DO51,DO52))))))))))))))))))))))))))))))))))))))))) ->  | DO24: =DO23+DN11 -> -74 | DP24: -1.291543646 | DQ24: =DV13+DV10*COS(DP24) ->  | DR24: =DW13-DV10*SIN(DP24) ->  | DS24: =SQRT(POWER((DV12-DQ24),2)+POWER((DW12-DR24),2)) ->  | DT24: =ABS(DV9-DS24) ->  | EI24: =-EE24+EJ9 -> 0 | EJ24: 0
N25: =0.2*(N23-N21)+N21 -> 19.609 | O25: =O24 -> 100.3015 | P25: d7 | R25: =N26 -> 70.7405 | S25: =O26 -> 106.7365 | T25: d8 | Y25: =Y27+'طراحی همه الگوها'!U196 -> 94.4 | Z25: =Z13-'طراحی همه الگوها'!U197 -> 163 | AA25: 13 | AD25: صاف | AG25: s10 | AH25: =AH16-('طراحی همه الگوها'!U196-'متغیرها '!C13*'متغیرها '!U83)*COS(AH15) -> 64.61855661 | AI25: =AI16+('طراحی همه الگوها'!U196-'متغیرها '!C13*'متغیرها '!U83)*SIN(AH15) -> 132.6547504 | AK25: =AH29 -> 10.97816 | AL25: =AI29 -> 161.17 | AM25: s14 | AO25: s'17 | AP25: =DB400 -> 5 | AQ25: =IF('متغیرها '!C22=-1,AL10,IF('متغیرها '!C22=0,DC400-0.1,DC400-0.25*(DC400-DC404))) -> 168.9 | AS25: =AP23 -> 5 | AT25: =AQ23 -> 124.1 | AU25: s'16 | AZ25: =AZ22 -> 46.7 | BA25: =BA22 -> 98.8 | BB25: 5 | BD25: =BD17 -> 35.52 | BE25: =BE15 -> 0 | BF25: 21 | BH25: (3 →6) | BI25: =ROUND(0.2*(BJ34-BJ30),1) -> 15.8 | BN25: =BJ29 -> 5 | BO25: =BK34 -> 13.54269846 | BP25: 14 | BR25: =BJ34 -> 74.49804985 | BS25: =BK34 -> 13.54269846 | BT25: 8 | BZ25: =BZ15 -> 83.7 | CA25: =CA15+'طراحی همه الگوها'!U257 -> 107.1 | CB25: 9 | CD25: =BZ22 -> 56.1 | CE25: =CA22 -> 79.9 | CF25: 7 | CH25: 41' | CI25: =CI24+0.5*(CI27-CI24) -> 35.62875 | CJ25: =CJ27+0.7*(CJ24-CJ27) -> 78.61193931 | CU25: 20 | CV25: =CV12+CY12*SIN(RADIANS(CU25)+CU14) ->  | CW25: =CW12+CY12*COS(RADIANS(CU25)+CU14) ->  | CX25: =IF(CV13>CV25,ATAN((CW13-CW25)/(CV13-CV25)),ATAN((CW13-CW25)/(CV25-CV13))) ->  | CY25: =IF(CV13>CV25,(CV13-CV25)/COS(CX25),(CV25-CV13)/COS(CX25)) ->  | DA25: 1 | DB25: 2 | DC25: نقطه 7 | DD25: نقطه قبل از چرخش | DE25: =IF(DB25>DB18,IF(DA25>DA18,DA18+SQRT(POWER(DA25-DA18,2)+POWER(DB25-DB18,2))*COS(ATAN((DB25-DB18)/(DA25-DA18+0.000123))+DB16),DA18-SQRT(POWER(DA25-DA18,2)+POWER(DB25-DB18,2))*COS(ATAN((DB25-DB18)/(DA18-DA25+0.000123))-DB16)),IF(DA25>DA18,DA18+SQRT(POWER(DA25-DA18,2)+POWER(DB25-DB18,2))*COS(ATAN((DB18-DB25)/(DA25-DA18+0.000123))-DB16),DA18-SQRT(POWER(DA25-DA18,2)+POWER(DB25-DB18,2))*COS(ATAN((DB18-DB25)/(DA18-DA25+0.000123))+DB16))) -> 0.6182452327 | DF25: =IF(DB25>DB18,IF(DA25>DA18,DB18+SQRT(POWER(DA25-DA18,2)+POWER(DB25-DB18,2))*SIN(ATAN((DB25-DB18)/(DA25-DA18+0.000123))+DB16),DB18+SQRT(POWER(DA25-DA18,2)+POWER(DB25-DB18,2))*SIN(ATAN((DB25-DB18)/(DA18-DA25+0.000123))-DB16)),IF(DA25>DA18,DB18-SQRT(POWER(DA25-DA18,2)+POWER(DB25-DB18,2))*SIN(ATAN((DB18-DB25)/(DA25-DA18+0.000123))-DB16),DB18-SQRT(POWER(DA25-DA18,2)+POWER(DB25-DB18,2))*SIN(ATAN((DB18-DB25)/(DA18-DA25+0.000123))+DB16))) -> 0.6987463478 | DG25: نقطه چرخیده | DK25: ماکزیمم متغیر ورودی ضریب طول | DL25: 1 | DO25: =DO24+DN11 -> -72 | DP25: -1.256637061 | DQ25: =DV13+DV10*COS(DP25) ->  | DR25: =DW13-DV10*SIN(DP25) ->  | DS25: =SQRT(POWER((DV12-DQ25),2)+POWER((DW12-DR25),2)) ->  | DT25: =ABS(DV9-DS25) ->  | EI25: =-EE25+EJ9 -> 0 | EJ25: 0
J26: =F37 -> 10.7 | K26: =G37 -> 175.7 | L26: j6 | N26: =0.9*(N23-N21)+N21 -> 70.7405 | O26: =O24+0.5*(O23-O24) -> 106.7365 | P26: d8 | R26: =N23 -> 78.045 | S26: =O23 -> 113.1715 | T26: d4 | Y26: =Y27+'طراحی همه الگوها'!U196 -> 94.4 | Z26: =Z13 -> 178.7 | AA26: 12 | AC26: =AC18 -> 36.8 | AD26: =Z12 -> 0 | AE26: 15 | AG26: s12 | AH26: =AH25-'طراحی همه الگوها'!U198*SIN(AH15) -> 59.17321846 | AI26: =AI25-'طراحی همه الگوها'!U198*COS(AH15) -> 116.0235059 | AK26: =AH31 -> 9.184712 | AL26: =AI31 -> 142.635 | AM26: s15 | AO26: s'18 | AP26: =AP25+0.6*(AP22-AP25) -> 8.586896 | AQ26: =AQ25-0.3*(AQ25-AQ22) -> 166.581 | BD26: =BD17 -> 35.52 | BE26: =BE17 -> 6.2 | BF26: 22 | BH26: (5 →7) | BI26: =ROUND(0.2*(BJ34-BJ31),1) -> 12.1 | BN26: =BJ34 -> 74.49804985 | BO26: =BK34 -> 13.54269846 | BP26: 8 | BZ26: =BZ13+'طراحی همه الگوها'!U249-'طراحی همه الگوها'!U256 -> -15 | CA26: =CA25 -> 107.1 | CB26: 10 | CH26: 41'' | CI26: =CI24+0.88*(CI27-CI24) -> 44.1569 | CJ26: =CJ27+0.3*(CJ24-CJ27) -> 36.54797399 | CL26: =CI12 -> 10.97816 | CM26: =CJ12 -> 161.17 | CN26: s3 | CU26: 22 | CV26: =CV12+CY12*SIN(RADIANS(CU26)+CU14) ->  | CW26: =CW12+CY12*COS(RADIANS(CU26)+CU14) ->  | CX26: =IF(CV13>CV26,ATAN((CW13-CW26)/(CV13-CV26)),ATAN((CW13-CW26)/(CV26-CV13))) ->  | CY26: =IF(CV13>CV26,(CV13-CV26)/COS(CX26),(CV26-CV13)/COS(CX26)) ->  | DA26: 1 | DB26: 2 | DC26: نقطه 8 | DD26: نقطه قبل از چرخش | DE26: =IF(DB26>DB18,IF(DA26>DA18,DA18+SQRT(POWER(DA26-DA18,2)+POWER(DB26-DB18,2))*COS(ATAN((DB26-DB18)/(DA26-DA18+0.000123))+DB16),DA18-SQRT(POWER(DA26-DA18,2)+POWER(DB26-DB18,2))*COS(ATAN((DB26-DB18)/(DA18-DA26+0.000123))-DB16)),IF(DA26>DA18,DA18+SQRT(POWER(DA26-DA18,2)+POWER(DB26-DB18,2))*COS(ATAN((DB18-DB26)/(DA26-DA18+0.000123))-DB16),DA18-SQRT(POWER(DA26-DA18,2)+POWER(DB26-DB18,2))*COS(ATAN((DB18-DB26)/(DA18-DA26+0.000123))+DB16))) -> 0.6182452327 | DF26: =IF(DB26>DB18,IF(DA26>DA18,DB18+SQRT(POWER(DA26-DA18,2)+POWER(DB26-DB18,2))*SIN(ATAN((DB26-DB18)/(DA26-DA18+0.000123))+DB16),DB18+SQRT(POWER(DA26-DA18,2)+POWER(DB26-DB18,2))*SIN(ATAN((DB26-DB18)/(DA18-DA26+0.000123))-DB16)),IF(DA26>DA18,DB18-SQRT(POWER(DA26-DA18,2)+POWER(DB26-DB18,2))*SIN(ATAN((DB18-DB26)/(DA26-DA18+0.000123))-DB16),DB18-SQRT(POWER(DA26-DA18,2)+POWER(DB26-DB18,2))*SIN(ATAN((DB18-DB26)/(DA18-DA26+0.000123))+DB16))) -> 0.6987463478 | DG26: نقطه چرخیده | DI26: m1 | DJ26: =ATAN((DK22-DK21)/(DL21-DL22)) ->  | DK26: m2 | DL26: =SQRT(POWER(DK21-DK22,2)+POWER(DL21-DL22,2)) ->  | DO26: =DO25+DN11 -> -70 | DP26: -1.221730476 | DQ26: =DV13+DV10*COS(DP26) ->  | DR26: =DW13-DV10*SIN(DP26) ->  | DS26: =SQRT(POWER((DV12-DQ26),2)+POWER((DW12-DR26),2)) ->  | DT26: =ABS(DV9-DS26) ->  | EI26: =-EE26+EJ9 -> 0 | EJ26: 0
J27: =F39 -> 7.1 | K27: =G39 -> 159.7 | L27: j8 | N27: =0.7*(N23-N21)+N21 -> 56.1315 | O27: =O24+0.1*(O23-O24) -> 101.5885 | P27: d9 | Y27: =W35+'طراحی همه الگوها'!U189 -> 80.4 | Z27: =Z13 -> 178.7 | AA27: 3 | AC27: =AC18 -> 36.8 | AD27: =AD18 -> 4.9 | AE27: 16 | AG27: s11 | AH27: =AH34-'طراحی همه الگوها'!U197*SIN(AH15) -> 73.03830595 | AI27: =AI34-'طراحی همه الگوها'!U197*COS(AH15) -> 113.3778777 | AK27: =AH30 -> 5 | AL27: =AI30 -> 124.1 | AM27: s16 | AO27: s'19 | AP27: =AX39+('متغیرها '!C20*'متغیرها '!U83)*COS(AH15+RADIANS(AX38)) -> 63.71774953 | AQ27: =AY39-('متغیرها '!C20*'متغیرها '!U83)*SIN(AH15+RADIANS(AX38)) -> 105.1753152 | AS27: =AP16 -> 57.52349413 | AT27: =AQ16 -> 111.3695706 | AU27: s'10 | AZ27: =W35+'طراحی همه الگوها'!U216 -> 110 | BA27: =BA18 -> 132.7 | BB27: 10 | BI27: نقاط در چادر شماره 4 | BR27: =BJ29 -> 5 | BS27: =BK29 -> 175.7 | BT27: 1 | BZ27: =BZ26 -> -15 | CA27: =CA17 -> 103 | CB27: 11 | CD27: =CD23 -> 22.4 | CE27: =CA17 -> 103 | CF27: 19 | CH27: s13 | CI27: =CI30+0.5*'طراحی همه الگوها'!U249 -> 46.85 | CJ27: =CJ30 -> 5 | CL27: =CI33 -> 9.888163972 | CM27: =CJ33 -> 119.5549277 | CN27: s'3 | CU27: 24 | CV27: =CV12+CY12*SIN(RADIANS(CU27)+CU14) ->  | CW27: =CW12+CY12*COS(RADIANS(CU27)+CU14) ->  | CX27: =IF(CV13>CV27,ATAN((CW13-CW27)/(CV13-CV27)),ATAN((CW13-CW27)/(CV27-CV13))) ->  | CY27: =IF(CV13>CV27,(CV13-CV27)/COS(CX27),(CV27-CV13)/COS(CX27)) ->  | DA27: 1 | DB27: 2 | DC27: نقطه 9 | DD27: نقطه قبل از چرخش | DE27: =IF(DB27>DB18,IF(DA27>DA18,DA18+SQRT(POWER(DA27-DA18,2)+POWER(DB27-DB18,2))*COS(ATAN((DB27-DB18)/(DA27-DA18+0.000123))+DB16),DA18-SQRT(POWER(DA27-DA18,2)+POWER(DB27-DB18,2))*COS(ATAN((DB27-DB18)/(DA18-DA27+0.000123))-DB16)),IF(DA27>DA18,DA18+SQRT(POWER(DA27-DA18,2)+POWER(DB27-DB18,2))*COS(ATAN((DB18-DB27)/(DA27-DA18+0.000123))-DB16),DA18-SQRT(POWER(DA27-DA18,2)+POWER(DB27-DB18,2))*COS(ATAN((DB18-DB27)/(DA18-DA27+0.000123))+DB16))) -> 0.6182452327 | DF27: =IF(DB27>DB18,IF(DA27>DA18,DB18+SQRT(POWER(DA27-DA18,2)+POWER(DB27-DB18,2))*SIN(ATAN((DB27-DB18)/(DA27-DA18+0.000123))+DB16),DB18+SQRT(POWER(DA27-DA18,2)+POWER(DB27-DB18,2))*SIN(ATAN((DB27-DB18)/(DA18-DA27+0.000123))-DB16)),IF(DA27>DA18,DB18-SQRT(POWER(DA27-DA18,2)+POWER(DB27-DB18,2))*SIN(ATAN((DB18-DB27)/(DA27-DA18+0.000123))-DB16),DB18-SQRT(POWER(DA27-DA18,2)+POWER(DB27-DB18,2))*SIN(ATAN((DB18-DB27)/(DA18-DA27+0.000123))+DB16))) -> 0.6987463478 | DG27: نقطه چرخیده | DI27: نقطه خروجی بالا | DJ27: su9 | DK27: =DK21+DK23*COS(DJ26) ->  | DL27: =DL21+DK23*SIN(DJ26) ->  | DO27: =DO26+DN11 -> -68 | DP27: -1.186823891 | DQ27: =DV13+DV10*COS(DP27) ->  | DR27: =DW13-DV10*SIN(DP27) ->  | DS27: =SQRT(POWER((DV12-DQ27),2)+POWER((DW12-DR27),2)) ->  | DT27: =ABS(DV9-DS27) ->  | DW27: به دست آوردن نقطه تقاطع دو خط | DX27: مولفه افقی | DY27: مولفه عمودی | EI27: =-EE27+EJ9 -> 0 | EJ27: 0
N28: =N21 -> 5 | O28: =O12-1-0.013*(O22-O24) -> 106.883105 | P28: j'2 | Y28: =W35+'طراحی همه الگوها'!U189 -> 80.4 | Z28: =Z13-'طراحی همه الگوها'!U198 -> 161.2 | AA28: 14 | AC28: =AC12 -> 36.8 | AD28: =AD12 -> 29.8 | AE28: 17 | AG28: s13 | AH28: =AH17+'طراحی همه الگوها'!U189-0.5*'طراحی همه الگوها'!U190 -> 78 | AI28: =AH43+AH42 -> 5 | AO28: 2' | AP28: =AH17 -> 5 | AQ28: =AX33+AH42 -> 5 | AS28: =AP27 -> 63.71774953 | AT28: =AQ27 -> 105.1753152 | AU28: s'19 | AZ28: =BD13 -> 177.5 | BA28: =BE13 -> 132.7 | BB28: 13 | BD28: =W35 -> 0 | BE28: =BA11 -> 170.7 | BF28: 1 | BH28: افقی شبیه ساز | BI28: اسم نقطه | BJ28: مولفه افقی | BK28: مولفه عمودی | BL28: عمودی شبیه ساز | BN28: =BL43 -> 46.5 | BO28: =BL44 -> 76.875 | BP28: 15 | BR28: =BJ36 -> 71.75088014 | BS28: =BK36 -> 108.9491199 | BT28: 10 | BZ28: =BZ16 -> 76.8 | CA28: =CA16 -> 103 | CB28: 8 | CD28: =CD23 -> 22.4 | CE28: =CE23 -> 87.7 | CF28: 20 | CH28: s''17 | CI28: =CI11 -> 5 | CJ28: =IF('متغیرها '!C40=-1,CJ14,IF('متغیرها '!C40=0,CJ11-0.1,CJ11-0.25*(CJ11-CJ13))) -> 168.9 | CL28: =CI22 -> 8.798167944 | CM28: =CJ22 -> 57.13231937 | CN28: s11 | CU28: 26 | CV28: =CV12+CY12*SIN(RADIANS(CU28)+CU14) ->  | CW28: =CW12+CY12*COS(RADIANS(CU28)+CU14) ->  | CX28: =IF(CV13>CV28,ATAN((CW13-CW28)/(CV13-CV28)),ATAN((CW13-CW28)/(CV28-CV13))) ->  | CY28: =IF(CV13>CV28,(CV13-CV28)/COS(CX28),(CV28-CV13)/COS(CX28)) ->  | DA28: 1 | DB28: 2 | DC28: نقطه 10 | DD28: نقطه قبل از چرخش | DE28: =IF(DB28>DB18,IF(DA28>DA18,DA18+SQRT(POWER(DA28-DA18,2)+POWER(DB28-DB18,2))*COS(ATAN((DB28-DB18)/(DA28-DA18+0.000123))+DB16),DA18-SQRT(POWER(DA28-DA18,2)+POWER(DB28-DB18,2))*COS(ATAN((DB28-DB18)/(DA18-DA28+0.000123))-DB16)),IF(DA28>DA18,DA18+SQRT(POWER(DA28-DA18,2)+POWER(DB28-DB18,2))*COS(ATAN((DB18-DB28)/(DA28-DA18+0.000123))-DB16),DA18-SQRT(POWER(DA28-DA18,2)+POWER(DB28-DB18,2))*COS(ATAN((DB18-DB28)/(DA18-DA28+0.000123))+DB16))) -> 0.6182452327 | DF28: =IF(DB28>DB18,IF(DA28>DA18,DB18+SQRT(POWER(DA28-DA18,2)+POWER(DB28-DB18,2))*SIN(ATAN((DB28-DB18)/(DA28-DA18+0.000123))+DB16),DB18+SQRT(POWER(DA28-DA18,2)+POWER(DB28-DB18,2))*SIN(ATAN((DB28-DB18)/(DA18-DA28+0.000123))-DB16)),IF(DA28>DA18,DB18-SQRT(POWER(DA28-DA18,2)+POWER(DB28-DB18,2))*SIN(ATAN((DB18-DB28)/(DA28-DA18+0.000123))-DB16),DB18-SQRT(POWER(DA28-DA18,2)+POWER(DB28-DB18,2))*SIN(ATAN((DB18-DB28)/(DA18-DA28+0.000123))+DB16))) -> 0.6987463478 | DG28: نقطه چرخیده | DI28: نقطه خروجی پایین | DJ28: sd8 | DK28: =DK29+DK23*COS(DJ26) ->  | DL28: =DL29+DK23*SIN(DJ26) ->  | DO28: =DO27+DN11 -> -66 | DP28: -1.151917306 | DQ28: =DV13+DV10*COS(DP28) ->  | DR28: =DW13-DV10*SIN(DP28) ->  | DS28: =SQRT(POWER((DV12-DQ28),2)+POWER((DW12-DR28),2)) ->  | DT28: =ABS(DV9-DS28) ->  | DV28: نقطه اول از خط اول | DW28: f5 | DX28: =#REF! ->  | DY28: =#REF! ->  | EI28: =-EE28+EJ9 -> 0 | EJ28: 0
J29: =F39 -> 7.1 | K29: =G39 -> 159.7 | L29: j8 | AG29: s14 | AH29: =AH11+AH40*COS(AH38) -> 10.97816 | AI29: =AI11-AH40*SIN(AH38) -> 161.17 | AK29: =AK23 -> 10.97816 | AL29: =AL23 -> 161.17 | AM29: s14 | AZ29: =W35+'طراحی همه الگوها'!U211+'طراحی همه الگوها'!U219 -> 182.7 | BA29: =BA18 -> 132.7 | BB29: 12 | BD29: =W35+'طراحی همه الگوها'!U216 -> 110 | BE29: =BA31 -> 170.7 | BF29: 3 | BI29: 1 | BJ29: =AH17 -> 5 | BK29: ='طراحی همه الگوها'!U233+BL39+AH42 -> 175.7 | BN29: =BN28+'طراحی همه الگوها'!U242 -> 53.7 | BO29: =BO28 -> 76.875 | BP29: 16 | CH29: s''18 | CI29: =CI28+0.5*(CI12-CI28) -> 7.98908 | CJ29: =CJ28-0.3*(CJ28-CJ12) -> 166.581 | CU29: 28 | CV29: =CV12+CY12*SIN(RADIANS(CU29)+CU14) ->  | CW29: =CW12+CY12*COS(RADIANS(CU29)+CU14) ->  | CX29: =IF(CV13>CV29,ATAN((CW13-CW29)/(CV13-CV29)),ATAN((CW13-CW29)/(CV29-CV13))) ->  | CY29: =IF(CV13>CV29,(CV13-CV29)/COS(CX29),(CV29-CV13)/COS(CX29)) ->  | DA29: 1 | DB29: 2 | DC29: نقطه 11 | DD29: نقطه قبل از چرخش | DE29: =IF(DB29>DB18,IF(DA29>DA18,DA18+SQRT(POWER(DA29-DA18,2)+POWER(DB29-DB18,2))*COS(ATAN((DB29-DB18)/(DA29-DA18+0.000123))+DB16),DA18-SQRT(POWER(DA29-DA18,2)+POWER(DB29-DB18,2))*COS(ATAN((DB29-DB18)/(DA18-DA29+0.000123))-DB16)),IF(DA29>DA18,DA18+SQRT(POWER(DA29-DA18,2)+POWER(DB29-DB18,2))*COS(ATAN((DB18-DB29)/(DA29-DA18+0.000123))-DB16),DA18-SQRT(POWER(DA29-DA18,2)+POWER(DB29-DB18,2))*COS(ATAN((DB18-DB29)/(DA18-DA29+0.000123))+DB16))) -> 0.6182452327 | DF29: =IF(DB29>DB18,IF(DA29>DA18,DB18+SQRT(POWER(DA29-DA18,2)+POWER(DB29-DB18,2))*SIN(ATAN((DB29-DB18)/(DA29-DA18+0.000123))+DB16),DB18+SQRT(POWER(DA29-DA18,2)+POWER(DB29-DB18,2))*SIN(ATAN((DB29-DB18)/(DA18-DA29+0.000123))-DB16)),IF(DA29>DA18,DB18-SQRT(POWER(DA29-DA18,2)+POWER(DB29-DB18,2))*SIN(ATAN((DB18-DB29)/(DA29-DA18+0.000123))-DB16),DB18-SQRT(POWER(DA29-DA18,2)+POWER(DB29-DB18,2))*SIN(ATAN((DB18-DB29)/(DA18-DA29+0.000123))+DB16))) -> 0.6987463478 | DG29: نقطه چرخیده | DI29: نقطه خروجی میانه | DK29: =DK21+DK24*DL26*SIN(DJ26)/DL25 ->  | DL29: =DL21-DK24*DL26*COS(DJ26)/DL25 ->  | DO29: =DO28+DN11 -> -64 | DP29: -1.117010721 | DQ29: =DV13+DV10*COS(DP29) ->  | DR29: =DW13-DV10*SIN(DP29) ->  | DS29: =SQRT(POWER((DV12-DQ29),2)+POWER((DW12-DR29),2)) ->  | DT29: =ABS(DV9-DS29) ->  | DV29: نقطه دوم از خط اول | DW29: f6 | DX29: =#REF! ->  | DY29: =#REF! ->  | EI29: =-EE29+EJ9 -> 0 | EJ29: 0
J30: =F38 -> 5 | K30: =G38 -> 159.7 | L30: j7 | Y30: =Y27 -> 80.4 | Z30: =Z13 -> 178.7 | AA30: 3 | AC30: =AC20 -> 69.6 | AD30: =Z12 -> 0 | AE30: 18 | AG30: s16 | AH30: =AH13 -> 5 | AI30: =AI13 -> 124.1 | AK30: =AK29+0.32*(AK32-AK29) -> 27.70745986 | AL30: =AL32+0.5*(AL29-AL32) -> 144.8334696 | AS30: =AS28 -> 63.71774953 | AT30: =AT28 -> 105.1753152 | AU30: s'19 | AW30: شیفت افقی مچ | AX30: =AZ18+10 -> 120 | AZ30: =AZ29 -> 182.7 | BA30: =BA11 -> 170.7 | BB30: 11 | BI30: 3 | BJ30: =BJ29-'طراحی همه الگوها'!U234 -> -4.6 | BK30: =BK29-'طراحی همه الگوها'!U232 -> -7 | BN30: =BN28+'طراحی همه الگوها'!U242 -> 53.7 | BO30: =BO28-'طراحی همه الگوها'!U245 -> 54.975 | BP30: 19 | BR30: =BJ36 -> 71.75088014 | BS30: =BK36 -> 108.9491199 | BT30: 10 | BZ30: =BZ13+'طراحی همه الگوها'!U260+'طراحی همه الگوها'!U262 -> 95.4 | CA30: =CA25+BW44 -> 114.1 | CB30: 13 | CD30: =CD24 -> 44.9 | CE30: =CA17 -> 103 | CF30: 21 | CH30: 2 | CI30: =CI14 -> 5 | CJ30: =BW42+AH42 -> 5 | CL30: =CI24 -> 24.4075 | CM30: 110.1599133 | CN30: 41شبیه ساز | CU30: 30 | CV30: =CV12+CY12*SIN(RADIANS(CU30)+CU14) ->  | CW30: =CW12+CY12*COS(RADIANS(CU30)+CU14) ->  | CX30: =IF(CV13>CV30,ATAN((CW13-CW30)/(CV13-CV30)),ATAN((CW13-CW30)/(CV30-CV13))) ->  | CY30: =IF(CV13>CV30,(CV13-CV30)/COS(CX30),(CV30-CV13)/COS(CX30)) ->  | DA30: 1 | DB30: 2 | DC30: نقطه 12 | DD30: نقطه قبل از چرخش | DE30: =IF(DB30>DB18,IF(DA30>DA18,DA18+SQRT(POWER(DA30-DA18,2)+POWER(DB30-DB18,2))*COS(ATAN((DB30-DB18)/(DA30-DA18+0.000123))+DB16),DA18-SQRT(POWER(DA30-DA18,2)+POWER(DB30-DB18,2))*COS(ATAN((DB30-DB18)/(DA18-DA30+0.000123))-DB16)),IF(DA30>DA18,DA18+SQRT(POWER(DA30-DA18,2)+POWER(DB30-DB18,2))*COS(ATAN((DB18-DB30)/(DA30-DA18+0.000123))-DB16),DA18-SQRT(POWER(DA30-DA18,2)+POWER(DB30-DB18,2))*COS(ATAN((DB18-DB30)/(DA18-DA30+0.000123))+DB16))) -> 0.6182452327 | DF30: =IF(DB30>DB18,IF(DA30>DA18,DB18+SQRT(POWER(DA30-DA18,2)+POWER(DB30-DB18,2))*SIN(ATAN((DB30-DB18)/(DA30-DA18+0.000123))+DB16),DB18+SQRT(POWER(DA30-DA18,2)+POWER(DB30-DB18,2))*SIN(ATAN((DB30-DB18)/(DA18-DA30+0.000123))-DB16)),IF(DA30>DA18,DB18-SQRT(POWER(DA30-DA18,2)+POWER(DB30-DB18,2))*SIN(ATAN((DB18-DB30)/(DA30-DA18+0.000123))-DB16),DB18-SQRT(POWER(DA30-DA18,2)+POWER(DB30-DB18,2))*SIN(ATAN((DB18-DB30)/(DA18-DA30+0.000123))+DB16))) -> 0.6987463478 | DG30: نقطه چرخیده | DO30: =DO29+DN11 -> -62 | DP30: -1.082104136 | DQ30: =DV13+DV10*COS(DP30) ->  | DR30: =DW13-DV10*SIN(DP30) ->  | DS30: =SQRT(POWER((DV12-DQ30),2)+POWER((DW12-DR30),2)) ->  | DT30: =ABS(DV9-DS30) ->  | DV30: نقطه اول از خط دوم | DW30: f7 | DX30: =#REF! ->  | DY30: =#REF! ->  | EI30: =-EE30+EJ9 -> 0 | EJ30: 0
F31: نقاط خروجی | Y31: =Y14 -> 14.8 | Z31: =Z13 -> 178.7 | AA31: 4 | AC31: =AC20 -> 69.6 | AD31: =AD20 -> 20.1 | AE31: 19 | AG31: s15 | AH31: =AH30+0.7*(AH29-AH30) -> 9.184712 | AI31: =AI30+0.5*(AI29-AI30) -> 142.635 | AK31: =AK29+0.67*(AK32-AK29) -> 46.00513159 | AL31: =AL32+0.2*(AL29-AL32) -> 135.0315514 | AS31: =AP17 -> 53.88896527 | AT31: =AQ17 -> 95.3465309 | AU31: s'11 | AW31: شیفت عمودی مچ | AX31: =BA18-10 -> 122.7 | AZ31: =W35+'طراحی همه الگوها'!U216 -> 110 | BA31: =BA11 -> 170.7 | BB31: 3 | BD31: =AZ19 -> 110 | BE31: =BA19 -> 72.7 | BF31: 9 | BI31: 5 | BJ31: =BJ29+'طراحی همه الگوها'!U235 -> 13.9 | BK31: =BK29-'طراحی همه الگوها'!U233 -> 5 | BR31: =BJ37 -> 61.2149891 | BS31: =BK37 -> 98.41322882 | BT31: 11 | BZ31: =BZ13 -> 0 | CA31: =CA30 -> 114.1 | CB31: 12 | CD31: =CD24 -> 44.9 | CE31: =CE24 -> 83.8 | CF31: 22 | CH31: s''12 | CI31: =CI30 -> 5 | CJ31: =CJ24 -> 110.1599133 | CL31: 35.62875 | CM31: 78.61193931 | CN31: 41' | CU31: 32 | CV31: =CV12+CY12*SIN(RADIANS(CU31)+CU14) ->  | CW31: =CW12+CY12*COS(RADIANS(CU31)+CU14) ->  | CX31: =IF(CV13>CV31,ATAN((CW13-CW31)/(CV13-CV31)),ATAN((CW13-CW31)/(CV31-CV13))) ->  | CY31: =IF(CV13>CV31,(CV13-CV31)/COS(CX31),(CV31-CV13)/COS(CX31)) ->  | DA31: 1 | DB31: 2 | DC31: نقطه 13 | DD31: نقطه قبل از چرخش | DE31: =IF(DB31>DB18,IF(DA31>DA18,DA18+SQRT(POWER(DA31-DA18,2)+POWER(DB31-DB18,2))*COS(ATAN((DB31-DB18)/(DA31-DA18+0.000123))+DB16),DA18-SQRT(POWER(DA31-DA18,2)+POWER(DB31-DB18,2))*COS(ATAN((DB31-DB18)/(DA18-DA31+0.000123))-DB16)),IF(DA31>DA18,DA18+SQRT(POWER(DA31-DA18,2)+POWER(DB31-DB18,2))*COS(ATAN((DB18-DB31)/(DA31-DA18+0.000123))-DB16),DA18-SQRT(POWER(DA31-DA18,2)+POWER(DB31-DB18,2))*COS(ATAN((DB18-DB31)/(DA18-DA31+0.000123))+DB16))) -> 0.6182452327 | DF31: =IF(DB31>DB18,IF(DA31>DA18,DB18+SQRT(POWER(DA31-DA18,2)+POWER(DB31-DB18,2))*SIN(ATAN((DB31-DB18)/(DA31-DA18+0.000123))+DB16),DB18+SQRT(POWER(DA31-DA18,2)+POWER(DB31-DB18,2))*SIN(ATAN((DB31-DB18)/(DA18-DA31+0.000123))-DB16)),IF(DA31>DA18,DB18-SQRT(POWER(DA31-DA18,2)+POWER(DB31-DB18,2))*SIN(ATAN((DB18-DB31)/(DA31-DA18+0.000123))-DB16),DB18-SQRT(POWER(DA31-DA18,2)+POWER(DB31-DB18,2))*SIN(ATAN((DB18-DB31)/(DA18-DA31+0.000123))+DB16))) -> 0.6987463478 | DG31: نقطه چرخیده | DJ31: رسم باکس زیپ دامن-باکس چپ | DK31: مولفه افقی | DL31: مولفه عمودی | DO31: =DO30+DN11 -> -60 | DP31: -1.047197551 | DQ31: =DV13+DV10*COS(DP31) ->  | DR31: =DW13-DV10*SIN(DP31) ->  | DS31: =SQRT(POWER((DV12-DQ31),2)+POWER((DW12-DR31),2)) ->  | DT31: =ABS(DV9-DS31) ->  | DV31: نقطه دوم از خط دوم | DW31: f8 | DX31: =#REF! ->  | DY31: =#REF! ->  | EI31: =-EE31+EJ9 -> 0 | EJ31: 0
F32: مولفه افقی | G32: مولفه عمودی | H32: اسم نقطه | J32: =F39 -> 7.1 | K32: =G39 -> 159.7 | L32: j8 | AA32: نقاب | AC32: =AC14 -> 69.6 | AD32: =AD14 -> 33.9 | AE32: 20 | AG32: s17 | AH32: =DB400 -> 5 | AI32: =IF('متغیرها '!C14=-1,AL10,IF('متغیرها '!C14=0,DC400-0.1,DC400-0.25*(DC400-DC404))) -> 168.9 | AK32: =AH35 -> 63.25722207 | AL32: =AI35 -> 128.4969393 | AM32: s20 | AW32: زاویه گشادی نسبی جلو به پشت | AX32: 33 | AZ32: =W35+'طراحی همه الگوها'!U216 -> 110 | BA32: =BA18 -> 132.7 | BB32: 10 | BD32: =BD20 -> 110 | BE32: =BE20 -> 5.2 | BF32: 14 | BI32: 6 | BJ32: =BJ30+BI25*COS(RADIANS('متغیرها '!C26)) -> 11.17834665 | BK32: =BK30-BI25*SIN(RADIANS('متغیرها '!C26)) -> -7.826908109 | BN32: =BN28+'طراحی همه الگوها'!U242 -> 53.7 | BO32: =BO28+'طراحی همه الگوها'!U244 -> 98.775 | BP32: 18 | BZ32: =BZ13 -> 0 | CA32: =CA31+'طراحی همه الگوها'!U258 -> 128.5 | CB32: 18 | CH32: s'12 | CI32: =CI30 -> 5 | CJ32: =CJ23 -> 114.2599133 | CL32: 44.1569 | CM32: 36.54797399 | CN32: 41'' | CU32: 34 | CV32: =CV12+CY12*SIN(RADIANS(CU32)+CU14) ->  | CW32: =CW12+CY12*COS(RADIANS(CU32)+CU14) ->  | CX32: =IF(CV13>CV32,ATAN((CW13-CW32)/(CV13-CV32)),ATAN((CW13-CW32)/(CV32-CV13))) ->  | CY32: =IF(CV13>CV32,(CV13-CV32)/COS(CX32),(CV32-CV13)/COS(CX32)) ->  | DA32: 1 | DB32: 2 | DC32: نقطه 14 | DD32: نقطه قبل از چرخش | DE32: =IF(DB32>DB18,IF(DA32>DA18,DA18+SQRT(POWER(DA32-DA18,2)+POWER(DB32-DB18,2))*COS(ATAN((DB32-DB18)/(DA32-DA18+0.000123))+DB16),DA18-SQRT(POWER(DA32-DA18,2)+POWER(DB32-DB18,2))*COS(ATAN((DB32-DB18)/(DA18-DA32+0.000123))-DB16)),IF(DA32>DA18,DA18+SQRT(POWER(DA32-DA18,2)+POWER(DB32-DB18,2))*COS(ATAN((DB18-DB32)/(DA32-DA18+0.000123))-DB16),DA18-SQRT(POWER(DA32-DA18,2)+POWER(DB32-DB18,2))*COS(ATAN((DB18-DB32)/(DA18-DA32+0.000123))+DB16))) -> 0.6182452327 | DF32: =IF(DB32>DB18,IF(DA32>DA18,DB18+SQRT(POWER(DA32-DA18,2)+POWER(DB32-DB18,2))*SIN(ATAN((DB32-DB18)/(DA32-DA18+0.000123))+DB16),DB18+SQRT(POWER(DA32-DA18,2)+POWER(DB32-DB18,2))*SIN(ATAN((DB32-DB18)/(DA18-DA32+0.000123))-DB16)),IF(DA32>DA18,DB18-SQRT(POWER(DA32-DA18,2)+POWER(DB32-DB18,2))*SIN(ATAN((DB18-DB32)/(DA32-DA18+0.000123))-DB16),DB18-SQRT(POWER(DA32-DA18,2)+POWER(DB32-DB18,2))*SIN(ATAN((DB18-DB32)/(DA18-DA32+0.000123))+DB16))) -> 0.6987463478 | DG32: نقطه چرخیده | DI32: نقطه ورودی بالا | DJ32: s'u3 | DK32: =#REF! ->  | DL32: =#REF! ->  | DO32: =DO31+DN11 -> -58 | DP32: -1.012290966 | DQ32: =DV13+DV10*COS(DP32) ->  | DR32: =DW13-DV10*SIN(DP32) ->  | DS32: =SQRT(POWER((DV12-DQ32),2)+POWER((DW12-DR32),2)) ->  | DT32: =ABS(DV9-DS32) ->  | DV32: نقطه تقاطع | DW32: f10 | DX32: =(DY30-DY28+DX28*((DY29-DY28)/(DX29-DX28+0.0001))-DX30*((DY31-DY30)/(DX31-DX30+0.0001)))/(((DY29-DY28)/(DX29-DX28+0.0001))-((DY31-DY30)/(DX31-DX30+0.0001))) ->  | DY32: =DY28+(DX32-DX28)*((DY29-DY28)/(DX29-DX28+0.0001)) ->  | EI32: =-EE32+EJ9 -> 0 | EJ32: 0
F33: =F11 -> 5 | G33: =G20+'طراحی همه الگوها'!U177+G12 -> 175.7 | H33: j1 | J33: =F41 -> 7.1 | K33: =G41 -> 122.6 | L33: j10 | Y33: =Y13 -> 0 | Z33: =Z13 -> 178.7 | AA33: 1 | AG33: s18 | AH33: =AH32+0.5*(AH29-AH32) -> 7.98908 | AI33: =AI32-0.3*(AI32-AI29) -> 166.581 | AS33: =AS31 -> 53.88896527 | AT33: =AT31 -> 95.3465309 | AU33: s'11 | AW33: j4 | AX33: =IF('متغیرها '!C17<1,'متغیرها '!C17*'متغیرها '!U59,IF('متغیرها '!C17<2,'متغیرها '!U59+('متغیرها '!C17-1)*('متغیرها '!U60-'متغیرها '!U59),IF('متغیرها '!C17<3,'متغیرها '!U60+('متغیرها '!C17-2)*(I105-'متغیرها '!U60),I105+('متغیرها '!C17-3)*(H127-H126)))) -> 0 | AY33: چادر 3 | BI33: 7 | BJ33: =BJ31+BI26*COS(RADIANS('متغیرها '!C26)) -> 25.98341737 | BK33: =BK31+BI26*SIN(RADIANS('متغیرها '!C26)) -> 5.633265071 | BN33: =BN28+'طراحی همه الگوها'!U242 -> 53.7 | BO33: =BO28 -> 76.875 | BP33: 16 | BR33: =BJ37 -> 61.2149891 | BS33: =BK37 -> 98.41322882 | BT33: 11 | BZ33: =BZ13 -> 0 | CA33: =CA32+'طراحی همه الگوها'!U259 -> 222.6 | CB33: 14 | CD33: =CD18 -> 22.4 | CE33: =CA31 -> 114.1 | CF33: 23 | CH33: s'3 | CI33: =CI22+0.5*(CI12-CI22) -> 9.888163972 | CJ33: =CJ22+0.6*(CJ12-CJ22) -> 119.5549277 | CL33: 46.85 | CM33: 5 | CN33: s13 | CU33: 36 | CV33: =CV12+CY12*SIN(RADIANS(CU33)+CU14) ->  | CW33: =CW12+CY12*COS(RADIANS(CU33)+CU14) ->  | CX33: =IF(CV13>CV33,ATAN((CW13-CW33)/(CV13-CV33)),ATAN((CW13-CW33)/(CV33-CV13))) ->  | CY33: =IF(CV13>CV33,(CV13-CV33)/COS(CX33),(CV33-CV13)/COS(CX33)) ->  | DA33: 1 | DB33: 2 | DC33: نقطه 15 | DD33: نقطه قبل از چرخش | DE33: =IF(DB33>DB18,IF(DA33>DA18,DA18+SQRT(POWER(DA33-DA18,2)+POWER(DB33-DB18,2))*COS(ATAN((DB33-DB18)/(DA33-DA18+0.000123))+DB16),DA18-SQRT(POWER(DA33-DA18,2)+POWER(DB33-DB18,2))*COS(ATAN((DB33-DB18)/(DA18-DA33+0.000123))-DB16)),IF(DA33>DA18,DA18+SQRT(POWER(DA33-DA18,2)+POWER(DB33-DB18,2))*COS(ATAN((DB18-DB33)/(DA33-DA18+0.000123))-DB16),DA18-SQRT(POWER(DA33-DA18,2)+POWER(DB33-DB18,2))*COS(ATAN((DB18-DB33)/(DA18-DA33+0.000123))+DB16))) -> 0.6182452327 | DF33: =IF(DB33>DB18,IF(DA33>DA18,DB18+SQRT(POWER(DA33-DA18,2)+POWER(DB33-DB18,2))*SIN(ATAN((DB33-DB18)/(DA33-DA18+0.000123))+DB16),DB18+SQRT(POWER(DA33-DA18,2)+POWER(DB33-DB18,2))*SIN(ATAN((DB33-DB18)/(DA18-DA33+0.000123))-DB16)),IF(DA33>DA18,DB18-SQRT(POWER(DA33-DA18,2)+POWER(DB33-DB18,2))*SIN(ATAN((DB18-DB33)/(DA33-DA18+0.000123))-DB16),DB18-SQRT(POWER(DA33-DA18,2)+POWER(DB33-DB18,2))*SIN(ATAN((DB18-DB33)/(DA18-DA33+0.000123))+DB16))) -> 0.6987463478 | DG33: نقطه چرخیده | DI33: نقطه ورودی پایین | DJ33: s'd3 | DK33: =#REF! ->  | DL33: =#REF! ->  | DO33: =DO32+DN11 -> -56 | DP33: -0.9773843811 | DQ33: =DV13+DV10*COS(DP33) ->  | DR33: =DW13-DV10*SIN(DP33) ->  | DS33: =SQRT(POWER((DV12-DQ33),2)+POWER((DW12-DR33),2)) ->  | DT33: =ABS(DV9-DS33) ->  | EI33: =-EE33+EJ9 -> 0 | EJ33: 0
F34: =F33 -> 5 | G34: =G33-'طراحی همه الگوها'!U177 -> 109 | H34: j2 | V34: محاسبات | Y34: =Y13 -> 0 | Z34: =Z13-'طراحی همه الگوها'!U205 -> 173 | AA34: 21 | AG34: s19 | AH34: =AH16+'متغیرها '!C13*'متغیرها '!U83*COS(AH15) -> 77.92355218 | AI34: =AI16-'متغیرها '!C13*'متغیرها '!U83*SIN(AH15) -> 128.2984799 | AK34: =AH25 -> 64.61855661 | AL34: =AI25 -> 132.6547504 | AM34: s10 | AS34: =AP18 -> 46.91689241 | AT34: =AQ18 -> 100.7629688 | AU34: s'12 | AW34: (1 → 5) | AX34: =W36-'متغیرها '!C19*'متغیرها '!U83 -> 85.68710907 | AZ34: =AX30 -> 120 | BA34: =AX31 -> 122.7 | BB34: 17 | BD34: =AZ18 -> 110 | BE34: =BA18 -> 132.7 | BF34: 10 | BI34: 8 | BJ34: =BJ35+BL41*SIN(RADIANS('متغیرها '!C30)) -> 74.49804985 | BK34: =BK35-BL41*COS(RADIANS('متغیرها '!C30)) -> 13.54269846 | BN34: =BN28+'طراحی همه الگوها'!U242+'طراحی همه الگوها'!U243 -> 60.9 | BO34: =BO28 -> 76.875 | BP34: 17 | BR34: =BJ35 -> 36.66544106 | BS34: =BK35 -> 117.4869368 | BT34: 9 | BZ34: =BZ13+'طراحی همه الگوها'!U263 -> 121.2 | CA34: =CA33 -> 222.6 | CB34: 15 | CD34: =CD18 -> 22.4 | CE34: =CE18 -> 129.4 | CF34: 24 | CU34: 38 | CV34: =CV12+CY12*SIN(RADIANS(CU34)+CU14) ->  | CW34: =CW12+CY12*COS(RADIANS(CU34)+CU14) ->  | CX34: =IF(CV13>CV34,ATAN((CW13-CW34)/(CV13-CV34)),ATAN((CW13-CW34)/(CV34-CV13))) ->  | CY34: =IF(CV13>CV34,(CV13-CV34)/COS(CX34),(CV34-CV13)/COS(CX34)) ->  | DA34: 1 | DB34: 2 | DC34: نقطه 16 | DD34: نقطه قبل از چرخش | DE34: =IF(DB34>DB18,IF(DA34>DA18,DA18+SQRT(POWER(DA34-DA18,2)+POWER(DB34-DB18,2))*COS(ATAN((DB34-DB18)/(DA34-DA18+0.000123))+DB16),DA18-SQRT(POWER(DA34-DA18,2)+POWER(DB34-DB18,2))*COS(ATAN((DB34-DB18)/(DA18-DA34+0.000123))-DB16)),IF(DA34>DA18,DA18+SQRT(POWER(DA34-DA18,2)+POWER(DB34-DB18,2))*COS(ATAN((DB18-DB34)/(DA34-DA18+0.000123))-DB16),DA18-SQRT(POWER(DA34-DA18,2)+POWER(DB34-DB18,2))*COS(ATAN((DB18-DB34)/(DA18-DA34+0.000123))+DB16))) -> 0.6182452327 | DF34: =IF(DB34>DB18,IF(DA34>DA18,DB18+SQRT(POWER(DA34-DA18,2)+POWER(DB34-DB18,2))*SIN(ATAN((DB34-DB18)/(DA34-DA18+0.000123))+DB16),DB18+SQRT(POWER(DA34-DA18,2)+POWER(DB34-DB18,2))*SIN(ATAN((DB34-DB18)/(DA18-DA34+0.000123))-DB16)),IF(DA34>DA18,DB18-SQRT(POWER(DA34-DA18,2)+POWER(DB34-DB18,2))*SIN(ATAN((DB18-DB34)/(DA34-DA18+0.000123))-DB16),DB18-SQRT(POWER(DA34-DA18,2)+POWER(DB34-DB18,2))*SIN(ATAN((DB18-DB34)/(DA18-DA34+0.000123))+DB16))) -> 0.6987463478 | DG34: نقطه چرخیده | DI34: متغیر ورودی پهنا | DJ34: a20 | DK34: =#REF! ->  | DL34: (سانتیمتر) | DO34: =DO33+DN11 -> -54 | DP34: -0.9424777961 | DQ34: =DV13+DV10*COS(DP34) ->  | DR34: =DW13-DV10*SIN(DP34) ->  | DS34: =SQRT(POWER((DV12-DQ34),2)+POWER((DW12-DR34),2)) ->  | DT34: =ABS(DV9-DS34) ->  | DY34: قرینه نقطه نسبت به خط با داشتن دو نقطه از یک خط | EI34: =-EE34+EJ9 -> 0 | EJ34: 0
F35: =F33+'طراحی همه الگوها'!U178 -> 17 | G35: =G33 -> 175.7 | H35: j3 | J35: =F41 -> 7.1 | K35: =G41 -> 122.6 | L35: j10 | V35: مولفه افقی نقطه 1 | W35: =0 -> 0 | Y35: =Y14 -> 14.8 | Z35: =Z14-'طراحی همه الگوها'!U206 -> 174.7 | AA35: 22 | AG35: s20 | AH35: =AH25-0.25*'متغیرها '!U84*SIN(AH15) -> 63.25722207 | AI35: =AI25-0.25*'متغیرها '!U84*COS(AH15) -> 128.4969393 | AK35: =AH34 -> 77.92355218 | AL35: =AI34 -> 128.2984799 | AM35: s19 | AW35: زاویه مچ | AX35: 15 | AZ35: =AX30+'طراحی همه الگوها'!U224 -> 128.8 | BA35: =AX31 -> 122.7 | BB35: 18 | BD35: =BD13 -> 177.5 | BE35: =BE13 -> 132.7 | BF35: 13 | BH35: =BH37-BL45*SIN(BL46-RADIANS(45)+BL42) -> 24.3390397 | BI35: 9 | BJ35: =BJ37-BL40*SIN(BL46-RADIANS(45)+BL42) -> 36.66544106 | BK35: =BK37+BL40*COS(BL46-RADIANS(45)+BL42) -> 117.4869368 | BL35: =BL37+BL45*COS(BL46-RADIANS(45)+BL42) -> 123.7895943 | CL35: =CI18 -> 55.45874232 | CM35: =CJ18 -> 113.4343224 | CN35: s''10 | CU35: 40 | CV35: =CV12+CY12*SIN(RADIANS(CU35)+CU14) ->  | CW35: =CW12+CY12*COS(RADIANS(CU35)+CU14) ->  | CX35: =IF(CV13>CV35,ATAN((CW13-CW35)/(CV13-CV35)),ATAN((CW13-CW35)/(CV35-CV13))) ->  | CY35: =IF(CV13>CV35,(CV13-CV35)/COS(CX35),(CV35-CV13)/COS(CX35)) ->  | DI35: متغیر ورودی طول | DJ35: a21 | DK35: 1 | DO35: =DO34+DN11 -> -52 | DP35: -0.907571211 | DQ35: =DV13+DV10*COS(DP35) ->  | DR35: =DW13-DV10*SIN(DP35) ->  | DS35: =SQRT(POWER((DV12-DQ35),2)+POWER((DW12-DR35),2)) ->  | DT35: =ABS(DV9-DS35) ->  | DV35: مولفه افقی | DW35: مولفه عمودی | DX35: اسم نقطه ورودی | EI35: =-EE35+EJ9 -> 0 | EJ35: 0
F36: ='طراحی همه الگوها'!U178+'طراحی همه الگوها'!U177+F33 -> 83.7 | G36: =G33 -> 175.7 | H36: j5 | J36: =F40 -> 5 | K36: =G40 -> 122.6 | L36: j9 | V36: نوک سر تا مچ دست شبیه ساز a3 | W36: =1.03*(SQRT(POWER(0.5*H168,2)+POWER((0.47*'متغیرها '!U85+H167*SIN('متغیرها '!B245)),2)))+'متغیرها '!U83 -> 94.44710907 | AS36: =AS34 -> 46.91689241 | AT36: =AT34 -> 100.7629688 | AU36: s'12 | AW36: شبیه سازαk1 | AX36: =F423 -> 1.37925323 | AZ36: =AX30+'طراحی همه الگوها'!U224 -> 128.8 | BA36: =AX31-'طراحی همه الگوها'!U226 -> 108.8 | BB36: 20 | BH36: =BJ29+W36*COS(RADIANS(45)) -> 71.78419129 | BI36: 10 | BJ36: =BJ29+'طراحی همه الگوها'!U236*COS(RADIANS(45)) -> 71.75088014 | BK36: =BK29-'طراحی همه الگوها'!U236*SIN(RADIANS(45)) -> 108.9491199 | BL36: =BK29-W36*SIN(RADIANS(45)) -> 108.9158087 | BN36: =BJ36 -> 71.75088014 | BO36: =BK36 -> 108.9491199 | BP36: 10 | BR36: =BJ35 -> 36.66544106 | BS36: =BK35 -> 117.4869368 | BT36: 9 | BZ36: =BZ31+'طراحی همه الگوها'!U260 -> 56.1 | CA36: =CA31 -> 114.1 | CB36: 16 | CD36: =CD19 -> 44.9 | CE36: =CA31 -> 114.1 | CF36: 25 | CL36: =CI19 -> 63.71774953 | CM36: =CJ19 -> 105.1753152 | CN36: k4 شبیه ساز | CU36: 42 | CV36: =CV12+CY12*SIN(RADIANS(CU36)+CU14) ->  | CW36: =CW12+CY12*COS(RADIANS(CU36)+CU14) ->  | CX36: =IF(CV13>CV36,ATAN((CW13-CW36)/(CV13-CV36)),ATAN((CW13-CW36)/(CV36-CV13))) ->  | CY36: =IF(CV13>CV36,(CV13-CV36)/COS(CX36),(CV36-CV13)/COS(CX36)) ->  | DK36: ماکزیمم متغیر ورودی ضریب طول | DL36: 1 | DO36: =DO35+DN11 -> -50 | DP36: -0.872664626 | DQ36: =DV13+DV10*COS(DP36) ->  | DR36: =DW13-DV10*SIN(DP36) ->  | DS36: =SQRT(POWER((DV12-DQ36),2)+POWER((DW12-DR36),2)) ->  | DT36: =ABS(DV9-DS36) ->  | DV36: 0 | DW36: 0 | DX36: 1 | DY36: نقطه اول خط تقارن | DZ36: نقاط قرینه شده نسبت به خط تقارن | EI36: =-EE36+EJ9 -> 0 | EJ36: 0
F37: ='طراحی همه الگوها'!U179+F33 -> 10.7 | G37: =G33 -> 175.7 | H37: j6 | AG37: محاسبات طراحی چادر 2 | AK37: =AK35 -> 77.92355218 | AL37: =AL35 -> 128.2984799 | AM37: s19 | AS37: =AP16 -> 57.52349413 | AT37: =AQ16 -> 111.3695706 | AU37: s'10 | AW37: (k4 →k5)شبیه ساز | AX37: =F425 -> 9.236486543 | AZ37: =AX30 -> 120 | BA37: =AX31-'طراحی همه الگوها'!U225 -> 107.7 | BB37: 19 | BD37: =AZ35 -> 128.8 | BE37: =BA35 -> 122.7 | BF37: 18 | BH37: =BH36-'متغیرها '!U84*COS(RADIANS(45)) -> 59.40982262 | BI37: 11 | BJ37: =BJ36-'طراحی همه الگوها'!U237*COS(RADIANS(45)) -> 61.2149891 | BK37: =BK36-'طراحی همه الگوها'!U237*SIN(RADIANS(45)) -> 98.41322882 | BL37: =BL36-'متغیرها '!U84*SIN(RADIANS(45)) -> 96.54144004 | BR37: =BJ34 -> 74.49804985 | BS37: =BK34 -> 13.54269846 | BT37: 8 | BZ37: =BZ36 -> 56.1 | CA37: =CA31+'طراحی همه الگوها'!U261 -> 137.2 | CB37: 17 | CD37: =CD19 -> 44.9 | CE37: =CE19 -> 133.3 | CF37: 26 | CU37: 44 | CV37: =CV12+CY12*SIN(RADIANS(CU37)+CU14) ->  | CW37: =CW12+CY12*COS(RADIANS(CU37)+CU14) ->  | CX37: =IF(CV13>CV37,ATAN((CW13-CW37)/(CV13-CV37)),ATAN((CW13-CW37)/(CV37-CV13))) ->  | CY37: =IF(CV13>CV37,(CV13-CV37)/COS(CX37),(CV37-CV13)/COS(CX37)) ->  | DI37: m1 | DJ37: =ATAN((-DK33+DK32)/(DL32-DL33)) ->  | DK37: m2 | DL37: =SQRT(POWER(DK32-DK33,2)+POWER(DL32-DL33,2)) ->  | DO37: =DO36+DN11 -> -48 | DP37: -0.837758041 | DQ37: =DV13+DV10*COS(DP37) ->  | DR37: =DW13-DV10*SIN(DP37) ->  | DS37: =SQRT(POWER((DV12-DQ37),2)+POWER((DW12-DR37),2)) ->  | DT37: =ABS(DV9-DS37) ->  | DV37: =DZ29 -> 0 | DW37: =EA29 -> 0 | DX37: 2 | DY37: نقطه دوم خط تقارن | DZ37: مولفه افقی | EA37: مولفه عمودی | EB37: اسم نقطه | EI37: =-EE37+EJ9 -> 0 | EJ37: 0
F38: =F33 -> 5 | G38: =G39 -> 159.7 | H38: j7 | J38: =F40 -> 5 | K38: =G40 -> 122.6 | L38: j9 | AG38: αs2 | AH38: =ATAN((AI11-AI12)/(AH12-AH11)) -> 1.274394899 | AK38: =AH27 -> 73.03830595 | AL38: =AI27 -> 113.3778777 | AM38: s11 | AW38: زاویه خم بودن دست | AX38: =K390 -> 26.87071719 | AZ38: =AX30 -> 120 | BA38: =AX31 -> 122.7 | BB38: 17 | CL38: =CI27 -> 46.85 | CM38: =CJ27 -> 5 | CN38: s13 | CU38: 46 | CV38: =CV12+CY12*SIN(RADIANS(CU38)+CU14) ->  | CW38: =CW12+CY12*COS(RADIANS(CU38)+CU14) ->  | CX38: =IF(CV13>CV38,ATAN((CW13-CW38)/(CV13-CV38)),ATAN((CW13-CW38)/(CV38-CV13))) ->  | CY38: =IF(CV13>CV38,(CV13-CV38)/COS(CX38),(CV38-CV13)/COS(CX38)) ->  | DI38: نقطه خروجی بالا | DJ38: s'u9 | DK38: =DK32-DK34*COS(DJ37) ->  | DL38: =DL32+DK34*SIN(DJ37) ->  | DO38: =DO37+DN11 -> -46 | DP38: -0.8028514559 | DQ38: =DV13+DV10*COS(DP38) ->  | DR38: =DW13-DV10*SIN(DP38) ->  | DS38: =SQRT(POWER((DV12-DQ38),2)+POWER((DW12-DR38),2)) ->  | DT38: =ABS(DV9-DS38) ->  | DV38: 0 | DW38: 0 | DX38: 3 | DZ38: =DV38+2*(SIN(ATAN((DV37-DV36)/(DW37-DW36)))*(DW38-DW36)+COS(ATAN((DV37-DV36)/(DW37-DW36)))*(DV36-DV38))*COS(ATAN((DV37-DV36)/(DW37-DW36))) ->  | EA38: =DW38-2*(SIN(ATAN((DV37-DV36)/(DW37-DW36)))*(DW38-DW36)+COS(ATAN((DV37-DV36)/(DW37-DW36)))*(DV36-DV38))*SIN(ATAN((DV37-DV36)/(DW37-DW36))) ->  | EB38: =DX38 -> 3 | EI38: =-EE38+EJ9 -> 0 | EJ38: 0
F39: ='طراحی همه الگوها'!U181+F33 -> 7.1 | G39: =G33-'طراحی همه الگوها'!U180 -> 159.7 | H39: j8 | J39: =F38 -> 5 | K39: =G38 -> 159.7 | L39: j7 | AG39: (s2 →s3) | AH39: =SQRT(POWER((AH12-AH11),2)+POWER((AI11-AI12),2)) -> 6.140253413 | AS39: =AP21 -> 79 | AT39: =AQ21 -> 5 | AU39: s'13 | AW39: دست خمیده شبیه ساز k4 | AX39: =K384 -> 63.71774953 | AY39: =L384 -> 105.1753152 | BK39: j4 | BL39: =IF('متغیرها '!C25<1,'متغیرها '!C25*'متغیرها '!U59,IF('متغیرها '!C25<2,'متغیرها '!U59+('متغیرها '!C25-1)*('متغیرها '!U60-'متغیرها '!U59),IF('متغیرها '!C25<3,'متغیرها '!U60+('متغیرها '!C25-2)*(I105-'متغیرها '!U60),I105+('متغیرها '!C25-3)*(H127-H126)))) -> 0 | BR39: =BJ29 -> 5 | BS39: =BK29 -> 175.7 | BT39: 1 | BZ39: =BZ13 -> 0 | CA39: =CA33-BW43 -> 210.63 | CB39: 19' | CD39: =CD13 -> 114.75 | CE39: =CA33 -> 222.6 | CF39: 27 | CL39: =CI30 -> 5 | CM39: =CJ30 -> 5 | CN39: 2 | CU39: 48 | CV39: =CV12+CY12*SIN(RADIANS(CU39)+CU14) ->  | CW39: =CW12+CY12*COS(RADIANS(CU39)+CU14) ->  | CX39: =IF(CV13>CV39,ATAN((CW13-CW39)/(CV13-CV39)),ATAN((CW13-CW39)/(CV39-CV13))) ->  | CY39: =IF(CV13>CV39,(CV13-CV39)/COS(CX39),(CV39-CV13)/COS(CX39)) ->  | DI39: نقطه خروجی پایین | DJ39: s'd8 | DK39: =DK40-DK34*COS(DJ37) ->  | DL39: =DL40+DK34*SIN(DJ37) ->  | DO39: =DO38+DN11 -> -44 | DP39: =RADIANS(DO39) -> -0.7679448709 | DQ39: =DV13+DV10*COS(DP39) ->  | DR39: =DW13-DV10*SIN(DP39) ->  | DS39: =SQRT(POWER((DV12-DQ39),2)+POWER((DW12-DR39),2)) ->  | DT39: =ABS(DV9-DS39) ->  | DV39: 0 | DW39: 0 | DX39: 4 | DZ39: =DV39+2*(SIN(ATAN((DV37-DV36)/(DW37-DW36)))*(DW39-DW36)+COS(ATAN((DV37-DV36)/(DW37-DW36)))*(DV36-DV39))*COS(ATAN((DV37-DV36)/(DW37-DW36))) ->  | EA39: =DW39-2*(SIN(ATAN((DV37-DV36)/(DW37-DW36)))*(DW39-DW36)+COS(ATAN((DV37-DV36)/(DW37-DW36)))*(DV36-DV39))*SIN(ATAN((DV37-DV36)/(DW37-DW36))) ->  | EB39: =DX39 -> 4 | EI39: =-EE39+EJ9 -> 0 | EJ39: 0
F40: =F33 -> 5 | G40: =G41 -> 122.6 | H40: j9 | L40: انحنا | AG40: (s2 →s14) | AH40: =AH39*2*('متغیرها '!C10-0.5) -> 6.140253413 | AK40: =AK38 -> 73.03830595 | AL40: =AL38 -> 113.3778777 | AM40: s11 | AS40: =AP28 -> 5 | AT40: =AQ28 -> 5 | AU40: 2' | BK40: (9→11) | BL40: ='متغیرها '!C29*BL45+'متغیرها '!C27*'متغیرها '!U83 -> 31.08836835 | BR40: =BJ30 -> -4.6 | BS40: =BK30 -> -7 | BT40: 3 | CD40: =CD13 -> 114.75 | CE40: =CE13 -> 168.35 | CF40: 28 | CU40: 50 | CV40: =CV12+CY12*SIN(RADIANS(CU40)+CU14) ->  | CW40: =CW12+CY12*COS(RADIANS(CU40)+CU14) ->  | CX40: =IF(CV13>CV40,ATAN((CW13-CW40)/(CV13-CV40)),ATAN((CW13-CW40)/(CV40-CV13))) ->  | CY40: =IF(CV13>CV40,(CV13-CV40)/COS(CX40),(CV40-CV13)/COS(CX40)) ->  | DI40: نقطه خروجی میانه | DK40: =DK32-DK35*DL37*SIN(DJ37)/DL36 ->  | DL40: =DL32-DK35*DL37*COS(DJ37)/DL36 ->  | DO40: =DO39+DN11 -> -42 | DP40: -0.7330382858 | DQ40: =DV13+DV10*COS(DP40) ->  | DR40: =DW13-DV10*SIN(DP40) ->  | DS40: =SQRT(POWER((DV12-DQ40),2)+POWER((DW12-DR40),2)) ->  | DT40: =ABS(DV9-DS40) ->  | DV40: =DZ30 -> 0 | DW40: =EA30 -> 0 | DX40: 5 | DZ40: =DV40+2*(SIN(ATAN((DV37-DV36)/(DW37-DW36)))*(DW40-DW36)+COS(ATAN((DV37-DV36)/(DW37-DW36)))*(DV36-DV40))*COS(ATAN((DV37-DV36)/(DW37-DW36))) ->  | EA40: =DW40-2*(SIN(ATAN((DV37-DV36)/(DW37-DW36)))*(DW40-DW36)+COS(ATAN((DV37-DV36)/(DW37-DW36)))*(DV36-DV40))*SIN(ATAN((DV37-DV36)/(DW37-DW36))) ->  | EB40: =DX40 -> 5 | EI40: =-EE40+EJ9 -> 0 | EJ40: 0
F41: =F39 -> 7.1 | G41: =G38-'طراحی همه الگوها'!U182 -> 122.6 | H41: j10 | J41: =F36 -> 83.7 | K41: =G36 -> 175.7 | L41: j5 | AG41: شیفت افقی کل | AH41: ='متغیرها '!C51 -> 5 | AK41: =AH26 -> 59.17321846 | AL41: =AI26 -> 116.0235059 | AM41: s12 | BK41: (8→9) | BL41: =BL37+'متغیرها '!C29*BL45*COS(BL46-RADIANS(45)+BL42)-BK31 -> 110.6151481 | CL41: =CL39 -> 5 | CM41: =CM39 -> 5 | CN41: 2 | CU41: 52 | CV41: =CV12+CY12*SIN(RADIANS(CU41)+CU14) ->  | CW41: =CW12+CY12*COS(RADIANS(CU41)+CU14) ->  | CX41: =IF(CV13>CV41,ATAN((CW13-CW41)/(CV13-CV41)),ATAN((CW13-CW41)/(CV41-CV13))) ->  | CY41: =IF(CV13>CV41,(CV13-CV41)/COS(CX41),(CV41-CV13)/COS(CX41)) ->  | DO41: =DO40+DN11 -> -40 | DP41: -0.6981317008 | DQ41: =DV13+DV10*COS(DP41) ->  | DR41: =DW13-DV10*SIN(DP41) ->  | DS41: =SQRT(POWER((DV12-DQ41),2)+POWER((DW12-DR41),2)) ->  | DT41: =ABS(DV9-DS41) ->  | EI41: =-EE41+EJ9 -> 0 | EJ41: 0
F42: =F35+'طراحی همه الگوها'!U183 -> 27.3 | G42: =G33 -> 175.7 | H42: j11 | J42: =F45 -> 81.699 | K42: 161.026 | L42: j5' | AG42: شیفت عمودی کل | AH42: ='متغیرها '!C52 -> 5 | AS42: =AS40 -> 5 | AT42: =AT40 -> 5 | AU42: 2' | BK42: α2 | BL42: ='متغیرها '!B245 -> 0.3164156761 | BR42: =BN28 -> 46.5 | BS42: =BO28 -> 76.875 | BT42: 15 | BV42: j4 | BW42: =IF('متغیرها '!C37<1,'متغیرها '!C37*'متغیرها '!U59,IF('متغیرها '!C37<2,'متغیرها '!U59+('متغیرها '!C37-1)*('متغیرها '!U60-'متغیرها '!U59),IF('متغیرها '!C37<3,'متغیرها '!U60+('متغیرها '!C37-2)*(I105-'متغیرها '!U60),I105+('متغیرها '!C37-3)*(H127-H126)))) -> 0 | CL42: =CI31 -> 5 | CM42: =CJ31 -> 110.1599133 | CN42: s''12 | CU42: 54 | CV42: =CV12+CY12*SIN(RADIANS(CU42)+CU14) ->  | CW42: =CW12+CY12*COS(RADIANS(CU42)+CU14) ->  | CX42: =IF(CV13>CV42,ATAN((CW13-CW42)/(CV13-CV42)),ATAN((CW13-CW42)/(CV42-CV13))) ->  | CY42: =IF(CV13>CV42,(CV13-CV42)/COS(CX42),(CV42-CV13)/COS(CX42)) ->  | DO42: =DO41+DN11 -> -38 | DP42: -0.6632251158 | DQ42: =DV13+DV10*COS(DP42) ->  | DR42: =DW13-DV10*SIN(DP42) ->  | DS42: =SQRT(POWER((DV12-DQ42),2)+POWER((DW12-DR42),2)) ->  | DT42: =ABS(DV9-DS42) ->  | DY42: یافتن راس سوم مثلث با داشتن دو راس و یک ضلع و یک زاویه | EI42: =-EE42+EJ9 -> 0 | EJ42: =EF42 -> 0
F43: =F35 -> 17 | G43: =G33-'طراحی همه الگوها'!U184 -> 167.1 | H43: j12 | J43: 73.695 | K43: 142.35 | L43: j5'' | AG43: j4 | AH43: =IF('متغیرها '!C9<1,'متغیرها '!C9*'متغیرها '!U59,IF('متغیرها '!C9<2,'متغیرها '!U59+('متغیرها '!C9-1)*('متغیرها '!U60-'متغیرها '!U59),IF('متغیرها '!C9<3,'متغیرها '!U60+('متغیرها '!C9-2)*(I105-'متغیرها '!U60),I105+('متغیرها '!C9-3)*(H127-H126)))) -> 0 | AI43: چادر 2 | AK43: =AK41 -> 59.17321846 | AL43: =AL41 -> 116.0235059 | AM43: s12 | AS43: =AH13 -> 5 | AT43: =AI13 -> 124.1 | AU43: خط سینه | BK43: شیفت افقی مرغک | BL43: ='متغیرها '!C33*0.5*('متغیرها '!U72-'متغیرها '!U73) -> 46.5 | BR43: =BN32 -> 53.7 | BS43: =BO32 -> 98.775 | BT43: 18 | BV43: (14 →19') | BW43: =AH45+0.1*'متغیرها '!C40 -> 11.97 | BZ43: رسم چادر شماره 5 برای پرینت | CU43: 56 | CV43: =CV12+CY12*SIN(RADIANS(CU43)+CU14) ->  | CW43: =CW12+CY12*COS(RADIANS(CU43)+CU14) ->  | CX43: =IF(CV13>CV43,ATAN((CW13-CW43)/(CV13-CV43)),ATAN((CW13-CW43)/(CV43-CV13))) ->  | CY43: =IF(CV13>CV43,(CV13-CV43)/COS(CX43),(CV43-CV13)/COS(CX43)) ->  | DO43: =DO42+DN11 -> -36 | DP43: -0.6283185307 | DQ43: =DV13+DV10*COS(DP43) ->  | DR43: =DW13-DV10*SIN(DP43) ->  | DS43: =SQRT(POWER((DV12-DQ43),2)+POWER((DW12-DR43),2)) ->  | DT43: =ABS(DV9-DS43) ->  | DV43: اطلاعات ورودی | EI43: =-EE43+EJ9 -> 0 | EJ43: 0
F44: =F35 -> 17 | G44: =G34 -> 109 | H44: j13 | J44: 57.02 | K44: 124.341 | L44: j5''' | AG44: (j1 → j2) | AH44: =ROUND(G19+0.1*'متغیرها '!U85-AH43,1) -> 170.7 | AK44: =AH25 -> 64.61855661 | AL44: =AI25 -> 132.6547504 | AM44: s10 | BK44: شیفت عمودی مرغک | BL44: =IF('متغیرها '!C34<1,'متغیرها '!C34*'متغیرها '!U59,IF('متغیرها '!C34<2,'متغیرها '!U59+('متغیرها '!C34-1)*('متغیرها '!U60-'متغیرها '!U59),IF('متغیرها '!C34<3,'متغیرها '!U60+('متغیرها '!C34-2)*(I105-'متغیرها '!U60),I105+('متغیرها '!C34-3)*(H127-H126))))+'طراحی همه الگوها'!U245 -> 76.875 | BV44: شیفت عمودی الگو دسته | BW44: 7 | CA44: صاف | CB44: برای پرینت | CE44: انحنا | CF44: برای پرینت | CL44: =CL42 -> 5 | CM44: =CM42 -> 110.1599133 | CN44: s''12 | CU44: 58 | CV44: =CV12+CY12*SIN(RADIANS(CU44)+CU14) ->  | CW44: =CW12+CY12*COS(RADIANS(CU44)+CU14) ->  | CX44: =IF(CV13>CV44,ATAN((CW13-CW44)/(CV13-CV44)),ATAN((CW13-CW44)/(CV44-CV13))) ->  | CY44: =IF(CV13>CV44,(CV13-CV44)/COS(CX44),(CV44-CV13)/COS(CX44)) ->  | DO44: =DO43+DN11 -> -34 | DP44: -0.5934119457 | DQ44: =DV13+DV10*COS(DP44) ->  | DR44: =DW13-DV10*SIN(DP44) ->  | DS44: =SQRT(POWER((DV12-DQ44),2)+POWER((DW12-DR44),2)) ->  | DT44: =ABS(DV9-DS44) ->  | DV44: مولفه افقی | DW44: مولفه عمودی | DX44: اسم نقطه | DZ44: محاسبات | EI44: =-EE44+EJ9 -> 0 | EJ44: 0
F45: =F44+0.97*(F36-F44) -> 81.699 | G45: =G44+0.78*(G36-G44) -> 161.026 | H45: j5' | J45: 33.675 | K45: 111.668 | L45: j5'''' | AG45: (j1 → j3) | AH45: =0.21*G13 -> 11.97 | AI45: بدون انتخاب | BK45: شبیه ساز آستین(3→19) | BL45: =BL516 -> 44.41195478 | BR45: =BN34 -> 60.9 | BS45: =BO34 -> 76.875 | BT45: 17 | BV45: شیفت عمودی الگو دسته برای پرینت | BW45: =-'متغیرها '!U56 -> -103 | BZ45: =BZ13+'طراحی همه الگوها'!U260+'طراحی همه الگوها'!U262 -> 95.4 | CA45: =CA25+BW45 -> 4.1 | CB45: 13 | CD45: =BZ45 -> 95.4 | CE45: =CA45 -> 4.1 | CF45: 13 | CL45: =CI32 -> 5 | CM45: =CJ32 -> 114.2599133 | CN45: s'12 | CU45: 60 | CV45: =CV12+CY12*SIN(RADIANS(CU45)+CU14) ->  | CW45: =CW12+CY12*COS(RADIANS(CU45)+CU14) ->  | CX45: =IF(CV13>CV45,ATAN((CW13-CW45)/(CV13-CV45)),ATAN((CW13-CW45)/(CV45-CV13))) ->  | CY45: =IF(CV13>CV45,(CV13-CV45)/COS(CX45),(CV45-CV13)/COS(CX45)) ->  | DO45: =DO44+DN11 -> -32 | DP45: -0.5585053606 | DQ45: =DV13+DV10*COS(DP45) ->  | DR45: =DW13-DV10*SIN(DP45) ->  | DS45: =SQRT(POWER((DV12-DQ45),2)+POWER((DW12-DR45),2)) ->  | DT45: =ABS(DV9-DS45) ->  | DV45: 5 | DW45: 50 | DX45: 1 | DY45: راس بالا | DZ45: =SQRT(POWER(DV46-DV45,2)+POWER(DW45-DW46,2)) -> 10.19803903 | EA45: m2 | EI45: =-EE45+EJ9 -> 0 | EJ45: 0
F46: =F44+0.85*(F36-F44) -> 73.695 | G46: =G44+0.5*(G36-G44) -> 142.35 | H46: j5'' | J46: =F44 -> 17 | K46: =G44 -> 109 | L46: j13 | AK46: =AH28 -> 78 | AL46: =AI28 -> 5 | AM46: s13 | BK46: شبیه سازαk1 | BL46: =F423 -> 1.37925323 | BR46: =BN30 -> 53.7 | BS46: =BO30 -> 54.975 | BT46: 19 | BZ46: =BZ13 -> 0 | CA46: =CA45 -> 4.1 | CB46: 12 | CD46: =CD45+0.45*(CD49-CD45) -> 107.01 | CE46: =CE45+0.25*(CE49-CE45) -> 31.225 | CF46: 13' | CU46: 62 | CV46: =CV12+CY12*SIN(RADIANS(CU46)+CU14) ->  | CW46: =CW12+CY12*COS(RADIANS(CU46)+CU14) ->  | CX46: =IF(CV13>CV46,ATAN((CW13-CW46)/(CV13-CV46)),ATAN((CW13-CW46)/(CV46-CV13))) ->  | CY46: =IF(CV13>CV46,(CV13-CV46)/COS(CX46),(CV46-CV13)/COS(CX46)) ->  | DO46: =DO45+DN11 -> -30 | DP46: -0.5235987756 | DQ46: =DV13+DV10*COS(DP46) ->  | DR46: =DW13-DV10*SIN(DP46) ->  | DS46: =SQRT(POWER((DV12-DQ46),2)+POWER((DW12-DR46),2)) ->  | DT46: =ABS(DV9-DS46) ->  | DV46: 7 | DW46: 40 | DX46: 2 | DY46: راس پایین | DZ46: =ATAN((DV46-DV45)/(DW45-DW46)) -> 0.1973955598 | EA46: γ18 | EI46: =-EE46+EJ9 -> 0 | EJ46: 0
F47: =F44+0.6*(F36-F44) -> 57.02 | G47: =G44+0.23*(G36-G44) -> 124.341 | H47: j5''' | J47: =F34 -> 5 | K47: =G34 -> 109 | L47: j2 | AK47: =AH17 -> 5 | AL47: =AI28 -> 5 | AM47: 2 | BZ47: =BZ13 -> 0 | CA47: =CA46+'طراحی همه الگوها'!U258 -> 18.5 | CB47: 18 | CD47: =CD45+0.75*(CD49-CD45) -> 114.75 | CE47: =CE45+0.5*(CE49-CE45) -> 58.35 | CF47: 13'' | CL47: =CL45 -> 5 | CM47: =CM45 -> 114.2599133 | CN47: s'12 | CU47: 64 | CV47: =CV12+CY12*SIN(RADIANS(CU47)+CU14) ->  | CW47: =CW12+CY12*COS(RADIANS(CU47)+CU14) ->  | CX47: =IF(CV13>CV47,ATAN((CW13-CW47)/(CV13-CV47)),ATAN((CW13-CW47)/(CV47-CV13))) ->  | CY47: =IF(CV13>CV47,(CV13-CV47)/COS(CX47),(CV47-CV13)/COS(CX47)) ->  | DO47: =DO46+DN11 -> -28 | DP47: -0.4886921906 | DQ47: =DV13+DV10*COS(DP47) ->  | DR47: =DW13-DV10*SIN(DP47) ->  | DS47: =SQRT(POWER((DV12-DQ47),2)+POWER((DW12-DR47),2)) ->  | DT47: =ABS(DV9-DS47) ->  | DV47: 10 | DW47: m4 | DX47: ضلع بالا | DZ47: =RADIANS(90)-RADIANS(DZ46)-DV48 -> 1.829150512 | EA47: m5 | EI47: =-EE47+EJ9 -> 0 | EJ47: 0
F48: =F44+0.25*(F36-F44) -> 33.675 | G48: =G44+0.04*(G36-G44) -> 111.668 | H48: j5'''' | BR48: =BN28 -> 46.5 | BS48: =BO28 -> 76.875 | BT48: 15 | BZ48: =BZ13 -> 0 | CA48: =CA47+'طراحی همه الگوها'!U259 -> 112.6 | CB48: 14 | CD48: =CD45+0.95*(CD49-CD45) -> 119.91 | CE48: =CE45+0.8*(CE49-CE45) -> 90.9 | CF48: 13''' | CL48: =CI23 -> 24.4075 | CM48: =CJ23 -> 114.2599133 | CN48: s12 | CU48: بهینه α | CV48: =IF(CY13<CY16,CU16,IF(CY13<CY17,CU17,IF(CY13<CY18,CU18,IF(CY13<CY19,CU19,IF(CY13<CY20,CU20,IF(CY13<CY21,CU21,IF(CY13<CY22,CU22,IF(CY13<CY23,CU23,IF(CY13<CY24,CU24,IF(CY13<CY25,CU25,IF(CY13<CY26,CU26,IF(CY13<CY27,CU27,IF(CY13<CY28,CU28,IF(CY13<CY29,CU29,IF(CY13<CY30,CU30,IF(CY13<CY31,CU31,IF(CY13<CY32,CU32,IF(CY13<CY33,CU33,IF(CY13<CY34,CU34,IF(CY13<CY35,CU35,IF(CY13<CY36,CU36,IF(CY13<CY37,CU37,IF(CY13<CY38,CU38,IF(CY13<CY39,CU39,IF(CY13<CY40,CU40,IF(CY13<CY41,CU41,IF(CY13<CY42,CU42,IF(CY13<CY43,CU43,IF(CY13<CY44,CU44,IF(CY13<CY45,CU45,IF(CY13<CY46,CU46,CU47))))))))))))))))))))))))))))))) ->  | CW48: =RADIANS(CV48) ->  | CX48: c21 | CY48: =IF(CV13>CV50,ATAN((CW13-CW50)/(CV13-CV50)),ATAN((CW13-CW50)/(CV50-CV13))) ->  | DO48: =DO47+DN11 -> -26 | DP48: -0.4537856055 | DQ48: =DV13+DV10*COS(DP48) ->  | DR48: =DW13-DV10*SIN(DP48) ->  | DS48: =SQRT(POWER((DV12-DQ48),2)+POWER((DW12-DR48),2)) ->  | DT48: =ABS(DV9-DS48) ->  | DV48: =RADIANS(-15) -> -0.2617993878 | DW48: m1 | DX48: زاویه ضلع پایین با افق به رادیان ساعتگرزیر افق عدد مثبت | DZ48: =DV47*COS(DZ49)-DZ45*COS(DZ47) -> 4.275403846 | EA48: m7 | EI48: =-EE48+EJ9 -> 0 | EJ48: 0
AK49: =AK47 -> 5 | AL49: =AL47 -> 5 | AM49: 2 | BR49: =BN30 -> 53.7 | BS49: =BO30 -> 54.975 | BT49: 19 | BZ49: =BZ13+'طراحی همه الگوها'!U263 -> 121.2 | CA49: =CA48 -> 112.6 | CB49: 15 | CD49: =BZ49 -> 121.2 | CE49: =CA49 -> 112.6 | CF49: 15 | CV49: مولفه افقی | CW49: مولفه عمودی | DD49: پروسیجرها | DO49: =DO48+DN11 -> -24 | DP49: -0.4188790205 | DQ49: =DV13+DV10*COS(DP49) ->  | DR49: =DW13-DV10*SIN(DP49) ->  | DS49: =SQRT(POWER((DV12-DQ49),2)+POWER((DW12-DR49),2)) ->  | DT49: =ABS(DV9-DS49) ->  | DV49: راس سوم | DZ49: =ASIN(DZ50/DV47) -> 1.403019319 | EA49: m8 | EI49: =-EE49+EJ9 -> 0 | EJ49: 0
AK50: =AH13 -> 5 | AL50: =AI13 -> 124.1 | AM50: خط سینه | CL50: =CL48 -> 24.4075 | CM50: =CM48 -> 114.2599133 | CN50: s12 | CU50: e23 | CV50: =CV12+CY12*SIN(CW48+CU14) ->  | CW50: =CW12+CY12*COS(CW48+CU14) ->  | CX50: راس سوم | DO50: =DO49+DN11 -> -22 | DP50: -0.3839724354 | DQ50: =DV13+DV10*COS(DP50) ->  | DR50: =DW13-DV10*SIN(DP50) ->  | DS50: =SQRT(POWER((DV12-DQ50),2)+POWER((DW12-DR50),2)) ->  | DT50: =ABS(DV9-DS50) ->  | DV50: =DV46+DZ48*COS(DV48) -> 11.12972299 | DW50: =DW46-DZ48*SIN(DV48) -> 41.10655594 | DX50: 3 | DZ50: =DZ45*SIN(DZ47) -> 9.859584224 | EA50: m9 | EI50: =-EE50+EJ9 -> 0 | EJ50: 0
K51: محاسبات بافت | BR51: =BN34 -> 60.9 | BS51: =BO34 -> 76.875 | BT51: 17 | BZ51: =CD54 -> 56.1 | CA51: =CA46 -> 4.1 | CB51: 16 | CD51: =BZ47 -> 0 | CE51: =CA47 -> 18.5 | CF51: 18 | CL51: =CI24 -> 24.4075 | CM51: =CJ24 -> 110.1599133 | CN51: 41 شبیه ساز | DO51: =DO50+DN11 -> -20 | DP51: -0.3490658504 | DQ51: =DV13+DV10*COS(DP51) ->  | DR51: =DW13-DV10*SIN(DP51) ->  | DS51: =SQRT(POWER((DV12-DQ51),2)+POWER((DW12-DR51),2)) ->  | DT51: =ABS(DV9-DS51) ->  | EI51: =-EE51+EJ9 -> 0 | EJ51: 0
BR52: =BN32 -> 53.7 | BS52: =BO32 -> 98.775 | BT52: 18 | CD52: =CD18 -> 22.4 | CE52: =CA46+'طراحی همه الگوها'!U269 -> 19.4 | CF52: 24 | DO52: =DO51+DN11 -> -18 | DP52: -0.3141592654 | DQ52: =DV13+DV10*COS(DP52) ->  | DR52: =DW13-DV10*SIN(DP52) ->  | DS52: =SQRT(POWER((DV12-DQ52),2)+POWER((DW12-DR52),2)) ->  | DT52: =ABS(DV9-DS52) ->  | EI52: =-EE52+EJ9 -> 0 | EJ52: 0
E53: متغیرهای ورودی مربوط به ضخامت میل (متناسب با ضخامت نخ) | H53: متغیرهای ورودی یقه ب ب گرد بافت همه از زیر | K53: متغیرهای ورودی یقه شکاری کشباف | N53: متغیر محاسبه ای یقه انگلیسی | Q53: متغیرهای ورودی یقه شومیزیه بافت همه از زیر | CD53: =CD19 -> 44.9 | CE53: =CA46+'طراحی همه الگوها'!U271 -> 23.3 | CF53: 26 | CL53: =CL51 -> 24.4075 | CM53: =CM51 -> 110.1599133 | CN53: 41 شبیه ساز | EI53: =-EE53+EJ9 -> 0 | EJ53: 0
E54: (بدون احتساب بافت انتخابی) a'0 ضریب تعداد رج | F54: =IF(F56=2,N68,IF(F56=3,O68,P68)) -> 2.8 | H54: =ROUND(I60*G167,1) -> 12.9 | I54: پهنا (cm)= | K54: =ROUND(L59*(0.4*G166+0.037*H131),1) -> 6.5 | L54: پهنا (cm)= | N54: d'3 | O54: ='متغیرها '!C167*H124 -> 4.2 | Q54: =ROUND(R61*R57,1) -> 2.6 | R54: پهنا (cm)= | BR54: =BJ29 -> 5 | BS54: =BK29 -> 175.7 | BT54: 1 | CD54: =BZ46+'طراحی همه الگوها'!U260 -> 56.1 | CE54: =CA46+'طراحی همه الگوها'!U261 -> 27.2 | CF54: 17 | CL54: =CI31 -> 5 | CM54: =CJ31 -> 110.1599133 | CN54: s''12 | EI54: =-EE54+EJ9 -> 0 | EJ54: 0
E55: (بدون احتساب بافت انتخابی) b'0 ضریب تعداد دانه | F55: =IF(F56=2,N69,IF(F56=3,O69,P69)) -> 1.8 | H55: متغیر محاسبه ای یقه ب ب گرد | K55: متغیر محاسبه ای یقه شکاری | N55: d11 | O55: =(0.95+1.45*'متغیرها '!C164)*(0.4*G166+0.037*H131) -> 7.066307423 | Q55: =ROUND(R62*R57,1) -> 6.2 | R55: پهنا (cm)= | BR55: =BJ31 -> 13.9 | BS55: =BK31 -> 5 | BT55: 5 | EI55: =-EE55+EJ9 -> 0 | EJ55: 0
E56: انتخاب ضخامت میل بافتنی f1 | F56: ='متغیرها '!C832 -> 3 | H56: c6 | I56: =ROUNDUP(1.3*F54*I57,0) -> 48 | K56: a7 | L56: =L62*L59*(0.4*G166+0.037*H131) -> 18.13685572 | N56: d'12 | O56: =G263-G258 -> 26.52811148 | Q56: متغیر محاسبه ای شومیزیه | EI56: =-EE56+EJ9 -> 0 | EJ56: 0
E57: جمع شوندگی عمودی بافت f2 | F57: ='متغیرها '!C833 -> 0 | H57: c'6 | I57: =I60*G167 -> 12.93151904 | N57: d12 | O57: =ROUND(F54*O56,0) -> 74 | Q57: e'1 | R57: =(0.4*G166+0.037*H131) -> 2.94429476 | EI57: =-EE57+EJ9 -> 0 | EJ57: 0
E58: جمع شوندگی افقی بافت f3 | F58: ='متغیرها '!C834 -> 0 | K58: متغیرهای ورودی یقه شکاری کشباف | N58: d''12 | O58: =G264+AX147 -> 6.714598781 | Q58: e''1 | R58: =R62*R57 -> 6.183018995 | EI58: =-EE58+EJ9 -> 0 | EJ58: 0
E59: از آستین رگلان γ9 | F59: =DE542 -> 0.6244375639 | H59: متغیرهای ورودی یقه ب ب گرد بافت همه از زیر | K59: ضریب پهنای یقه (1.5 الی 3) | L59: ='متغیرها '!C741 -> 2.2 | EI59: =-EE59+EJ9 -> 0 | EJ59: 0
E60: γ10 از آستین رگلان | F60: =DE543 -> 0.5924495079 | H60: ضریب پهنای یقه (0.6 الی 1.2) | I60: =1.9*'متغیرها '!C761 -> 1.14 | K60: یقه شکاری تا خط مرکزی جلو | N60: یقه انگلیسی بافت جودانه | Q60: متغیرهای ورودی یقه شومیزیه بافت همه از زیر | EI60: =-EE60+EJ9 -> 0 | EJ60: 0
H61: یقه ب ب گرد | K61: بافت انتخابی یقه شکاری | Q61: ضریب پهنای پایه یقه (1 الی 2) | R61: ='متغیرها '!C748 -> 0.9 | EI61: =-EE61+EJ9 -> 0 | EJ61: 0
E62: گشادی بالای مچ آستین (cm) b'11 | F62: =ROUND(DY522-DY523,0) -> 30 | K62: aa0 تعداد رج در یک سانت | L62: =F54+0.3*L65*F54 -> 2.8 | N62: b'1 نوار باز شده گردن - دور تا دور گردن | O62: =DP680+DP681 -> 20.45099411 | Q62: ضریب پهنای برگرد یقه (1.5 الی 3) | R62: ='متغیرها '!C752 -> 2.1 | EI62: =-EE62+EJ9 -> 0 | EJ62: 0
E63: تعداد دانه ها در بالای مچ آستین b'12 | F63: =ROUND(O65*F62,0) -> 54 | K63: تعداد دانه در یک سانت ab0 | L63: =F55+0.68*L66*F55 -> 3.024 | N63: محاسبه شده (با احتساب بافت انتخابی) | Q63: یقه شومیزیه | EI63: =-EE63+EJ9 -> 0 | EJ63: 0
E64: تعداد دانه های اضافه شده زیر بغل b8 | F64: =ROUNDUP(O65*(AX119+AX114+BI116),0) -> 11 | H64: b22 | I64: =SQRT(POWER(F84,2)-POWER(F67,2)) -> 39.48647995 | K64: متغیر ورودی بافت یقه شکاری | N64: a0 تعداد رج در یک سانت | O64: =F54+0.3*F57*F54 -> 2.8 | EI64: =-EE64+EJ9 -> 0 | EJ64: 0
E65: تعداد دانه های سرتاسر آستین در قسمت زیر بغل b20 | F65: =ROUNDUP(F64+O64*F80*COS(0.4*(F59+F60))+J86+0.5*F78,0) -> 77 | H65: b'22 | I65: =I64*O64 -> 110.5621439 | K65: جمع شوندگی عمودی a9 | L65: ='متغیرها '!C837 -> 0 | N65: تعداد دانه در یک سانتb0 | O65: =F55+0.68*F58*F55 -> 1.8 | EI65: =-EE65+EJ9 -> 0 | EJ65: 0
E66: تعداد دانه های اضافه شده در کنار آستین در هر طرف b21 | F66: =0.5*(F65-F63) -> 11.5 | H66: b12 | I66: =ROUND(F63/((F62-F88)*O65),0) -> 3 | K66: جمع شوندگی افقی a8 | L66: ='متغیرها '!C838 -> 1 | EI66: =-EE66+EJ9 -> 0 | EJ66: 0
E67: طول اضافه شده در کنار آستین در هر طرف b'21 | F67: =F66/O65 -> 6.388888889 | K67: جمع شوندگی عمودی a'9 | L67: =20*L65 -> 0 | N67: میل 2 و 2.5 | O67: میل 3 و 3.5 | P67: میل 4 و 4.5 | EI67: =-EE67+EJ9 -> 0 | EJ67: 0
E68: هر b11 رج در بافت آستین یکدانه از ابتدا و یکدانه از انتها کم شود | F68: =ROUND(I65/F66,0) -> 10 | K68: جمع شوندگی افقی a'8 | L68: =20*L66 -> 20 | N68: 3.5 | O68: 2.8 | P68: 2.6 | Q68: a''0 | EI68: =-EE68+EJ9 -> 0 | EJ68: 0
N69: 2.3 | O69: 1.8 | P69: 1.7 | Q69: b''0 | EI69: =-EE69+EJ9 -> 0 | EJ69: 0
EI70: =-EE70+EJ9 -> 0 | EJ70: 0
EI71: =-EE71+EJ9 -> 0 | EJ71: 0
EI72: =-EE72+EJ9 -> 0 | EJ72: 0
J73: محاسبات بافت | EI73: =-EE73+EJ9 -> 0 | EJ73: 0
E74: محاسبات در بافت بالاتنه و آستین (بافت انتخابی) | EI74: =-EE74+EJ9 -> 0 | EJ74: =EF74 -> 0
E75: تعداد دانه ها دور گردن + دو تا نیمه جادکمه که از خط مرکزی اضافه شده | F75: =F77+2*F76 -> 116 | H75: یقه ب ب گرد | K75: یقه شکاری تا خط مرکزی جلو | N75: یقه شومیزیه | Q75: یقه انگلیسی | EI75: =-EE75+EJ9 -> 0 | EJ75: 0
E76: b2 تعداد دانه های اضافه شده از خط مرکزی تا خط جادکمه = نیمه جادکمه | F76: =ROUNDUP(F55*(-AX147),0) -> 22 | H76: بافت همه از زیر | K76: بافت انتخابی | N76: بافت همه از زیر | Q76: بافت جودانه | EI76: =-EE76+EJ9 -> 0 | EJ76: 0
E77: (بدون اعمال بافت اننتخابی) b1 تعداد دانه ها دور تا دور گردن | F77: =I87+2*I86+2*I85+I84 -> 72 | H77: c1 | I77: =F77+2*(I80+1)+1*(I79+1)-3 -> 116 | K77: a1 | L77: =F77+(L68/20)*F77 -> 144 | N77: e1 | O77: =F77-I84+O82+2*O78+15 -> 61 | Q77: d1 | R77: =I87+2*I86+2*ROUND(F55*O238,0)-2*R79 -> 104 | EI77: =-EE77+EJ9 -> 0 | EJ77: 0
E78: تعداد رج دوبل برای ایجاد گودی گردن جلو b13 | F78: =ROUNDDOWN(0.25*O64*((AX129-BI128)),0) -> 4 | H78: c2 | I78: =ROUND(0.25*1.3*F54*I57,0)-1 -> 11 | K78: a2 | L78: =IF((ROUND(0.6*L56,0)-6)<0," خطا - قد پشت یقه زیاد شود ",(ROUND(0.6*L56,0)-6)) -> 5 | N78: e2 | O78: =ROUNDDOWN(0.5*(1.3*F54*R58-9),0) -> 6 | Q78: d2 | R78: =ROUND(F54*O54,0) -> 12 | EI78: =-EE78+EJ9 -> 0 | EJ78: 0
E79: تعداد رج سوبل برای ایجاد گودی گردن جلو b'''13 | F79: =ROUND((1/8)*O64*((AX129-BI128)),0) -> 2 | H79: c3 | I79: =ROUND(0.45*1.3*F54*I57,0)-1 -> 20 | K79: a3 | L79: =ROUND(0.33*L81,0) -> 17 | N79: e3 | O79: =ROUND(0.15*(F77-I84+O82+13),0) -> 7 | Q79: d3 | R79: =ROUND(F55*O54,0) -> 8 | EI79: =-EE79+EJ9 -> 0 | EJ79: 0
E80: فاصله گردن تا محل جدا شدن آستین در قسمت جلو (cm) b7 | F80: =ROUNDUP(SQRT(POWER(CI103-CI121,2)+POWER(CJ103-CJ121,2)),0) -> 21 | H80: c4 | I80: =I56-I78-I79-5 -> 12 | K80: a4 | L80: =ROUND(0.66*L81,0) -> 33 | N80: e4 | O80: =ROUND(0.24*(F77-I84+O82+9),0) -> 10 | Q80: d4 | R80: =IF((ROUND(F54*O55,0)-R78-4)<0,"خطا - بزرگی پشت یقه زیاد شود",(ROUND(F54*O55,0)-R78-4)) -> 4 | EI80: =-EE80+EJ9 -> 0 | EJ80: 0
E81: تعداد دانه های اضافه شده زیر بغل b8 | F81: =F64 -> 11 | K81: a5 | L81: =ROUND(0.35*L77,0) -> 50 | N81: e5 | O81: =ROUND(0.35*(F77-I84+O82+3),0) -> 13 | Q81: d5 | R81: =R77+2*R79 -> 120 | EI81: =-EE81+EJ9 -> 0 | EJ81: 0
E82: تعداد دانه های سرتاسر آستین در قسمت زیر بغل b20 | F82: =F65 -> 77 | K82: a6 | L82: =ROUND(0.4*L56,0) -> 7 | N82: e6 | O82: =O78 -> 6 | Q82: d6 | R82: =I87 -> 20 | EI82: =-EE82+EJ9 -> 0 | EJ82: 0
E83: فاصله زیر بغل تا پایین لباس (cm) b9 | F83: =ROUND(AX113,0) -> 78 | H83: تقسیم بندی بالاتنه | I83: تعداد دانه ها (بافت جودانه یا ساده) | J83: تعداد دانه ها (بافت انتخابی) | K83: a10 | L83: =IF(L68=0,1,IF(L68=5,5,IF(L68=8,7,IF(L68=10,3,IF(L68=12,8,IF(L68=15,7,2)))))) -> 2 | N83: e7 | O83: =F76 -> 22 | Q83: d7 | R83: =I86 -> 12 | EI83: =-EE83+EJ9 -> 0 | EJ83: 0
E84: فاصله زیر بغل تا بالای مچ آستین (cm) b10 | F84: =ROUNDUP(SQRT(POWER(DY513-DY520,2)+POWER(DZ513-DZ520,2)),0) -> 40 | H84: b6 کل پهنای جادکمه | I84: =2*F76 -> 44 | K84: a11 | L84: =IF(L68=0,1,IF(L68=5,4,IF(L68=8,5,IF(L68=10,2,IF(L68=12,5,IF(L68=15,4,1)))))) -> 1 | N84: e8 | O84: =2*(F76-2) -> 40 | Q84: d8 | R84: =ROUND(F55*O238,0) -> 38
E85: گشادی لبه پایین آستین (cm) b'11 | F85: =F62 -> 30 | H85: b3 جلو بدون جادکمه بین خط رگلان و خط مرکزی جلو که نیمه جادکمه از آن کم شود | I85: =ROUNDUP(F55*(SQRT(POWER(AX129-AX131,2)+POWER(AX130,2))+SQRT(POWER(AX131-AX133,2)+POWER(AX132-AX130,2))),0)-F76 -> -8 | J85: =ROUNDUP(O65*(SQRT(POWER(AX129-AX131,2)+POWER(AX130,2))+SQRT(POWER(AX131-AX133,2)+POWER(AX132-AX130,2))),0)-F76 -> -8 | N85: e9 | O85: =ROUNDUP(R61*1.3*F54*R57,0)-O83-O84-3 -> -55 | Q85: d9 | R85: =ROUND((F54*O56)/(F55*O58),0) -> 6
E86: تعداد دانه ها در بالای مچ آستین b'12 | F86: =F63 -> 54 | H86: b4 آستین | I86: =ROUNDDOWN(F55*(DE534+DE535),0) -> 12 | J86: =ROUNDDOWN(O65*(DE534+DE535),0) -> 12 | Q86: d10 | R86: =IF(ROUND((F54*(G259-G258))/(F55*G260),0)>40,"----",ROUND((F54*(G259-G258))/(F55*G260),0)) -> 11
E87: پهنای مچ آستین (cm) b14 | F87: =ROUNDUP(CA513-CA511,0) -> 7 | H87: b5 پشت | I87: =ROUNDDOWN(F55*2*(SQRT(POWER(BI128-BI130,2)+POWER(BI129,2))+SQRT(POWER(BI130-BI132,2)+POWER(BI131-BI129,2))),0) -> 20 | J87: =ROUNDDOWN(O65*2*(SQRT(POWER(BI128-BI130,2)+POWER(BI129,2))+SQRT(POWER(BI130-BI132,2)+POWER(BI131-BI129,2))),0) -> 20 | Q87: d12 | R87: =O57 -> 74 | AF87: شبیه ساز بالاتنه پشت
E88: گشادی مچ جدار در پایین آستین (cm) b15 | F88: =ROUND(BZ520-BZ519,0) -> 21 | AF88: انحنا | AJ88: خطوط برش
E89: در بالای مچ هر b12 دانه یکی کم شود | F89: =I66 -> 3 | AF89: =Y146 -> 6.6424 | AG89: =Y114 -> 40 | AH89: 27 | AJ89: =Y146 -> 6.6424 | AK89: =Y114 -> 40 | AL89: 27
E90: هر b11 رج در بافت آستین یکدانه از ابتدا و یکدانه از انتها کم شود | F90: =F68 -> 10 | AF90: =Y150 -> 4.9818 | AG90: =Y114-Y151 -> 38.82475786 | AH90: 32 | AJ90: =Y146+Y153 -> 12.15670163 | AK90: =Y114-Y154 -> 38.67302129 | AL90: 34
AF91: =Y148 -> 2.65696 | AG91: =Y114-Y149 -> 38.23713679 | AH91: 30
AF92: 0 | AG92: =Y114-Y147 -> 38.0412631 | AH92: 28 | AJ92: =Y115-Y135+Y141-Y156 -> 13.68698096 | AK92: =Y130+Y136+Y142+Y157 -> 38.38573286 | AL92: 36
AJ93: =Y115-Y135+Y141 -> 18.714 | AK93: =Y130+Y136+Y142 -> 35.7594285 | AL93: 24 | AZ93: انحنای حلقه آستین جلو
AF94: =Y115-Y135+Y141 -> 18.714 | AG94: =Y130+Y136+Y142 -> 35.7594285 | AH94: 24 | AZ94: =AZ125+'متغیرها '!C55 -> 24.85155628 | BA94: =BA125 -> 146.0209791 | BB94: شیفت22
AF95: =Y115-Y135+Y143 -> 17.4792 | AG95: =Y130+Y136+Y144 -> 31.31833762 | AH95: 26 | AJ95: =Y115 -> 22.49253562 | AK95: =Y130 -> 18.54033765 | AL95: 14 | AZ95: =AZ128+'متغیرها '!C55 -> 22.84341158 | BA95: =BA128 -> 140.248442 | BB95: شیفت24 | BF95: جادکمه در پیراهن
L96: به دست آوردن نقطه تقاطع دو خط (نمونه کپی) | M96: مولفه افقی | N96: مولفه عمودی | Q96: شبیه ساز بالاتنه جلو | AF96: =Y115-Y135 -> 16.95 | AG96: =Y130+Y136 -> 25.89033765 | AH96: 18 | AJ96: =Y115 -> 22.49253562 | AK96: =Y130-Y132 -> 18.54033765 | AL96: 16 | AZ96: =AZ115+'متغیرها '!C55 -> 21.98277814 | BA96: =BA115 -> 134.4759049 | BB96: شیفت16 | BD96: =AZ106 -> 5 | BE96: =BA106 -> 50.5 | BF96: 1
K97: نقطه اول از خط اول | L97: اسم نقطه | M97: 1 | N97: 1 | Q97: انحنا | U97: خطوط برش | AF97: =Y115-Y139 -> 18.61276069 | AG97: =Y130+Y140 -> 21.48033765 | AH97: 22 | AJ97: =Y121+Y123+Y124+Y127 -> 20.72421823 | AK97: =Y128 -> 0.1043460534 | AL97: 13 | AZ97: =AZ121+'متغیرها '!C55 -> 23.23622251 | BA97: =BA121 -> 130.9479049 | BB97: شیفت20 | BD97: =AX147+AX99 -> -7.15 | BE97: =0+AX98 -> 50.5 | BF97: 1' | BH97: شیفت عمودی پشت پیراهن | BI97: =BG148+'متغیرها '!U59-BI148+'متغیرها '!C54 -> 50.5
K98: نقطه دوم از خط اول | L98: اسم نقطه | M98: 2 | N98: 2 | Q98: =L143 -> 6.6424 | R98: =L114 -> 42 | S98: 25 | U98: 0 | V98: =L114-L144 -> 33.8211711 | W98: 26 | AF98: =Y115-Y137 -> 21.3840285 | AG98: =Y130+Y138 -> 19.27533765 | AH98: 20 | AJ98: =Y121+Y123+Y124 -> 11.35 | AK98: 0 | AL98: 11 | AW98: شیفت عمودی جلو پیراهن | AX98: =H114+'متغیرها '!C52+(I104-H104) -> 50.5 | AZ98: =AZ118+'متغیرها '!C55 -> 25.11638907 | BA98: =BA118 -> 129.4779049 | BB98: شیفت18 | BD98: =AX148+AX99 -> -7.15 | BE98: =AX103-AX129+AX98 -> 140.9704133 | BF98: 26' | BH98: شیفت افقی پشت پیراهن | BI98: ='متغیرها '!C53 -> 5
E99: اندازه ها در دامن و شلوار | H99: اندازه محاسبه | I99: شبیه ساز | K99: نقطه اول از خط دوم | L99: اسم نقطه | M99: 3 | N99: 2 | Q99: =L147 -> 5.31392 | R99: =L114-L148 -> 37.91058555 | S99: 30 | U99: 0 | V99: 0 | W99: 1 | AF99: =Y115 -> 22.49253562 | AG99: =Y130 -> 18.54033765 | AH99: 14 | AW99: شیفت افقی جلو پیراهن | AX99: ='متغیرها '!C51 -> 5 | AZ99: =AZ113+'متغیرها '!C55 -> 28.25 | BA99: =BA113 -> 128.5959049 | BB99: شیفت12 | BD99: =AZ102 -> 5 | BE99: =BA102 -> 140.9704133 | BF99: 26 | BG99: =BG149+BG150+BG151+1*(IF('متغیرها '!U55>'متغیرها '!U53,0.5*'متغیرها '!U55,0.5*'متغیرها '!U53)-BG149-BG151+BG163)-1*BG142-IF('متغیرها '!C125=1,2*BG143,BG150) -> 24.15875 | BH99: (1 → 41) با شرط x5=1 | BI99: =BI149+BI150+BI151+1*(IF(H103>H101,0.5*H103,0.5*H101)+'متغیرها '!C62*H120-BI149-BI151+BI163)-1*BI142-IF('متغیرها '!C125=1,2*BI143,BI150) -> 23.255 | FJ99: قرینه | FK99: =2*C102 -> 10 | FR99: قرینه | FS99: =2*C102 -> 10 | FZ99: قرینه | GA99: =2*C102 -> 10 | GH99: قرینه | GI99: =2*C102 -> 10
B100: شیفت افقی جلو | C100: =GM359 -> 5 | E100: دور کمر | F100: a | H100: ='متغیرها '!U52+0.3*'متغیرها '!C60*('متغیرها '!U52+'متغیرها '!U54+'متغیرها '!U72) -> 68 | I100: ='متغیرها '!U52 -> 68 | K100: نقطه دوم از خط دوم | L100: اسم نقطه | M100: 4 | N100: 4 | Q100: =L145 -> 2.65696 | R100: =L114-L146 -> 34.63905399 | S100: 28 | U100: =L120 -> 8.74392 | V100: 0 | W100: 8 | AJ100: =Y121+Y123 -> 9.4 | AK100: 0 | AL100: 10 | AV100: =AV156+AV157+AV158+1*(IF(('متغیرها '!U54-'متغیرها '!U55)>('متغیرها '!U52-'متغیرها '!U53),0.5*('متغیرها '!U54-'متغیرها '!U55),0.5*('متغیرها '!U52-'متغیرها '!U53))-AV156-AV158)-IF('متغیرها '!C125=1,2*AV150,AV157) -> 21.4825 | AW100: (1 → 44) با شرط x5=1 | AX100: =AX156+AX157+AX158+1*(IF((H102-H103)>(H100-H101),0.5*(H102-H103),0.5*(H100-H101))+'متغیرها '!C62*H120-AX156-AX158)-IF('متغیرها '!C125=1,2*AX150,AX157) -> 21.665 | AZ100: =BD156 -> 29.72 | BA100: =BE156 -> 128.5959049 | BB100: شیفت13 | BD100: =AZ106 -> 5 | BE100: =BA106 -> 50.5 | BF100: 1 | BH100: زاویه خط پهلو پشت | BI100: =ATAN((BI106-BI108)/(BI110-BI112-BI107)) -> -0.01167857135 | BO100: انحنای حلقه آستین پشت | BS100: انتقال قسمتی از ساسون سرشانه به خط مرکزی جلو و حلقه آستین با ساسون زیر بغل و خط رگلان | CA100: انتقال قسمتی از ساسون سرشانه به خط مرکزی پشت و حلقه آستین با ساسون زیر بغل | CI100: حلقه آستین و سرشانه و رگلان بدون ساسون | CQ100: حلقه آستین و سرشانه و رگلان بدون ساسون | DC100: جیب با ساسون | DK100: تکه پهلو جدا | DX100: سرشانه حلقه آستین پهلو ترک و پایین کنترل گشادی | ER100: کنترل گودی حلقه آستین | FD100: حلقه آستین با ساسون متغیر | FH100: انگلیسی و آرشال چرخیده | FL100: پهلو ترک | FP100: پهلو برای جیب با ساسون | FT100: اطلاعات اندام | FX100: پهلو جدا در پیراهن | GB100: رسم انحنا جلو آستر کت | GF100: 3حلقه آستین با ساسون متغیر | GJ100: حلقه آستین با ساسون متغیر | GN100: 17یقه گرد | GR100: یقه گرد | GV100: 11پهلو جدا و ترک وسط و نیمی از حلقه آستین عصایی | GZ100: پهلو جدا و ترک وسط و نیمی از حلقه آستین عصایی | HD100: 12پهلو جدا و ترک وسط و حلقه آستین عصایی در آستر کت | HH100: پهلو جدا و ترک وسط و حلقه آستین عصایی در آستر کت | HO100: رسم قرینه جلو پیراهن
B101: شیفت عمودی جلو | C101: =GM360 -> 5 | E101: نوار کمر از پشت بین دو خط پهلو | F101: b | H101: ='متغیرها '!U53+0.3*'متغیرها '!C60*('متغیرها '!U53+'متغیرها '!U55+'متغیرها '!U73) -> 33.7 | I101: ='متغیرها '!U53 -> 33.7 | K101: نقطه تقاطع | L101: اسم نقطه | M101: =(N99-N97+M97*((N98-N97)/(M98-M97))-M99*((N100-N99)/(M100-M99)))/(((N98-N97)/(M98-M97))-((N100-N99)/(M100-M99))) -> 4 | N101: =N97+(M101-M97)*((N98-N97)/(M98-M97)) -> 4 | Q101: =0 -> 0 | R101: =L114-L144 -> 33.8211711 | S101: 26 | AJ101: =Y121 -> 1.95 | AK101: 0 | AL101: 9 | AW101: زاویه خط پهلو جلو در پیراهن راسته با ساسون | AX101: =ATAN((AX110-AX104)/(AX113-AX115-AX111)) -> -0.01167857135 | AZ101: رسم جلو پیراهن | BD101: انحنای حلقه یقه جلو | BH101: زاویه متوسط سرشانه پشت و جلو مانتو راسته | BI101: =0.5*(P139+0.3*(P140-P139)+AE139+0.3*(AE140-AE139)) -> 0.3164156761 | BK101: =BI126+BI98 -> 17.22007113 | BL101: =BI125+BI97 -> 142.4802193 | BM101: 22 | BO101: =BK140 -> 21.20924996 | BP101: =BL140 -> 147.0892127 | BQ101: شیفت18 | BS101: نقاط ورودی | BW101: انتخاب c1 >1 | BX101: ='متغیرها '!C108 -> 0 | CA101: نقاط ورودی | CI101: نقاط ورودی | CO101: حلقه بدون ساسون | CQ101: نقاط ورودی | CV101: انحنا | CY101: قرینه | CZ101: =2*C102 -> 10 | DC101: نقاط ورودی | DG101: نقاط خروجی | DK101: نقاط ورودی | DO101: نقاط ورودی | DS101: نقاط خروجی | DZ101: کنترل گشادی جلو | ED101: قرینه کنترل گشادی جلو | EH101: کنترل گشادی پشت | EL101: قرینه کنترل گشادی پشت | ER101: نقاط ورودی | EV101: نقاط ورودی | FB101: =BW139+BT130 -> 28.37984841 | FC101: =BX139 -> 131.7136668 | FD101: شیفت b14 | FJ101: =BS140+BT130 -> 28.25 | FK101: =BT140 -> 124.7739049 | FL101: شیفت 14 | FN101: مولفه افقی | FO101: مولفه عمودی | FP101: اسم نقطه | FT101: کمر | FV101: =DK103 -> 25.11638907 | FW101: =DL103 -> 129.4779049 | FX101: =DM103 -> 18شیفت | FZ101: =BW114 -> 10.64534371 | GA101: =BX114 -> 145.3207118 | GB101: e5 | GD101: =CE122+CB112 -> 28.96284989 | GE101: =CF122+CB113 -> 128.5415368 | GF101: شیفت b14 | GH101: =-GD101+FK99 -> -18.96284989 | GI101: =GE101 -> 128.5415368 | GJ101: شیفت b14 | GL101: =CE105 -> 12.46761528 | GM101: 149.7930975 | GN101: 23 | GP101: =-GL101+FS99 -> -2.467615275 | GQ101: =GM101 -> 149.7930975 | GR101: 23 | GT101: =EA167 -> 20.69762498 | GU101: =EB167 -> 135.8903377 | GV101: شیفت12p یا 12 | GX101: =-GT101+GA99 -> -10.69762498 | GY101: =GU101 -> 135.8903377 | GZ101: شیفت12p یا 12 | HB101: =DO103 -> 20.69762498 | HC101: 135.8903377 | HD101: شیفت12p | HF101: =-HB101+GI99 -> -10.69762498 | HG101: =HC101 -> 135.8903377 | HH101: =DU103 -> شیفت10m | HL101: مولفه افقی | HM101: مولفه عمودی | HN101: اسم نقطه | HQ101: =AZ106 -> 5 | HR101: مرجع | HV101: 12' | HY101: =-2*'متغیرها '!C51 -> -10 | HZ101: شیفت افقی | IC101: ='متغیرها '!C52 -> 5 | ID101: شیفت عمودی | IH101: 14' | IL101: 19' | IP101: 48' | IT101: 81' | IX101: 64' | JB101: 77'
B102: شیفت افقی پشت | C102: =HW320 -> 5 | E102: دور باسن | F102: c | H102: ='متغیرها '!U54+0.3*'متغیرها '!C60*('متغیرها '!U52+'متغیرها '!U54+'متغیرها '!U72) -> 93 | I102: ='متغیرها '!U54 -> 93 | U102: =L120+L121 -> 11.18392 | V102: 0 | W102: 9 | AJ102: 0 | AK102: =Y117 -> 30 | AL102: 5 | AV102: شبیه ساز | AW102: متغیرهای خروجی جلو پیراهن با ساسون کمر | AZ102: =AX99 -> 5 | BA102: =AX103-AX129+AX98 -> 140.9704133 | BB102: 26 | BD102: =AZ140 -> 12.46066531 | BE102: =BA140 -> 149.767125 | BF102: 25 | BG102: شبیه ساز | BH102: متغیرهای خروجی پشت پیراهن با ساسون کمر (رسم کاربر) | BK102: =0+BI98 -> 5 | BL102: =BI125+BI97 -> 142.4802193 | BM102: 21 | BO102: =BK110 -> 20.85111247 | BP102: =BL110 -> 142.0497189 | BQ102: شیفت20 | BS102: مولفه افقی | BT102: مولفه عمودی | BU102: اسم نقطه | BW102: انتخاب عصایی | BX102: ='متغیرها '!C101 -> 0 | CA102: مولفه افقی | CB102: مولفه عمودی | CC102: اسم نقطه | CI102: مولفه افقی | CJ102: مولفه عمودی | CK102: اسم نقطه | CM102: =CI117+CJ105 -> 19.73737693 | CN102: =CJ117 -> 147.384612 | CO102: شیفت 22f | CQ102: مولفه افقی | CR102: مولفه عمودی | CS102: اسم نقطه | CU102: =CQ120+CR105 -> 19.74432689 | CV102: =CR120+CR106 -> 147.4105846 | CW102: شیفت 18f | CY102: =-CU102+CZ101 -> -9.744326893 | CZ102: =CV102 -> 147.4105846 | DA102: شیفت 18f | DC102: مولفه افقی | DD102: مولفه عمودی | DE102: اسم نقطه | DG102: مولفه افقی | DH102: مولفه عمودی | DI102: اسم نقطه | DK102: مولفه افقی | DL102: مولفه عمودی | DM102: اسم نقطه | DO102: مولفه افقی | DP102: مولفه عمودی | DQ102: اسم نقطه | DS102: =DO106+DL109 -> 30.62614655 | DT102: =DP106+DL110 -> 129.4223377 | DU102: شیفت8m | DV102: پیراهن | DX102: =CI117 -> 19.73737693 | DY102: 147.384612 | DZ102: 22f | EB102: =-DX102+ED137 -> -9.73737693 | EC102: =DY102 -> 147.384612 | ED102: 22f | EF102: =CQ120 -> 19.74432689 | EG102: 147.4105846 | EH102: 18f | EJ102: =-EF102+ED138 -> -9.744326893 | EK102: =EG102 -> 147.4105846 | EL102: 18f | ER102: مولفه افقی | ES102: مولفه عمودی | ET102: اسم نقطه | EV102: مولفه افقی | EW102: مولفه عمودی | EX102: اسم نقطه | FB102: =BW140+BT130 -> 27.78113731 | FC102: =BX140 -> 127.6627251 | FD102: شیفت b2 | FF102: =BW105 -> 12.46066531 | FG102: =BX105 -> 149.767125 | FH102: چرخیده 25 | FJ102: =AZ168+BT130 -> 24.59 | FK102: =BA168 -> 110.1599133 | FL102: شیفت 41 | FN102: =DC109 -> 14.78142 | FO102: =DD109 -> 50.5 | FP102: 52 | FR102: =AZ165 -> 5 | FS102: =BA165 -> 108 | FT102: 38 | FV102: =DK121 -> 25.11638907 | FW102: 124.7739049 | FX102: 14شیفتm | FZ102: =EO168 -> 11.97270235 | GA102: =EP168 -> 134.6149536 | GB102: a4 | GD102: =CE116+CB112 -> 26.13379869 | GE102: =CF116+CB113 -> 129.2762709 | GF102: شیفت b8 | GH102: =-GD102+FK99 -> -16.13379869 | GI102: 129.2762709 | GJ102: شیفت b8 | GL102: 10.60071146 | GM102: 148.2315422 | GN102: 28 | GP102: =-GL102+FS99 -> -0.6007114563 | GQ102: =GM102 -> 148.2315422 | GR102: 28 | GT102: =EA168 -> 22.73609817 | GU102: =EB168 -> 131.4803377 | GV102: شیفت16p یا 16 | GX102: =-GT102+GA99 -> -12.73609817 | GY102: =GU102 -> 131.4803377 | GZ102: شیفت16p یا 16 | HB102: 22.73609817 | HC102: 131.4803377 | HD102: شیفت16p | HF102: =-HB102+GI99 -> -12.73609817 | HG102: =HC102 -> 131.4803377 | HH102: =DU104 -> شیفت36m | HN102: 6' | HP102: مولفه افقی | HQ102: مولفه عمودی | HR102: اسم نقطه | HT102: =-FV101-HY101 -> -15.11638907 | HU102: =FW101 -> 129.4779049 | HV102: شیفت 18 | HZ102: 3' | ID102: 10' | IF102: =-FN102-HY101 -> -4.78142 | IG102: =FO102 -> 50.5 | IH102: 52 | IJ102: =-CR154-HY101 -> -4.96392 | IK102: =CS154 -> 120.88 | IL102: 43 | IN102: =-FD248-HY101 -> 17.15 | IO102: =FE248 -> 103.5844593 | IP102: p10 | IR102: =-AF265-HY101 -> -9.819056758 | IS102: =AG265 -> 147.6525439 | IT102: c22 | IV102: =-DI230-HY101 -> 0.35 | IW102: =DJ230 -> 80.85589662 | IX102: m2 | IZ102: =-ES231-HY101 -> -18.25 | JA102: =ET231 -> 124.7739049 | JB102: 14
B103: شیفت عمودی پشت | C103: =HW321 -> 5 | E103: نوار باسن از پشت بین دو خط پهلو | F103: d | H103: ='متغیرها '!U55+0.3*'متغیرها '!C60*('متغیرها '!U53+'متغیرها '!U55+'متغیرها '!U73) -> 50.4 | I103: ='متغیرها '!U55 -> 50.4 | K103: به دست آوردن مختصات قرینه یک نقطه نسبت به خط تقارن با داشتن دونقطه از خط تقارن (نمونه کپی) | Q103: =L115-L132+L138 -> 22.346 | R103: =L127+L133+L139 -> 36.6719612 | S103: 22 | U103: =L120+L121+L124 -> 19.59 | V103: =L125 -> 2.159913297 | W103: 11 | AJ103: 0 | AK103: =Y114-Y147 -> 38.0412631 | AL103: 28 | AV103: =L114+'متغیرها '!U56-H114 -> 99.5 | AW103: (1 → 2) | AX103: =K114+H104-H114 -> 99.267125 | AZ103: =AX99 -> 5 | BA103: =AX105+AX98 -> 124.1 | BB103: 4 | BD103: =AZ148 -> 10.96853225 | BE103: =BA148 -> 145.3687691 | BF103: 30 | BG103: ='متغیرها '!U58-'متغیرها '!U59+Y114 -> 99.5 | BH103: (1 → 2) | BI103: =H106-H114+AA114 -> 99.29309752 | BK103: =0+BI98 -> 5 | BL103: =BI103+BI97 -> 149.7930975 | BM103: 2 | BO103: =BK112 -> 20.69762498 | BP103: =BL112 -> 135.8903377 | BQ103: شیفت12 | BT103: =('متغیرها '!C107/('متغیرها '!C106+0.001))*(BU143-BU142) -> 0 | BU103: زاویه چرخش به خط مرکزی جلو | BW103: نقاط خروجی چرخیده | CB103: =('متغیرها '!C112/('متغیرها '!C111+0.001))*(CC126-CC125) -> 0 | CC103: زاویه چرخش به خط مرکزی پشت | CE103: نقاط خروجی چرخیده | CI103: =BW106 -> 10.96853225 | CJ103: =BX106 -> 145.3687691 | CK103: 30 | CM103: =CI118+CJ105 -> 19.60211103 | CN103: =CJ118 -> 141.5720864 | CO103: شیفت 24f | CQ103: =BK135 -> 10.60071146 | CR103: =BL135 -> 148.2315422 | CS103: 28 | CU103: =CQ121+CR105 -> 19.8640669 | CV103: =CR121+CR106 -> 141.1834031 | CW103: شیفت 20f | CY103: =-CU103+CZ101 -> -9.864066904 | CZ103: 141.1834031 | DA103: شیفت 20f | DC103: =AZ161 -> 14.96392 | DD103: =BA161 -> 120.88 | DE103: 43 | DG103: =DC110-(DC106-DC109) -> 15.8299406 | DH103: =DD110 -> 50.5 | DI103: 50s | DK103: =AZ98 -> 25.11638907 | DL103: =BA98 -> 129.4779049 | DM103: 18شیفت | DN103: پیراهن | DO103: =EA167 -> 20.69762498 | DP103: =EB167 -> 135.8903377 | DQ103: شیفت12p | DR103: پیراهن | DS103: =DO107+DL109 -> 30.62614655 | DT103: =DP107 -> 124.7183377 | DU103: شیفت10m | DX103: 19.60211103 | DY103: 141.5720864 | DZ103: 24f | EB103: =-DX103+ED137 -> -9.602111035 | EC103: 141.5720864 | ED103: 24f | EF103: 19.8640669 | EG103: 141.1834031 | EH103: 20f | EJ103: =-EF103+ED138 -> -9.864066904 | EK103: 141.1834031 | EL103: 20f | ER103: =ER151 -> 19.92046018 | ES103: =ES151 -> 148.0654097 | ET103: 22b | EU103: راس حلقه آستین | EV103: =EW152 -> 21.39449508 | EW103: =EX152 -> 147.4658545 | EX103: 18b | EY103: راس حلقه آستین | FF103: =BW113 -> 11.71459878 | FG103: =BX113 -> 147.1281115 | FH103: e7 | FN103: =DG103 -> 15.8299406 | FO103: 50.5 | FP103: 50s | FR103: =AZ166 -> 13.74392 | FS103: =BA166 -> 108 | FT103: 39 | FV103: 21.45638907 | FW103: 110.1599133 | FX103: 41شیفتm | FZ103: =EO167 -> 15.95477828 | GA103: =EP167 -> 129.2620745 | GB103: a3 | GD103: =IF('متغیرها '!C119=1,EV123,CE117)+CB112 -> 22.73613612 | GE103: =IF('متغیرها '!C119=1,EW123,CF117)+CB113 -> 131.4809515 | GF103: شیفت b10 یا b'10p | GH103: =-GD103+FK99 -> -12.73613612 | GI103: 131.4809515 | GJ103: شیفت b10 یا b'10p | GL103: 7.98704611 | GM103: 147.4507645 | GN103: 26 | GP103: =-GL103+FS99 -> 2.01295389 | GQ103: =GM103 -> 147.4507645 | GR103: 26 | GT103: =DS109 -> 24.63867315 | GU103: =DT109 -> 129.8559877 | GV103: =DU109 -> شیفت8''m | GX103: =-GT103+GA99 -> -14.63867315 | GY103: =GU103 -> 129.8559877 | GZ103: =ES109 -> 0.15 | HB103: =DS109 -> 24.63867315 | HC103: =DT109 -> 129.8559877 | HD103: =DU109 -> شیفت8''m | HF103: =-HB103+GI99 -> -14.63867315 | HG103: =HC103 -> 129.8559877 | HH103: =ES109 -> 0.15 | HL103: =-CM102-HY101 -> -9.73737693 | HM103: =CN102 -> 147.384612 | HN103: شیفت 22f | HR103: 7' | HT103: =-FV102-HY101 -> -15.11638907 | HU103: =FW102 -> 124.7739049 | HV103: شیفت 14m | HX103: =-FB101-HY101 -> -18.37984841 | HY103: =FC101 -> 131.7136668 | HZ103: شیفت b14 | IB103: =-FJ101-HY101 -> -18.25 | IC103: =FK101 -> 124.7739049 | ID103: شیفت 14 | IF103: =-FN103-HY101 -> -5.829940597 | IG103: 50.5 | IH103: 50s | IJ103: =-CR155-HY101 -> -3.74392 | IK103: =CS155 -> 108 | IL103: 39 یا d5 | IN103: =-FD249-HY101 -> 17.15 | IO103: =FE249 -> 50.5 | IP103: 1' | IR103: =-AF266-HY101 -> -17.25368185 | IS103: =AG266 -> 141.6362305 | IT103: c4 | IV103: =-DI231-HY101 -> -0.8063592233 | IW103: =DJ231 -> 84.8683328 | IX103: m10 | IZ103: =-ES232-HY101 -> -14.59 | JA103: =ET232 -> 110.1599133 | JB103: 41
B104: شیفت افقی تکه جلو | C104: =GM361 -> 0 | E104: فاصله نوار کمر تا زمین، از قسمت جلو | F104: e | H104: ='متغیرها '!U56+'متغیرها '!C63*'متغیرها '!U56 -> 103 | I104: ='متغیرها '!U56 -> 103 | K104: مولفه افقی | L104: مولفه عمودی | M104: اسم نقطه | Q104: =L115-L132+L140 -> 19.4648 | R104: =L127+L133+L141 -> 31.57393305 | S104: 24 | U104: =L115 -> 23.25 | V104: =L127-L129 -> 20.59590489 | W104: 14 | AV104: =L115 -> 23.25 | AW104: (1 → 3) | AX104: =K115 -> 23.25 | AZ104: =AX106+AX99 -> 14.96392 | BA104: =AX105+AX98 -> 124.1 | BB104: 5 | BD104: =AZ145 -> 7.984266125 | BE104: =BA145 -> 141.8500844 | BF104: 28 | BH104: (1 → 3) | BI104: =BI106+(BI107-BI105)*TAN(BI100) -> 21.63862983 | BK104: =BI127+BI98 -> 12.46761528 | BL104: =BI103+BI97 -> 149.7930975 | BM104: 23 | BO104: =BK117 -> 22.73609817 | BP104: =BL117 -> 131.4803377 | BQ104: شیفت16 | BS104: =AZ165+AN119 -> 14.96392 | BT104: =BA165+AO119 -> 124.1 | BU104: 5 بالاتنه | BV104: نقطه مرکزی چرخش | BW104: مولفه افقی | BX104: مولفه عمودی | BY104: اسم نقطه | CA104: =BO164 -> 16.205 | CB104: =BP164 -> 131.8843924 | CC104: 40 | CD104: نقطه مرکزی چرخش | CE104: مولفه افقی | CF104: مولفه عمودی | CG104: اسم نقطه | CI104: =AZ104 -> 14.96392 | CJ104: =BA104 -> 124.1 | CK104: 5پیراهن | CM104: =CI119+CJ105 -> 19.54413994 | CN104: =CJ119 -> 135.7595608 | CO104: شیفت 16f | CQ104: =BK154 -> 16.205 | CR104: =BL154 -> 131.8843924 | CS104: 40 | CU104: =CQ122+CR105 -> 20.24848434 | CV104: =CR122+CR106 -> 137.0319488 | CW104: شیفت 12f | CY104: =-CU104+CZ101 -> -10.24848434 | CZ104: 137.0319488 | DA104: شیفت 12f | DC104: =BD168-DD122 -> 16.18392 | DD104: =BE168 -> 108 | DE104: 40 | DG104: =DC111-(DC106-DC109) -> 18.66094621 | DH104: =DD111 -> 50.73198266 | DI104: 50's | DK104: =BD177 -> 28.25 | DL104: 124.7739049 | DM104: 14شیفت | DO104: =EA168 -> 22.73609817 | DP104: =EB168 -> 131.4803377 | DQ104: شیفت16p | DS104: =DO108+DL109 -> 28.88361093 | DT104: =DP108 -> 110.1043461 | DU104: شیفت36m | DX104: 19.54413994 | DY104: 135.7595608 | DZ104: 16f | EB104: =-DX104+ED137 -> -9.544139937 | EC104: 135.7595608 | ED104: 16f | EF104: 20.24848434 | EG104: 137.0319488 | EH104: 12f | EJ104: =-EF104+ED138 -> -10.24848434 | EK104: 137.0319488 | EL104: 12f | ER104: =BW105 -> 12.46066531 | ES104: =BX105 -> 149.767125 | ET104: 25 | EU104: راس یقه | EV104: =CE105 -> 12.46761528 | EW104: =CF105 -> 149.7930975 | EX104: 23 | EY104: راس یقه | FB104: =BW139+BT130 -> 28.37984841 | FC104: =BX139 -> 131.7136668 | FD104: شیفتb14 | FF104: =BW114 -> 10.64534371 | FG104: =BX114 -> 145.3207118 | FH104: e5 | FJ104: =AZ168+BT130 -> 24.59 | FK104: =BA168 -> 110.1599133 | FL104: شیفت 41 | FN104: 18.66094621 | FO104: 50.73198266 | FP104: 50's | FV104: 23.53138907 | FW104: 89.5599133 | FX104: 45شیفتm | FZ104: =EO165 -> 23.91893013 | GA104: =EP165 -> 127.4777815 | GB104: a1 | GD104: =IF('متغیرها '!C119=1,EV122,CE118)+CB112 -> 20.69724842 | GE104: =IF('متغیرها '!C119=1,EW122,CF118)+CB113 -> 135.8907599 | GF104: شیفت b6 یا b'6p | GH104: =-GD104+FK99 -> -10.69724842 | GI104: 135.8907599 | GJ104: شیفت b6 یا b'6p | GL104: 5 | GM104: 147.1905053 | GN104: 24 | GP104: =-GL104+FS99 -> 5 | GQ104: =GM104 -> 147.1905053 | GR104: 24 | GT104: =DS107 -> 27.49253562 | GU104: =DT107 -> 128.9813377 | GV104: =DU107 -> شیفت8'm | GX104: =-GT104+GA99 -> -17.49253562 | GY104: =GU104 -> 128.9813377 | GZ104: =ES107 -> 132.5910116 | HB104: =DS107 -> 27.49253562 | HC104: =DT107 -> 128.9813377 | HD104: =DU107 -> شیفت8'm | HF104: =-HB104+GI99 -> -17.49253562 | HG104: =HC104 -> 128.9813377 | HH104: =ES107 -> 132.5910116 | HL104: =-CM103-HY101 -> -9.602111035 | HM104: 141.5720864 | HN104: شیفت 24f | HP104: =-CM113-HY101 -> -9.73737693 | HQ104: =CN113 -> 147.384612 | HR104: شیفت22f | HT104: =-FV103-HY101 -> -11.45638907 | HU104: =FW103 -> 110.1599133 | HV104: شیفت 41m | HX104: =-FB102-HY101 -> -17.78113731 | HY104: =FC102 -> 127.6627251 | HZ104: شیفت b2 | IB104: =-FJ104-HY101 -> -14.59 | IC104: =FK104 -> 110.1599133 | ID104: شیفت 41 | IF104: =-FN104-HY101 -> -8.660946209 | IG104: 50.73198266 | IH104: 50's | IR104: =-AF267-HY101 -> -23.33655693 | IS104: =AG267 -> 131.3922373 | IT104: c12 | IV104: =-DI232-HY101 -> -4.275436893 | IW104: =DJ232 -> 89.45397416 | IX104: m8 | IZ104: =-ES233-HY101 -> -16.665 | JA104: =ET233 -> 89.5599133 | JB104: 45
B105: شیفت افقی تکه پشت | C105: =HW322 -> 0 | E105: فاصله نوار کمر تا زمین، از قسمت پهلو | F105: f | H105: =ROUND(0.5*('متغیرها '!U56+'متغیرها '!U58),1)+'متغیرها '!C63*ROUND(0.5*('متغیرها '!U56+'متغیرها '!U58),1) -> 104 | I105: =ROUND(0.5*('متغیرها '!U56+'متغیرها '!U58),1) -> 104 | K105: 1 | L105: 1 | M105: e1 | N105: نقطه اول خط تقارن | Q105: =L115-L132 -> 18.23 | R105: =L127+L133 -> 26.47590489 | S105: 16 | U105: =L115 -> 23.25 | V105: =L127 -> 20.59590489 | W105: 12 | AJ105: انحنای حلقه آستین و ساسون سرشانه پشت | AW105: (1→ 4) | AX105: =H104-H114+V142 -> 73.6 | AZ105: =AZ103 -> 5 | BA105: =BA103 -> 124.1 | BB105: 4 | BD105: =AZ102 -> 5 | BE105: =BA102 -> 140.9704133 | BF105: 26 | BH105: (3→ 4) | BI105: =BI159 -> 1.104346053 | BK105: =BI127+BI134+BI98 -> 17.14383517 | BL105: =BI103+BI97 -> 149.7930975 | BM105: 29 | BO105: =BK120 -> 26.13355349 | BP105: =BL120 -> 129.2753377 | BQ105: شیفت14 | BS105: =BD102 -> 12.46066531 | BT105: 149.767125 | BU105: 25 | BV105: نقطه یقه | BW105: =BS104+SQRT(POWER(BS105-BS104,2)+POWER(BT105-BT104,2))*SIN(BT103-ATAN((BS104-BS105)/(BT105-BT104))) -> 12.46066531 | BX105: =BT104+SQRT(POWER(BS105-BS104,2)+POWER(BT105-BT104,2))*COS(BT103-ATAN((BS104-BS105)/(BT105-BT104))) -> 149.767125 | BY105: =BU105 -> 25 | CA105: =BK104 -> 12.46761528 | CB105: =BL104 -> 149.7930975 | CC105: 23 | CD105: نقطه یقه | CE105: =CA104+SQRT(POWER(CA105-CA104,2)+POWER(CB105-CB104,2))*SIN(CB103-ATAN((CA104-CA105)/(CB105-CB104))) -> 12.46761528 | CF105: =CB104+SQRT(POWER(CA105-CA104,2)+POWER(CB105-CB104,2))*COS(CB103-ATAN((CA104-CA105)/(CB105-CB104))) -> 149.7930975 | CG105: =CC105 -> 23 | CJ105: ='متغیرها '!C55 -> 0 | CK105: شیفت افقی تکه پهلو | CM105: =CI120+CJ105 -> 21.24703927 | CN105: =CJ120 -> 132.1777328 | CO105: شیفت 20f | CR105: ='متغیرها '!C56 -> 0 | CS105: شیفت افقی تکه پهلو | CU105: =CQ123+CR105 -> 21.51690979 | CV105: =CR123+CR106 -> 133.2578994 | CW105: شیفت 16f | CY105: =-CU105+CZ101 -> -11.51690979 | CZ105: 133.2578994 | DA105: شیفت 16f | DC105: =AZ180-DD122 -> 15.14642 | DD105: =BA180 -> 101.14 | DE105: 47'' | DG105: =DC112-(DC106-DC109) -> 21.02011755 | DH105: =DD112 -> 51.13795231 | DI105: 50''s | DK105: 24.59 | DL105: 110.1599133 | DM105: 41شیفت | DO105: =BO126 -> 16.205 | DP105: =BP126 -> 131.8843924 | DQ105: شیفت40 | DS105: =DO109+DL109 -> 31.38861093 | DT105: =DP109 -> 89.50434605 | DU105: شیفت42m | DX105: 21.24703927 | DY105: 132.1777328 | DZ105: 20f | EB105: =-DX105+ED137 -> -11.24703927 | EC105: 132.1777328 | ED105: 20f | EF105: 21.51690979 | EG105: 133.2578994 | EH105: 16f | EJ105: =-EF105+ED138 -> -11.51690979 | EK105: 133.2578994 | EL105: 16f | ER105: =BW136 -> 19.12172691 | ES105: =BX136 -> 141.5805952 | ET105: b12 | EU105: نقطه حلقه آستین | EV105: =CE119 -> 20.85015697 | EW105: =CF119 -> 142.0501556 | EX105: b12 | EY105: نقطه حلقه آستین | FB105: =BW132+BT130 -> 26.94542063 | FC105: =BX132 -> 131.3922373 | FD105: شیفتb4 | FJ105: =AZ172 -> 26.665 | FK105: =BA172 -> 89.5599133 | FL105: شیفت 45 | FN105: 21.02011755 | FO105: 51.13795231 | FP105: 50''s | FR105: =AZ179 -> 16.18392 | FS105: =BA179 -> 108 | FT105: شیفت 40 | FV105: 22.49801504 | FW105: 51.6599133 | FX105: 49'شیفتm | GD105: =IF('متغیرها '!C119=1,EV121,CE119)+CB112 -> 20.85015697 | GE105: =IF('متغیرها '!C119=1,EW121,CF119)+CB113 -> 142.0501556 | GF105: شیفت b12 یا b'12p | GH105: =-GD105+FK99 -> -10.85015697 | GI105: 142.0501556 | GJ105: شیفت b12 یا b'12p | GT105: =DS102 -> 30.62614655 | GU105: =DT102 -> 129.4223377 | GV105: =DU102 -> شیفت8m | GX105: =-GT105+GA99 -> -20.62614655 | GY105: =GU105 -> 129.4223377 | GZ105: =ES102 -> مولفه عمودی | HB105: =DS102 -> 30.62614655 | HC105: =DT102 -> 129.4223377 | HD105: =DU102 -> شیفت8m | HF105: =-HB105+GI99 -> -20.62614655 | HG105: =HC105 -> 129.4223377 | HH105: =ES102 -> مولفه عمودی | HL105: =-CM104-HY101 -> -9.544139937 | HM105: 135.7595608 | HN105: شیفت 16f | HP105: =-CM114-HY101 -> -6.099021121 | HQ105: =CN114 -> 148.5758685 | HR105: شیفت وسط 22f | HT105: =-FV104-HY101 -> -13.53138907 | HU105: =FW104 -> 89.5599133 | HV105: شیفت 45m | IF105: =-FN105-HY101 -> -11.02011755 | IG105: 51.13795231 | IH105: 50''s | IJ105: =-CR155-HY101 -> -3.74392 | IK105: =CS155 -> 108 | IL105: 39 یا d5 | IN105: =-FD251-HY101 -> 17.15 | IO105: =FE251 -> 50.5 | IP105: 1' | IR105: =-AF268-HY101 -> -40.51411352 | IS105: =AG268 -> 56.28965127 | IT105: c2 | IV105: =-DI233-HY101 -> -10.38762136 | IW105: =DJ233 -> 92.09071793 | IX105: m6 | IZ105: =-ES234-HY101 -> -13.24770039 | JA105: =ET234 -> 56.4032 | JB105: p7
B106: شیفت عمودی تکه پشت | C106: =HW323 -> 0 | E106: فاصله نوار کمر تا زمین، از قسمت پشت | F106: g | H106: ='متغیرها '!U58+'متغیرها '!C63*'متغیرها '!U58 -> 105 | I106: ='متغیرها '!U58 -> 105 | K106: 2 | L106: 2 | M106: e10 | N106: نقطه دوم خط تقارن | Q106: =L115-L136 -> 19.234 | R106: =L127+L137 -> 22.94790489 | S106: 20 | AF106: انحنا ساسون کمر | AJ106: =AR152 -> 13.70449992 | AK106: 38.41004499 | AL106: 36 | AW106: (4 → 5) | AX106: =U142 -> 9.96392 | AZ106: =AX99 -> 5 | BA106: =0+AX98 -> 50.5 | BB106: 1 | BG106: =BG108+0.5*(AV100-AV104+BG99-BG108) -> 22.44189281 | BH106: (1 → 5) | BI106: =BI108+0.5*(AX100-AX104+BI99-BI108) -> 22.08126781 | BK106: =BI127+BI134+BI98 -> 17.14383517 | BL106: =BI103-BI135+BI97 -> 148.6206501 | BM106: 30 | BO106: =BK114 -> 28.96253562 | BP106: =BL114 -> 128.5403377 | BQ106: شیفت9 | BS106: 10.96853225 | BT106: 145.3687691 | BU106: 30 | BV106: نقطه یقه | BW106: =BS104+SQRT(POWER(BS106-BS104,2)+POWER(BT106-BT104,2))*SIN(BT103-ATAN((BS104-BS106)/(BT106-BT104))) -> 10.96853225 | BX106: =BT104+SQRT(POWER(BS106-BS104,2)+POWER(BT106-BT104,2))*COS(BT103-ATAN((BS104-BS106)/(BT106-BT104))) -> 145.3687691 | BY106: 30 | CA106: =BK135 -> 10.60071146 | CB106: =BL135 -> 148.2315422 | CC106: 28 | CD106: نقطه یقه | CE106: =CA104+SQRT(POWER(CA106-CA104,2)+POWER(CB106-CB104,2))*SIN(CB103-ATAN((CA104-CA106)/(CB106-CB104))) -> 10.60071146 | CF106: =CB104+SQRT(POWER(CA106-CA104,2)+POWER(CB106-CB104,2))*COS(CB103-ATAN((CA104-CA106)/(CB106-CB104))) -> 148.2315422 | CG106: 28 | CI106: نقاط ورودی | CM106: =CI121+CJ105 -> 24.29409029 | CN106: =CJ121 -> 129.6704533 | CO106: شیفت 18f | CR106: ='متغیرها '!C57 -> 0 | CS106: شیفت عمودی تکه پهلو | CU106: =CQ124+CR105 -> 24.56682774 | CV106: =CR124+CR106 -> 130.2386599 | CW106: شیفت 14f | CY106: =-CU106+CZ101 -> -14.56682774 | CZ106: 130.2386599 | DA106: شیفت 14f | DC106: =AZ181-DD122 -> 15.14642 | DD106: =BA181 -> 50.5 | DE106: 53 | DG106: =DC113-(DC106-DC109) -> 23.3792889 | DH106: =DD113 -> 51.54392197 | DI106: 50'''s | DK106: 26.665 | DL106: 89.5599133 | DM106: 45شیفت | DO106: =BK122 -> 27.49253562 | DP106: =BL122 -> 128.5403377 | DQ106: شیفت8 | DS106: =DO110+DL109 -> 30.16428583 | DT106: =DP110 -> 51.60434605 | DU106: شیفت43''m | DX106: 24.29409029 | DY106: 129.6704533 | DZ106: 18f | EB106: =-DX106+ED137 -> -14.29409029 | EC106: 129.6704533 | ED106: 18f | EF106: 24.56682774 | EG106: 130.2386599 | EH106: 14f | EJ106: =-EF106+ED138 -> -14.56682774 | EK106: 130.2386599 | EL106: 14f | ER106: =BW135 -> 19.54413994 | ES106: =BX135 -> 135.7595608 | ET106: b6 | EU106: نقطه حلقه آستین | EV106: =CE118 -> 20.69724842 | EW106: =CF118 -> 135.8907599 | EX106: b6 | EY106: نقطه حلقه آستین | FB106: =BW133+BT130 -> 23.69478157 | FC106: =BX133 -> 131.5677001 | FD106: شیفتb8 | FF106: =BW114 -> 10.64534371 | FG106: =BX114 -> 145.3207118 | FH106: e5 | FN106: 23.3792889 | FO106: 51.54392197 | FP106: 50'''s | FR106: =BD178 -> 24.59 | FS106: =BE178 -> 110.1599133 | FT106: شیفت 41 | FZ106: =EO166 -> 24.07961079 | GA106: =EP166 -> 121.3523789 | GB106: a2 | GD106: =EW152+CB112 -> 21.39449508 | GE106: =EX152+CB113 -> 147.4658545 | GF106: شیفت 18b | GH106: =-GD106+FK99 -> -11.39449508 | GI106: 147.4658545 | GJ106: شیفت 18b | GN106: 9پهلو ترک | GR106: پهلو ترک | HL106: =-CM105-HY101 -> -11.24703927 | HM106: 132.1777328 | HN106: شیفت 20f | HT106: =-FV105-HY101 -> -12.49801504 | HU106: =FW105 -> 51.6599133 | HV106: شیفت 49'm | HX106: =-FB104-HY101 -> -18.37984841 | HY106: =FC104 -> 131.7136668 | HZ106: شیفتb14 | IB106: =-FJ104-HY101 -> -14.59 | IC106: =FK104 -> 110.1599133 | ID106: شیفت 41 | IF106: =-FN106-HY101 -> -13.3792889 | IG106: 51.54392197 | IH106: 50'''s | IJ106: =-CR158-HY101 -> -3.9012084 | IK106: =CS158 -> 106.96 | IL106: d5 | IN106: =-FD252-HY101 -> -4.78142 | IO106: =FE252 -> 50.5 | IP106: 52 | IV106: =-DI234-HY101 -> -16.16941748 | IW106: =DJ234 -> 92.32 | IX106: m4
E107: فاصله نوار زانو تا زمین | F107: h | H107: ='متغیرها '!U59+'متغیرها '!C63*'متغیرها '!U59 -> 45.5 | I107: ='متغیرها '!U59 -> 45.5 | K107: 1 | L107: 2 | M107: e3 | N107: نقطه قرینه خواسته | Q107: =L115-L134 -> 20.74 | R107: =L127+L135 -> 21.47790489 | S107: 18 | U107: =L143 -> 6.6424 | V107: =L114 -> 42 | W107: 25 | AF107: =AR130 -> 22.49253562 | AG107: =AS130 -> 14.70938576 | AH107: 16 | AJ107: 13.11072841 | AK107: 36.33460601 | AL107: 36- | AW107: (1 → 6) | AX107: =AX110+(AX111-AX108)*TAN(AX101) -> 22.39609421 | AZ107: =AX107+AX99 -> 27.39609421 | BA107: =0+AX98 -> 50.5 | BB107: 6 | BD107: =J236 -> -7.15 | BE107: =K236 -> 120.6 | BF107: e1 | BH107: (5 → 6) | BI107: =H108-H114+Y128+0.5*(H106-H104) -> 39.00434605 | BS107: 7.984266125 | BT107: 141.8500844 | BU107: 28 | BV107: نقطه یقه | BW107: =BS104+SQRT(POWER(BS107-BS104,2)+POWER(BT107-BT104,2))*SIN(BT103-ATAN((BS104-BS107)/(BT107-BT104))) -> 7.984266125 | BX107: =BT104+SQRT(POWER(BS107-BS104,2)+POWER(BT107-BT104,2))*COS(BT103-ATAN((BS104-BS107)/(BT107-BT104))) -> 141.8500844 | BY107: 28 | CA107: =BK132 -> 7.98704611 | CB107: =BL132 -> 147.4507645 | CC107: 26 | CD107: نقطه یقه | CE107: =CA104+SQRT(POWER(CA107-CA104,2)+POWER(CB107-CB104,2))*SIN(CB103-ATAN((CA104-CA107)/(CB107-CB104))) -> 7.98704611 | CF107: =CB104+SQRT(POWER(CA107-CA104,2)+POWER(CB107-CB104,2))*COS(CB103-ATAN((CA104-CA107)/(CB107-CB104))) -> 147.4507645 | CG107: 26 | CI107: مولفه افقی | CJ107: مولفه عمودی | CK107: اسم نقطه | CM107: =CI110+CJ105 -> 28.25 | CN107: =CJ110 -> 128.5959049 | CO107: شیفت 12 | CR107: ='متغیرها '!C71 -> 0.15 | CS107: x6 | CU107: =CQ113+CR105 -> 28.96253562 | CV107: =CR113+CR106 -> 128.5403377 | CW107: شیفت 9 | CY107: =-CU107+CZ101 -> -18.96253562 | CZ107: 128.5403377 | DA107: شیفت 9 | DC107: =AZ166 -> 13.74392 | DD107: =BA166 -> 108 | DE107: 39 | DG107: =DC114-(DC106-DC109) -> 25.26662597 | DH107: =DD114 -> 51.6599133 | DI107: 49's | DK107: 25.63162597 | DL107: 51.6599133 | DM107: 49'شیفت | DO107: =BO170 -> 27.49253562 | DP107: =BP170 -> 124.7183377 | DQ107: شیفت10 | DS107: =DO106 -> 27.49253562 | DT107: =DP106+0.5*(DT102-DP106) -> 128.9813377 | DU107: شیفت8'm | DX107: =CI110 -> 28.25 | DY107: =CJ110 -> 128.5959049 | DZ107: 12 | EB107: =-DX107+ED137 -> -18.25 | EC107: 128.5959049 | ED107: 12 | EF107: =CQ113 -> 28.96253562 | EG107: =CR113 -> 128.5403377 | EH107: 9 | EJ107: =-EF107+ED138 -> -18.96253562 | EK107: 128.5403377 | EL107: 9 | ER107: =BW134 -> 21.53868326 | ES107: =BX134 -> 132.5910116 | ET107: b10 | EU107: نقطه حلقه آستین | EV107: =CE117 -> 22.73613612 | EW107: =CF117 -> 131.4809515 | EX107: b10 | EY107: نقطه حلقه آستین | FB107: =IF('متغیرها '!C119=1,ER123,BW134)+BT130 -> 21.53868326 | FC107: =IF('متغیرها '!C119=1,ES123,BX134) -> 132.5910116 | FD107: شیفت b10 یا b'10g | FF107: =BW117 -> -5.903013915 | FG107: =BX117 -> 141.8358859 | FH107: e9 | FJ107: =AZ172 -> 26.665 | FK107: =BA172 -> 89.5599133 | FL107: شیفت 45 | FN107: 25.26662597 | FO107: 51.6599133 | FP107: 49's | FT107: باسن | FV107: =DK124 -> 22.49801504 | FW107: =DL124 -> 51.6599133 | FX107: =DM124 -> 49'شیفتm | FZ107: =EO170 -> 15.11882099 | GA107: =EP170 -> 114.267141 | GB107: a6 | GL107: =BO170 -> 27.49253562 | GM107: =BP170 -> 124.7183377 | GN107: شیفت 10 | GP107: =-GL107+FS99 -> -17.49253562 | GQ107: =GM107 -> 124.7183377 | GR107: شیفت 10 | GT107: =DS102 -> 30.62614655 | GU107: 129.4223377 | GV107: شیفت8m | GX107: =-GT107+GA99 -> -20.62614655 | GY107: =GU107 -> 129.4223377 | GZ107: =ES102 -> مولفه عمودی | HB107: =DS102 -> 30.62614655 | HC107: 129.4223377 | HD107: شیفت8m | HF107: =-HB107+GI99 -> -20.62614655 | HG107: =HC107 -> 129.4223377 | HH107: =ES102 -> مولفه عمودی | HL107: =-CM106-HY101 -> -14.29409029 | HM107: 129.6704533 | HN107: شیفت 18f | HP107: =-CM116-HY101 -> -6.099021121 | HQ107: =CN116 -> 148.5758685 | HR107: شیفت وسط 22f | HX107: =-FB105-HY101 -> -16.94542063 | HY107: 131.3922373 | HZ107: شیفتb4 | IB107: =-FJ107-HY101 -> -16.665 | IC107: =FK107 -> 89.5599133 | ID107: شیفت 45 | IF107: =-FN107-HY101 -> -15.26662597 | IG107: 51.6599133 | IH107: 49's | IR107: =-AF270-HY101 -> -4.765 | IS107: =AG270 -> 50.5 | IT107: 3' | IZ107: =-ES236-HY101 -> -13.24770039 | JA107: =ET236 -> 56.4032 | JB107: p7
E108: فاصله نوار باسن تا زمین | F108: j | H108: ='متغیرها '!U60+'متغیرها '!C63*'متغیرها '!U60 -> 83.4 | I108: ='متغیرها '!U60 -> 83.4 | K108: =K107+2*(SIN(ATAN((K106-K105)/(L106-L105)))*(L107-L105)+COS(ATAN((K106-K105)/(L106-L105)))*(K105-K107))*COS(ATAN((K106-K105)/(L106-L105))) -> 2 | L108: =L107-2*(SIN(ATAN((K106-K105)/(L106-L105)))*(L107-L105)+COS(ATAN((K106-K105)/(L106-L105)))*(K105-K107))*SIN(ATAN((K106-K105)/(L106-L105))) -> 1 | M108: e11 | N108: نقطه قرینه شده نسبت به خط تقارن | Q108: =L115 -> 23.25 | R108: =L127 -> 20.59590489 | S108: 12 | U108: =L143+L150 -> 12.14155034 | V108: =L114-L151 -> 40.61156903 | W108: 32 | AF108: =AR126+0.5*(AR130-AR126) -> 21.62126781 | AG108: =IF(G151>0,AS126+0.65*(AS130-AS126),AS126) -> 9.561100742 | AJ108: 12.66539977 | AK108: 34.55565831 | AL108: 36-- | AW108: (6 → 7) | AX108: =AX166 -> 1.159913297 | AZ108: =AX107+AX99 -> 27.39609421 | BA108: =AX108+AX98 -> 51.6599133 | BB108: 7 | BD108: =J232 -> 11.71459878 | BE108: =K232 -> 147.1281115 | BF108: e7 | BG108: =0.5*'متغیرها '!U73+AE127 -> 22.49253562 | BH108: (1 → 7) | BI108: =0.5*H121+'متغیرها '!C61*H120+AD127 -> 22.49253562 | BO108: =BK150 -> 5 | BP108: =BL150 -> 124 | BQ108: سینه | BS108: =BD105 -> 5 | BT108: =BE105 -> 140.9704133 | BU108: 26 | BV108: نقطه یقه | BW108: =BS104+SQRT(POWER(BS108-BS104,2)+POWER(BT108-BT104,2))*SIN(BT103-ATAN((BS104-BS108)/(BT108-BT104))) -> 5 | BX108: =BT104+SQRT(POWER(BS108-BS104,2)+POWER(BT108-BT104,2))*COS(BT103-ATAN((BS104-BS108)/(BT108-BT104))) -> 140.9704133 | BY108: 26 | CA108: =BK138 -> 5 | CB108: =BL138 -> 147.1905053 | CC108: 24 | CD108: نقطه یقه | CE108: =CA104+SQRT(POWER(CA108-CA104,2)+POWER(CB108-CB104,2))*SIN(CB103-ATAN((CA104-CA108)/(CB108-CB104))) -> 5 | CF108: =CB104+SQRT(POWER(CA108-CA104,2)+POWER(CB108-CB104,2))*COS(CB103-ATAN((CA104-CA108)/(CB108-CB104))) -> 147.1905053 | CG108: 24 | CI108: =BW163 -> 19.54413994 | CJ108: =BX163 -> 135.7595608 | CK108: b6 | CL108: با چرخش کامل | CM108: =CI111+CJ105 -> 29.72 | CN108: =CJ111 -> 128.5959049 | CO108: شیفت 13 | CR108: ='متغیرها '!C76 -> 0.5 | CS108: x8 | DC108: =AZ176 -> 14.78142 | DD108: =BA176 -> 101.14 | DE108: 47' | DG108: =DC115-(DC106-DC109) -> 26.3 | DH108: 89.5599133 | DI108: 45s | DK108: =AZ181 -> 15.14642 | DL108: =BA181 -> 50.5 | DM108: 53شیفت | DO108: =BK162 -> 25.75 | DP108: =BL162 -> 110.1043461 | DQ108: شیفت36 | DS108: =DO103+0.35*(DO104-DO103) -> 21.4110906 | DT108: =DP104+0.45*(DP103-DP104) -> 133.4648377 | DU108: شیفت12m | DX108: =CI111 -> 29.72 | DY108: =CJ111 -> 128.5959049 | DZ108: 13 | EB108: =-DX108+ED137 -> -19.72 | EC108: 128.5959049 | ED108: 13 | ER108: =BW133 -> 23.69478157 | ES108: =BX133 -> 131.5677001 | ET108: b8 | EU108: نقطه حلقه آستین | EV108: =CE116 -> 26.13379869 | EW108: =CF116 -> 129.2762709 | EX108: b8 | EY108: نقطه حلقه آستین | FB108: =IF('متغیرها '!C119=1,ER122,BW135)+BT130 -> 19.54413994 | FC108: =IF('متغیرها '!C119=1,ES122,BX135) -> 135.7595608 | FD108: شیفت b6 یا b'6g | FJ108: =BD180 -> 25.63162597 | FK108: =BE180 -> 51.6599133 | FL108: شیفت49' … | FR108: =FR102 -> 5 | FS108: =FS102-(H104-H108) -> 88.4 | FT108: g46 | FV108: =DG139 -> 21.38511755 | FW108: =DH139 -> 51.13795231 | FX108: 50''شیفت | FZ108: =EO171 -> 10.51041481 | GA108: =EP171 -> 93.01142735 | GB108: a7 | GD108: =CE122+CB112 -> 28.96284989 | GE108: =CF122+CB113 -> 128.5415368 | GF108: شیفت b14 | GH108: =-GD108+FK99 -> -18.96284989 | GI108: =GE108 -> 128.5415368 | GJ108: شیفت b14 | GL108: =BK162 -> 25.75 | GM108: =BL162 -> 110.1043461 | GN108: شیفت 36 | GP108: =-GL108+FS99 -> -15.75 | GQ108: =GM108 -> 110.1043461 | GR108: شیفت 36 | GT108: 30.62614655 | GU108: 124.7183377 | GV108: شیفت10m | GX108: =-GT108+GA99 -> -20.62614655 | GY108: =GU108 -> 124.7183377 | GZ108: =ES103 -> 148.0654097 | HB108: 30.62614655 | HC108: 124.7183377 | HD108: شیفت10m | HF108: =-HB108+GI99 -> -20.62614655 | HG108: =HC108 -> 124.7183377 | HH108: =ES103 -> 148.0654097 | HL108: =-CM107-HY101 -> -18.25 | HM108: 128.5959049 | HN108: شیفت 12 | HP108: =-CM117-HY101 -> -4.96392 | HQ108: =CN117 -> 124.1 | HR108: شیفت5 پیراهن | HT108: =-FV107-HY101 -> -12.49801504 | HU108: =FW107 -> 51.6599133 | HV108: شیفت 49'm | HX108: =-FB106-HY101 -> -13.69478157 | HY108: 131.5677001 | HZ108: شیفتb8 | IJ108: =-CR158-HY101 -> -3.9012084 | IK108: =CS158 -> 106.96 | IL108: d5 | IN108: =-FD254-HY101 -> 5 | IO108: =FE254 -> 103.5844593 | IP108: p26 | IR108: =-AF271-HY101 -> -22.63955676 | IS108: =AG271 -> 52.23689538 | IT108: c5 | IV108: =-DI236-HY101 -> 5 | IW108: =DJ236 -> 80.85589662 | IX108: m1 | IZ108: =-ES237-HY101 -> -13.24770039 | JA108: =ET237 -> 50.5 | JB108: p8
E109: دور زانو | F109: L | H109: ='متغیرها '!U61 -> 38.1 | I109: ='متغیرها '!U61 -> 38.1 | AF109: =AR126+0.15*(AR130-AR126) -> 21.01138034 | AG109: =IF(G151>0,AS126+0.3*(AS130-AS126),AS126) -> 4.412815727 | AJ109: =AR156 -> 12.22007113 | AK109: =AS156 -> 32.48021932 | AL109: 38 | AW109: (3 → 7) | AX109: هلال وصل | BH109: (4 → 7) | BI109: هلال وصل | BK109: =BI108-BI114+BI122+BI98+'متغیرها '!C56 -> 20.85111247 | BL109: =BI110+BI115+BI97+'متغیرها '!C57 -> 135.8903377 | BM109: شیفت19 | BO109: =BK151 -> 10.6025 | BP109: =BL151 -> 124 | BS109: =AZ138 -> 17.09750208 | BT109: =BA138 -> 148.4475 | BU109: 32 | BV109: نقطه ساسون سرشانه | BW109: =BS104+SQRT(POWER(BS109-BS104,2)+POWER(BT109-BT104,2))*SIN(BT103-ATAN((BS104-BS109)/(BT109-BT104))) -> 17.09750208 | BX109: =BT104+SQRT(POWER(BS109-BS104,2)+POWER(BT109-BT104,2))*COS(BT103-ATAN((BS104-BS109)/(BT109-BT104))) -> 148.4475 | BY109: 32 | CA109: =BK106 -> 17.14383517 | CB109: =BL106 -> 148.6206501 | CC109: 30 | CD109: نقطه ساسون سرشانه | CE109: =CA104+SQRT(POWER(CA109-CA104,2)+POWER(CB109-CB104,2))*SIN(CB103-ATAN((CA104-CA109)/(CB109-CB104))) -> 17.14383517 | CF109: =CB104+SQRT(POWER(CA109-CA104,2)+POWER(CB109-CB104,2))*COS(CB103-ATAN((CA104-CA109)/(CB109-CB104))) -> 148.6206501 | CG109: 30 | CI109: =BW105 -> 12.46066531 | CJ109: =BX105 -> 149.767125 | CK109: 25 | CL109: نقطه اتصال سرشانه به گردن | CR109: ='متغیرها '!C78 -> 0 | CS109: x10 | CU109: =CQ113+CR105 -> 28.96253562 | CV109: =CR113+CR106 -> 128.5403377 | CW109: شیفت 9 | CY109: =-CU109+CZ101 -> -18.96253562 | CZ109: =CV109 -> 128.5403377 | DA109: شیفت 9 | DC109: =AZ177 -> 14.78142 | DD109: =BA177 -> 50.5 | DE109: 52 | DG109: =DC118+DD122 -> 23.69478157 | DH109: =DD118 -> 131.5677001 | DI109: b8s | DL109: =AX119 -> 3.133610929 | DM109: (12 →17) | DO109: =BK165 -> 28.255 | DP109: =BL165 -> 89.50434605 | DQ109: شیفت42 | DS109: =DO104+0.4*(DS107-DO104) -> 24.63867315 | DT109: =DT107+0.35*(DP104-DT107) -> 129.8559877 | DU109: شیفت8''m | EF109: =CQ113 -> 28.96253562 | EG109: =CR113 -> 128.5403377 | EH109: 9 | EJ109: =-EF109+ED138 -> -18.96253562 | EK109: =EG109 -> 128.5403377 | EL109: 9 | ES109: ='متغیرها '!C120*F137 -> 0.15 | ET109: g0 | FB109: =IF('متغیرها '!C119=1,ER121,BW136)+BT130 -> 19.12172691 | FC109: =IF('متغیرها '!C119=1,ES121,BX136) -> 141.5805952 | FD109: شیفت b12 یا b'12g | FF109: =BW117 -> -5.903013915 | FG109: =BX117 -> 141.8358859 | FH109: e9 | FL109: چیب | FN109: =DG107 -> 25.26662597 | FO109: =DH107 -> 51.6599133 | FP109: 49's | FR109: =AZ176 -> 14.78142 | FS109: =FS108 -> 88.4 | FT109: g47' | FV109: =DG138 -> 19.02594621 | FW109: =DH138 -> 50.73198266 | FX109: 50'شیفت | FZ109: =EO169 -> 11.27848251 | GA109: =EP169 -> 50.5 | GB109: a5 | GD109: =CE123+CB112 -> 27.49320914 | GE109: =CF123+CB113 -> 124.7193987 | GF109: شیفت b2 | GH109: =-GD109+FK99 -> -17.49320914 | GI109: =GE109 -> 124.7193987 | GJ109: شیفت b2 | GT109: 28.88361093 | GU109: 110.1043461 | GV109: شیفت36m | GX109: =-GT109+GA99 -> -18.88361093 | GY109: =GU109 -> 110.1043461 | GZ109: =ES104 -> 149.767125 | HB109: =DS105 -> 31.38861093 | HC109: 89.50434605 | HD109: شیفت42m | HF109: =-HB109+GI99 -> -21.38861093 | HG109: =HC109 -> 89.50434605 | HH109: =ES105 -> 141.5805952 | HL109: =-CM108-HY101 -> -19.72 | HM109: 128.5959049 | HN109: شیفت 13 | HT109: =-FV108-HY101 -> -11.38511755 | HU109: =FW108 -> 51.13795231 | HV109: 50''شیفت | HX109: =-FB107-HY101 -> -11.53868326 | HY109: 132.5910116 | HZ109: شیفت b10 یا b'10g | IB109: =-FJ107-HY101 -> -16.665 | IC109: =FK107 -> 89.5599133 | ID109: شیفت 45 | IF109: =-FN109-HY101 -> -15.26662597 | IG109: =FO109 -> 51.6599133 | IH109: 49's | IJ109: =-CR161-HY101 -> 5 | IK109: =CS161 -> 106.96 | IL109: _u5 | IN109: =-FD255-HY101 -> 5 | IO109: =FE255 -> 50.5 | IP109: 1 | IR109: =-AF272-HY101 -> -40.51411352 | IS109: =AG272 -> 56.28965127 | IT109: c2 | IV109: =-DI237-HY101 -> 0.35 | IW109: =DJ237 -> 80.85589662 | IX109: m2
E110: بلندی فاق | F110: m | H110: =1.06*'متغیرها '!U62+0.03*'متغیرها '!U56*'متغیرها '!U66*IF('متغیرها '!U66=1,0.2,0.6)+'متغیرها '!C63*'متغیرها '!U62 -> 27.984 | I110: =1.06*'متغیرها '!U62+0.03*'متغیرها '!U56*'متغیرها '!U66*IF('متغیرها '!U66=1,0.2,0.6) -> 27.984 | U110: =L115-L132+L138-L153 -> 17.36836955 | V110: =L127+L133+L139+L154 -> 39.3907091 | W110: 34 | AF110: =AR126 -> 20.75 | AG110: =AS126 -> 0 | AH110: 12 | AJ110: =AR150 -> 12.17432955 | AK110: =AS150 -> 35.55043471 | AL110: 34-- | AV110: =AV104+0.5*(AV100-AV104+BG99-BG108) -> 23.19935719 | AW110: (1 → 8) | AX110: =AX104+0.5*(AX100-AX104+BI99-BI108) -> 22.83873219 | AZ110: =0+AX99 -> 5 | BA110: =H104-H114+AX98 -> 108 | BB110: کمر | BD110: =AZ131 -> 22.92286142 | BE110: =BA131 -> 98.7 | BF110: 35شیفت | BG110: ='متغیرها '!U58-'متغیرها '!U59+H153*(I127-I126)+Y128 -> 78.04033765 | BH110: (7→ 8) | BI110: =H106-H114+G153*(H127-H126)-AX118*'متغیرها '!C77/(1+'متغیرها '!C77)+Y128 -> 78.04033765 | BK110: =BI108-BI114+BI122+BI98+'متغیرها '!C56 -> 20.85111247 | BL110: =BI110+BI115+BI123+BI97+'متغیرها '!C57 -> 142.0497189 | BM110: شیفت20 | BO110: انحنای حلقه یقه پشت | BS110: =BD98 -> -7.15 | BT110: =BE98 -> 140.9704133 | BU110: 26' | BV110: نقطه جادکمه | BW110: =BS104+SQRT(POWER(BS110-BS104,2)+POWER(BT110-BT104,2))*SIN(BT103-ATAN((BS104-BS110)/(BT110-BT104))) -> -7.15 | BX110: =BT104+SQRT(POWER(BS110-BS104,2)+POWER(BT110-BT104,2))*COS(BT103-ATAN((BS104-BS110)/(BT110-BT104))) -> 140.9704133 | BY110: 26' | CA110: =BK153 -> 5 | CB110: =BL153 -> 131.8843924 | CC110: 39 | CD110: امتداد نقطه مرکزی چرخش | CE110: =CA104+SQRT(POWER(CA110-CA104,2)+POWER(CB110-CB104,2))*SIN(CB103-ATAN((CA104-CA110)/(CB110-CB104+0.001))) -> 5.000000045 | CF110: =CB104+SQRT(POWER(CA110-CA104,2)+POWER(CB110-CB104,2))*COS(CB103-ATAN((CA104-CA110)/(CB110-CB104+0.001))) -> 131.8853924 | CG110: 39 | CI110: =AZ113 -> 28.25 | CJ110: =BA113 -> 128.5959049 | CK110: 12 | CM110: =CM108 -> 29.72 | CN110: =CN108 -> 128.5959049 | CO110: شیفت13 | CQ110: =BK103 -> 5 | CR110: =BL103 -> 149.7930975 | CS110: 2 | CU110: =CQ115 -> 27.49253562 | CV110: =CR115 -> 124.7183377 | CW110: شیفت 10 | CY110: =-CU110+CZ101 -> -17.49253562 | CZ110: =CV110 -> 124.7183377 | DA110: شیفت 10 | DC110: =BD186-DD122 -> 16.1949406 | DD110: =BE186 -> 50.5 | DE110: 50 | DG110: =DC119+DD122 -> 26.94542063 | DH110: =DD119 -> 131.3922373 | DI110: b4s | DL110: =AX120 -> 0.882 | DM110: (17 →18) | DO110: =BK172 -> 27.0306749 | DP110: =BL172 -> 51.60434605 | DQ110: شیفت43'' | DS110: =CE108 -> 5 | DT110: =CF108 -> 147.1905053 | DU110: 24m | DX110: =CI111 -> 29.72 | DY110: =DY108 -> 128.5959049 | DZ110: 13 | EB110: =-DX110+ED137 -> -19.72 | EC110: =DY110 -> 128.5959049 | ED110: 13 | EF110: =CQ115-CR105 -> 27.49253562 | EG110: =CR115-CR106 -> 124.7183377 | EH110: 10 | EJ110: =-EF110+ED138 -> -17.49253562 | EK110: =EG110 -> 124.7183377 | EL110: 10 | ES110: ='متغیرها '!C121 -> 2 | ET110: g1 | FB110: =ER151+BT130 -> 19.92046018 | FC110: =ES151 -> 148.0654097 | FD110: شیفت22b | FF110: =BW127 -> -10.22096457 | FG110: =BX127 -> 142.4510483 | FH110: e10 | FJ110: =FN178 -> 20.35942045 | FK110: =FO178 -> 105.7429962 | FL110: 37شیفت | FN110: =IF(DH108>DH120,DG120,DG108) -> 26.3 | FO110: =IF(DH108>DH120,DH120,DH108) -> 89.5599133 | FP110: 45s یا s2 | FV110: =DG137 -> 16.1949406 | FW110: =DH137 -> 50.5 | FX110: 50شیفت | GL110: =BK162 -> 25.75 | GM110: =BL162 -> 110.1043461 | GN110: شیفت 36 | GP110: =-GL110+FS99 -> -15.75 | GQ110: =GM110 -> 110.1043461 | GR110: شیفت 36 | GT110: 31.38861093 | GU110: 89.50434605 | GV110: شیفت42m | GX110: =-GT110+GA99 -> -21.38861093 | GY110: =GU110 -> 89.50434605 | GZ110: =ES105 -> 141.5805952 | HB110: 30.16428583 | HC110: 51.60434605 | HD110: شیفت43''m | HF110: =-HB110+GI99 -> -20.16428583 | HG110: =HC110 -> 51.60434605 | HH110: =ES106 -> 135.7595608 | HP110: =-CM119-HY101 -> -4.96392 | HQ110: =CN119 -> 124.1 | HR110: شیفت 5 پیراهن | HT110: =-FV109-HY101 -> -9.025946209 | HU110: =FW109 -> 50.73198266 | HV110: 50'شیفت | HX110: =-FB108-HY101 -> -9.544139937 | HY110: 135.7595608 | HZ110: شیفت b6 یا b'6g | IB110: =-FJ108-HY101 -> -15.63162597 | IC110: =FK108 -> 51.6599133 | ID110: شیفت49' … | IF110: =-FN110-HY101 -> -16.3 | IG110: =FO110 -> 89.5599133 | IH110: 45s یا s2 | IZ110: =-ES239-HY101 -> -13.24770039 | JA110: =ET239 -> 50.5 | JB110: p8
E111: آنفورشور | F111: q | H111: =1*'متغیرها '!U63+0.6*'متغیرها '!C63*'متغیرها '!U63+0.3*'متغیرها '!C60*'متغیرها '!U63 -> 69.2 | I111: =1*'متغیرها '!U63 -> 69.2 | J111: s3 | K111: =((I124-I123-I127+I126)-0.5*(1-H154)*('متغیرها '!U70-'متغیرها '!U71)*TAN(0.5*IF(L121=0,0,H162))+(0.5-G148)*'متغیرها '!U71*TAN(0.5*H157)) -> 2.000952491 | L111: =(I124-I123-I127+I126-0.5*(1-H154)*('متغیرها '!U70-'متغیرها '!U71)*TAN(0.5*IF(L121=0,0,H162))+(0.5-G148)*'متغیرها '!U71*TAN(0.5*H157)) -> 2.000952491 | U111: =L115-L132+L138 -> 22.346 | V111: =L127+L133+L139 -> 36.6719612 | W111: 22 | AJ111: =AR149 -> 12.15908236 | AK111: =AS149 -> 36.77852087 | AL111: 34- | AO111: شیفت عمودی جلو بالاتنه به سانتیمتر | AP111: =0 -> 0 | AS111: شیفت عمودی پشت بالاتنه به سانتیمتر | AT111: =0 -> 0 | AW111: (8 → 9) | AX111: =H108-H114+L125-0.5*(H106-H104) -> 39.0599133 | BD111: =AZ155 -> 20.35942045 | BE111: =BA155 -> 105.7429962 | BF111: 37شیفت | BH111: (8 →9) | BI111: =AA131 -> 1.47 | BO111: =BK104 -> 12.46761528 | BP111: =BL104 -> 149.7930975 | BQ111: 23 | BS111: =AZ103 -> 5 | BT111: =BT104 -> 124.1 | BU111: 4 | BV111: امتداد نقطه مرکزی چرخش | BW111: =BS104+SQRT(POWER(BS111-BS104,2)+POWER(BT111-BT104,2))*SIN(BT103-ATAN((BS104-BS111)/(BT111-BT104+0.001))) -> 5.00000005 | BX111: =BT104+SQRT(POWER(BS111-BS104,2)+POWER(BT111-BT104,2))*COS(BT103-ATAN((BS104-BS111)/(BT111-BT104+0.001))) -> 124.101 | BY111: 4 | CA111: انتقال قسمتی از ساسون سرشانه به ساسون زیر بغل به روش چرخش | CI111: =BD156-CJ105 -> 29.72 | CJ111: =BE156 -> 128.5959049 | CK111: 13 | CL111: نقطه انتهایی زیر حلقه | CM111: =CI112 -> 28.25 | CN111: =CJ112 -> 124.7739049 | CO111: شیفت14 | CQ111: کارور پشت | CR111: =H129 -> 33.9 | CS111: v3 | DC111: =BD185-DD122 -> 19.02594621 | DD111: =BE185 -> 50.73198266 | DE111: 50' | DG111: =DC120+DD122 -> 28.37984841 | DH111: =DD120 -> 131.7136668 | DI111: b14s | DK111: =O168 -> 0 | DL111: =P168 -> 0 | DM111: 25 | DO111: =BK177 -> 15.30125 | DP111: =BL177 -> 50.5 | DQ111: شیفت50 | DS111: =CE105 -> 12.46761528 | DT111: =CF105 -> 149.7930975 | DU111: 23m | DX111: =CI112-EA137 -> 28.25 | DY111: =CJ112 -> 124.7739049 | DZ111: 14 | EB111: =-DX111+ED137 -> -18.25 | EC111: =DY111 -> 124.7739049 | ED111: 14 | ER111: =BS135 -> 21.98277814 | ES111: =BT135 -> 134.4759049 | ET111: 16 | EU111: نقطه حلقه آستین بدون چرخش | EV111: =CA118 -> 20.69762498 | EW111: =CB118 -> 135.8903377 | EX111: 12 | EY111: نقطه حلقه آستین بدون چرخش | FJ111: =FN179 -> 25.48630239 | FK111: =FO179 -> 91.65700381 | FL111: شیفت37' | FR111: =AZ180 -> 15.14642 | FS111: =FS109 -> 88.4 | FT111: g47'' | FV111: =DK108 -> 15.14642 | FW111: =DL108 -> 50.5 | FX111: 53شیفت | FZ111: =DG126-ES170 -> 23.8118097 | GA111: =DH126 -> 131.5613832 | GB111: بدون شیفتb'8s | GD111: =CE123+CB112 -> 27.49320914 | GE111: =CF123+CB113 -> 124.7193987 | GF111: شیفت b2 | GH111: =-GD111+FK99 -> -17.49320914 | GI111: =GE111 -> 124.7193987 | GJ111: شیفت b2 | GL111: =BK165 -> 28.255 | GM111: =BL165 -> 89.50434605 | GN111: شیفت 42 | GP111: =-GL111+FS99 -> -18.255 | GQ111: =GM111 -> 89.50434605 | GR111: شیفت 42 | GT111: 30.16428583 | GU111: 51.60434605 | GV111: شیفت43''m | GX111: =-GT111+GA99 -> -20.16428583 | GY111: =GU111 -> 51.60434605 | GZ111: =ES106 -> 135.7595608 | HL111: =-CM110-HY101 -> -19.72 | HM111: =CN110 -> 128.5959049 | HN111: شیفت13 | HP111: =-CM120-HY101 -> -4.96392 | HQ111: =CN120 -> 124.1 | HR111: شیفت 5 بالاتنه | HT111: =-FV110-HY101 -> -6.194940597 | HU111: =FW110 -> 50.5 | HV111: شیفت 50 | HX111: =-FB109-HY101 -> -9.121726907 | HY111: 141.5805952 | HZ111: شیفت b12 یا b'12g | ID111: چیب | IJ111: =-CR161-HY101 -> 5 | IK111: =CS161 -> 106.96 | IL111: _u5 | IP111: 49' | IV111: =-DI239-HY101 -> 0.35 | IW111: =DJ239 -> 80.85589662 | IX111: m2 | IZ111: =-ES240-HY101 -> 5.462086758 | JA111: =ET240 -> 50.5 | JB111: p6
E112: دور مچ پا | F112: r | H112: ='متغیرها '!U64 -> 24 | I112: =0.8*'متغیرها '!U61 -> 30.48 | J112: فاصله لبه دامن یا پیراهن تا زمین (به سانتیمتر) k | K112: =IF('متغیرها '!C67<1,'متغیرها '!C67*I107,IF('متغیرها '!C67<2,I107+('متغیرها '!C67-1)*(I108-I107),IF('متغیرها '!C67<3,I108+('متغیرها '!C67-2)*(I105-I108),I105+('متغیرها '!C67-3)*(H127-H126)))) -> 45.5 | AJ112: =AR148 -> 12.14383517 | AK112: =AS148 -> 38.62065011 | AL112: 34 | AW112: (1 → 10) | AX112: =AX104-0.85*AX117 -> 17.92286142 | AZ112: =AX104+AX99 -> 28.25 | BA112: =0+AX98 -> 50.5 | BB112: 3 | BH112: (8 → 10) | BI112: =AA132 -> 3.822 | BK112: =BI108-BI114+BI98+'متغیرها '!C56 -> 20.69762498 | BL112: =BI110+BI115+BI97+'متغیرها '!C57 -> 135.8903377 | BM112: شیفت12 | BO112: =BK135 -> 10.60071146 | BP112: =BL135 -> 148.2315422 | BQ112: 28 | BS112: =BD98 -> -7.15 | BT112: =BT104 -> 124.1 | BU112: 4' | BW112: =BS104+SQRT(POWER(BS112-BS104,2)+POWER(BT112-BT104,2))*SIN(BT103-ATAN((BS104-BS112)/(BT112-BT104+0.001))) -> -7.149999977 | BX112: =BT104+SQRT(POWER(BS112-BS104,2)+POWER(BT112-BT104,2))*COS(BT103-ATAN((BS104-BS112)/(BT112-BT104+0.001))) -> 124.101 | BY112: 4' | CB112: ='متغیرها '!C56 -> 0 | CC112: شیفت افقی | CI112: =BD155 -> 28.25 | CJ112: =BE155 -> 124.7739049 | CK112: شیفت14 | CO112: سرشانه بدون ساسون | CQ112: =BK104 -> 12.46761528 | CR112: =BL104 -> 149.7930975 | CS112: 23 | CT112: نقطه اتصال سرشانه به گردن | CU112: =CU102 -> 19.74432689 | CV112: =CV102 -> 147.4105846 | CW112: شیفت 18f | CY112: =-CU112+CZ101 -> -9.744326893 | CZ112: =CV112 -> 147.4105846 | DA112: شیفت 18f | DC112: =BD184-DD122 -> 21.38511755 | DD112: =BE184 -> 51.13795231 | DE112: 50'' | DG112: =DC121+DD122 -> 27.78113731 | DH112: =DD121 -> 127.6627251 | DI112: b2s | DK112: =BW144 -> 19.81905676 | DL112: =BX144 -> 147.6525439 | DM112: b16 | DO112: =BK161 -> 17.18 | DP112: =BL161 -> 110 | DQ112: شیفت35 | DS112: =CE107 -> 7.98704611 | DT112: =CF107 -> 147.4507645 | DU112: 26m | EF112: =CQ120 -> 19.74432689 | EG112: =CR120 -> 147.4105846 | EH112: 18f | EJ112: =-EF112+ED138 -> -9.744326893 | EK112: =EG112 -> 147.4105846 | EL112: 18f | ER112: =BS134 -> 23.23622251 | ES112: =BT134 -> 130.9479049 | ET112: 20 | EU112: نقطه حلقه آستین بدون چرخش | EV112: =CA117 -> 22.73609817 | EW112: =CB117 -> 131.4803377 | EX112: 16 | EY112: نقطه حلقه آستین بدون چرخش | FD112: سرشانه با ساسون متغیر | FF112: =BW118 -> 18.77649872 | FG112: =BX118 -> 154.9339899 | FH112: a2 | FN112: =FN110 -> 26.3 | FO112: =FO110 -> 89.5599133 | FP112: =FP110 -> 45s یا s2 | FR112: =AZ172 -> 26.665 | FS112: =BE178-(H105-H108) -> 89.5599133 | FT112: g45 | FX112: کمر | FZ112: =EO172 -> 23.89801504 | GA112: =EP172 -> 51.6599133 | GB112: a8 | GD112: =CE125+CB112 -> 17.33375356 | GE112: =CF125+CB113 -> 131.1678614 | GF112: شیفت b | GH112: =-GD112+FK99 -> -7.333753562 | GI112: =GE112 -> 131.1678614 | GJ112: شیفت b | HB112: =DS106 -> 30.16428583 | HC112: =DT106 -> 51.60434605 | HD112: =DU106 -> شیفت43''m | HF112: =-HB112+GI99 -> -20.16428583 | HG112: =HC112 -> 51.60434605 | HH112: =ES106 -> 135.7595608 | HL112: =-CM111-HY101 -> -18.25 | HM112: =CN111 -> 124.7739049 | HN112: شیفت14 | HT112: =-FV111-HY101 -> -5.14642 | HU112: =FW111 -> 50.5 | HV112: 53شیفت | HX112: =-FB110-HY101 -> -9.920460185 | HY112: 148.0654097 | HZ112: شیفت22b | IB112: =-FN178-HY101 -> -10.35942045 | IC112: =FO178 -> 105.7429962 | ID112: 37شیفت | IF112: =-FN112-HY101 -> -16.3 | IG112: =FO112 -> 89.5599133 | IH112: =IH110 -> 45s یا s2 | IJ112: =-CR164-HY101 -> 5 | IK112: =CS164 -> 106.96 | IL112: d4 | IN112: =-FD258-HY101 -> 17.15 | IO112: =FE258 -> 103.5844593 | IP112: p10 | IT112: 92' | IV112: =-DI240-HY101 -> 0.35 | IW112: =DJ240 -> 78.85589662 | IX112: m12
J113: متغیرهای خروجی جلو (رسم کاربر) | L113: شبیه ساز | Q113: =AN120 -> 9.96392 | R113: =AO120 -> 16.1 | S113: 6 | Y113: شبیه ساز | Z113: متغیرهای خروجی پشت بالاتنه (رسم کاربر) | AF113: =AR121 -> 11.205 | AG113: =AS121 -> 24.3159916 | AH113: 7 | AN113: نقاط جلو بالاتنه | AR113: نقاط پشت بالاتنه | AV113: ='متغیرها '!U56-H114+H153*(I127-I126)+L125 -> 78.09590489 | AW113: (3 → 12) | AX113: =H104-H114+G153*(H127-H126)-AX118*'متغیرها '!C77/(1+'متغیرها '!C77)+L125 -> 78.09590489 | AZ113: =AX104+AX99 -> 28.25 | BA113: =AX113+AX98 -> 128.5959049 | BB113: 12 | BD113: =AZ131 -> 22.92286142 | BE113: =BA131 -> 98.7 | BF113: 35شیفت | BH113: (9 → 10→ 6→ 4) | BI113: وصل | BK113: =BI108-BI114+BI98+'متغیرها '!C56 -> 20.69762498 | BL113: =BI110+BI97+'متغیرها '!C57 -> 128.5403377 | BM113: شیفت11 | BO113: =BK132 -> 7.98704611 | BP113: =BL132 -> 147.4507645 | BQ113: 26 | BS113: =J232 -> 11.71459878 | BT113: =K232 -> 147.1281115 | BU113: e7 | BW113: =BS104+SQRT(POWER(BS113-BS104,2)+POWER(BT113-BT104,2))*SIN(BT103-ATAN((BS104-BS113)/(BT113-BT104))) -> 11.71459878 | BX113: =BT104+SQRT(POWER(BS113-BS104,2)+POWER(BT113-BT104,2))*COS(BT103-ATAN((BS104-BS113)/(BT113-BT104))) -> 147.1281115 | BY113: e7 | CB113: ='متغیرها '!C57 -> 0 | CC113: شیفت عمودی | CI113: α2 | CJ113: =0.5*(P139+0.3*(P140-P139)+AE139+0.3*(AE140-AE139)) -> 0.3164156761 | CK113: زاویه سرشانه با افق | CM113: =CM102 -> 19.73737693 | CN113: =CN102 -> 147.384612 | CO113: شیفت22f | CQ113: =BK114-CR105 -> 28.96253562 | CR113: =BL114-CR106 -> 128.5403377 | CS113: 9 | CT113: نقطه انتهایی زیر حلقه | CU113: =CU119+CR105 -> 16.10597108 | CV113: =CV119+CR106 -> 148.601841 | CW113: شیفت وسط 18f | CY113: =-CU113+CZ101 -> -6.105971084 | CZ113: =CV113 -> 148.601841 | DA113: شیفت وسط 18f | DC113: =BD183-DD122 -> 23.7442889 | DD113: =BE183 -> 51.54392197 | DE113: 50''' | DG113: =DC103+DD122 -> 14.96392 | DH113: =DD103 -> 120.88 | DI113: 43s | DK113: =DD572 -> 25.4350819 | DL113: 89.62985593 | DM113: 10r | DN113: شلوار | DO113: =BO191 -> 15.30125 | DP113: =BP191 -> 91.64 | DQ113: شیفت38'' | DS113: =CE106 -> 10.60071146 | DT113: =CF106 -> 148.2315422 | DU113: 28m | DX113: =CI117 -> 19.73737693 | DY113: =CJ117 -> 147.384612 | DZ113: 22f | EB113: =-DX113+ED137 -> -9.73737693 | EC113: =DY113 -> 147.384612 | ED113: 22f | EF113: =EF115 -> 16.10597108 | EG113: =EG115 -> 148.601841 | EH113: وسط 18f | EJ113: =-EF113+ED138 -> -6.105971084 | EK113: =EG113 -> 148.601841 | EL113: وسط 18f | ET113: محاسبات | EX113: محاسبات | FB113: =ER150+BT130 -> 17.15479559 | FC113: =ES150 -> 148.6924648 | FD113: شیفت 34b | FF113: =BW119 -> 14.98699867 | FG113: =BX119 -> 152.3505575 | FH113: a13 | FL113: ترک وسط با ساسون | FN113: =DG120 -> -6.018572272 | FO113: =DH120 -> 410.3948845 | FP113: s2 | FT113: زانو | FV113: =DK122 -> 21.45638907 | FW113: =DL122 -> 110.1599133 | FX113: =DM122 -> 41شیفتm | GL113: =BK165 -> 28.255 | GM113: =BL165 -> 89.50434605 | GN113: شیفت 42 | GP113: =-GL113+FS99 -> -18.255 | GQ113: =GM113 -> 89.50434605 | GR113: شیفت 42 | GT113: =DS106 -> 30.16428583 | GU113: =DT106 -> 51.60434605 | GV113: =DU106 -> شیفت43''m | GX113: =-GT113+GA99 -> -20.16428583 | GY113: =GU113 -> 51.60434605 | GZ113: =ES106 -> 135.7595608 | HB113: =HB115+0.6*(HB112-HB115) -> 24.68824849 | HC113: =HC115+0.8*(HC112-HC115) -> 51.38347684 | HF113: =-HB113+GI99 -> -14.68824849 | HG113: =HC113 -> 51.38347684 | HP113: =-CM122-HY101 -> -4.96392 | HQ113: =CN122 -> 124.1 | HR113: شیفت 5 بالاتنه | HV113: کمر | IB113: =-FN179-HY101 -> -15.48630239 | IC113: =FO179 -> 91.65700381 | ID113: شیفت37' | IF113: =-FN113-HY101 -> 16.01857227 | IG113: =FO113 -> 410.3948845 | IH113: s2 | IN113: =-FD259-HY101 -> 17.15 | IO113: =FE259 -> 106.96 | IP113: 26'' | IR113: =-FN151-HY101 -> 17.15 | IS113: =FO151 -> 120.6 | IT113: e1 | IZ113: =-ES242-HY101 -> 5.462086758 | JA113: =ET242 -> 50.5 | JB113: p6
E114: شلوار زنانه و بچگانه = 0 مردانه=1 بچه با پوشک=2 | H114: =K112 -> 45.5 | I114: K | J114: (1 → 2) | K114: =H124-('متغیرها '!C71)*0.5*G167*SIN(O139) -> 41.767125 | L114: =I124 -> 42 | Q114: =AN121 -> 9.96392 | R114: =AO121 -> 12.88 | S114: 7 | U114: انحنای حلقه آستین جلو | Y114: =I127 -> 40 | Z114: (1 → 2) | AA114: =H127-('متغیرها '!C71)*0.5*G167*SIN(AD139) -> 39.79309752 | AF114: =AR122 -> 11.205 | AG114: =AS122 -> 21.88439244 | AH114: 8 | AN114: مولفه افقی | AO114: مولفه عمودی | AP114: اسم نقطه | AR114: مولفه افقی | AS114: مولفه عمودی | AT114: اسم نقطه | AW114: (12 → 13) | AX114: =K128 -> 1.47 | AZ114: =AX104-AX117+AX99 -> 21.98277814 | BA114: =AX113+AX98 -> 128.5959049 | BB114: 15 | BD114: =AX112+AX144+AX99+'متغیرها '!C55 -> 25.48630239 | BE114: =AX143-AX145+AX98 -> 91.65700381 | BF114: شیفت 37' | BG114: =Y135 -> 5.542535622 | BH114: (8 → 11) | BI114: =AA135 -> 6.794910642 | BK114: =BI108+BI111+BI98+'متغیرها '!C56 -> 28.96253562 | BL114: =BI110+BI97+'متغیرها '!C57 -> 128.5403377 | BM114: شیفت9 | BO114: =BK138 -> 5 | BP114: =BL138 -> 147.1905053 | BQ114: 24 | BS114: =J233 -> 10.64534371 | BT114: =K233 -> 145.3207118 | BU114: e5 | BW114: =BS104+SQRT(POWER(BS114-BS104,2)+POWER(BT114-BT104,2))*SIN(BT103-ATAN((BS104-BS114)/(BT114-BT104))) -> 10.64534371 | BX114: =BT104+SQRT(POWER(BS114-BS104,2)+POWER(BT114-BT104,2))*COS(BT103-ATAN((BS104-BS114)/(BT114-BT104))) -> 145.3207118 | BY114: e5 | CB114: =(CC126-CC125) -> 9.399470766e-05 | CC114: زاویه چرخش به ساسون زیر بغل | CI114: =H167 -> 11.34343776 | CJ114: =G167 -> 11.34343776 | CK114: W | CM114: =CM132+CJ105 -> 16.09902112 | CN114: =CN132 -> 148.5758685 | CO114: شیفت وسط 22f | CQ114: =BK122-CR105 -> 27.49253562 | CR114: =BL122-CR106 -> 128.5403377 | CS114: 8 | DC114: =BD180-DD122 -> 25.63162597 | DD114: =BE180 -> 51.6599133 | DE114: 49' | DG114: =DC117+DD122 -> 28.25 | DH114: =DD117 -> 124.7739049 | DI114: 14s | DK114: 21.77310463 | DL114: 50.5 | DM114: 7r | DO114: =BO114 -> 5 | DP114: =BP114 -> 147.1905053 | DQ114: 24 | DS114: =EV103 -> 21.39449508 | DT114: =EW103 -> 147.4658545 | DU114: 18m | DX114: =CM114-EA137 -> 16.09902112 | DY114: =DY116 -> 148.5758685 | DZ114: وسط 22f | EB114: =-DX114+ED137 -> -6.099021121 | EC114: =DY114 -> 148.5758685 | ED114: وسط 22f | ER114: (b12→22g) | ES114: =SQRT(POWER(ER105-ER103,2)+POWER(ES105-ES103,2)) -> 6.533819294 | EV114: (b12→18p) | EW114: =SQRT(POWER(EV105-EV103,2)+POWER(EW105-EW103,2)) -> 5.442986202 | FB114: =ER151+BT130 -> 19.92046018 | FC114: =ES151 -> 148.0654097 | FD114: شیفت22b | FF114: =BW105 -> 12.46066531 | FG114: =BX105 -> 149.767125 | FH114: چرخیده 25 | FJ114: =AZ181 -> 15.14642 | FK114: =BA181 -> 50.5 | FL114: شیفت 53 | FR114: =FR108 -> 5 | FS114: =BA165-(H104-H107) -> 50.5 | FT114: g1 | FV114: =AZ167+BT130 -> 16.18392 | FW114: =BA167 -> 108 | FX114: شیفت 40 | FZ114: =EO172 -> 23.89801504 | GA114: =EP172 -> 51.6599133 | GB114: a8 | GD114: =CE125+CB112 -> 17.33375356 | GE114: =CF125+CB113 -> 131.1678614 | GF114: شیفت b | GH114: =-GD114+FK99 -> -7.333753562 | GI114: =GE114 -> 131.1678614 | GJ114: شیفت b | GL114: =BK172 -> 27.0306749 | GM114: =BL172 -> 51.60434605 | GN114: شیفت 43'' | GP114: =-GL114+FS99 -> -17.0306749 | GQ114: =GM114 -> 51.60434605 | GR114: شیفت 43'' | GT114: =GT116+0.6*(GT113-GT116) -> 24.68824849 | GU114: =GU116+0.8*(GU113-GU116) -> 51.38347684 | GX114: =-GT114+GA99 -> -14.68824849 | GY114: =GU114 -> 51.38347684 | HB114: =HB115+0.3*(HB112-HB115) -> 20.58122049 | HC114: =HC115+0.2*(HC112-HC115) -> 50.72086921 | HF114: =-HB114+GI99 -> -10.58122049 | HG114: =HC114 -> 50.72086921 | HN114: 8' | HP114: =-CM123-HY101 -> -4.96392 | HQ114: =CN123 -> 120.88 | HR114: شیفت 43 | HT114: =-FV113-HY101 -> -11.45638907 | HU114: =FW113 -> 110.1599133 | HV114: شیفت 41m | HZ114: 5' | IJ114: =-CR166-HY101 -> -4.96392 | IK114: =CS166 -> 120.88 | IL114: شیفت 43 | IR114: =-FN152-HY101 -> 17.15 | IS114: 125.6657273 | IT114: 8n | IV114: =-DI242-HY101 -> 0.35 | IW114: =DJ242 -> 78.85589662 | IX114: m12 | IZ114: =-ES243-HY101 -> 5.462086758 | JA114: =ET243 -> 56.4032 | JB114: p5
J115: (1 → 3) | K115: =0.5*(H120-H121)+'متغیرها '!C61*H120-'متغیرها '!C77*O128*H130*((L115-L120-L121-L124)/(L127-L125)) -> 23.25 | L115: =0.5*('متغیرها '!U72-'متغیرها '!U73) -> 23.25 | Q115: =AN119 -> 9.96392 | R115: =AO119 -> 16.1 | S115: 5 | U115: =AN136 -> 19.85155628 | V115: =AO136 -> 38.02097911 | W115: 22 | Y115: =0.5*'متغیرها '!U73+AE127 -> 22.49253562 | Z115: (1 → 3) | AA115: =0.5*H121+'متغیرها '!C61*H120+AD127-'متغیرها '!C77*O128*H130*((Y115-Y121-Y123-Y124-Y127)/(Y130)) -> 22.49253562 | AF115: =AR120 -> 11.205 | AG115: =AS120 -> 14 | AH115: 6 | AJ115: =AR138 -> 16.20924996 | AK115: =AS138 -> 37.0802608 | AL115: 24 | AN115: 0 | AO115: =0+AP111 -> 0 | AP115: 1 | AR115: 0 | AS115: =AT111 -> 0 | AT115: 1 | AV115: =L129 -> 0 | AW115: (12 → 14) | AX115: =K129 -> 3.822 | AZ115: =AX104-AX117+AX99 -> 21.98277814 | BA115: =AX113+AX118+AX98 -> 134.4759049 | BB115: 16 | BG115: 7.35 | BH115: (11 →12) | BI115: 7.35 | BS115: =J250 -> -10.01287488 | BT115: =K250 -> 140.9704133 | BU115: e3 | BW115: =BS104+SQRT(POWER(BS115-BS104,2)+POWER(BT115-BT104,2))*SIN(BT103-ATAN((BS104-BS115)/(BT115-BT104))) -> -10.01287488 | BX115: =BT104+SQRT(POWER(BS115-BS104,2)+POWER(BT115-BT104,2))*COS(BT103-ATAN((BS104-BS115)/(BT115-BT104))) -> 140.9704133 | BY115: e3 | CA115: =BK122-CB112 -> 27.49253562 | CB115: =BL122-CB113 -> 128.5403377 | CC115: 8 | CD115: نقطه حلقه آستین | CE115: =CA104+SQRT(POWER(CA115-CA104,2)+POWER(CB115-CB104,2))*SIN(IF(CB115=CB104,RADIANS(90)-CB114,ATAN((CA115-CA104)/ABS(CB115-CB104))+IF(CB115>CB104,-1,1)*CB114)) -> 27.4928499 | CF115: =CB104+IF(CB115<CB104,-1,1)*SQRT(POWER(CA115-CA104,2)+POWER(CB115-CB104,2))*COS(IF(CB115=CB104,RADIANS(90)-CB114,ATAN((CA115-CA104)/ABS(CB115-CB104))+IF(CB115>CB104,-1,1)*CB114)) -> 128.5413986 | CG115: b4 | CI115: نقاط حلقه آستین جلو بدون ساسون سرشانه | CQ115: =BO170 -> 27.49253562 | CR115: =BP170 -> 124.7183377 | CS115: شیفت10 | CU115: =CU113 -> 16.10597108 | CV115: =CV113 -> 148.601841 | CW115: شیفت وسط 18f | CY115: =-CU115+CZ101 -> -6.105971084 | CZ115: =CV115 -> 148.601841 | DA115: شیفت وسط 18f | DC115: =AZ172-DD122 -> 26.665 | DD115: =BA172 -> 89.5599133 | DE115: 45 | DG115: =DG113+DD127*SIN(DD123+DD131) -> 18.9707321 | DH115: =DH113-DD127*COS(DD123+DD131) -> 108.5784449 | DI115: 40s | DK115: 21.77310463 | DL115: 50.5 | DM115: 5r | DO115: =BO113 -> 7.98704611 | DP115: =BP113 -> 147.4507645 | DQ115: 26 | DS115: =EV121 -> 20.65814391 | DT115: =EW121 -> 142.0729067 | DU115: 20m | EF115: =CU119 -> 16.10597108 | EG115: =CV119 -> 148.601841 | EH115: وسط 18f | EJ115: =-EF115+ED138 -> -6.105971084 | EK115: =EG115 -> 148.601841 | EL115: وسط 18f | ER115: α22g1 | ES115: =ATAN((ES104-ES103)/(ER103-ER104)) -> 0.224280436 | EV115: α18p1 | EW115: =ATAN((EW104-EW103)/(EV103-EV104)) -> 0.2550241936 | FJ115: =AZ180 -> 15.14642 | FK115: =BA180 -> 101.14 | FL115: شیفت 47'' | FN115: =DG120 -> -6.018572272 | FO115: =DH120 -> 410.3948845 | FP115: s2 | FR115: =FR109 -> 14.78142 | FS115: =FS114 -> 50.5 | FT115: g52 | FX115: چیب | FZ115: =FV105-'متغیرها '!C55 -> 22.49801504 | GA115: =FW105 -> 51.6599133 | GB115: 49'm | GD115: =BO170 -> 27.49253562 | GE115: =BP170 -> 124.7183377 | GF115: شیفت 10 | GH115: =-GD115+FK99 -> -17.49253562 | GI115: =GE115 -> 124.7183377 | GJ115: شیفت 10 | GN115: 22پایین لباس پهلو | GR115: پایین لباس پهلو | GT115: =GT116+0.3*(GT113-GT116) -> 20.58122049 | GU115: =GU116+0.2*(GU113-GU116) -> 50.72086921 | GX115: =-GT115+GA99 -> -10.58122049 | GY115: =GU115 -> 50.72086921 | HB115: =BK176 -> 16.47419249 | HC115: =BL176 -> 50.5 | HD115: شیفت41' | HF115: =-HB115+GI99 -> -6.47419249 | HG115: =HC115 -> 50.5 | HH115: شیفت41' | HL115: =-DS153-HY101 -> -9.920460185 | HM115: =DT153 -> 148.0654097 | HN115: 39 | HT115: =-FV114-HY101 -> -6.18392 | HU115: =FW114 -> 108 | HV115: شیفت 40 | HX115: =-FB113-HY101 -> -7.154795589 | HY115: =FC113 -> 148.6924648 | HZ115: شیفت 34b | ID115: 17' | IF115: =-FN115-HY101 -> 16.01857227 | IG115: =FO115 -> 410.3948845 | IH115: s2 | IJ115: =-CR167-HY101 -> -6.18392 | IK115: =CS167 -> 108 | IL115: شیفت40 یا dd5 | IN115: =-FD261-HY101 -> 17.15 | IO115: =FE261 -> 106.96 | IP115: 26'' | IR115: =-FN153-HY101 -> 13.47919554 | IS115: 115.6581632 | IT115: 7n | IV115: =-DI243-HY101 -> 5 | IW115: =DJ243 -> 78.85589662 | IX115: m11
J116: (1→ 4) | K116: =H124-H123 -> 16.1 | L116: =I124-I123 -> 16.1 | Q116: =AN118 -> 0 | R116: =AO118 -> 16.1 | S116: 4 | U116: =AN138 -> 17.84341158 | V116: =AO138 -> 32.248442 | W116: 24 | Y116: =I127-I126 -> 14 | Z116: (1→ 4) | AA116: =H127-H126 -> 14 | AF116: =AR118 -> 0 | AG116: =AS118 -> 14 | AH116: 4 | AJ116: =AR140 -> 15.85111247 | AK116: =AS140 -> 32.04076703 | AL116: 26 | AN116: 0 | AO116: =K114+AP111 -> 41.767125 | AP116: 2 | AR116: 0 | AS116: =AA114+AT111 -> 39.79309752 | AT116: 2 | AW116: (13 → 14→ 9→ 7) | AX116: وصل | BD116: =BD155 -> 28.25 | BE116: =BE155 -> 124.7739049 | BF116: 14شیفت | BG116: 1.108507124 | BH116: (8 → 13) | BI116: 1.358982128 | BK116: =BI108-BI118+BI98+'متغیرها '!C56 -> 22.73609817 | BL116: =BI110+BI97+'متغیرها '!C57 -> 128.5403377 | BM116: شیفت15 | BO116: =BK101 -> 17.22007113 | BP116: =BL101 -> 142.4802193 | BQ116: 22 | BS116: =J236 -> -7.15 | BT116: =K236 -> 120.6 | BU116: e1 | CA116: =BO105-CB112 -> 26.13355349 | CB116: =BP105-CB113 -> 129.2753377 | CC116: 14 | CD116: نقطه حلقه آستین | CE116: =CA104+SQRT(POWER(CA116-CA104,2)+POWER(CB116-CB104,2))*SIN(IF(CB116=CB104,RADIANS(90)-CB114,ATAN((CA116-CA104)/ABS(CB116-CB104))+IF(CB116>CB104,-1,1)*CB114)) -> 26.13379869 | CF116: =CB104+IF(CB116<CB104,-1,1)*SQRT(POWER(CA116-CA104,2)+POWER(CB116-CB104,2))*COS(IF(CB116=CB104,RADIANS(90)-CB114,ATAN((CA116-CA104)/ABS(CB116-CB104))+IF(CB116>CB104,-1,1)*CB114)) -> 129.2762709 | CG116: b8 | CI116: مولفه افقی | CJ116: مولفه عمودی | CK116: اسم نقطه | CM116: =CM114 -> 16.09902112 | CN116: =CN114 -> 148.5758685 | CO116: شیفت وسط 22f | CQ116: α4 | CR116: =0.5*(P139+0.3*(P140-P139)+AE139+0.3*(AE140-AE139)) -> 0.3164156761 | CS116: زاویه سرشانه با افق | CU116: =CQ104+CR105 -> 16.205 | CV116: =CR104+CR106 -> 131.8843924 | CW116: شیفت40 | CY116: =-CU116+CZ101 -> -6.205 | CZ116: =CV116 -> 131.8843924 | DA116: شیفت40 | DC116: =AZ168 -> 24.59 | DD116: =BA168 -> 110.1599133 | DE116: 41 | DG116: =DG115+DD128*SIN(DD123-DD132) -> 19.45834264 | DH116: =DH115-DD128*COS(DD123-DD132) -> 101.6575893 | DI116: 47''s | DK116: 21.77310463 | DL116: 50.5 | DM116: 1r | DO116: =BO112 -> 10.60071146 | DP116: =BP112 -> 148.2315422 | DQ116: 28 | DS116: =DO122 -> 5 | DT116: =DP122+0.5*DP121 -> 143.2058822 | DU116: 21m | DX116: =CM114-EA137 -> 16.09902112 | DY116: =CN114 -> 148.5758685 | DZ116: وسط 22f | EB116: =-DX116+ED137 -> -6.099021121 | EC116: =DY116 -> 148.5758685 | ED116: وسط 22f | EF116: =CQ112 -> 12.46761528 | EG116: =CR112 -> 149.7930975 | EH116: 23 | EJ116: =-EF116+ED138 -> -2.467615275 | EK116: =EG116 -> 149.7930975 | EL116: 23 | ER116: α22g2 | ES116: =ATAN((ES103-ES105)/(ER103-ER105)) -> 1.448243784 | EV116: α18p2 | EW116: =ATAN((EW103-EW105)/(EV103-EV105)) -> 1.470621613 | FB116: =ER150+BT130 -> 17.15479559 | FC116: =ES150 -> 148.6924648 | FD116: شیفت 34b | FF116: =BW118 -> 18.77649872 | FG116: =BX118 -> 154.9339899 | FH116: a2 | FN116: =DC108 -> 14.78142 | FO116: =DD108 -> 101.14 | FP116: 47' | FV116: =FN178 -> 20.35942045 | FW116: =FO178 -> 105.7429962 | FX116: 37شیفت | GL116: =BK172 -> 27.0306749 | GM116: 51.60434605 | GN116: شیفت43'' | GP116: =-GL116+FS99 -> -17.0306749 | GQ116: =GM116 -> 51.60434605 | GR116: شیفت43'' | GT116: =BK176 -> 16.47419249 | GU116: =BL176 -> 50.5 | GV116: شیفت41' | GX116: =-GT116+GA99 -> -6.47419249 | GY116: =GU116 -> 50.5 | GZ116: شیفت41' | HB116: =DO111 -> 15.30125 | HC116: =DP111 -> 50.5 | HD116: =DQ111 -> شیفت50 | HF116: =-HB116+GI99 -> -5.30125 | HG116: =HC116 -> 50.5 | HH116: =DU111 -> 23m | HL116: =-DS154-HY101 -> -9.121726907 | HM116: =DT154 -> 141.5805952 | HN116: 37 | HP116: =-CM125-HY101 -> -4.96392 | HQ116: =CN125 -> 120.88 | HR116: 43 | HV116: چیب | HX116: =-FB114-HY101 -> -9.920460185 | HY116: =FC114 -> 148.0654097 | HZ116: شیفت22b | IB116: =-FJ114-HY101 -> -5.14642 | IC116: =FK114 -> 50.5 | ID116: شیفت 53 | IF116: =-FN116-HY101 -> -4.78142 | IG116: =FO116 -> 101.14 | IH116: 47' | IN116: =-FD262-HY101 -> 5 | IO116: =FE262 -> 106.96 | IP116: d4 | IR116: =-FN154-HY101 -> 7.361188094 | IS116: 109.8593877 | IT116: 6n | IZ116: =-ES245-HY101 -> 5.462086758 | JA116: =ET245 -> 56.4032 | JB116: p5
E117: اندازه ها در بالاتنه | H117: اندازه محاسبه | J117: (4 → 5) | K117: =0.5*G154*(H120-H121) -> 9.96392 | L117: =0.5*H154*('متغیرها '!U72-'متغیرها '!U73) -> 9.96392 | Q117: =AN115 -> 0 | R117: =AO115 -> 0 | S117: 1 | U117: =AN130 -> 16.98277814 | V117: =AO130 -> 26.47590489 | W117: 16 | Y117: =0.75*I127 -> 30 | Z117: (1 → 5) | AA117: ='متغیرها '!C83*H127 -> 30 | AF117: =AR115 -> 0 | AG117: =AS115 -> 0 | AH117: 1 | AJ117: =AR132 -> 15.69762498 | AK117: =AS132 -> 25.88138576 | AL117: 18 | AN117: =K115 -> 23.25 | AO117: =0+AP111 -> 0 | AP117: 3 | AR117: =AA115 -> 22.49253562 | AS117: =AT111 -> 0 | AT117: 3 | AV117: =L132 -> 5.02 | AW117: (12 → 15) | AX117: =K132 -> 6.267221858 | AZ117: =AX104-AX119+AX99 -> 25.11638907 | BA117: =AX113+AX98 -> 128.5959049 | BB117: 17 | BD117: =BW148+'متغیرها '!C55 -> 16.292528 | BE117: =BX148 -> 124.3156364 | BF117: شیفت b | BG117: 0.735 | BH117: (13 → 14) | BI117: 0.735 | BK117: =BI108-BI118+BI98+'متغیرها '!C56 -> 22.73609817 | BL117: =BI110+BI119+BI97+'متغیرها '!C57 -> 131.4803377 | BM117: شیفت16 | BO117: =BK154 -> 16.205 | BP117: =BL154 -> 131.8843924 | BQ117: 40 | BS117: =J234 -> -5.903013915 | BT117: =K234 -> 141.8358859 | BU117: e9 | BW117: =BS104+SQRT(POWER(BS117-BS104,2)+POWER(BT117-BT104,2))*SIN(BT103-ATAN((BS104-BS117)/(BT117-BT104))) -> -5.903013915 | BX117: =BT104+SQRT(POWER(BS117-BS104,2)+POWER(BT117-BT104,2))*COS(BT103-ATAN((BS104-BS117)/(BT117-BT104))) -> 141.8358859 | BY117: =BU117 -> e9 | CA117: =BO104-CB112 -> 22.73609817 | CB117: =BP104-CB113 -> 131.4803377 | CC117: 16 | CD117: نقطه حلقه آستین | CE117: =CA104+SQRT(POWER(CA117-CA104,2)+POWER(CB117-CB104,2))*SIN(IF(CB117=CB104,RADIANS(90)-CB114,ATAN((CA117-CA104)/ABS(CB117-CB104))+IF(CB117>CB104,-1,1)*CB114)) -> 22.73613612 | CF117: =CB104+IF(CB117<CB104,-1,1)*SQRT(POWER(CA117-CA104,2)+POWER(CB117-CB104,2))*COS(IF(CB117=CB104,RADIANS(90)-CB114,ATAN((CA117-CA104)/ABS(CB117-CB104))+IF(CB117>CB104,-1,1)*CB114)) -> 131.4809515 | CG117: b10 | CI117: =CI109+CJ114*(1-0.5*'متغیرها '!C76+0.5*'متغیرها '!C78-0.5*'متغیرها '!C71)*COS(CJ113) -> 19.73737693 | CJ117: =CJ109-CJ114*(1-0.5*'متغیرها '!C76+0.5*'متغیرها '!C78-0.5*'متغیرها '!C71)*SIN(CJ113) -> 147.384612 | CK117: 22f | CM117: =CI104+CJ105 -> 14.96392 | CN117: =CJ104 -> 124.1 | CO117: شیفت5 پیراهن | CR117: =G167 -> 11.34343776 | CS117: w | DC117: =BD177-DD122 -> 28.25 | DD117: =BE177 -> 124.7739049 | DE117: 14 | DG117: =DG112+DD129*SIN(DD123-DD134) -> 27.40519324 | DH117: =DH112-DD129*COS(DD123-DD134) -> 112.6020805 | DI117: 41s | DK117: =DD569 -> 15.14642 | DL117: =DE569 -> 50.5 | DM117: 53r | DO117: =BO111 -> 12.46761528 | DP117: =BP111 -> 149.7930975 | DQ117: 23 | DS117: =DS118-DD146*COS(DD140) -> -13.00493941 | DT117: =DT118+DD146*SIN(DD140) -> 454.5770554 | DU117: s''2m | DV117: امتداد جیب | DX117: =CI109 -> 12.46066531 | DY117: =CJ109 -> 149.767125 | DZ117: 25 | EB117: =-DX117+ED137 -> -2.460665312 | EC117: =DY117 -> 149.767125 | ED117: 25 | EH117: پهلو ترک | EL117: پهلو ترک | ER117: α22g | ES117: =ES115+ES116 -> 1.67252422 | EV117: α18p | EW117: =EW115+EW116 -> 1.725645807 | FB117: =BS128+BT130 -> 14.96392 | FC117: =BT128 -> 124.1 | FD117: شیفت 5 پیراهن | FF117: =BW120 -> 15.87019051 | FG117: =BX120 -> 161.3749583 | FH117: a4 | FJ117: =AZ180 -> 15.14642 | FK117: =BA180 -> 101.14 | FL117: شیفت 47'' | FR117: =FR111 -> 15.14642 | FS117: =FS114 -> 50.5 | FT117: g53 | FV117: =FN179 -> 25.48630239 | FW117: =FO179 -> 91.65700381 | FX117: شیفت37' | FZ117: =FZ109 -> 11.27848251 | GA117: =GA109 -> 50.5 | GB117: a5 | GF117: 4سرشانه با ساسون | GJ117: سرشانه با ساسون | GL117: 24.91937842 | GM117: 51.49391145 | GN117: 41'''' | GP117: =-GL117+FS99 -> -14.91937842 | GQ117: 51.49391145 | GR117: 41'''' | GT117: =DO111 -> 15.30125 | GU117: =DP111 -> 50.5 | GV117: =DQ111 -> شیفت50 | GX117: =-GT117+GA99 -> -5.30125 | GY117: =GU117 -> 50.5 | GZ117: =DU111 -> 23m | HL117: =-DS155-HY101 -> -9.544139937 | HM117: =DT155 -> 135.7595608 | HN117: 35 | HP117: =-CM126-HY101 -> -4.96392 | HQ117: =CN126 -> 124.1 | HR117: 5 بالاتنه | HT117: =-FV116-HY101 -> -10.35942045 | HU117: =FW116 -> 105.7429962 | HV117: 37شیفت | IB117: =-FJ115-HY101 -> -5.14642 | IC117: =FK115 -> 101.14 | ID117: شیفت 47'' | IJ117: =-CR167-HY101 -> -6.18392 | IK117: =CS167 -> 108 | IL117: شیفت40 یا dd5 | IR117: =-FN155-HY101 -> 1.3615937 | IS117: 106.96 | IT117: 5n | IV117: =-DI245-HY101 -> 5 | IW117: =DJ245 -> 78.85589662 | IX117: m11 | IZ117: =-ES246-HY101 -> 3.25 | JA117: =ET246 -> 79.141 | JB117: p4
E118: دور کمر | F118: a | H118: ='متغیرها '!U70+0.3*'متغیرها '!C60*('متغیرها '!U52+'متغیرها '!U54+'متغیرها '!U72) -> 68 | J118: (5 → 6) | K118: ='متغیرها '!C90*(H124-H123) -> 0 | L118: =0.2*(H124-H123) -> 3.22 | Q118: =AN122 -> 8.74392 | R118: 0 | S118: 8 | U118: =AN134 -> 18.23622251 | V118: =AO134 -> 22.94790489 | W118: 20 | Y118: =H148*'متغیرها '!U73 -> 10.375 | Z118: (4 → 6) | AA118: =G148*H121 -> 11.205 | AF118: =AR123 -> 1.95 | AG118: 0 | AH118: 9 | AJ118: =AR136 -> 17.73609817 | AK118: =AS136 -> 21.47138576 | AL118: 22 | AN118: 0 | AO118: =K116+AP111 -> 16.1 | AP118: 4 | AR118: 0 | AS118: =AA116+AT111 -> 14 | AT118: 4 | AV118: 5.88 | AW118: (15 → 16) | AX118: 5.88 | AZ118: =AX104-AX119+AX99 -> 25.11638907 | BA118: =AX113+AX120+AX98 -> 129.4779049 | BB118: 18 | BF118: کش سویشرت | BG118: 3.879774935 | BH118: (8 → 15) | BI118: 4.756437449 | BS118: =J239 -> 18.77649872 | BT118: =K239 -> 154.9339899 | BU118: a2 | BW118: =BS104+SQRT(POWER(BS118-BS104,2)+POWER(BT118-BT104,2))*SIN(BT103-ATAN((BS104-BS118)/(BT118-BT104))) -> 18.77649872 | BX118: =BT104+SQRT(POWER(BS118-BS104,2)+POWER(BT118-BT104,2))*COS(BT103-ATAN((BS104-BS118)/(BT118-BT104))) -> 154.9339899 | BY118: a2 | CA118: =BO103-CB112 -> 20.69762498 | CB118: =BP103-CB113 -> 135.8903377 | CC118: 12 | CD118: نقطه حلقه آستین | CE118: =CA104+SQRT(POWER(CA118-CA104,2)+POWER(CB118-CB104,2))*SIN(ATAN((CA118-CA104)/(CB118-CB104))-CB114) -> 20.69724842 | CF118: =CB104+SQRT(POWER(CA118-CA104,2)+POWER(CB118-CB104,2))*COS(ATAN((CA118-CA104)/(CB118-CB104))-CB114) -> 135.8907599 | CG118: b6 | CI118: =CI119+IF(CI117>CI119,0.3,0.7)*(CI117-CI119) -> 19.60211103 | CJ118: =CJ119+0.5*(CJ117-CJ119) -> 141.5720864 | CK118: 24f | CQ118: نقاط حلقه آستین پشت بدون ساسون سرشانه | CU118: =CQ104 -> 16.205 | CV118: =CR104 -> 131.8843924 | CW118: 40 | CY118: =-CU118+CZ101 -> -6.205 | CZ118: =CV118 -> 131.8843924 | DA118: 40 | DC118: =BW133 -> 23.69478157 | DD118: =BX133 -> 131.5677001 | DE118: b8 | DG118: =DC105+(DC115-DC105+3)*COS(DD136-RADIANS('متغیرها '!C187)) -> 16.12061586 | DH118: =DD105-(DC115-DC105+3)*SIN(DD136-RADIANS('متغیرها '!C187)) -> 86.65414111 | DI118: s''2 | DL118: ='متغیرها '!C55 -> 0 | DM118: شیفت افقی تکه پهلو | DO118: =BO101-DP120 -> 21.20924996 | DP118: =BP101 -> 147.0892127 | DQ118: 18 | DS118: =DS104+DD148*SIN(DD143) -> -13.00493941 | DT118: =DT104-DD148*COS(DD143) -> 454.5770554 | DU118: s'2m | DZ118: پهلو ترک | ED118: پهلو ترک | EF118: =BO170-EA138 -> 27.49253562 | EG118: =BP170-EA139 -> 124.7183377 | EH118: 10 | EJ118: =-EF118+ED138 -> -17.49253562 | EK118: =EG118 -> 124.7183377 | EL118: 10 | ER118: αb12g | ES118: =ES110*EW118 -> -0.07105158223 | EV118: αb12p | EW118: =(RADIANS(180)-ES117-EW117+ES109)*(1/(1+ES110)) -> -0.03552579111 | FJ118: =AZ167+BT130 -> 16.18392 | FK118: =BA167 -> 108 | FL118: شیفت 40 | FN118: =DG112 -> 27.78113731 | FO118: =DH112 -> 127.6627251 | FP118: b2s | FR118: =FR112 -> 26.665 | FS118: =BE178-(H105-H107) -> 51.6599133 | FT118: g49 | FZ118: =FZ115 -> 22.49801504 | GA118: =GA115 -> 51.6599133 | GB118: 49'm | GD118: =CE105 -> 12.46761528 | GE118: =CF105 -> 149.7930975 | GF118: 23 | GH118: =-GD118+FK99 -> -2.467615275 | GI118: =GE118 -> 149.7930975 | GJ118: 23 | GL118: 22.28025781 | GM118: 51.10739033 | GN118: 41''' | GP118: =-GL118+FS99 -> -12.28025781 | GQ118: 51.10739033 | GR118: 41''' | HB118: =DO103 -> 20.69762498 | HC118: =DP103 -> 135.8903377 | HD118: =DQ103 -> شیفت12p | HF118: =-HB118+GI99 -> -10.69762498 | HG118: =HC118 -> 135.8903377 | HH118: =DU103 -> شیفت10m | HT118: =-FV117-HY101 -> -15.48630239 | HU118: =FW117 -> 91.65700381 | HV118: شیفت37' | HX118: =-FB116-HY101 -> -7.154795589 | HY118: =FC116 -> 148.6924648 | HZ118: شیفت 34b | IF118: =-FN118-HY101 -> -17.78113731 | IG118: =FO118 -> 127.6627251 | IH118: b2s | IJ118: =-CR170-HY101 -> -6.0266316 | IK118: =CS170 -> 106.96 | IL118: dd5 | IN118: =-FD264-HY101 -> 5 | IO118: =FE264 -> 103.5844593 | IP118: p26 | IR118: =-FN156-HY101 -> -3.9012084 | IS118: 106.96 | IT118: d5 | IV118: =-DI246-HY101 -> 5 | IW118: =DJ246 -> 84.8683328 | IX118: m9 | IZ118: =-ES247-HY101 -> 5 | JA118: =ET247 -> 80.016 | JB118: p3
E119: نوار کمر از پشت بین دو خط پهلو | F119: b | H119: ='متغیرها '!U71+0.3*'متغیرها '!C60*('متغیرها '!U53+'متغیرها '!U55+'متغیرها '!U73) -> 33.7 | J119: (5 → 7) | K119: ='متغیرها '!C88*(H124-H123) -> 3.22 | L119: =0*(I124-I123) -> 0 | Q119: 11.18392 | R119: 0 | S119: 9 | U119: =AN132 -> 20.11638907 | V119: =AO132 -> 21.47790489 | W119: 18 | Y119: =(H153-1)*(I127-I126)+0.2*'متغیرها '!U82 -> 10.3159916 | Z119: (6 → 7) | AA119: =(G153-1)*(H127-H126)+0.2*H130 -> 10.3159916 | AF119: 10.23 | AG119: 0 | AH119: 10 | AJ119: =AR134 -> 21.13355349 | AK119: =AS134 -> 19.26638576 | AL119: 20 | AN119: =K117 -> 9.96392 | AO119: =K116+AP111 -> 16.1 | AP119: 5 | AR119: 0 | AS119: =AA117+AT111 -> 30 | AT119: 5 | AV119: 2.51 | AW119: (12 → 17) | AX119: 3.133610929 | BD119: =AZ106 -> 5 | BE119: =BA151+'متغیرها '!C278*('متغیرها '!U60-'متغیرها '!U59) -> 78.1899133 | BG119: 2.94 | BH119: (15 →16) | BI119: 2.94 | BK119: =BI108-BI116+BI98+'متغیرها '!C56 -> 26.13355349 | BL119: =BI110+BI97+'متغیرها '!C57 -> 128.5403377 | BM119: شیفت13 | BO119: =BK155 -> 16.205 | BP119: =BL155 -> 91.64 | BQ119: 38 | BS119: =J245 -> 14.98699867 | BT119: =K245 -> 152.3505575 | BU119: a13 | BW119: =BS104+SQRT(POWER(BS119-BS104,2)+POWER(BT119-BT104,2))*SIN(BT103-ATAN((BS104-BS119)/(BT119-BT104))) -> 14.98699867 | BX119: =BT104+SQRT(POWER(BS119-BS104,2)+POWER(BT119-BT104,2))*COS(BT103-ATAN((BS104-BS119)/(BT119-BT104))) -> 152.3505575 | BY119: a13 | CA119: =BO102-CB112 -> 20.85111247 | CB119: =BP102-CB113 -> 142.0497189 | CC119: 20 | CD119: نقطه حلقه آستین | CE119: =CA104+SQRT(POWER(CA119-CA104,2)+POWER(CB119-CB104,2))*SIN(ATAN((CA119-CA104)/(CB119-CB104))-CB114) -> 20.85015697 | CF119: =CB104+SQRT(POWER(CA119-CA104,2)+POWER(CB119-CB104,2))*COS(ATAN((CA119-CA104)/(CB119-CB104))-CB114) -> 142.0501556 | CG119: b12 | CI119: =CI108 -> 19.54413994 | CJ119: =CJ108 -> 135.7595608 | CK119: 16f | CM119: =BS128+BT130 -> 14.96392 | CN119: =BT128 -> 124.1 | CO119: شیفت 5 پیراهن | CQ119: مولفه افقی | CR119: مولفه عمودی | CS119: اسم نقطه | CU119: =CU122+0.5*(CQ120-CU122) -> 16.10597108 | CV119: =CR120+0.5*(CV122-CR120) -> 148.601841 | CW119: وسط 18f | CY119: =-CU119+CZ101 -> -6.105971084 | CZ119: =CV119 -> 148.601841 | DA119: وسط 18f | DC119: =BW132 -> 26.94542063 | DD119: =BX132 -> 131.3922373 | DE119: b4 | DG119: =DH134 -> -5.653572272 | DH119: =DI134 -> 410.3948845 | DI119: s'2 | DK119: نقاط خروجی | DO119: =BO102-DP120 -> 20.85111247 | DP119: =BP102 -> 142.0497189 | DQ119: 20 | DS119: =CE109 -> 17.14383517 | DT119: =CF109 -> 148.6206501 | DU119: 30m | DX119: =CI112-EA137 -> 28.25 | DY119: =CJ112 -> 124.7739049 | DZ119: 14 | EB119: =-DX119+ED137 -> -18.25 | EC119: =DY119 -> 124.7739049 | ED119: 14 | EF119: =BK162-EA138 -> 25.75 | EG119: =BL162-EA139 -> 110.1043461 | EH119: 36 | EJ119: =-EF119+ED138 -> -15.75 | EK119: =EG119 -> 110.1043461 | EL119: 36 | ER119: نقاط خروجی | EV119: نقاط خروجی | FB119: =BS104+BT130 -> 14.96392 | FC119: =BT104 -> 124.1 | FD119: شیفت 5 بالاتنه | FF119: =BW120 -> 15.87019051 | FG119: 161.3749583 | FH119: a4 | FN119: =DG117 -> 27.40519324 | FO119: =DH117 -> 112.6020805 | FP119: 41s | FT119: سینه | FX119: پهلو جدا روی جیب با ساسون | GB119: انگلیسی | GD119: =EW150 -> 17.19878773 | GE119: =EX150 -> 148.8669913 | GF119: 30b | GH119: =-GD119+FK99 -> -7.198787727 | GI119: =GE119 -> 148.8669913 | GJ119: 30b | GL119: 19.64113721 | GM119: 50.72086921 | GN119: 41'' | GP119: =-GL119+FS99 -> -9.641137212 | GQ119: 50.72086921 | GR119: 41'' | GT119: =DO105 -> 16.205 | GU119: =DP105 -> 131.8843924 | GV119: =DQ105 -> شیفت40 | GX119: =-GT119+GA99 -> -6.205 | GY119: =GU119 -> 131.8843924 | GZ119: =DU105 -> شیفت42m | HB119: =EJ337 -> 11.30125 | HC119: =EK337-0.3*EY167 -> 68.25 | HD119: e215 | HF119: =-HB119+GI99 -> -1.30125 | HG119: =HC119 -> 68.25 | HH119: e215 | HL119: =-DS157-HY101 -> -9.544139937 | HM119: =DT157 -> 135.7595608 | HN119: 35 | HP119: =-CM128-HY101 -> -4.96392 | HQ119: =CN128 -> 124.1 | HR119: 5 بالاتنه | HX119: =-FB117-HY101 -> -4.96392 | HY119: =FC117 -> 124.1 | HZ119: شیفت 5 پیراهن | IB119: =-FJ115-HY101 -> -5.14642 | IC119: =FK115 -> 101.14 | ID119: شیفت 47'' | IF119: =-FN119-HY101 -> -17.40519324 | IG119: =FO119 -> 112.6020805 | IH119: 41s | IN119: =-FD265-HY101 -> 5 | IO119: =FE265 -> 106.96 | IP119: d4
E120: دور سینه : از برجسته ترین قسمت سینه | F120: s1 | H120: ='متغیرها '!U72+0.3*'متغیرها '!C60*('متغیرها '!U52+'متغیرها '!U54+'متغیرها '!U72) -> 88 | J120: (1 → 8) | K120: =0.5*G154*(H120-H121)-IF(G152>0,G152,0) -> 8.74392 | L120: =0.5*H154*('متغیرها '!U72-'متغیرها '!U73)-IF(H152>0,H152,0) -> 8.74392 | Q120: 19.59 | R120: 0 | S120: 10 | U120: =AN126 -> 23.25 | V120: =AO126 -> 20.59590489 | W120: 12 | Y120: =(H153*(I127-I126)+0.2*'متغیرها '!U82)*0.9-(I127-I126) -> 7.884392437 | Z120: (6 → 8) | AA120: =(G153*(H127-H126)+0.2*H130)*'متغیرها '!C85-(H127-H126) -> 7.884392437 | AF120: 12.18 | AG120: 0 | AH120: 11 | AJ120: =AR129 -> 23.96253562 | AK120: =AS129 -> 18.53138576 | AL120: 15 | AN120: =K117 -> 9.96392 | AO120: =K116+K118+AP111 -> 16.1 | AP120: 6 | AR120: =AA118 -> 11.205 | AS120: =AA116+AT111 -> 14 | AT120: 6 | AV120: 0.882 | AW120: (17 → 18) | AX120: 0.882 | AZ120: =AX104-AX121+AX99 -> 23.23622251 | BA120: =AX113+AX98 -> 128.5959049 | BB120: 19 | BD120: =BD154 -> 27.83873219 | BE120: =BE119 -> 78.1899133 | BG120: 1.764 | BH120: (12 → 17) | BI120: 0.5116249799 | BK120: =BI108-BI116+BI98+'متغیرها '!C56 -> 26.13355349 | BL120: =BI110+BI117+BI97+'متغیرها '!C57 -> 129.2753377 | BM120: شیفت14 | BO120: =BO119 -> 16.205 | BP120: =BL168 -> 50.5 | BQ120: 38''' | BS120: =J240 -> 15.87019051 | BT120: =K240 -> 161.3749583 | BU120: a4 | BW120: =BS104+SQRT(POWER(BS120-BS104,2)+POWER(BT120-BT104,2))*SIN(BT103-ATAN((BS104-BS120)/(BT120-BT104))) -> 15.87019051 | BX120: =BT104+SQRT(POWER(BS120-BS104,2)+POWER(BT120-BT104,2))*COS(BT103-ATAN((BS104-BS120)/(BT120-BT104))) -> 161.3749583 | BY120: a4 | CA120: =BO101-CB112 -> 21.20924996 | CB120: =BP101-CB113 -> 147.0892127 | CC120: 18 | CD120: نقطه حلقه آستین | CE120: =CA104+SQRT(POWER(CA120-CA104,2)+POWER(CB120-CB104,2))*SIN(ATAN((CA120-CA104)/(CB120-CB104))-CB114) -> 21.20782077 | CF120: =CB104+SQRT(POWER(CA120-CA104,2)+POWER(CB120-CB104,2))*COS(ATAN((CA120-CA104)/(CB120-CB104))-CB114) -> 147.089683 | CG120: b16 | CI120: =CI110-0.85*(CI110-CI119)+CJ114*0.07*'متغیرها '!C76 -> 21.24703927 | CJ120: =CJ110+0.5*(CJ119-CJ110) -> 132.1777328 | CK120: 20f | CM120: =BS104+BT130 -> 14.96392 | CN120: =BT104 -> 124.1 | CO120: شیفت 5 بالاتنه | CQ120: =CQ112+CR117*(1-0.5*CR108+0.5*CR109-0.5*CR107)*COS(CR116) -> 19.74432689 | CR120: =CR112-CR117*(1-0.5*CR108+0.5*CR109-0.5*CR107)*SIN(CR116) -> 147.4105846 | CS120: 18f | DC120: =BW139 -> 28.37984841 | DD120: =BX139 -> 131.7136668 | DE120: b14 | DG120: =DG119-DC106+DC109 -> -6.018572272 | DH120: =DH119 -> 410.3948845 | DI120: s2 | DK120: مولفه افقی | DL120: مولفه عمودی | DM120: اسم نقطه | DP120: ='متغیرها '!C56 -> 0 | DQ120: شیفت افقی | DS120: =CE121 -> 18.70294574 | DT120: =CF121 -> 148.4192318 | DU120: 32m | DX120: =AZ168 -> 24.59 | DY120: =BA168 -> 110.1599133 | DZ120: 41 | EB120: =-DX120+ED137 -> -14.59 | EC120: =DY120 -> 110.1599133 | ED120: 41 | ER120: مولفه افقی | ES120: مولفه عمودی | ET120: اسم نقطه | EV120: مولفه افقی | EW120: مولفه عمودی | EX120: اسم نقطه | FB120: =BS128+BT130 -> 14.96392 | FC120: =BT128 -> 124.1 | FD120: شیفت 5 پیراهن | FF120: 10.1765118 | FG120: 158.1816497 | FH120: a6 | FJ120: =AZ167+BT130 -> 16.18392 | FK120: =BA167 -> 108 | FL120: شیفت 40 | FR120: =FR108 -> 5 | FS120: =BA165+(H124-H123) -> 124.1 | FT120: g4 | FV120: =DG126 -> 23.8118097 | FW120: =DH126 -> 131.5613832 | FX120: b'8s | FZ120: =ET175 -> -7.15 | GA120: 112.43 | GB120: e''1 | GL120: 16.47419249 | GM120: 50.5 | GN120: شیفت41' | GP120: =-GL120+FS99 -> -6.47419249 | GQ120: 50.5 | GR120: شیفت41' | GT120: =DO112 -> 17.18 | GU120: 110 | GV120: شیفت35 | GX120: =-GT120+GA99 -> -7.18 | GY120: =GU120 -> 110 | GZ120: =DU112 -> 26m | HL120: =-DS158-HY101 -> -7.483040965 | HM120: =DT158 -> 132.0396706 | HN120: 33 | HP120: =-CM129-HY101 -> -4.96392 | HQ120: =CN129 -> 124.1 | HR120: 5 پیراهن | HV120: 13' | IB120: =-FJ118-HY101 -> -6.18392 | IC120: =FK118 -> 108 | ID120: شیفت 40 | IJ120: =-CR170-HY101 -> -6.0266316 | IK120: =CS170 -> 106.96 | IL120: dd5 | IT120: 69' | IV120: =-DI248-HY101 -> 5 | IW120: =DJ248 -> 78.85589662 | IX120: m11 | IZ120: =-ES249-HY101 -> 5 | JA120: =ET249 -> 80.016 | JB120: p3
E121: پشت نوار سینه، بین دو خط پهلو | F121: s2 | H121: ='متغیرها '!U73+0.3*'متغیرها '!C60*('متغیرها '!U53+'متغیرها '!U55+'متغیرها '!U73) -> 41.5 | J121: (8 → 9) | K121: =IF(G152>0,2*G152,0) -> 2.44 | L121: =2*IF(H152>0,H152,0) -> 2.44 | Q121: 19.59 | R121: 2.199454267 | S121: 11 | U121: =AN127 -> 24.72 | V121: =AO127 -> 20.59590489 | W121: 13 | Y121: =H147 -> 1.95 | Z121: (1→ 9) | AA121: =G147 -> 1.95 | AF121: 20.75 | AG121: 0 | AH121: 12 | AN121: =K117 -> 9.96392 | AO121: =K116-K119+AP111 -> 12.88 | AP121: 7 | AR121: =AA118 -> 11.205 | AS121: =AA116+AA119+AT111 -> 24.3159916 | AT121: 7 | AV121: 4.016 | AW121: (12 → 19) | AX121: 5.013777487 | AZ121: =AX104-AX121+AX99 -> 23.23622251 | BA121: =AX113+AX122+AX98 -> 130.9479049 | BB121: 20 | BG121: 9.869090852 | BH121: (17 → 18) | BI121: 11.19887504 | BS121: =J241 -> 10.1765118 | BT121: =K241 -> 158.1816497 | BU121: a6 | BW121: =BS104+SQRT(POWER(BS121-BS104,2)+POWER(BT121-BT104,2))*SIN(BT103-ATAN((BS104-BS121)/(BT121-BT104))) -> 10.1765118 | BX121: =BT104+SQRT(POWER(BS121-BS104,2)+POWER(BT121-BT104,2))*COS(BT103-ATAN((BS104-BS121)/(BT121-BT104))) -> 158.1816497 | BY121: a6 | CA121: =BK146-CB112 -> 18.70449992 | CB121: =BL146-CB113 -> 148.4189969 | CC121: 32 | CD121: نقطه ساسون سرشانه | CE121: =CA104+SQRT(POWER(CA121-CA104,2)+POWER(CB121-CB104,2))*SIN(ATAN((CA121-CA104)/(CB121-CB104))-CB114) -> 18.70294574 | CF121: =CB104+SQRT(POWER(CA121-CA104,2)+POWER(CB121-CB104,2))*COS(ATAN((CA121-CA104)/(CB121-CB104))-CB114) -> 148.4192318 | CG121: 32 | CI121: =CI110-0.5*(CI110-CI119)+CJ114*0.07*'متغیرها '!C76 -> 24.29409029 | CJ121: =CJ110+0.15*(CJ119-CJ110) -> 129.6704533 | CK121: 18f | CQ121: =CQ122+0.2*(CQ120-CQ122)-CR117*0.05*CR108 -> 19.8640669 | CR121: =CR122+0.4*(CR120-CR122) -> 141.1834031 | CS121: 20f | CU121: =CU119 -> 16.10597108 | CV121: =CV119 -> 148.601841 | CW121: وسط 18f | CY121: =-CU121+CZ101 -> -6.105971084 | CZ121: =CV121 -> 148.601841 | DA121: وسط 18f | DC121: =BW140 -> 27.78113731 | DD121: =BX140 -> 127.6627251 | DE121: b2 | DG121: =DG117+DD130*SIN(DD123+DD133) -> 33.93436686 | DH121: =DH117-DD130*COS(DD123+DD133) -> 92.9542939 | DI121: 45ss | DK121: =DK104-DL109 -> 25.11638907 | DL121: =DL104 -> 124.7739049 | DM121: 14شیفتm | DP121: =H170 -> 1.451325751 | DQ121: m' | DS121: =EV122 -> 20.46683275 | DT121: =EW122 -> 135.8907599 | DU121: =EX122 -> b'6p | DV121: چرخیده | EF121: =BK162-EA138 -> 25.75 | EG121: =BL162-EA139 -> 110.1043461 | EH121: 36 | EJ121: =-EF121+ED138 -> -15.75 | EK121: =EG121 -> 110.1043461 | EL121: 36 | ER121: =ER103-ES114*COS(ES116+ES118) -> 18.66337344 | ES121: =ES103-ES114*SIN(ES116+ES118) -> 141.6536606 | ET121: b'12g | EV121: =EV103-EW114*COS(EW116+EW118) -> 20.65814391 | EW121: =EW103-EW114*SIN(EW116+EW118) -> 142.0729067 | EX121: b'12p | FF121: -3.956058877 | FG121: 149.5760315 | FH121: a8 | FJ121: =AZ161+BT130 -> 14.96392 | FK121: =BA161 -> 120.88 | FL121: شیفت 43 | FN121: =DG117 -> 27.40519324 | FO121: =DH117 -> 112.6020805 | FP121: 41s | FR121: =AZ104 -> 14.96392 | FS121: =FS120 -> 124.1 | FT121: g5 | FV121: =DG124 -> 24.34741188 | FW121: =DH124 -> 111.1433746 | FX121: 41m | FZ121: -7.55 | GA121: 120.6 | GB121: e'1 | GD121: =EW150 -> 17.19878773 | GE121: =EX150 -> 148.8669913 | GF121: 30b | GH121: =-GD121+FK99 -> -7.198787727 | GI121: =GE121 -> 148.8669913 | GJ121: 30b | GL121: 15.30125 | GM121: 50.5 | GN121: شیفت50 | GP121: =-GL121+FS99 -> -5.30125 | GQ121: 50.5 | GR121: شیفت50 | GT121: 15.30125 | GU121: 91.64 | GV121: شیفت38'' | GX121: =-GT121+GA99 -> -5.30125 | GY121: =GU121 -> 91.64 | GZ121: =DU113 -> 28m | HB121: =EJ337 -> 11.30125 | HC121: =EK337-0.3*EY167 -> 68.25 | HD121: e215 | HF121: =-HB121+GI99 -> -1.30125 | HG121: =HC121 -> 68.25 | HH121: e215 | HL121: =-DS159-HY101 -> -5.742557389 | HM121: =DT159 -> 126.8318243 | HN121: 23 | HT121: =-FV120-HY101 -> -13.8118097 | HU121: =FW120 -> 131.5613832 | HV121: b'8s | HX121: =-FB119-HY101 -> -4.96392 | HY121: =FC119 -> 124.1 | HZ121: شیفت 5 بالاتنه | IF121: =-FN121-HY101 -> -17.40519324 | IG121: =FO121 -> 112.6020805 | IH121: 41s | IJ121: =-CR173-HY101 -> -14.69475723 | IK121: =CS173 -> 109.1199133 | IL121: d3 | IP121: 52' | IR121: =-DE278-HY101 -> 5 | IS121: =DF278 -> 103.1 | IT121: s1 | IV121: =-DI249-HY101 -> 17.15 | IW121: =DJ249 -> 78.85589662 | IX121: m'11 | IZ121: =-ES250-HY101 -> 17.15 | JA121: =ET250 -> 80.016 | JB121: p'3
E122: فاصله عمودی از خط سینه جلو تا خط سینه پشت که از کنار حلقه آستین بگذرد | F122: t1 | H122: =('متغیرها '!U74-'متغیرها '!U77)-0.5*'متغیرها '!C60*('متغیرها '!U74-'متغیرها '!U77)+'متغیرها '!C63*('متغیرها '!U75-'متغیرها '!U78) -> 21.8 | I122: =('متغیرها '!U74-'متغیرها '!U77) -> 21.8 | J122: (7 → 8) | K122: وصل | Q122: =AN124 -> 19.59 | R122: =AO124 -> 0 | S122: 10 | Z122: (9 →5) | AA122: وصل | AF122: 20.75 | AG122: 0.09539416044 | AH122: 13 | AN122: =K120 -> 8.74392 | AO122: =0+AP111 -> 0 | AP122: 8 | AR122: =AA118 -> 11.205 | AS122: =AA116+AA120+AT111 -> 21.88439244 | AT122: 8 | AV122: 2.352 | AW122: (19 → 20) | AX122: 2.352 | BD122: =AZ162 -> 14.96392 | BE122: =BE119 -> 78.1899133 | BG122: 0.5292 | BH122: (12 → 19) | BI122: 0.153487494 | BK122: =BI108+BI98+'متغیرها '!C56 -> 27.49253562 | BL122: =BI110+BI97+'متغیرها '!C57 -> 128.5403377 | BM122: شیفت8 | BO122: =BO153 -> 27.49253562 | BP122: =BP153 -> 124.7183377 | BQ122: 10 شیفت | BS122: =J249 -> -3.956058877 | BT122: =K249 -> 149.5760315 | BU122: a8 | BW122: =BS104+SQRT(POWER(BS122-BS104,2)+POWER(BT122-BT104,2))*SIN(BT103-ATAN((BS104-BS122)/(BT122-BT104))) -> -3.956058877 | BX122: =BT104+SQRT(POWER(BS122-BS104,2)+POWER(BT122-BT104,2))*COS(BT103-ATAN((BS104-BS122)/(BT122-BT104))) -> 149.5760315 | BY122: a8 | CA122: =BO106-CB112 -> 28.96253562 | CB122: =BP106-CB113 -> 128.5403377 | CC122: 9 | CD122: نقطه حلقه آستین | CE122: =CA104+SQRT(POWER(CA122-CA104,2)+POWER(CB122-CB104,2))*SIN(IF(CB122=CB104,RADIANS(90)-CB114,ATAN((CA122-CA104)/ABS(CB122-CB104))+IF(CB122>CB104,-1,1)*CB114)) -> 28.96284989 | CF122: =CB104+IF(CB122<CB104,-1,1)*SQRT(POWER(CA122-CA104,2)+POWER(CB122-CB104,2))*COS(IF(CB122=CB104,RADIANS(90)-CB114,ATAN((CA122-CA104)/ABS(CB122-CB104))+IF(CB122>CB104,-1,1)*CB114)) -> 128.5415368 | CG122: b14 | CM122: =BS104+BT130 -> 14.96392 | CN122: =BT104 -> 124.1 | CO122: شیفت 5 بالاتنه | CQ122: =CQ110+0.5*CR111+CR117*(0.2*CR109-0.3*CR108) -> 20.24848434 | CR122: =CR113+0.45*(CR120-CR113) -> 137.0319488 | CS122: 12f | CU122: =CQ112 -> 12.46761528 | CV122: =CR112 -> 149.7930975 | CW122: 23 | CY122: =-CU122+CZ101 -> -2.467615275 | CZ122: =CV122 -> 149.7930975 | DA122: 23 | DD122: ='متغیرها '!C55 -> 0 | DE122: شیفت افقی تکه پهلو | DG122: =DG121-DD135*SIN(DD123+DD133) -> 135.6231135 | DH122: =DH121+DD135*COS(DD123+DD133) -> -213.0505552 | DI122: ss2 | DK122: =DK105-DL109 -> 21.45638907 | DL122: =DL105 -> 110.1599133 | DM122: 41شیفتm | DO122: =BK102 -> 5 | DP122: =BL102 -> 142.4802193 | DQ122: 21 | DS122: =DO129+DL109 -> 29.87300086 | DT122: =DP129 -> 89.49683239 | DU122: p10rm | DV122: شلوار | DX122: =AZ168 -> 24.59 | DY122: =BA168 -> 110.1599133 | DZ122: 41 | EB122: =-DX122+ED137 -> -14.59 | EC122: =DY122 -> 110.1599133 | ED122: 41 | EF122: =BK165-EA138 -> 28.255 | EG122: =BL165-EA139 -> 89.50434605 | EH122: 42 | EJ122: =-EF122+ED138 -> -18.255 | EK122: =EG122 -> 89.50434605 | EL122: 42 | ER122: =ER106+1.2*(ER121-ER105) -> 18.99411577 | ES122: =ES106 -> 135.7595608 | ET122: b'6g | EV122: =EV106+1.2*(EV121-EV105) -> 20.46683275 | EW122: =EW106 -> 135.8907599 | EX122: b'6p | FB122: =BS104+BT130 -> 14.96392 | FC122: =BT104 -> 124.1 | FD122: شیفت 5 بالاتنه | FF122: =BW115 -> -10.01287488 | FG122: =BX115 -> 140.9704133 | FH122: e3 | FN122: =DG122 -> 135.6231135 | FO122: =DH122 -> -213.0505552 | FP122: ss2 | FZ122: -8.671289371 | GA122: 127.1553145 | GB122: e''10 | GD122: =BK101 -> 17.22007113 | GE122: =BL101 -> 142.4802193 | GF122: 22 | GH122: =-GD122+FK99 -> -7.220071134 | GI122: =GE122 -> 142.4802193 | GJ122: 22 | GL122: =BO176 -> 4.8625 | GM122: =BP176 -> 50.5 | GN122: 47 | GP122: =-GL122+FS99 -> 5.1375 | GQ122: 50.5 | GR122: 47 | GT122: =DO111 -> 15.30125 | GU122: =DP111 -> 50.5 | GV122: =DQ111 -> شیفت50 | GX122: =-GT122+GA99 -> -5.30125 | GY122: =GU122 -> 50.5 | GZ122: =DU111 -> 23m | HB122: =EJ341 -> 11.30125 | HC122: =EK341 -> 50.5 | HD122: e216 | HF122: =-HB122+GI99 -> -1.30125 | HG122: =HC122 -> 50.5 | HH122: e216 | HL122: =-DS160-HY101 -> -4.96392 | HM122: =DT160 -> 120.88 | HN122: 43 | HP122: =-CM131-HY101 -> -4.96392 | HQ122: =CN131 -> 124.1 | HR122: 5پیراهن | HT122: =-FV121-HY101 -> -14.34741188 | HU122: =FW121 -> 111.1433746 | HV122: 41m | HX122: =-FB120-HY101 -> -4.96392 | HY122: =FC120 -> 124.1 | HZ122: شیفت 5 پیراهن | IB122: =-FJ118-HY101 -> -6.18392 | IC122: =FK118 -> 108 | ID122: شیفت 40 | IF122: =-FN122-HY101 -> -125.6231135 | IG122: =FO122 -> -213.0505552 | IH122: ss2 | IN122: =-AR266-HY101 -> -2.460665312 | IO122: =AS266 -> 149.767125 | IP122: 25 | IR122: =-DE279-HY101 -> 5 | IS122: =DF279 -> 103.5844593 | IT122: p26
E123: فاصله عمودی از خط سینه جلو تا خط سینه پشت که از کنارگردن بگذرد | F123: t2 | H123: ='متغیرها '!U75-'متغیرها '!U78+'متغیرها '!C63*('متغیرها '!U75-'متغیرها '!U78) -> 25.9 | I123: ='متغیرها '!U75-'متغیرها '!U78 -> 25.9 | J123: (7 → 9) | K123: وصل | Q123: =AN117 -> 23.25 | R123: =AO117 -> 0 | S123: 3 | Y123: =Y118-H151-H147 -> 7.45 | Z123: (9 → 10) | AA123: =AA118-AA121-G151 -> 8.28 | AF123: =AR126 -> 20.75 | AG123: =AS126 -> 0 | AH123: 12 | AN123: =K120+K121 -> 11.18392 | AO123: =0+AP111 -> 0 | AP123: 9 | AR123: =AA121 -> 1.95 | AS123: =AT111 -> 0 | AT123: 9 | AV123: 4.116 | AW123: (16 → 21) | AX123: 2.868778142 | AZ123: =AZ115 -> 21.98277814 | BA123: =BA115 -> 134.4759049 | BB123: 16 | BD123: =BD122 -> 14.96392 | BE123: =BA106 -> 50.5 | BG123: 5.427999969 | BH123: (19 → 20) | BI123: 6.159381274 | BK123: =BI108+BI98+'متغیرها '!C56 -> 27.49253562 | BL123: =0+BI97+'متغیرها '!C57 -> 50.5 | BM123: شیفت7 | BO123: =#REF!+'متغیرها '!C56 ->  | BP123: =#REF!+'متغیرها '!C57 ->  | BQ123: b شیفت | BS123: =J251 -> -9.154012418 | BT123: =K251 -> 130.7852066 | BU123: a11 | BW123: =IF(BS116>BW115,BS116-0.7*(BS116-BW115),BW115-0.7*(BW115-BS116)) -> -9.154012418 | BX123: =BT123 -> 130.7852066 | BY123: a11 | CA123: =BO122-CB112 -> 27.49253562 | CB123: =BP122-CB113 -> 124.7183377 | CC123: 10 | CD123: نقطه زیر حلقه آستین | CE123: =CA104+SQRT(POWER(CA123-CA104,2)+POWER(CB123-CB104,2))*SIN(IF(CB123=CB104,RADIANS(90)-CB114,ATAN((CA123-CA104)/ABS(CB123-CB104))+IF(CB123>CB104,-1,1)*CB114)) -> 27.49320914 | CF123: =CB104+IF(CB123<CB104,-1,1)*SQRT(POWER(CA123-CA104,2)+POWER(CB123-CB104,2))*COS(IF(CB123=CB104,RADIANS(90)-CB114,ATAN((CA123-CA104)/ABS(CB123-CB104))+IF(CB123>CB104,-1,1)*CB114)) -> 124.7193987 | CG123: b2 | CJ123: به دست آوردن نقطه تقاطع دو خط (وسط 20f) | CK123: مولفه افقی | CL123: مولفه عمودی | CM123: =AZ161+BT130 -> 14.96392 | CN123: =BA161 -> 120.88 | CO123: شیفت 43 | CQ123: =CQ113-0.9*(CQ113-CQ122)+CR117*0.07*CR108 -> 21.51690979 | CR123: =CR113+0.25*(CR120-CR113) -> 133.2578994 | CS123: 16f | CW123: رگلان | DA123: رگلان | DD123: =BU143-BU142 -> 0.2204405356 | DE123: ζ'2-ζ'1 | DG123: =DG112-DD125*COS(DD123) -> 24.72335595 | DH123: =DH112-DD125*COS(DD123)*TAN(DD138) -> 126.0445821 | DI123: b2m | DK123: =DK106-DL109 -> 23.53138907 | DL123: =DL106 -> 89.5599133 | DM123: 45شیفتm | DO123: =BK159 -> 15.23 | DP123: =BL159 -> 110 | DQ123: 34 | DS123: =DO130+DL109 -> 26.19703543 | DT123: =DP130 -> 52.06021569 | DU123: p7rm | DX123: =AZ172-EA137 -> 26.665 | DY123: =BA172 -> 89.5599133 | DZ123: 45 | EB123: =-DX123+ED137 -> -16.665 | EC123: =DY123 -> 89.5599133 | ED123: 45 | ER123: =ER107+0.5*(ER121-ER105) -> 21.30950653 | ES123: =ES107 -> 132.5910116 | ET123: b'10g | EV123: =EV107+0.5*(EV121-EV105) -> 22.64012959 | EW123: =EW107 -> 131.4809515 | EX123: b'10p | FB123: =AZ161+BT130 -> 14.96392 | FC123: =BA161 -> 120.88 | FD123: شیفت 43 | FF123: =BW123 -> -9.154012418 | FG123: =BX123 -> 130.7852066 | FH123: a11 | FJ123: =AZ161 -> 14.96392 | FK123: =BA161 -> 120.88 | FL123: 43 | FR123: =BD166 -> 14.96392 | FS123: =FS120 -> 124.1 | FT123: g'5 | FV123: =DG124 -> 24.34741188 | FW123: =DH124 -> 111.1433746 | FX123: 41m | FZ123: -9.492578742 | GA123: 133.710629 | GB123: e'10 | GN123: 14ترک وسط | GR123: ترک وسط | HP123: =-CM132-HY101 -> -6.099021121 | HQ123: =CN132 -> 148.5758685 | HR123: وسط 22f | IB123: =-FJ121-HY101 -> -4.96392 | IC123: =FK121 -> 120.88 | ID123: شیفت 43 | IJ123: =-CR173-HY101 -> -14.69475723 | IK123: =CS173 -> 109.1199133 | IL123: d3 | IN123: =-AR267-HY101 -> -2.460665312 | IO123: =AS267 -> 157.9271645 | IP123: 1n | IV123: =-DI251-HY101 -> 17.15 | IW123: =DJ251 -> 78.85589662 | IX123: m'11 | IZ123: =-ES252-HY101 -> 17.15 | JA123: =ET252 -> 80.016 | JB123: p'3
E124: فاصله عمودی از خط کمر جلو تا خط کمر پشت که از کنار گردن بگذرد | F124: t3 | H124: ='متغیرها '!U76-'متغیرها '!U79+'متغیرها '!C63*('متغیرها '!U76-'متغیرها '!U79) -> 42 | I124: ='متغیرها '!U76-'متغیرها '!U79 -> 42 | J124: (9 → 10) | K124: =K115-K120-2*G152-0.5*(H120-H121-H118+H119)*(1-2*'متغیرها '!C87)+'متغیرها '!C77*O128*H130*((L115-L120-L121-L124)/(L127-L125)) -> 8.40608 | L124: =L115-L120-2*H152-0.5*('متغیرها '!U72-'متغیرها '!U73-'متغیرها '!U70+'متغیرها '!U71)*(1-2*'متغیرها '!C87) -> 8.40608 | N124: متغیرهای محاسبه ای بالاتنه جلو | P124: شبیه ساز | Q124: =AN126 -> 23.25 | R124: =AO126 -> 20.59590489 | S124: 12 | W124: انحنای حلقه یقه جلو | Y124: =2*H151 -> 1.95 | Z124: (10 → 11) | AA124: =2*G151 -> 1.95 | AF124: =AR117 -> 22.49253562 | AG124: =AS117 -> 0 | AH124: 3 | AL124: انحنای حلقه یقه پشت | AN124: =K120+K121+K124 -> 19.59 | AO124: =0+AP111 -> 0 | AP124: 10 | AR124: =AA121+AA123 -> 10.23 | AS124: =AT111 -> 0 | AT124: 10 | AV124: 10.19605631 | AW124: (21 → 22) | AX124: 11.54507421 | AZ124: =AX104-AX117+AX123+AX99 -> 24.85155628 | BA124: =AX113+AX118+AX98 -> 134.4759049 | BB124: 21 | BH124: (18 → 20→ 12→ 16→ 14→ 8→ 9) | BI124: هلال وصل | BS124: =N255 -> 18.09836014 | BT124: =O255 -> 156.4368825 | BU124: a14 | BW124: =BS104+SQRT(POWER(BS124-BS104,2)+POWER(BT124-BT104,2))*SIN(BT103-ATAN((BS104-BS124)/(BT124-BT104))) -> 18.09836014 | BX124: =BT104+SQRT(POWER(BS124-BS104,2)+POWER(BT124-BT104,2))*COS(BT103-ATAN((BS104-BS124)/(BT124-BT104))) -> 156.4368825 | BY124: a14 | CB124: متغیرهای محاسبه ای ساسون زیر بغل | CI124: نقطه اول از خط اول | CJ124: 30 | CK124: =CM137 -> 10.96853225 | CL124: =CN137 -> 145.3687691 | CQ124: =CQ113-0.55*(CQ113-CQ122)+CR117*0.07*CR108 -> 24.56682774 | CR124: =CR113+0.09*(CR120-CR113) -> 130.2386599 | CS124: 14f | CU124: =CQ103 -> 10.60071146 | CV124: =CR103 -> 148.2315422 | CW124: 28 | CY124: =-CU124+CZ101 -> -0.6007114563 | CZ124: =CV124 -> 148.2315422 | DA124: 28 | DC124: =BD160 -> 14.96392 | DD124: =BE160 -> 124.1 | DE124: شیفت 5 | DG124: =DG117-DD125*COS(DD123) -> 24.34741188 | DH124: =DH117-DD125*COS(DD123)*TAN(DD137) -> 111.1433746 | DI124: 41m | DK124: =DK107-DL109 -> 22.49801504 | DL124: =DD114 -> 51.6599133 | DM124: 49'شیفتm | DN124: پیراهن | DO124: =BO187 -> 17.10875 | DP124: =BP187 -> 91.64 | DQ124: 38' | DS124: =DO131+DL109 -> 26.19703543 | DT124: =DP131 -> 52.06021569 | DU124: p5rm | EF124: =BK165-EA138 -> 28.255 | EG124: =BL165-EA139 -> 89.50434605 | EH124: 42 | EJ124: =-EF124+ED138 -> -18.255 | EK124: =EG124 -> 89.50434605 | EL124: 42 | ER124: =ER111+ER122-ER106 -> 21.43275398 | ES124: =ES111 -> 134.4759049 | ET124: 16g | EU124: در مدل عصایی | EV124: =EV111+EV122-EV106 -> 20.46720931 | EW124: =EW111 -> 135.8903377 | EX124: 12p | EY124: در مدل عصایی | FF124: =BS116 -> -7.15 | FG124: =BT116 -> 120.6 | FH124: e1 | FJ124: =AZ166 -> 13.74392 | FK124: =BA166 -> 108 | FL124: 39 | FN124: =DG122 -> 135.6231135 | FO124: =DH122 -> -213.0505552 | FP124: ss2 | FR124: =CM105 -> 21.24703927 | FS124: =FS120 -> 124.1 | FT124: g''5 | FV124: =DG125 -> 132.5653322 | FW124: =DH125 -> -204.7665575 | FX124: ss2m | FZ124: =EO177 -> -10.22096457 | GA124: =EP177 -> 142.4510483 | GB124: e10 | GD124: =BK101 -> 17.22007113 | GE124: =BL101 -> 142.4802193 | GF124: 22 | GH124: =-GD124+FK99 -> -7.220071134 | GI124: =GE124 -> 142.4802193 | GJ124: 22 | GL124: =BK179 -> 16.205 | GM124: =BL179 -> 131.8843924 | GN124: شیفت 40 | GP124: =-GL124+FS99 -> -6.205 | GQ124: =GM124 -> 131.8843924 | GR124: شیفت 40 | GT124: =DO105-DP120 -> 16.205 | GU124: =DP105-DP128 -> 131.8843924 | GV124: بدون شیفت40 | GX124: =-GT124+GA99 -> -6.205 | GY124: =GU124 -> 131.8843924 | GZ124: بدون شیفت40 | HB124: =DS121 -> 20.46683275 | HC124: =DT121 -> 135.8907599 | HD124: =DU121 -> b'6p | HF124: =-HB124+GI99 -> -10.46683275 | HG124: =HC124 -> 135.8907599 | HH124: =ES121 -> 141.6536606 | HL124: =-DS162-HY101 -> -4.96392 | HM124: =DT162 -> 120.88 | HN124: 43 | HT124: =-FV123-HY101 -> -14.34741188 | HU124: =FW123 -> 111.1433746 | HV124: 41m | HX124: =-FB122-HY101 -> -4.96392 | HY124: =FC122 -> 124.1 | HZ124: شیفت 5 پیراهن | IF124: =-FN124-HY101 -> -125.6231135 | IG124: =FO124 -> -213.0505552 | IH124: ss2 | IJ124: =-CR176-HY101 -> -14.59 | IK124: =CS176 -> 110.1599133 | IL124: شیفت41 یا d3 | IR124: =-DE279-HY101 -> 5 | IS124: =DF279 -> 103.5844593 | IT124: p26 | IV124: =-DI252-HY101 -> 17.15 | IW124: =DJ252 -> 103.1 | IX124: s'1 | IZ124: =-ES253-HY101 -> 17.15 | JA124: =ET253 -> 103.1 | JB124: s'1
E125: فاصله عمودی بین خط سینه پشت و سرشانه، نزدیک دست | F125: t4 | H125: ='متغیرها '!U77-0.5*'متغیرها '!C60*'متغیرها '!U77+'متغیرها '!C63*('متغیرها '!U78) -> 22.3 | I125: ='متغیرها '!U77 -> 22.3 | J125: (10 → 11) | K125: =K124*TAN(0.5*IF(K121=0,0,G162))+K111 -> 2.199454267 | L125: =L124*TAN(0.5*IF(L121=0,0,H162))+L111 -> 2.159913297 | N125: γ5 | O125: 1.3 | Q125: =AN129 -> 16.98277814 | R125: =AO129 -> 20.59590489 | S125: 15 | U125: =AN139 -> 7.460665312 | V125: =AO139 -> 41.767125 | W125: 25 | Z125: (10 → 8) | AA125: وصل | AF125: =AR128 -> 22.49253562 | AG125: =AS128 -> 18.53138576 | AH125: 14 | AJ125: =AR141 -> 7.467615275 | AK125: =AS141 -> 39.79309752 | AL125: 27 | AN125: =K120+K121+K124 -> 19.59 | AO125: =K125+AP111 -> 2.199454267 | AP125: 11 | AR125: =AA121+AA123+AA124 -> 12.18 | AS125: =AT111 -> 0 | AT125: 11 | AV125: 1.2348 | AW125: (16 → 23) | AX125: 0.8606334425 | AZ125: =AX104-AX117+AX123+AX99 -> 24.85155628 | BA125: =AX113+AX118+AX124+AX98 -> 146.0209791 | BB125: 22 | BD125: =AZ106 -> 5 | BE125: =BA106-2 -> 48.5 | BH125: (1 → 21) | BI125: =H106-H114+AG147 -> 91.98021932 | BK125: =BI106+BI98+'متغیرها '!C56 -> 27.08126781 | BL125: =0+BI97+'متغیرها '!C57 -> 50.5 | BM125: شیفت5 | BO125: =BO123 ->  | BP125: =BP123 ->  | BQ125: b شیفت | BS125: =N257 -> 13.56492666 | BT125: =O257 -> 153.2644705 | BU125: a16 | BW125: =BS104+SQRT(POWER(BS125-BS104,2)+POWER(BT125-BT104,2))*SIN(BT103-ATAN((BS104-BS125)/(BT125-BT104))) -> 13.56492666 | BX125: =BT104+SQRT(POWER(BS125-BS104,2)+POWER(BT125-BT104,2))*COS(BT103-ATAN((BS104-BS125)/(BT125-BT104))) -> 153.2644705 | BY125: a16 | CB125: ζ'1 | CC125: =('متغیرها '!C111+0.001)*ATAN((CA109-CA104)/(CB109-CB104)) -> 5.603715489e-05 | CE125: =CA104+(1-'متغیرها '!C116)*(CA123-CA104) -> 17.33375356 | CF125: =CB104+(1-'متغیرها '!C116)*(CA123-CA104)*TAN(0.5*CB114-CC127) -> 131.1678614 | CG125: b | CI125: نقطه دوم از خط اول | CJ125: 20f | CK125: =CI120 -> 21.24703927 | CL125: =CJ120 -> 132.1777328 | CM125: =AZ161 -> 14.96392 | CN125: =BA161 -> 120.88 | CO125: 43 | CR125: به دست آوردن نقطه تقاطع دو خط (وسط 16f) | CS125: مولفه افقی | CT125: مولفه عمودی | CU125: =CS130 -> 16.15328182 | CV125: =CT130 -> 140.6151356 | CW125: وسط 16f | CY125: =-CU125+CZ101 -> -6.153281819 | CZ125: =CV125 -> 140.6151356 | DA125: وسط 16f | DD125: =AX119 -> 3.133610929 | DE125: (12→17) | DG125: =DG122-DD125*COS(DD123) -> 132.5653322 | DH125: =DH122-DD125*COS(DD123)*TAN(DD139) -> -204.7665575 | DI125: ss2m | DK125: =DK113-DL109 -> 22.30147097 | DL125: =DL113 -> 89.62985593 | DM125: 10rm | DN125: شلوار | DO125: =BO188 -> 17.10875 | DP125: =BP188 -> 50.5 | DQ125: 49 | DS125: =DO132+DL109 -> 26.19703543 | DT125: =DP132 -> 52.06021569 | DU125: p1rm | DX125: =AZ172-EA137 -> 26.665 | DY125: =BA172 -> 89.5599133 | DZ125: 45 | EB125: =-DX125+ED137 -> -16.665 | EC125: =DY125 -> 89.5599133 | ED125: 45 | EF125: =BK172-EA138 -> 27.0306749 | EG125: =BL172-EA139 -> 51.60434605 | EH125: 43'' | EJ125: =-EF125+ED138 -> -17.0306749 | EK125: =EG125 -> 51.60434605 | EL125: 43'' | ER125: =ER112+ER123-ER107 -> 23.00704578 | ES125: =ES112 -> 130.9479049 | ET125: 20g | EU125: در مدل عصایی | EV125: =EV112+EV123-EV107 -> 22.64009164 | EW125: =EW112 -> 131.4803377 | EX125: 16p | EY125: در مدل عصایی | FB125: =AZ161 -> 14.96392 | FC125: =BA161 -> 120.88 | FD125: 43 | FN125: =DG116 -> 19.45834264 | FO125: =DH116 -> 101.6575893 | FP125: 47''s | FT125: باسن | GD125: =BK154 -> 16.205 | GE125: =BL154 -> 131.8843924 | GF125: 40 | GH125: =-GD125+FK99 -> -6.205 | GI125: =GE125 -> 131.8843924 | GJ125: 40 | GL125: =BK180 -> 17.18 | GM125: =BL180 -> 110 | GN125: شیفت 35 | GP125: =-GL125+FS99 -> -7.18 | GQ125: =GM125 -> 110 | GR125: شیفت 35 | GT125: =DO123 -> 15.23 | GU125: 110 | GV125: 34 | GX125: =-GT125+GA99 -> -5.23 | GY125: =GU125 -> 110 | GZ125: =DU123 -> p7rm | HB125: =CE163 -> 13.10875 | HC125: =CF163-0.3*EY167 -> 68.25 | HD125: e'215 | HF125: =-HB125+GI99 -> -3.10875 | HG125: =HC125 -> 68.25 | HH125: e'215 | HL125: =-DS163-HY101 -> -6.157125884 | HM125: =DT163 -> 126.318362 | HN125: 21 | HP125: =-CM134-HY101 -> -6.099021121 | HQ125: =CN134 -> 148.5758685 | HR125: وسط 22f | HT125: =-FV124-HY101 -> -122.5653322 | HU125: =FW124 -> -204.7665575 | HV125: ss2m | HX125: =-FB123-HY101 -> -4.96392 | HY125: =FC123 -> 120.88 | HZ125: شیفت 43 | IB125: =-FJ123-HY101 -> -4.96392 | IC125: =FK123 -> 120.88 | ID125: 43 | IF125: =-FN125-HY101 -> -9.458342637 | IG125: =FO125 -> 101.6575893 | IH125: 47''s | IN125: =-AR267-HY101 -> -2.460665312 | IO125: =AS267 -> 157.9271645 | IP125: 1n | IR125: =-DE282-HY101 -> 17.15 | IS125: =DF282 -> 103.5844593 | IT125: p10 | IX125: خط مرغک در جلو
... 152 more rows

Sheet متغیرها (hidden)
A3: متغیرهای ورودی چادر | E3: تبدیل رنج متغیر ورودی | F3: توضیح متغیر ورودی برای صفحه نمایش
A4: متغیر ورودی چادر شماره 1 یا مقنعه | F4: متغیر ورودی چادر شماره 1 یا مقنعه | G4: x1 | H4: y1 | I4: x2 | J4: y2(بهینه) | K4: a | L4: b | N4: کمترین | P4: بیشترین | U4: انتخاب ستون سلول مرجع برای انتخاب سایز در رسم الگو | V4: انتخاب نوع الگو | W4: انتخاب نوع اندازه گیری | X4: اندازه جدید یا اندازه موجود | Y4: انتخاب ستون سلول مرجع برای انتخاب سایز در بررسی اندازه ها
A5: ضریب فاصله لبه چادر یا مقنعه تا زمین j0 | B5: (از -0.1 الی 4.5) | C5: =K5*E5+L5 -> 3 | D5: خط زمین=0 خط زانو=1 خط باسن=2 خط کمر=3 خط سینه=4 | E5: ='طراحی همه الگوها'!Q177 -> 70 | F5: ضریب فاصله لبه چادر یا مقنعه تا زمین | G5: 10 | H5: 0 | I5: 30 | J5: 1 | K5: =(J5-H5)/(I5-G5) -> 0.05 | L5: =H5-G5*K5 -> -0.5 | M5: 2 | N5: =(M5-L5)/K5 -> 50 | O5: 4 | P5: =(O5-L5)/K5 -> 90 | Q5: 3 | R5: =(Q5-L5)/K5 -> 70 | T5: سلول مرجع | U5: =MATCH('طراحی مدل 16'!A325,'متغیرها '!AJ51:AJ179,0) -> 21 | V5: 1 | W5: 3 | X5: 2 | Y5: 32
A6: انتخاب چادر تا پایین پیشانی=1 انتخاب چادر تا بالای پیشانی=0 انتخاب چادر روی سر = -1 | B6: -1 یا 0 یا 1 | C6: =K6*E6+L6 -> 0 | E6: ='طراحی همه الگوها'!Q178 -> 2 | F6: انتخاب چادر تا پایین پیشانی=3 انتخاب چادر تا بالای پیشانی=2 انتخاب چادر روی سر = 1 | G6: 2 | H6: 0 | I6: 1 | J6: -1 | K6: =(J6-H6)/(I6-G6) -> 1 | L6: =H6-G6*K6 -> -2 | M6: 0 | N6: =(M6-L6)/K6 -> 2 | O6: 2 | P6: =(O6-L6)/K6 -> 4 | Q6: 1 | R6: =(Q6-L6)/K6 -> 3 | U6: 1ماهه | V6: 1 تا 3 ماهه | W6: 3 تا 6 ماهه | X6: 6ماهه تا یکساله | Y6: بچگانه 1 ساله | Z6: بچگانه 2 ساله | AA6: بچگانه 3 ساله | AB6: بچگانه 4 ساله | AC6: بچگانه 5 ساله | AD6: بچگانه 6 ساله | AE6: بچگانه 7 ساله | AF6: بچگانه 8 ساله | AG6: بچگانه 9 ساله | AH6: بچگانه 10 ساله | AI6: بچگانه 11 ساله | AJ6: بچگانه 12 ساله | AK6: بچگانه 13 ساله | AL6: بچگانه 14 ساله | AM6: 34زنانه | AN6: 36زنانه | AO6: 38زنانه | AP6: 40زنانه | AQ6: 42زنانه | AR6: 44زنانه | AS6: 46زنانه | AT6: 48زنانه | AU6: 50زنانه | AV6: 52زنانه | AW6: 54زنانه | AX6: 56زنانه | AY6: 58زنانه | AZ6: 60زنانه | BA6: 37 مردانه | BB6: 38 مردانه | BC6: 39 مردانه | BD6: 40 مردانه | BE6: 41 مردانه | BF6: 42 مردانه | BG6: 43 مردانه | BH6: 44 مردانه | BI6: 45 مردانه | BJ6: 46 مردانه | BK6: 47 مردانه | BL6: 48 مردانه | BM6: 49 مردانه | BN6: 50 مردانه | BO6: 6ماهه تا یکساله کت | BP6: 1ساله کت | BQ6: 2ساله کت | BR6: 3ساله کت | BS6: 4ساله کت | BT6: 5ساله کت | BU6: 6ساله کت | BV6: 7ساله کت | BW6: 8ساله کت | BX6: 9ساله کت | BY6: 10ساله کت | BZ6: 11ساله کت | CA6: 12ساله کت | CB6: 13ساله کت | CC6: 14ساله کت | CD6: 34زنانه کمر پهن | CE6: 36زنانه کمر پهن | CF6: 38زنانه کمر پهن | CG6: 40زنانه کمر پهن | CH6: 42زنانه کمر پهن | CI6: 44زنانه کمر پهن | CJ6: 46زنانه کمر پهن | CK6: 48زنانه کمر پهن | CL6: 50زنانه کمر پهن | CM6: 52زنانه کمر پهن | CN6: 54زنانه کمر پهن | CO6: 56زنانه کمر پهن | CP6: 58زنانه کمر پهن | CQ6: 60زنانه کمر پهن | CR6: 37مردانه کت | CS6: 38مردانه کت | CT6: 39مردانه کت | CU6: 40مردانه کت | CV6: 41مردانه کت | CW6: 42مردانه کت | CX6: 43مردانه کت | CY6: 44مردانه کت | CZ6: 45مردانه کت | DA6: 46 مردانه کت | DB6: 47 مردانه کت | DC6: 48 مردانه کت | DD6: 49 مردانه کت | DE6: 50 مردانه کت | DF6: ='اندازه های شخصی'!G5 -> عنوان 1 | DG6: ='اندازه های شخصی'!I5 -> عنوان 2 | DH6: ='اندازه های شخصی'!K5 -> عنوان 3 | DI6: ='اندازه های شخصی'!M5 -> عنوان 4 | DJ6: ='اندازه های شخصی'!O5 -> عنوان 5 | DK6: ='اندازه های شخصی'!Q5 -> عنوان 6 | DL6: ='اندازه های شخصی'!S5 -> عنوان 7 | DM6: ='اندازه های شخصی'!U5 -> عنوان 8 | DN6: ='اندازه های شخصی'!W5 -> عنوان 9 | DO6: ='اندازه های شخصی'!Y5 -> عنوان 10 | DP6: ='اندازه های شخصی'!AA5 -> عنوان 11 | DQ6: ='اندازه های شخصی'!AC5 -> عنوان 12 | DR6: ='اندازه های شخصی'!AE5 -> عنوان 13 | DS6: ='اندازه های شخصی'!AG5 -> عنوان 14 | DT6: ='اندازه های شخصی'!AI5 -> عنوان 15 | DU6: ='اندازه های شخصی'!AK5 -> عنوان 16 | DV6: ='اندازه های شخصی'!AM5 -> عنوان 17 | DW6: ='اندازه های شخصی'!AO5 -> عنوان 18 | DX6: ='اندازه های شخصی'!AQ5 -> عنوان 19 | DY6: ='اندازه های شخصی'!AS5 -> عنوان 20 | DZ6: ='اندازه های شخصی'!AU5 -> عنوان 21 | EA6: ='اندازه های شخصی'!AW5 -> عنوان 22 | EB6: ='اندازه های شخصی'!AY5 -> عنوان 23 | EC6: ='اندازه های شخصی'!BA5 -> عنوان 24 | ED6: ='اندازه های شخصی'!BC5 -> عنوان 25 | EE6: ='اندازه های شخصی'!BE5 -> عنوان 26 | EF6: ='اندازه های شخصی'!BG5 -> عنوان 27 | EG6: ='اندازه های شخصی'!BI5 -> عنوان 28 | EH6: ='اندازه های شخصی'!BK5 -> عنوان 29 | EI6: ='اندازه های شخصی'!BM5 -> عنوان 30 | EJ6: ='اندازه های شخصی'!BO5 -> عنوان 31 | EK6: ='اندازه های شخصی'!BQ5 -> عنوان 32 | EL6: ='اندازه های شخصی'!BS5 -> عنوان 33 | EM6: ='اندازه های شخصی'!BU5 -> عنوان 34 | EN6: ='اندازه های شخصی'!BW5 -> عنوان 35 | EO6: ='اندازه های شخصی'!BY5 -> عنوان 36 | EP6: ='اندازه های شخصی'!CA5 -> عنوان 37 | EQ6: ='اندازه های شخصی'!CC5 -> عنوان 38 | ER6: ='اندازه های شخصی'!CE5 -> عنوان 39 | ES6: ='اندازه های شخصی'!CG5 -> عنوان 40
T7: a | U7: 41 | V7: 42 | W7: 45 | X7: 47 | Y7: 48 | Z7: 49 | AA7: 51 | AB7: 53 | AC7: 55 | AD7: 57 | AE7: 59 | AF7: 61 | AG7: 63 | AH7: 65.5 | AI7: 68 | AJ7: 71 | AK7: 73 | AL7: 75 | AM7: 63 | AN7: 65 | AO7: 68 | AP7: 72 | AQ7: 77 | AR7: 82 | AS7: 87 | AT7: 92 | AU7: 97 | AV7: 103 | AW7: 110 | AX7: 117 | AY7: 124 | AZ7: 131 | BA7: 74 | BB7: 78 | BC7: 82 | BD7: 86 | BE7: 90 | BF7: 94 | BG7: 98 | BH7: 102 | BI7: 106 | BJ7: 111 | BK7: 116 | BL7: 121 | BM7: 126 | BN7: 131 | BO7: 47 | BP7: 48 | BQ7: 49 | BR7: 51 | BS7: 53 | BT7: 55 | BU7: 57 | BV7: 59 | BW7: 61 | BX7: 63 | BY7: 65.5 | BZ7: 68 | CA7: 71 | CB7: 73 | CC7: 75 | CD7: 67 | CE7: 69 | CF7: 72 | CG7: 76 | CH7: 81 | CI7: 86 | CJ7: 91 | CK7: 96 | CL7: 101 | CM7: 107 | CN7: 114 | CO7: 121 | CP7: 127 | CQ7: 135 | CR7: 75.5 | CS7: 79.6 | CT7: 83.6 | CU7: 87.7 | CV7: 91.8 | CW7: 95.9 | CX7: 100 | CY7: 104 | CZ7: 108.1 | DA7: 113.2 | DB7: 118.3 | DC7: 123.4 | DD7: 128.5 | DE7: 133.6 | DF7: ='اندازه های شخصی'!G8 -> 0 | DG7: ='اندازه های شخصی'!I8 -> 0 | DH7: ='اندازه های شخصی'!K8 -> 0 | DI7: ='اندازه های شخصی'!M8 -> 0 | DJ7: ='اندازه های شخصی'!O8 -> 0 | DK7: ='اندازه های شخصی'!Q8 -> 0 | DL7: ='اندازه های شخصی'!S8 -> 0 | DM7: ='اندازه های شخصی'!U8 -> 0 | DN7: ='اندازه های شخصی'!W8 -> 0 | DO7: ='اندازه های شخصی'!Y8 -> 0 | DP7: ='اندازه های شخصی'!AA8 -> 0 | DQ7: ='اندازه های شخصی'!AC8 -> 0 | DR7: ='اندازه های شخصی'!AE8 -> 0 | DS7: ='اندازه های شخصی'!AG8 -> 0 | DT7: ='اندازه های شخصی'!AI8 -> 0 | DU7: ='اندازه های شخصی'!AK8 -> 0 | DV7: ='اندازه های شخصی'!AM8 -> 0 | DW7: ='اندازه های شخصی'!AO8 -> 0 | DX7: ='اندازه های شخصی'!AQ8 -> 0 | DY7: ='اندازه های شخصی'!AS8 -> 0 | DZ7: ='اندازه های شخصی'!AU8 -> 0 | EA7: ='اندازه های شخصی'!AW8 -> 0 | EB7: ='اندازه های شخصی'!AY8 -> 0 | EC7: ='اندازه های شخصی'!BA8 -> 0 | ED7: ='اندازه های شخصی'!BC8 -> 0 | EE7: ='اندازه های شخصی'!BE8 -> 0 | EF7: ='اندازه های شخصی'!BG8 -> 0 | EG7: ='اندازه های شخصی'!BI8 -> 0 | EH7: ='اندازه های شخصی'!BK8 -> 0 | EI7: ='اندازه های شخصی'!BM8 -> 0 | EJ7: ='اندازه های شخصی'!BO8 -> 0 | EK7: ='اندازه های شخصی'!BQ8 -> 0 | EL7: ='اندازه های شخصی'!BS8 -> 0 | EM7: ='اندازه های شخصی'!BU8 -> 0 | EN7: ='اندازه های شخصی'!BW8 -> 0 | EO7: ='اندازه های شخصی'!BY8 -> 0 | EP7: ='اندازه های شخصی'!CA8 -> 0 | EQ7: ='اندازه های شخصی'!CC8 -> 0 | ER7: ='اندازه های شخصی'!CE8 -> 0 | ES7: ='اندازه های شخصی'!CG8 -> 0
A8: متغیرهای ورودی چادر شماره 2 | F8: متغیرهای ورودی چادر شماره 2 | G8: x1 | H8: y1 | I8: x2 | J8: y2(بهینه) | K8: a | L8: b | N8: کمترین | P8: بیشترین | T8: b | U8: 20.1 | V8: 20.6 | W8: 22.1 | X8: 23 | Y8: 23.5 | Z8: 24 | AA8: 25 | AB8: 26 | AC8: 27 | AD8: 27.9 | AE8: 28.9 | AF8: 29.9 | AG8: 30.9 | AH8: 32.1 | AI8: 33.3 | AJ8: 34.8 | AK8: 35.8 | AL8: 36.8 | AM8: 32.2 | AN8: 32.7 | AO8: 33.7 | AP8: 35.2 | AQ8: 36.9 | AR8: 38.7 | AS8: 40.6 | AT8: 42.3 | AU8: 44.3 | AV8: 47.5 | AW8: 51 | AX8: 54.8 | AY8: 59.2 | AZ8: 63.6 | BA8: 37 | BB8: 39 | BC8: 41 | BD8: 43 | BE8: 45 | BF8: 47 | BG8: 49 | BH8: 51 | BI8: 53 | BJ8: 55.5 | BK8: 58 | BL8: 60.5 | BM8: 63 | BN8: 65.5 | BO8: 23 | BP8: 23.5 | BQ8: 24 | BR8: 25 | BS8: 26 | BT8: 27 | BU8: 27.9 | BV8: 28.9 | BW8: 29.9 | BX8: 30.9 | BY8: 32.1 | BZ8: 33.3 | CA8: 34.8 | CB8: 35.8 | CC8: 36.8 | CD8: 34.2 | CE8: 34.7 | CF8: 35.7 | CG8: 37.1 | CH8: 38.8 | CI8: 40.6 | CJ8: 42.4 | CK8: 44.2 | CL8: 46.1 | CM8: 49.4 | CN8: 52.8 | CO8: 56.7 | CP8: 60.7 | CQ8: 64.5 | CR8: 37.8 | CS8: 39.8 | CT8: 41.8 | CU8: 43.9 | CV8: 45.9 | CW8: 48 | CX8: 50 | CY8: 52 | CZ8: 54.1 | DA8: 56.6 | DB8: 59.2 | DC8: 61.7 | DD8: 64.3 | DE8: 66.8 | DF8: ='اندازه های شخصی'!G9 -> 0 | DG8: ='اندازه های شخصی'!I9 -> 0 | DH8: ='اندازه های شخصی'!K9 -> 0 | DI8: ='اندازه های شخصی'!M9 -> 0 | DJ8: ='اندازه های شخصی'!O9 -> 0 | DK8: ='اندازه های شخصی'!Q9 -> 0 | DL8: ='اندازه های شخصی'!S9 -> 0 | DM8: ='اندازه های شخصی'!U9 -> 0 | DN8: ='اندازه های شخصی'!W9 -> 0 | DO8: ='اندازه های شخصی'!Y9 -> 0 | DP8: ='اندازه های شخصی'!AA9 -> 0 | DQ8: ='اندازه های شخصی'!AC9 -> 0 | DR8: ='اندازه های شخصی'!AE9 -> 0 | DS8: ='اندازه های شخصی'!AG9 -> 0 | DT8: ='اندازه های شخصی'!AI9 -> 0 | DU8: ='اندازه های شخصی'!AK9 -> 0 | DV8: ='اندازه های شخصی'!AM9 -> 0 | DW8: ='اندازه های شخصی'!AO9 -> 0 | DX8: ='اندازه های شخصی'!AQ9 -> 0 | DY8: ='اندازه های شخصی'!AS9 -> 0 | DZ8: ='اندازه های شخصی'!AU9 -> 0 | EA8: ='اندازه های شخصی'!AW9 -> 0 | EB8: ='اندازه های شخصی'!AY9 -> 0 | EC8: ='اندازه های شخصی'!BA9 -> 0 | ED8: ='اندازه های شخصی'!BC9 -> 0 | EE8: ='اندازه های شخصی'!BE9 -> 0 | EF8: ='اندازه های شخصی'!BG9 -> 0 | EG8: ='اندازه های شخصی'!BI9 -> 0 | EH8: ='اندازه های شخصی'!BK9 -> 0 | EI8: ='اندازه های شخصی'!BM9 -> 0 | EJ8: ='اندازه های شخصی'!BO9 -> 0 | EK8: ='اندازه های شخصی'!BQ9 -> 0 | EL8: ='اندازه های شخصی'!BS9 -> 0 | EM8: ='اندازه های شخصی'!BU9 -> 0 | EN8: ='اندازه های شخصی'!BW9 -> 0 | EO8: ='اندازه های شخصی'!BY9 -> 0 | EP8: ='اندازه های شخصی'!CA9 -> 0 | EQ8: ='اندازه های شخصی'!CC9 -> 0 | ER8: ='اندازه های شخصی'!CE9 -> 0 | ES8: ='اندازه های شخصی'!CG9 -> 0
A9: ضریب فاصله لبه چادر تا زمین j0 | B9: (از -0.1 الی 0.5) | C9: =K9*E9+L9 -> 0 | D9: خط زمین=0 خط زانو=1 | E9: ='طراحی همه الگوها'!Q188 -> 10 | F9: ضریب فاصله لبه چادر تا زمین | G9: 10 | H9: 0 | I9: 30 | J9: 1 | K9: =(J9-H9)/(I9-G9) -> 0.05 | L9: =H9-G9*K9 -> -0.5 | M9: -0.1 | N9: =(M9-L9)/K9 -> 8 | O9: 0.5 | P9: =(O9-L9)/K9 -> 20 | Q9: 0 | R9: =(Q9-L9)/K9 -> 10 | T9: c | U9: 43 | V9: 45 | W9: 48 | X9: 50 | Y9: 53 | Z9: 56 | AA9: 59 | AB9: 62 | AC9: 65 | AD9: 68 | AE9: 71 | AF9: 74 | AG9: 77 | AH9: 80 | AI9: 83 | AJ9: 85 | AK9: 89 | AL9: 93 | AM9: 85 | AN9: 89 | AO9: 93 | AP9: 97 | AQ9: 102 | AR9: 107 | AS9: 112 | AT9: 117 | AU9: 122 | AV9: 126 | AW9: 132 | AX9: 138 | AY9: 144 | AZ9: 150 | BA9: 92 | BB9: 96 | BC9: 100 | BD9: 104 | BE9: 108 | BF9: 112 | BG9: 116 | BH9: 120 | BI9: 124 | BJ9: 128 | BK9: 132 | BL9: 136 | BM9: 140 | BN9: 144 | BO9: 50 | BP9: 53 | BQ9: 56 | BR9: 59 | BS9: 62 | BT9: 65 | BU9: 68 | BV9: 71 | BW9: 74 | BX9: 77 | BY9: 80 | BZ9: 83 | CA9: 85 | CB9: 89 | CC9: 93 | CD9: 85 | CE9: 89 | CF9: 93 | CG9: 97 | CH9: 102 | CI9: 107 | CJ9: 112 | CK9: 117 | CL9: 122 | CM9: 126 | CN9: 132 | CO9: 138 | CP9: 144 | CQ9: 150 | CR9: 92 | CS9: 96 | CT9: 100 | CU9: 104 | CV9: 108 | CW9: 112 | CX9: 116 | CY9: 120 | CZ9: 124 | DA9: 128 | DB9: 132 | DC9: 136 | DD9: 140 | DE9: 144 | DF9: ='اندازه های شخصی'!G10 -> 0 | DG9: ='اندازه های شخصی'!I10 -> 0 | DH9: ='اندازه های شخصی'!K10 -> 0 | DI9: ='اندازه های شخصی'!M10 -> 0 | DJ9: ='اندازه های شخصی'!O10 -> 0 | DK9: ='اندازه های شخصی'!Q10 -> 0 | DL9: ='اندازه های شخصی'!S10 -> 0 | DM9: ='اندازه های شخصی'!U10 -> 0 | DN9: ='اندازه های شخصی'!W10 -> 0 | DO9: ='اندازه های شخصی'!Y10 -> 0 | DP9: ='اندازه های شخصی'!AA10 -> 0 | DQ9: ='اندازه های شخصی'!AC10 -> 0 | DR9: ='اندازه های شخصی'!AE10 -> 0 | DS9: ='اندازه های شخصی'!AG10 -> 0 | DT9: ='اندازه های شخصی'!AI10 -> 0 | DU9: ='اندازه های شخصی'!AK10 -> 0 | DV9: ='اندازه های شخصی'!AM10 -> 0 | DW9: ='اندازه های شخصی'!AO10 -> 0 | DX9: ='اندازه های شخصی'!AQ10 -> 0 | DY9: ='اندازه های شخصی'!AS10 -> 0 | DZ9: ='اندازه های شخصی'!AU10 -> 0 | EA9: ='اندازه های شخصی'!AW10 -> 0 | EB9: ='اندازه های شخصی'!AY10 -> 0 | EC9: ='اندازه های شخصی'!BA10 -> 0 | ED9: ='اندازه های شخصی'!BC10 -> 0 | EE9: ='اندازه های شخصی'!BE10 -> 0 | EF9: ='اندازه های شخصی'!BG10 -> 0 | EG9: ='اندازه های شخصی'!BI10 -> 0 | EH9: ='اندازه های شخصی'!BK10 -> 0 | EI9: ='اندازه های شخصی'!BM10 -> 0 | EJ9: ='اندازه های شخصی'!BO10 -> 0 | EK9: ='اندازه های شخصی'!BQ10 -> 0 | EL9: ='اندازه های شخصی'!BS10 -> 0 | EM9: ='اندازه های شخصی'!BU10 -> 0 | EN9: ='اندازه های شخصی'!BW10 -> 0 | EO9: ='اندازه های شخصی'!BY10 -> 0 | EP9: ='اندازه های شخصی'!CA10 -> 0 | EQ9: ='اندازه های شخصی'!CC10 -> 0 | ER9: ='اندازه های شخصی'!CE10 -> 0 | ES9: ='اندازه های شخصی'!CG10 -> 0
A10: ضریب قرارگیری نقطه اتصال جلو چادر به پشت چادر a0 | B10: (از 0.5 الی 1.2) | C10: 1 | D10: روی پیشانی=0.5 بالای گوش=1 | E10: ='طراحی همه الگوها'!Q189 -> 20 | F10: مکان نقطه اتصال جلو چادر به پشت چادر | G10: 10 | H10: 0.5 | I10: 20 | J10: 1 | K10: 0.05 | L10: 0 | M10: 0.5 | N10: 10 | O10: 1.2 | P10: 24 | Q10: 0.5 | R10: 10 | T10: d | U10: 24.1 | V10: 25.2 | W10: 26.9 | X10: 28 | Y10: 29.7 | Z10: 31.4 | AA10: 31.3 | AB10: 32.9 | AC10: 34.5 | AD10: 36 | AE10: 37.6 | AF10: 39.2 | AG10: 40.8 | AH10: 42.4 | AI10: 44 | AJ10: 45.1 | AK10: 47.2 | AL10: 49.3 | AM10: 47.5 | AN10: 49 | AO10: 50.4 | AP10: 51.9 | AQ10: 53.6 | AR10: 55.4 | AS10: 57.2 | AT10: 59 | AU10: 61 | AV10: 63.7 | AW10: 67 | AX10: 70.8 | AY10: 75.3 | AZ10: 79.8 | BA10: 50.6 | BB10: 52.8 | BC10: 55 | BD10: 57.2 | BE10: 59.4 | BF10: 61.6 | BG10: 63.8 | BH10: 66 | BI10: 68.2 | BJ10: 70.4 | BK10: 72.6 | BL10: 74.8 | BM10: 77 | BN10: 79.2 | BO10: 28 | BP10: 29.7 | BQ10: 31.4 | BR10: 31.3 | BS10: 33.5 | BT10: 35.1 | BU10: 36.7 | BV10: 38.3 | BW10: 40 | BX10: 41.6 | BY10: 43.2 | BZ10: 44 | CA10: 45.1 | CB10: 47.2 | CC10: 49.3 | CD10: 47.5 | CE10: 49 | CF10: 50.4 | CG10: 51.9 | CH10: 53.6 | CI10: 55.4 | CJ10: 57.2 | CK10: 59 | CL10: 61 | CM10: 63.7 | CN10: 67 | CO10: 70.8 | CP10: 75.3 | CQ10: 79.8 | CR10: 48.3 | CS10: 50.4 | CT10: 52.5 | CU10: 54.6 | CV10: 56.7 | CW10: 58.8 | CX10: 60.9 | CY10: 63 | CZ10: 65.1 | DA10: 67.2 | DB10: 69.3 | DC10: 71.4 | DD10: 73.5 | DE10: 75.6 | DF10: ='اندازه های شخصی'!G11 -> 0 | DG10: ='اندازه های شخصی'!I11 -> 0 | DH10: ='اندازه های شخصی'!K11 -> 0 | DI10: ='اندازه های شخصی'!M11 -> 0 | DJ10: ='اندازه های شخصی'!O11 -> 0 | DK10: ='اندازه های شخصی'!Q11 -> 0 | DL10: ='اندازه های شخصی'!S11 -> 0 | DM10: ='اندازه های شخصی'!U11 -> 0 | DN10: ='اندازه های شخصی'!W11 -> 0 | DO10: ='اندازه های شخصی'!Y11 -> 0 | DP10: ='اندازه های شخصی'!AA11 -> 0 | DQ10: ='اندازه های شخصی'!AC11 -> 0 | DR10: ='اندازه های شخصی'!AE11 -> 0 | DS10: ='اندازه های شخصی'!AG11 -> 0 | DT10: ='اندازه های شخصی'!AI11 -> 0 | DU10: ='اندازه های شخصی'!AK11 -> 0 | DV10: ='اندازه های شخصی'!AM11 -> 0 | DW10: ='اندازه های شخصی'!AO11 -> 0 | DX10: ='اندازه های شخصی'!AQ11 -> 0 | DY10: ='اندازه های شخصی'!AS11 -> 0 | DZ10: ='اندازه های شخصی'!AU11 -> 0 | EA10: ='اندازه های شخصی'!AW11 -> 0 | EB10: ='اندازه های شخصی'!AY11 -> 0 | EC10: ='اندازه های شخصی'!BA11 -> 0 | ED10: ='اندازه های شخصی'!BC11 -> 0 | EE10: ='اندازه های شخصی'!BE11 -> 0 | EF10: ='اندازه های شخصی'!BG11 -> 0 | EG10: ='اندازه های شخصی'!BI11 -> 0 | EH10: ='اندازه های شخصی'!BK11 -> 0 | EI10: ='اندازه های شخصی'!BM11 -> 0 | EJ10: ='اندازه های شخصی'!BO11 -> 0 | EK10: ='اندازه های شخصی'!BQ11 -> 0 | EL10: ='اندازه های شخصی'!BS11 -> 0 | EM10: ='اندازه های شخصی'!BU11 -> 0 | EN10: ='اندازه های شخصی'!BW11 -> 0 | EO10: ='اندازه های شخصی'!BY11 -> 0 | EP10: ='اندازه های شخصی'!CA11 -> 0 | EQ10: ='اندازه های شخصی'!CC11 -> 0 | ER10: ='اندازه های شخصی'!CE11 -> 0 | ES10: ='اندازه های شخصی'!CG11 -> 0
A11: ضریب گشادی عرضی چادر a1 | B11: (از 0.35 الی 0.53) | C11: 0.45 | D11: بهینه=0.45 | E11: ='طراحی همه الگوها'!Q190 -> 20 | F11: ضریب گشادی عرضی چادر | G11: 21 | H11: 0.46 | I11: 20 | J11: 0.45 | K11: 0.01 | L11: 0.25 | M11: 0.35 | N11: 10 | O11: 0.53 | P11: 28 | Q11: 0.45 | R11: 20 | T11: e | U11: 23 | V11: 25 | W11: 32 | X11: 38 | Y11: 42 | Z11: 48 | AA11: 53.9 | AB11: 60.4 | AC11: 66.4 | AD11: 70.4 | AE11: 74.4 | AF11: 77.9 | AG11: 80.9 | AH11: 84.4 | AI11: 87.9 | AJ11: 91.9 | AK11: 95.9 | AL11: 99.9 | AM11: 101 | AN11: 102 | AO11: 103 | AP11: 104 | AQ11: 104.4 | AR11: 104.9 | AS11: 105.4 | AT11: 105.9 | AU11: 106.4 | AV11: 106.9 | AW11: 107.4 | AX11: 107.9 | AY11: 108.4 | AZ11: 108.9 | BA11: 103.8 | BB11: 105.1 | BC11: 106.5 | BD11: 107.2 | BE11: 107.8 | BF11: 108.4 | BG11: 109 | BH11: 109.6 | BI11: 110.2 | BJ11: 110.7 | BK11: 111.2 | BL11: 111.7 | BM11: 112.2 | BN11: 112.7 | BO11: 38 | BP11: 42 | BQ11: 48 | BR11: 53.9 | BS11: 60.4 | BT11: 66.4 | BU11: 70.4 | BV11: 74.4 | BW11: 77.9 | BX11: 80.9 | BY11: 84.4 | BZ11: 87.9 | CA11: 91.9 | CB11: 95.9 | CC11: 99.9 | CD11: 101 | CE11: 102 | CF11: 103 | CG11: 104 | CH11: 104.4 | CI11: 104.9 | CJ11: 105.4 | CK11: 105.9 | CL11: 106.4 | CM11: 106.9 | CN11: 107.4 | CO11: 107.9 | CP11: 108.4 | CQ11: 108.9 | CR11: 104.7 | CS11: 106.1 | CT11: 107.5 | CU11: 108.2 | CV11: 108.8 | CW11: 109.4 | CX11: 110 | CY11: 110.6 | CZ11: 111.2 | DA11: 111.7 | DB11: 112.2 | DC11: 112.7 | DD11: 113.2 | DE11: 113.7 | DF11: ='اندازه های شخصی'!G12 -> 0 | DG11: ='اندازه های شخصی'!I12 -> 0 | DH11: ='اندازه های شخصی'!K12 -> 0 | DI11: ='اندازه های شخصی'!M12 -> 0 | DJ11: ='اندازه های شخصی'!O12 -> 0 | DK11: ='اندازه های شخصی'!Q12 -> 0 | DL11: ='اندازه های شخصی'!S12 -> 0 | DM11: ='اندازه های شخصی'!U12 -> 0 | DN11: ='اندازه های شخصی'!W12 -> 0 | DO11: ='اندازه های شخصی'!Y12 -> 0 | DP11: ='اندازه های شخصی'!AA12 -> 0 | DQ11: ='اندازه های شخصی'!AC12 -> 0 | DR11: ='اندازه های شخصی'!AE12 -> 0 | DS11: ='اندازه های شخصی'!AG12 -> 0 | DT11: ='اندازه های شخصی'!AI12 -> 0 | DU11: ='اندازه های شخصی'!AK12 -> 0 | DV11: ='اندازه های شخصی'!AM12 -> 0 | DW11: ='اندازه های شخصی'!AO12 -> 0 | DX11: ='اندازه های شخصی'!AQ12 -> 0 | DY11: ='اندازه های شخصی'!AS12 -> 0 | DZ11: ='اندازه های شخصی'!AU12 -> 0 | EA11: ='اندازه های شخصی'!AW12 -> 0 | EB11: ='اندازه های شخصی'!AY12 -> 0 | EC11: ='اندازه های شخصی'!BA12 -> 0 | ED11: ='اندازه های شخصی'!BC12 -> 0 | EE11: ='اندازه های شخصی'!BE12 -> 0 | EF11: ='اندازه های شخصی'!BG12 -> 0 | EG11: ='اندازه های شخصی'!BI12 -> 0 | EH11: ='اندازه های شخصی'!BK12 -> 0 | EI11: ='اندازه های شخصی'!BM12 -> 0 | EJ11: ='اندازه های شخصی'!BO12 -> 0 | EK11: ='اندازه های شخصی'!BQ12 -> 0 | EL11: ='اندازه های شخصی'!BS12 -> 0 | EM11: ='اندازه های شخصی'!BU12 -> 0 | EN11: ='اندازه های شخصی'!BW12 -> 0 | EO11: ='اندازه های شخصی'!BY12 -> 0 | EP11: ='اندازه های شخصی'!CA12 -> 0 | EQ11: ='اندازه های شخصی'!CC12 -> 0 | ER11: ='اندازه های شخصی'!CE12 -> 0 | ES11: ='اندازه های شخصی'!CG12 -> 0
A12: ضریب گشادی دور مچ a2 | B12: (از 1.1 الی 2) | C12: 1.7 | D12: بهینه=1.7 | E12: ='طراحی همه الگوها'!Q191 -> 7 | F12: ضریب گشادی دور مچ | G12: 1 | H12: 1.1 | I12: 0 | J12: 1 | K12: 0.1 | L12: 1 | M12: 1.1 | N12: 1 | O12: 2 | P12: 10 | Q12: 1.7 | R12: 7 | T12: f | U12: 23 | V12: 25 | W12: 32 | X12: 38 | Y12: 42 | Z12: 48 | AA12: 54 | AB12: 60.5 | AC12: 66.5 | AD12: 70.5 | AE12: 74.5 | AF12: 78 | AG12: 81 | AH12: 84.5 | AI12: 88 | AJ12: 92 | AK12: 96 | AL12: 100 | AM12: 102 | AN12: 103 | AO12: 104 | AP12: 105 | AQ12: 105.5 | AR12: 106 | AS12: 106.5 | AT12: 107 | AU12: 107.5 | AV12: 108 | AW12: 108.5 | AX12: 109 | AY12: 109.5 | AZ12: 110 | BA12: 104.8 | BB12: 106.2 | BC12: 107.6 | BD12: 108.3 | BE12: 108.9 | BF12: 109.5 | BG12: 110.1 | BH12: 110.7 | BI12: 111.3 | BJ12: 111.8 | BK12: 112.3 | BL12: 112.8 | BM12: 113.3 | BN12: 113.8 | BO12: 38 | BP12: 42 | BQ12: 48 | BR12: 54 | BS12: 60.5 | BT12: 66.5 | BU12: 70.5 | BV12: 74.5 | BW12: 78 | BX12: 81 | BY12: 84.5 | BZ12: 88 | CA12: 92 | CB12: 96 | CC12: 100 | CD12: 102 | CE12: 103 | CF12: 104 | CG12: 105 | CH12: 105.5 | CI12: 106 | CJ12: 106.5 | CK12: 107 | CL12: 107.5 | CM12: 108 | CN12: 108.5 | CO12: 109 | CP12: 109.5 | CQ12: 110 | CR12: 104.8 | CS12: 106.2 | CT12: 107.6 | CU12: 108.3 | CV12: 108.9 | CW12: 109.5 | CX12: 110.1 | CY12: 110.7 | CZ12: 111.3 | DA12: 111.8 | DB12: 112.3 | DC12: 112.8 | DD12: 113.3 | DE12: 113.8 | DF12: ='اندازه های شخصی'!G13 -> 0 | DG12: ='اندازه های شخصی'!I13 -> 0 | DH12: ='اندازه های شخصی'!K13 -> 0 | DI12: ='اندازه های شخصی'!M13 -> 0 | DJ12: ='اندازه های شخصی'!O13 -> 0 | DK12: ='اندازه های شخصی'!Q13 -> 0 | DL12: ='اندازه های شخصی'!S13 -> 0 | DM12: ='اندازه های شخصی'!U13 -> 0 | DN12: ='اندازه های شخصی'!W13 -> 0 | DO12: ='اندازه های شخصی'!Y13 -> 0 | DP12: ='اندازه های شخصی'!AA13 -> 0 | DQ12: ='اندازه های شخصی'!AC13 -> 0 | DR12: ='اندازه های شخصی'!AE13 -> 0 | DS12: ='اندازه های شخصی'!AG13 -> 0 | DT12: ='اندازه های شخصی'!AI13 -> 0 | DU12: ='اندازه های شخصی'!AK13 -> 0 | DV12: ='اندازه های شخصی'!AM13 -> 0 | DW12: ='اندازه های شخصی'!AO13 -> 0 | DX12: ='اندازه های شخصی'!AQ13 -> 0 | DY12: ='اندازه های شخصی'!AS13 -> 0 | DZ12: ='اندازه های شخصی'!AU13 -> 0 | EA12: ='اندازه های شخصی'!AW13 -> 0 | EB12: ='اندازه های شخصی'!AY13 -> 0 | EC12: ='اندازه های شخصی'!BA13 -> 0 | ED12: ='اندازه های شخصی'!BC13 -> 0 | EE12: ='اندازه های شخصی'!BE13 -> 0 | EF12: ='اندازه های شخصی'!BG13 -> 0 | EG12: ='اندازه های شخصی'!BI13 -> 0 | EH12: ='اندازه های شخصی'!BK13 -> 0 | EI12: ='اندازه های شخصی'!BM13 -> 0 | EJ12: ='اندازه های شخصی'!BO13 -> 0 | EK12: ='اندازه های شخصی'!BQ13 -> 0 | EL12: ='اندازه های شخصی'!BS13 -> 0 | EM12: ='اندازه های شخصی'!BU13 -> 0 | EN12: ='اندازه های شخصی'!BW13 -> 0 | EO12: ='اندازه های شخصی'!BY13 -> 0 | EP12: ='اندازه های شخصی'!CA13 -> 0 | EQ12: ='اندازه های شخصی'!CC13 -> 0 | ER12: ='اندازه های شخصی'!CE13 -> 0 | ES12: ='اندازه های شخصی'!CG13 -> 0
A13: ضریب بلند شدن آستین نسبت به مچ a4 | B13: (از -0.4 الی 0.4) | C13: 0 | D13: آستین تا مچ=0 آستین کوتاه تر از مچ = منفی آستین بلند تر از مچ = مثبت | E13: ='طراحی همه الگوها'!Q192 -> 10 | F13: بلند شدن آستین چادر نسبت به مچ اندام | G13: 30 | H13: -0.45 | I13: 10 | J13: 0 | K13: -0.0225 | L13: 0.225 | M13: -0.4 | N13: 27.77777778 | O13: 0.4 | P13: -7.777777778 | Q13: 0 | R13: 10 | T13: g | U13: 23 | V13: 25 | W13: 32 | X13: 38 | Y13: 42 | Z13: 48 | AA13: 54.1 | AB13: 60.6 | AC13: 66.6 | AD13: 70.6 | AE13: 74.6 | AF13: 78.1 | AG13: 81.1 | AH13: 84.6 | AI13: 88.1 | AJ13: 92.1 | AK13: 96.1 | AL13: 100.1 | AM13: 103 | AN13: 104 | AO13: 105 | AP13: 106.1 | AQ13: 106.6 | AR13: 107.1 | AS13: 107.6 | AT13: 108.1 | AU13: 108.6 | AV13: 109.1 | AW13: 109.6 | AX13: 110.1 | AY13: 110.6 | AZ13: 111.1 | BA13: 105.8 | BB13: 107.3 | BC13: 108.7 | BD13: 109.4 | BE13: 110 | BF13: 110.6 | BG13: 111.2 | BH13: 111.8 | BI13: 112.4 | BJ13: 112.9 | BK13: 113.4 | BL13: 113.9 | BM13: 114.4 | BN13: 114.9 | BO13: 38 | BP13: 42 | BQ13: 48 | BR13: 54.1 | BS13: 60.6 | BT13: 66.6 | BU13: 70.6 | BV13: 74.6 | BW13: 78.1 | BX13: 81.1 | BY13: 84.6 | BZ13: 88.1 | CA13: 92.1 | CB13: 96.1 | CC13: 100.1 | CD13: 103 | CE13: 104 | CF13: 105 | CG13: 106.1 | CH13: 106.6 | CI13: 107.1 | CJ13: 107.6 | CK13: 108.1 | CL13: 108.6 | CM13: 109.1 | CN13: 109.6 | CO13: 110.1 | CP13: 110.6 | CQ13: 111.1 | CR13: 104.9 | CS13: 106.3 | CT13: 107.7 | CU13: 108.4 | CV13: 109 | CW13: 109.6 | CX13: 110.2 | CY13: 110.8 | CZ13: 111.4 | DA13: 111.9 | DB13: 112.4 | DC13: 112.9 | DD13: 113.4 | DE13: 113.9 | DF13: ='اندازه های شخصی'!G14 -> 0 | DG13: ='اندازه های شخصی'!I14 -> 0 | DH13: ='اندازه های شخصی'!K14 -> 0 | DI13: ='اندازه های شخصی'!M14 -> 0 | DJ13: ='اندازه های شخصی'!O14 -> 0 | DK13: ='اندازه های شخصی'!Q14 -> 0 | DL13: ='اندازه های شخصی'!S14 -> 0 | DM13: ='اندازه های شخصی'!U14 -> 0 | DN13: ='اندازه های شخصی'!W14 -> 0 | DO13: ='اندازه های شخصی'!Y14 -> 0 | DP13: ='اندازه های شخصی'!AA14 -> 0 | DQ13: ='اندازه های شخصی'!AC14 -> 0 | DR13: ='اندازه های شخصی'!AE14 -> 0 | DS13: ='اندازه های شخصی'!AG14 -> 0 | DT13: ='اندازه های شخصی'!AI14 -> 0 | DU13: ='اندازه های شخصی'!AK14 -> 0 | DV13: ='اندازه های شخصی'!AM14 -> 0 | DW13: ='اندازه های شخصی'!AO14 -> 0 | DX13: ='اندازه های شخصی'!AQ14 -> 0 | DY13: ='اندازه های شخصی'!AS14 -> 0 | DZ13: ='اندازه های شخصی'!AU14 -> 0 | EA13: ='اندازه های شخصی'!AW14 -> 0 | EB13: ='اندازه های شخصی'!AY14 -> 0 | EC13: ='اندازه های شخصی'!BA14 -> 0 | ED13: ='اندازه های شخصی'!BC14 -> 0 | EE13: ='اندازه های شخصی'!BE14 -> 0 | EF13: ='اندازه های شخصی'!BG14 -> 0 | EG13: ='اندازه های شخصی'!BI14 -> 0 | EH13: ='اندازه های شخصی'!BK14 -> 0 | EI13: ='اندازه های شخصی'!BM14 -> 0 | EJ13: ='اندازه های شخصی'!BO14 -> 0 | EK13: ='اندازه های شخصی'!BQ14 -> 0 | EL13: ='اندازه های شخصی'!BS14 -> 0 | EM13: ='اندازه های شخصی'!BU14 -> 0 | EN13: ='اندازه های شخصی'!BW14 -> 0 | EO13: ='اندازه های شخصی'!BY14 -> 0 | EP13: ='اندازه های شخصی'!CA14 -> 0 | EQ13: ='اندازه های شخصی'!CC14 -> 0 | ER13: ='اندازه های شخصی'!CE14 -> 0 | ES13: ='اندازه های شخصی'!CG14 -> 0
A14: انتخاب چادر تا پایین پیشانی=1 انتخاب چادر تا بالای پیشانی=0 انتخاب چادر روی سر = -1 | B14: -1 یا 0 یا 1 | C14: 0 | E14: ='طراحی همه الگوها'!Q193 -> 2 | F14: انتخاب چادر تا پایین پیشانی=3 انتخاب چادر تا بالای پیشانی=2 انتخاب چادر روی سر = 1 | G14: 2 | H14: 0 | I14: 1 | J14: -1 | K14: 1 | L14: -2 | M14: 0 | N14: 2 | O14: 1 | P14: 3 | Q14: 1 | R14: 3 | T14: h | U14: 7.4 | V14: 8.4 | W14: 11.1 | X14: 13.4 | Y14: 14.9 | Z14: 17.2 | AA14: 24.9 | AB14: 27.4 | AC14: 30.3 | AD14: 32.1 | AE14: 33.9 | AF14: 35.4 | AG14: 36.6 | AH14: 38.2 | AI14: 39.7 | AJ14: 41.4 | AK14: 43.5 | AL14: 45.7 | AM14: 44.5 | AN14: 45 | AO14: 45.5 | AP14: 46 | AQ14: 46 | AR14: 46 | AS14: 46 | AT14: 46 | AU14: 46.3 | AV14: 46.3 | AW14: 46.4 | AX14: 46.5 | AY14: 46.6 | AZ14: 46.7 | BA14: 48.1 | BB14: 48.8 | BC14: 49.6 | BD14: 50 | BE14: 50.4 | BF14: 50.8 | BG14: 51.2 | BH14: 51.5 | BI14: 51.9 | BJ14: 52.3 | BK14: 52.6 | BL14: 53 | BM14: 53.2 | BN14: 53.6 | BO14: 13.4 | BP14: 14.9 | BQ14: 17.2 | BR14: 24.9 | BS14: 27.4 | BT14: 30.3 | BU14: 32.1 | BV14: 33.9 | BW14: 35.4 | BX14: 36.6 | BY14: 38.2 | BZ14: 39.7 | CA14: 41.4 | CB14: 43.5 | CC14: 45.7 | CD14: 44.5 | CE14: 45 | CF14: 45.5 | CG14: 46 | CH14: 46 | CI14: 46 | CJ14: 46 | CK14: 46 | CL14: 46.3 | CM14: 46.3 | CN14: 46.4 | CO14: 46.5 | CP14: 46.6 | CQ14: 46.7 | CR14: 48.1 | CS14: 48.8 | CT14: 49.6 | CU14: 50 | CV14: 50.3 | CW14: 50.8 | CX14: 51.2 | CY14: 51.5 | CZ14: 51.9 | DA14: 52.3 | DB14: 52.6 | DC14: 52.9 | DD14: 53.3 | DE14: 53.6 | DF14: ='اندازه های شخصی'!G15 -> 0 | DG14: ='اندازه های شخصی'!I15 -> 0 | DH14: ='اندازه های شخصی'!K15 -> 0 | DI14: ='اندازه های شخصی'!M15 -> 0 | DJ14: ='اندازه های شخصی'!O15 -> 0 | DK14: ='اندازه های شخصی'!Q15 -> 0 | DL14: ='اندازه های شخصی'!S15 -> 0 | DM14: ='اندازه های شخصی'!U15 -> 0 | DN14: ='اندازه های شخصی'!W15 -> 0 | DO14: ='اندازه های شخصی'!Y15 -> 0 | DP14: ='اندازه های شخصی'!AA15 -> 0 | DQ14: ='اندازه های شخصی'!AC15 -> 0 | DR14: ='اندازه های شخصی'!AE15 -> 0 | DS14: ='اندازه های شخصی'!AG15 -> 0 | DT14: ='اندازه های شخصی'!AI15 -> 0 | DU14: ='اندازه های شخصی'!AK15 -> 0 | DV14: ='اندازه های شخصی'!AM15 -> 0 | DW14: ='اندازه های شخصی'!AO15 -> 0 | DX14: ='اندازه های شخصی'!AQ15 -> 0 | DY14: ='اندازه های شخصی'!AS15 -> 0 | DZ14: ='اندازه های شخصی'!AU15 -> 0 | EA14: ='اندازه های شخصی'!AW15 -> 0 | EB14: ='اندازه های شخصی'!AY15 -> 0 | EC14: ='اندازه های شخصی'!BA15 -> 0 | ED14: ='اندازه های شخصی'!BC15 -> 0 | EE14: ='اندازه های شخصی'!BE15 -> 0 | EF14: ='اندازه های شخصی'!BG15 -> 0 | EG14: ='اندازه های شخصی'!BI15 -> 0 | EH14: ='اندازه های شخصی'!BK15 -> 0 | EI14: ='اندازه های شخصی'!BM15 -> 0 | EJ14: ='اندازه های شخصی'!BO15 -> 0 | EK14: ='اندازه های شخصی'!BQ15 -> 0 | EL14: ='اندازه های شخصی'!BS15 -> 0 | EM14: ='اندازه های شخصی'!BU15 -> 0 | EN14: ='اندازه های شخصی'!BW15 -> 0 | EO14: ='اندازه های شخصی'!BY15 -> 0 | EP14: ='اندازه های شخصی'!CA15 -> 0 | EQ14: ='اندازه های شخصی'!CC15 -> 0 | ER14: ='اندازه های شخصی'!CE15 -> 0 | ES14: ='اندازه های شخصی'!CG15 -> 0
T15: j | U15: 15.8 | V15: 17.9 | W15: 23.8 | X15: 28.7 | Y15: 31.8 | Z15: 36.7 | AA15: 45.2 | AB15: 49.8 | AC15: 55.1 | AD15: 58.3 | AE15: 61.6 | AF15: 64.3 | AG15: 66.5 | AH15: 69.4 | AI15: 72.1 | AJ15: 75.3 | AK15: 79.1 | AL15: 83 | AM15: 82.5 | AN15: 82.7 | AO15: 83.4 | AP15: 84.1 | AQ15: 84.3 | AR15: 84.5 | AS15: 84.7 | AT15: 85 | AU15: 85.3 | AV15: 85.7 | AW15: 86.1 | AX15: 86.5 | AY15: 86.9 | AZ15: 87.3 | BA15: 87.4 | BB15: 88.8 | BC15: 90.2 | BD15: 90.9 | BE15: 91.6 | BF15: 92.3 | BG15: 93 | BH15: 93.7 | BI15: 94.3 | BJ15: 95 | BK15: 95.7 | BL15: 96.3 | BM15: 96.8 | BN15: 97.5 | BO15: 28.7 | BP15: 31.8 | BQ15: 36.7 | BR15: 45.2 | BS15: 49.8 | BT15: 55.1 | BU15: 58.3 | BV15: 61.6 | BW15: 64.3 | BX15: 66.5 | BY15: 69.4 | BZ15: 72.1 | CA15: 75.3 | CB15: 79.1 | CC15: 83 | CD15: 82.5 | CE15: 82.7 | CF15: 83.4 | CG15: 84.1 | CH15: 84.3 | CI15: 84.5 | CJ15: 84.7 | CK15: 85 | CL15: 85.3 | CM15: 85.7 | CN15: 86.1 | CO15: 86.5 | CP15: 86.9 | CQ15: 87.3 | CR15: 87.4 | CS15: 88.8 | CT15: 90.2 | CU15: 90.9 | CV15: 91.5 | CW15: 92.3 | CX15: 93 | CY15: 93.6 | CZ15: 94.4 | DA15: 95 | DB15: 95.7 | DC15: 96.2 | DD15: 96.9 | DE15: 97.5 | DF15: ='اندازه های شخصی'!G16 -> 0 | DG15: ='اندازه های شخصی'!I16 -> 0 | DH15: ='اندازه های شخصی'!K16 -> 0 | DI15: ='اندازه های شخصی'!M16 -> 0 | DJ15: ='اندازه های شخصی'!O16 -> 0 | DK15: ='اندازه های شخصی'!Q16 -> 0 | DL15: ='اندازه های شخصی'!S16 -> 0 | DM15: ='اندازه های شخصی'!U16 -> 0 | DN15: ='اندازه های شخصی'!W16 -> 0 | DO15: ='اندازه های شخصی'!Y16 -> 0 | DP15: ='اندازه های شخصی'!AA16 -> 0 | DQ15: ='اندازه های شخصی'!AC16 -> 0 | DR15: ='اندازه های شخصی'!AE16 -> 0 | DS15: ='اندازه های شخصی'!AG16 -> 0 | DT15: ='اندازه های شخصی'!AI16 -> 0 | DU15: ='اندازه های شخصی'!AK16 -> 0 | DV15: ='اندازه های شخصی'!AM16 -> 0 | DW15: ='اندازه های شخصی'!AO16 -> 0 | DX15: ='اندازه های شخصی'!AQ16 -> 0 | DY15: ='اندازه های شخصی'!AS16 -> 0 | DZ15: ='اندازه های شخصی'!AU16 -> 0 | EA15: ='اندازه های شخصی'!AW16 -> 0 | EB15: ='اندازه های شخصی'!AY16 -> 0 | EC15: ='اندازه های شخصی'!BA16 -> 0 | ED15: ='اندازه های شخصی'!BC16 -> 0 | EE15: ='اندازه های شخصی'!BE16 -> 0 | EF15: ='اندازه های شخصی'!BG16 -> 0 | EG15: ='اندازه های شخصی'!BI16 -> 0 | EH15: ='اندازه های شخصی'!BK16 -> 0 | EI15: ='اندازه های شخصی'!BM16 -> 0 | EJ15: ='اندازه های شخصی'!BO16 -> 0 | EK15: ='اندازه های شخصی'!BQ16 -> 0 | EL15: ='اندازه های شخصی'!BS16 -> 0 | EM15: ='اندازه های شخصی'!BU16 -> 0 | EN15: ='اندازه های شخصی'!BW16 -> 0 | EO15: ='اندازه های شخصی'!BY16 -> 0 | EP15: ='اندازه های شخصی'!CA16 -> 0 | EQ15: ='اندازه های شخصی'!CC16 -> 0 | ER15: ='اندازه های شخصی'!CE16 -> 0 | ES15: ='اندازه های شخصی'!CG16 -> 0
A16: متغیرهای ورودی چادر شماره 3 | F16: متغیرهای ورودی چادر شماره 3 | G16: x1 | H16: y1 | I16: x2 | J16: y2(بهینه) | K16: a | L16: b | N16: کمترین | P16: بیشترین | T16: L | U16: 17.6 | V16: 18.5 | W16: 19.7 | X16: 20.5 | Y16: 21.7 | Z16: 23 | AA16: 24.2 | AB16: 25.4 | AC16: 26.7 | AD16: 27.9 | AE16: 29.1 | AF16: 30.3 | AG16: 31.6 | AH16: 32.8 | AI16: 34 | AJ16: 34.9 | AK16: 36.5 | AL16: 38.1 | AM16: 34.9 | AN16: 36.5 | AO16: 38.1 | AP16: 39.8 | AQ16: 41.8 | AR16: 43.9 | AS16: 45.9 | AT16: 48 | AU16: 50 | AV16: 51.7 | AW16: 54.1 | AX16: 56.6 | AY16: 59 | AZ16: 61.5 | BA16: 37.7 | BB16: 39.4 | BC16: 41 | BD16: 42.6 | BE16: 44.3 | BF16: 45.9 | BG16: 47.6 | BH16: 49.2 | BI16: 50.8 | BJ16: 52.5 | BK16: 54.1 | BL16: 55.8 | BM16: 57.4 | BN16: 59 | BO16: 20.5 | BP16: 21.7 | BQ16: 23 | BR16: 24.2 | BS16: 25.4 | BT16: 26.7 | BU16: 27.9 | BV16: 29.1 | BW16: 30.3 | BX16: 31.6 | BY16: 32.8 | BZ16: 34 | CA16: 34.9 | CB16: 36.5 | CC16: 38.1 | CD16: 34.9 | CE16: 36.5 | CF16: 38.1 | CG16: 39.8 | CH16: 41.8 | CI16: 43.9 | CJ16: 45.9 | CK16: 48 | CL16: 50 | CM16: 51.7 | CN16: 54.1 | CO16: 56.6 | CP16: 59 | CQ16: 61.5 | CR16: 37.7 | CS16: 39.4 | CT16: 41 | CU16: 42.6 | CV16: 44.3 | CW16: 45.9 | CX16: 47.6 | CY16: 49.2 | CZ16: 50.8 | DA16: 52.5 | DB16: 54.1 | DC16: 55.8 | DD16: 57.4 | DE16: 59 | DF16: ='اندازه های شخصی'!G17 -> 0 | DG16: ='اندازه های شخصی'!I17 -> 0 | DH16: ='اندازه های شخصی'!K17 -> 0 | DI16: ='اندازه های شخصی'!M17 -> 0 | DJ16: ='اندازه های شخصی'!O17 -> 0 | DK16: ='اندازه های شخصی'!Q17 -> 0 | DL16: ='اندازه های شخصی'!S17 -> 0 | DM16: ='اندازه های شخصی'!U17 -> 0 | DN16: ='اندازه های شخصی'!W17 -> 0 | DO16: ='اندازه های شخصی'!Y17 -> 0 | DP16: ='اندازه های شخصی'!AA17 -> 0 | DQ16: ='اندازه های شخصی'!AC17 -> 0 | DR16: ='اندازه های شخصی'!AE17 -> 0 | DS16: ='اندازه های شخصی'!AG17 -> 0 | DT16: ='اندازه های شخصی'!AI17 -> 0 | DU16: ='اندازه های شخصی'!AK17 -> 0 | DV16: ='اندازه های شخصی'!AM17 -> 0 | DW16: ='اندازه های شخصی'!AO17 -> 0 | DX16: ='اندازه های شخصی'!AQ17 -> 0 | DY16: ='اندازه های شخصی'!AS17 -> 0 | DZ16: ='اندازه های شخصی'!AU17 -> 0 | EA16: ='اندازه های شخصی'!AW17 -> 0 | EB16: ='اندازه های شخصی'!AY17 -> 0 | EC16: ='اندازه های شخصی'!BA17 -> 0 | ED16: ='اندازه های شخصی'!BC17 -> 0 | EE16: ='اندازه های شخصی'!BE17 -> 0 | EF16: ='اندازه های شخصی'!BG17 -> 0 | EG16: ='اندازه های شخصی'!BI17 -> 0 | EH16: ='اندازه های شخصی'!BK17 -> 0 | EI16: ='اندازه های شخصی'!BM17 -> 0 | EJ16: ='اندازه های شخصی'!BO17 -> 0 | EK16: ='اندازه های شخصی'!BQ17 -> 0 | EL16: ='اندازه های شخصی'!BS17 -> 0 | EM16: ='اندازه های شخصی'!BU17 -> 0 | EN16: ='اندازه های شخصی'!BW17 -> 0 | EO16: ='اندازه های شخصی'!BY17 -> 0 | EP16: ='اندازه های شخصی'!CA17 -> 0 | EQ16: ='اندازه های شخصی'!CC17 -> 0 | ER16: ='اندازه های شخصی'!CE17 -> 0 | ES16: ='اندازه های شخصی'!CG17 -> 0
A17: ضریب فاصله لبه چادر تا زمین j0 | B17: (از -0.1 الی 0.5) | C17: =K17*E17+L17 -> 0 | D17: خط زمین=0 خط زانو=1 | E17: ='طراحی همه الگوها'!Q210 -> 10 | F17: ضریب فاصله لبه چادر تا زمین | G17: 10 | H17: 0 | I17: 30 | J17: 1 | K17: =(J17-H17)/(I17-G17) -> 0.05 | L17: =H17-G17*K17 -> -0.5 | M17: -0.1 | N17: =(M17-L17)/K17 -> 8 | O17: 0.5 | P17: =(O17-L17)/K17 -> 20 | Q17: 0 | R17: =(Q17-L17)/K17 -> 10 | T17: m | U17: 10 | V17: 10 | W17: 11 | X17: 12 | Y17: 13 | Z17: 14 | AA17: 14 | AB17: 16 | AC17: 17 | AD17: 18 | AE17: 19 | AF17: 20 | AG17: 21 | AH17: 22 | AI17: 23 | AJ17: 24 | AK17: 24.5 | AL17: 25 | AM17: 25.1 | AN17: 25.8 | AO17: 26.4 | AP17: 27.1 | AQ17: 27.8 | AR17: 28.4 | AS17: 29.1 | AT17: 29.7 | AU17: 30.3 | AV17: 31 | AW17: 31.6 | AX17: 32.3 | AY17: 32.9 | AZ17: 33.5 | BA17: 23.1 | BB17: 23.5 | BC17: 23.8 | BD17: 24.2 | BE17: 24.5 | BF17: 24.7 | BG17: 25 | BH17: 25.3 | BI17: 25.6 | BJ17: 25.8 | BK17: 26.1 | BL17: 26.4 | BM17: 26.7 | BN17: 26.9 | BO17: 12 | BP17: 13 | BQ17: 14 | BR17: 14 | BS17: 16 | BT17: 17 | BU17: 18 | BV17: 19 | BW17: 20 | BX17: 21 | BY17: 22 | BZ17: 23 | CA17: 24 | CB17: 24.5 | CC17: 25 | CD17: 25.1 | CE17: 25.8 | CF17: 26.4 | CG17: 27.1 | CH17: 27.8 | CI17: 28.4 | CJ17: 29.1 | CK17: 29.7 | CL17: 30.3 | CM17: 31 | CN17: 31.6 | CO17: 32.3 | CP17: 32.9 | CQ17: 33.5 | CR17: 23.1 | CS17: 23.5 | CT17: 23.8 | CU17: 24.2 | CV17: 24.5 | CW17: 24.7 | CX17: 25 | CY17: 25.3 | CZ17: 25.5 | DA17: 25.8 | DB17: 26.1 | DC17: 26.4 | DD17: 26.6 | DE17: 26.9 | DF17: ='اندازه های شخصی'!G18 -> 0 | DG17: ='اندازه های شخصی'!I18 -> 0 | DH17: ='اندازه های شخصی'!K18 -> 0 | DI17: ='اندازه های شخصی'!M18 -> 0 | DJ17: ='اندازه های شخصی'!O18 -> 0 | DK17: ='اندازه های شخصی'!Q18 -> 0 | DL17: ='اندازه های شخصی'!S18 -> 0 | DM17: ='اندازه های شخصی'!U18 -> 0 | DN17: ='اندازه های شخصی'!W18 -> 0 | DO17: ='اندازه های شخصی'!Y18 -> 0 | DP17: ='اندازه های شخصی'!AA18 -> 0 | DQ17: ='اندازه های شخصی'!AC18 -> 0 | DR17: ='اندازه های شخصی'!AE18 -> 0 | DS17: ='اندازه های شخصی'!AG18 -> 0 | DT17: ='اندازه های شخصی'!AI18 -> 0 | DU17: ='اندازه های شخصی'!AK18 -> 0 | DV17: ='اندازه های شخصی'!AM18 -> 0 | DW17: ='اندازه های شخصی'!AO18 -> 0 | DX17: ='اندازه های شخصی'!AQ18 -> 0 | DY17: ='اندازه های شخصی'!AS18 -> 0 | DZ17: ='اندازه های شخصی'!AU18 -> 0 | EA17: ='اندازه های شخصی'!AW18 -> 0 | EB17: ='اندازه های شخصی'!AY18 -> 0 | EC17: ='اندازه های شخصی'!BA18 -> 0 | ED17: ='اندازه های شخصی'!BC18 -> 0 | EE17: ='اندازه های شخصی'!BE18 -> 0 | EF17: ='اندازه های شخصی'!BG18 -> 0 | EG17: ='اندازه های شخصی'!BI18 -> 0 | EH17: ='اندازه های شخصی'!BK18 -> 0 | EI17: ='اندازه های شخصی'!BM18 -> 0 | EJ17: ='اندازه های شخصی'!BO18 -> 0 | EK17: ='اندازه های شخصی'!BQ18 -> 0 | EL17: ='اندازه های شخصی'!BS18 -> 0 | EM17: ='اندازه های شخصی'!BU18 -> 0 | EN17: ='اندازه های شخصی'!BW18 -> 0 | EO17: ='اندازه های شخصی'!BY18 -> 0 | EP17: ='اندازه های شخصی'!CA18 -> 0 | EQ17: ='اندازه های شخصی'!CC18 -> 0 | ER17: ='اندازه های شخصی'!CE18 -> 0 | ES17: ='اندازه های شخصی'!CG18 -> 0
A18: ضریب گشادی دور مچ b2 | B18: (از 1.1 الی 2) | C18: 1.5 | D18: بهینه=1.5 | E18: ='طراحی همه الگوها'!Q211 -> 5 | F18: ضریب گشادی دور مچ | G18: 1 | H18: 1.1 | I18: 0 | J18: 1 | K18: 0.1 | L18: 1 | M18: 1.1 | N18: 1 | O18: 2 | P18: 10 | Q18: 1.5 | R18: 5 | T18: q | U18: 29.1 | V18: 29.6 | W18: 32.8 | X18: 35.7 | Y18: 38.5 | Z18: 41.7 | AA18: 37.7 | AB18: 42.6 | AC18: 45 | AD18: 47.6 | AE18: 50 | AF18: 52.7 | AG18: 55.3 | AH18: 57.7 | AI18: 60.3 | AJ18: 62.6 | AK18: 64.4 | AL18: 66 | AM18: 65.2 | AN18: 67.2 | AO18: 69.2 | AP18: 71.1 | AQ18: 73.4 | AR18: 75.2 | AS18: 77.3 | AT18: 79.4 | AU18: 81.2 | AV18: 83.3 | AW18: 85.3 | AX18: 87.5 | AY18: 89.7 | AZ18: 91.7 | BA18: 66.5 | BB18: 67.8 | BC18: 69.2 | BD18: 70.5 | BE18: 71.6 | BF18: 72.8 | BG18: 73.9 | BH18: 75.1 | BI18: 76.4 | BJ18: 77.4 | BK18: 78.5 | BL18: 79.6 | BM18: 80.9 | BN18: 81.8 | BO18: 35.7 | BP18: 38.5 | BQ18: 41.7 | BR18: 37.7 | BS18: 42.6 | BT18: 45 | BU18: 47.6 | BV18: 50.1 | BW18: 52.7 | BX18: 55.3 | BY18: 57.7 | BZ18: 60.3 | CA18: 62.6 | CB18: 64.4 | CC18: 66 | CD18: 65.2 | CE18: 67.2 | CF18: 69.2 | CG18: 71.1 | CH18: 73.4 | CI18: 75.2 | CJ18: 77.3 | CK18: 79.4 | CL18: 81.2 | CM18: 83.3 | CN18: 85.3 | CO18: 87.5 | CP18: 89.7 | CQ18: 91.7 | CR18: 66.3 | CS18: 67.7 | CT18: 69 | CU18: 70.3 | CV18: 71.7 | CW18: 72.6 | CX18: 73.8 | CY18: 75.1 | CZ18: 76.1 | DA18: 77.2 | DB18: 78.3 | DC18: 79.6 | DD18: 80.5 | DE18: 81.7 | DF18: ='اندازه های شخصی'!G19 -> 0 | DG18: ='اندازه های شخصی'!I19 -> 0 | DH18: ='اندازه های شخصی'!K19 -> 0 | DI18: ='اندازه های شخصی'!M19 -> 0 | DJ18: ='اندازه های شخصی'!O19 -> 0 | DK18: ='اندازه های شخصی'!Q19 -> 0 | DL18: ='اندازه های شخصی'!S19 -> 0 | DM18: ='اندازه های شخصی'!U19 -> 0 | DN18: ='اندازه های شخصی'!W19 -> 0 | DO18: ='اندازه های شخصی'!Y19 -> 0 | DP18: ='اندازه های شخصی'!AA19 -> 0 | DQ18: ='اندازه های شخصی'!AC19 -> 0 | DR18: ='اندازه های شخصی'!AE19 -> 0 | DS18: ='اندازه های شخصی'!AG19 -> 0 | DT18: ='اندازه های شخصی'!AI19 -> 0 | DU18: ='اندازه های شخصی'!AK19 -> 0 | DV18: ='اندازه های شخصی'!AM19 -> 0 | DW18: ='اندازه های شخصی'!AO19 -> 0 | DX18: ='اندازه های شخصی'!AQ19 -> 0 | DY18: ='اندازه های شخصی'!AS19 -> 0 | DZ18: ='اندازه های شخصی'!AU19 -> 0 | EA18: ='اندازه های شخصی'!AW19 -> 0 | EB18: ='اندازه های شخصی'!AY19 -> 0 | EC18: ='اندازه های شخصی'!BA19 -> 0 | ED18: ='اندازه های شخصی'!BC19 -> 0 | EE18: ='اندازه های شخصی'!BE19 -> 0 | EF18: ='اندازه های شخصی'!BG19 -> 0 | EG18: ='اندازه های شخصی'!BI19 -> 0 | EH18: ='اندازه های شخصی'!BK19 -> 0 | EI18: ='اندازه های شخصی'!BM19 -> 0 | EJ18: ='اندازه های شخصی'!BO19 -> 0 | EK18: ='اندازه های شخصی'!BQ19 -> 0 | EL18: ='اندازه های شخصی'!BS19 -> 0 | EM18: ='اندازه های شخصی'!BU19 -> 0 | EN18: ='اندازه های شخصی'!BW19 -> 0 | EO18: ='اندازه های شخصی'!BY19 -> 0 | EP18: ='اندازه های شخصی'!CA19 -> 0 | EQ18: ='اندازه های شخصی'!CC19 -> 0 | ER18: ='اندازه های شخصی'!CE19 -> 0 | ES18: ='اندازه های شخصی'!CG19 -> 0
A19: ضریب بلندی طول مچ b3 معادل ضریب تنگی پایین چادر | B19: (از0 الی 0.4) | C19: 0.15 | D19: بهینه=0.15 | E19: ='طراحی همه الگوها'!Q212 -> 15 | F19: گشادی پایین چادر (معادل بلندی طول مچ) | G19: 1 | H19: 0.01 | I19: 0 | J19: 0 | K19: 0.01 | L19: 0 | M19: 0 | N19: 0 | O19: 0.4 | P19: 40 | Q19: 0.15 | R19: 15 | T19: r | U19: 13.5 | V19: 13.5 | W19: 14.2 | X19: 14.9 | Y19: 16.2 | Z19: 16.2 | AA19: 17.6 | AB19: 17.6 | AC19: 17.6 | AD19: 18.9 | AE19: 18.9 | AF19: 20.3 | AG19: 21.6 | AH19: 20.3 | AI19: 21.6 | AJ19: 22.3 | AK19: 23 | AL19: 23.6 | AM19: 23 | AN19: 23.5 | AO19: 24 | AP19: 24.5 | AQ19: 25.1 | AR19: 25.7 | AS19: 26.3 | AT19: 26.9 | AU19: 27.5 | AV19: 28 | AW19: 28.5 | AX19: 29 | AY19: 29.5 | AZ19: 30 | BA19: 24 | BB19: 25 | BC19: 26 | BD19: 27 | BE19: 28 | BF19: 29 | BG19: 29 | BH19: 29 | BI19: 29 | BJ19: 29.4 | BK19: 29.8 | BL19: 30.2 | BM19: 32.6 | BN19: 31 | BO19: 14.9 | BP19: 16.2 | BQ19: 16.2 | BR19: 17.6 | BS19: 17.6 | BT19: 17.6 | BU19: 18.9 | BV19: 18.9 | BW19: 20.3 | BX19: 21.6 | BY19: 20.3 | BZ19: 21.6 | CA19: 22.3 | CB19: 23 | CC19: 23.6 | CD19: 23 | CE19: 23.5 | CF19: 24 | CG19: 24.5 | CH19: 25.1 | CI19: 25.7 | CJ19: 26.3 | CK19: 26.9 | CL19: 27.5 | CM19: 28 | CN19: 28.5 | CO19: 29 | CP19: 29.5 | CQ19: 30 | CR19: 24 | CS19: 25 | CT19: 26 | CU19: 27 | CV19: 28 | CW19: 29 | CX19: 29 | CY19: 29 | CZ19: 29 | DA19: 29.4 | DB19: 29.8 | DC19: 30.2 | DD19: 32.6 | DE19: 31 | DF19: ='اندازه های شخصی'!G20 -> 0 | DG19: ='اندازه های شخصی'!I20 -> 0 | DH19: ='اندازه های شخصی'!K20 -> 0 | DI19: ='اندازه های شخصی'!M20 -> 0 | DJ19: ='اندازه های شخصی'!O20 -> 0 | DK19: ='اندازه های شخصی'!Q20 -> 0 | DL19: ='اندازه های شخصی'!S20 -> 0 | DM19: ='اندازه های شخصی'!U20 -> 0 | DN19: ='اندازه های شخصی'!W20 -> 0 | DO19: ='اندازه های شخصی'!Y20 -> 0 | DP19: ='اندازه های شخصی'!AA20 -> 0 | DQ19: ='اندازه های شخصی'!AC20 -> 0 | DR19: ='اندازه های شخصی'!AE20 -> 0 | DS19: ='اندازه های شخصی'!AG20 -> 0 | DT19: ='اندازه های شخصی'!AI20 -> 0 | DU19: ='اندازه های شخصی'!AK20 -> 0 | DV19: ='اندازه های شخصی'!AM20 -> 0 | DW19: ='اندازه های شخصی'!AO20 -> 0 | DX19: ='اندازه های شخصی'!AQ20 -> 0 | DY19: ='اندازه های شخصی'!AS20 -> 0 | DZ19: ='اندازه های شخصی'!AU20 -> 0 | EA19: ='اندازه های شخصی'!AW20 -> 0 | EB19: ='اندازه های شخصی'!AY20 -> 0 | EC19: ='اندازه های شخصی'!BA20 -> 0 | ED19: ='اندازه های شخصی'!BC20 -> 0 | EE19: ='اندازه های شخصی'!BE20 -> 0 | EF19: ='اندازه های شخصی'!BG20 -> 0 | EG19: ='اندازه های شخصی'!BI20 -> 0 | EH19: ='اندازه های شخصی'!BK20 -> 0 | EI19: ='اندازه های شخصی'!BM20 -> 0 | EJ19: ='اندازه های شخصی'!BO20 -> 0 | EK19: ='اندازه های شخصی'!BQ20 -> 0 | EL19: ='اندازه های شخصی'!BS20 -> 0 | EM19: ='اندازه های شخصی'!BU20 -> 0 | EN19: ='اندازه های شخصی'!BW20 -> 0 | EO19: ='اندازه های شخصی'!BY20 -> 0 | EP19: ='اندازه های شخصی'!CA20 -> 0 | EQ19: ='اندازه های شخصی'!CC20 -> 0 | ER19: ='اندازه های شخصی'!CE20 -> 0 | ES19: ='اندازه های شخصی'!CG20 -> 0
A20: ضریب بلند شدن آستین نسبت به مچ b5 | B20: (از -0.4 الی 0.4) | C20: 0 | D20: آستین تا مچ=0 آستین کوتاه تر از مچ = منفی آستین بلند تر از مچ = مثبت | E20: ='طراحی همه الگوها'!Q213 -> 10 | F20: بلند شدن آستین چادر نسبت به مچ اندام | G20: 30 | H20: -0.45 | I20: 10 | J20: 0 | K20: -0.0225 | L20: 0.225 | M20: -0.4 | N20: 27.77777778 | O20: 0.4 | P20: -7.777777778 | Q20: 0 | R20: 10
A21: عرض پارچه به سانتیمتر b1 | B21: (از 90 الی 200) | C21: 110 | D21: 90 یا 100 یا 110 115 یا 120 یا ... | E21: ='طراحی همه الگوها'!Q214 -> 110 | F21: عرض پارچه | G21: 2 | H21: 2 | I21: 1 | J21: 1 | K21: 1 | L21: 0 | M21: 90 | N21: 90 | O21: 200 | P21: 200 | Q21: 100 | R21: 100 | U21: 2 | V21: 2 | W21: 2 | X21: 2 | Y21: 2 | Z21: 2 | AA21: 0 | AB21: 0 | AC21: 0 | AD21: 0 | AE21: 0 | AF21: 0 | AG21: 0 | AH21: 0 | AI21: 0 | AJ21: 0 | AK21: 0 | AL21: 0 | AM21: 0 | AN21: 0 | AO21: 0 | AP21: 0 | AQ21: 0 | AR21: 0 | AS21: 0 | AT21: 0 | AU21: 0 | AV21: 0 | AW21: 0 | AX21: 0 | AY21: 0 | AZ21: 0 | BA21: 1 | BB21: 1 | BC21: 1 | BD21: 1 | BE21: 1 | BF21: 1 | BG21: 1 | BH21: 1 | BI21: 1 | BJ21: 1 | BK21: 1 | BL21: 1 | BM21: 1 | BN21: 1 | BO21: 2 | BP21: 2 | BQ21: 2 | BR21: 0 | BS21: 0 | BT21: 0 | BU21: 0 | BV21: 0 | BW21: 0 | BX21: 0 | BY21: 0 | BZ21: 0 | CA21: 0 | CB21: 0 | CC21: 0 | CD21: 0 | CE21: 0 | CF21: 0 | CG21: 0 | CH21: 0 | CI21: 0 | CJ21: 0 | CK21: 0 | CL21: 0 | CM21: 0 | CN21: 0 | CO21: 0 | CP21: 0 | CQ21: 0 | CR21: 1 | CS21: 1 | CT21: 1 | CU21: 1 | CV21: 1 | CW21: 1 | CX21: 1 | CY21: 1 | CZ21: 1 | DA21: 1 | DB21: 1 | DC21: 1 | DD21: 1 | DE21: 1 | DF21: ='اندازه های شخصی'!G21 -> 0 | DG21: ='اندازه های شخصی'!I21 -> 0 | DH21: ='اندازه های شخصی'!K21 -> 0 | DI21: ='اندازه های شخصی'!M21 -> 0 | DJ21: ='اندازه های شخصی'!O21 -> 0 | DK21: ='اندازه های شخصی'!Q21 -> 0 | DL21: ='اندازه های شخصی'!S21 -> 0 | DM21: ='اندازه های شخصی'!U21 -> 0 | DN21: ='اندازه های شخصی'!W21 -> 0 | DO21: ='اندازه های شخصی'!Y21 -> 0 | DP21: ='اندازه های شخصی'!AA21 -> 0 | DQ21: ='اندازه های شخصی'!AC21 -> 0 | DR21: ='اندازه های شخصی'!AE21 -> 0 | DS21: ='اندازه های شخصی'!AG21 -> 0 | DT21: ='اندازه های شخصی'!AI21 -> 0 | DU21: ='اندازه های شخصی'!AK21 -> 0 | DV21: ='اندازه های شخصی'!AM21 -> 0 | DW21: ='اندازه های شخصی'!AO21 -> 0 | DX21: ='اندازه های شخصی'!AQ21 -> 0 | DY21: ='اندازه های شخصی'!AS21 -> 0 | DZ21: ='اندازه های شخصی'!AU21 -> 0 | EA21: ='اندازه های شخصی'!AW21 -> 0 | EB21: ='اندازه های شخصی'!AY21 -> 0 | EC21: ='اندازه های شخصی'!BA21 -> 0 | ED21: ='اندازه های شخصی'!BC21 -> 0 | EE21: ='اندازه های شخصی'!BE21 -> 0 | EF21: ='اندازه های شخصی'!BG21 -> 0 | EG21: ='اندازه های شخصی'!BI21 -> 0 | EH21: ='اندازه های شخصی'!BK21 -> 0 | EI21: ='اندازه های شخصی'!BM21 -> 0 | EJ21: ='اندازه های شخصی'!BO21 -> 0 | EK21: ='اندازه های شخصی'!BQ21 -> 0 | EL21: ='اندازه های شخصی'!BS21 -> 0 | EM21: ='اندازه های شخصی'!BU21 -> 0 | EN21: ='اندازه های شخصی'!BW21 -> 0 | EO21: ='اندازه های شخصی'!BY21 -> 0 | EP21: ='اندازه های شخصی'!CA21 -> 0 | EQ21: ='اندازه های شخصی'!CC21 -> 0 | ER21: ='اندازه های شخصی'!CE21 -> 0 | ES21: ='اندازه های شخصی'!CG21 -> 0
A22: انتخاب چادر تا پایین پیشانی=1 انتخاب چادر تا بالای پیشانی=0 انتخاب چادر روی سر = -1 | B22: -1 یا 0 یا 1 | C22: 0 | E22: ='طراحی همه الگوها'!Q215 -> 2 | F22: انتخاب چادر تا پایین پیشانی=3 انتخاب چادر تا بالای پیشانی=2 انتخاب چادر روی سر = 1 | G22: 2 | H22: 0 | I22: 1 | J22: -1 | K22: 1 | L22: -2 | M22: 0 | N22: 2 | O22: 2 | P22: 4 | Q22: 1 | R22: 3
A24: متغیرهای ورودی چادر شماره 4 | F24: متغیرهای ورودی چادر شماره 4 | G24: x1 | H24: y1 | I24: x2 | J24: y2(بهینه) | K24: a | L24: b | N24: کمترین | P24: بیشترین | U24: اندازه شخص | V24: اندازه شخص | W24: اندازه شخص | X24: اندازه شخص | Y24: اندازه شخص | Z24: اندازه شخص | AA24: اندازه شخص | AB24: اندازه شخص | AC24: اندازه شخص | AD24: اندازه شخص | AE24: اندازه شخص | AF24: اندازه شخص | AG24: اندازه شخص | AH24: اندازه شخص | AI24: اندازه شخص | AJ24: اندازه شخص | AK24: اندازه شخص | AL24: اندازه شخص | AM24: اندازه شخص | AN24: اندازه شخص | AO24: اندازه شخص | AP24: اندازه شخص | AQ24: اندازه شخص | AR24: اندازه شخص | AS24: اندازه شخص | AT24: اندازه شخص | AU24: اندازه شخص | AV24: اندازه شخص | AW24: اندازه شخص | AX24: اندازه شخص | AY24: اندازه شخص | AZ24: اندازه شخص | BA24: اندازه شخص | BB24: اندازه شخص | BC24: اندازه شخص | BD24: اندازه شخص | BE24: اندازه شخص | BF24: اندازه شخص | BG24: اندازه شخص | BH24: اندازه شخص | BI24: اندازه شخص | BJ24: اندازه شخص | BK24: اندازه شخص | BL24: اندازه شخص | BM24: اندازه شخص | BN24: اندازه شخص | BO24: اندازه شخص | BP24: اندازه شخص | BQ24: اندازه شخص | BR24: اندازه شخص | BS24: اندازه شخص | BT24: اندازه شخص | BU24: اندازه شخص | BV24: اندازه شخص | BW24: اندازه شخص | BX24: اندازه شخص | BY24: اندازه شخص | BZ24: اندازه شخص | CA24: اندازه شخص | CB24: اندازه شخص | CC24: اندازه شخص | CD24: اندازه شخص | CE24: اندازه شخص | CF24: اندازه شخص | CG24: اندازه شخص | CH24: اندازه شخص | CI24: اندازه شخص | CJ24: اندازه شخص | CK24: اندازه شخص | CL24: اندازه شخص | CM24: اندازه شخص | CN24: اندازه شخص | CO24: اندازه شخص | CP24: اندازه شخص | CQ24: اندازه شخص | CR24: اندازه شخص | CS24: اندازه شخص | CT24: اندازه شخص | CU24: اندازه شخص | CV24: اندازه شخص | CW24: اندازه شخص | CX24: اندازه شخص | CY24: اندازه شخص | CZ24: اندازه شخص | DA24: اندازه شخص | DB24: اندازه شخص | DC24: اندازه شخص | DD24: اندازه شخص | DE24: اندازه شخص
A25: ضریب فاصله لبه چادر تا زمین j0 | B25: (از -0.1 الی 0.5) | C25: =K25*E25+L25 -> 0 | D25: خط زمین=0 خط زانو=1 | E25: ='طراحی همه الگوها'!Q232 -> 10 | F25: ضریب فاصله لبه چادر تا زمین | G25: 10 | H25: 0 | I25: 30 | J25: 1 | K25: =(J25-H25)/(I25-G25) -> 0.05 | L25: =H25-G25*K25 -> -0.5 | M25: -0.1 | N25: =(M25-L25)/K25 -> 8 | O25: 0.5 | P25: =(O25-L25)/K25 -> 20 | Q25: 0 | R25: =(Q25-L25)/K25 -> 10 | T25: a | U25: 41 | V25: 42 | W25: 45 | X25: 47 | Y25: 48 | Z25: 49 | AA25: 51 | AB25: 53 | AC25: 55 | AD25: 57 | AE25: 59 | AF25: 61 | AG25: 63 | AH25: 65.5 | AI25: 68 | AJ25: 71 | AK25: 73 | AL25: 75 | AM25: 63 | AN25: 65 | AO25: 68 | AP25: 72 | AQ25: 77 | AR25: 82 | AS25: 87 | AT25: 92 | AU25: 97 | AV25: 103 | AW25: 110 | AX25: 117 | AY25: 124 | AZ25: 131 | BA25: 74 | BB25: 78 | BC25: 82 | BD25: 86 | BE25: 90 | BF25: 94 | BG25: 98 | BH25: 102 | BI25: 106 | BJ25: 111 | BK25: 116 | BL25: 121 | BM25: 126 | BN25: 131 | BO25: 47 | BP25: 48 | BQ25: 49 | BR25: 51 | BS25: 53 | BT25: 55 | BU25: 57 | BV25: 59 | BW25: 61 | BX25: 63 | BY25: 65.5 | BZ25: 68 | CA25: 71 | CB25: 73 | CC25: 75 | CD25: 67 | CE25: 69 | CF25: 72 | CG25: 76 | CH25: 81 | CI25: 86 | CJ25: 91 | CK25: 96 | CL25: 101 | CM25: 107 | CN25: 114 | CO25: 121 | CP25: 127 | CQ25: 135 | CR25: 75.5 | CS25: 79.6 | CT25: 83.6 | CU25: 87.7 | CV25: 91.8 | CW25: 95.9 | CX25: 100 | CY25: 104 | CZ25: 108.1 | DA25: 113.2 | DB25: 118.3 | DC25: 123.4 | DD25: 128.5 | DE25: 133.6 | DF25: =DF7 -> 0 | DG25: 0 | DH25: 0 | DI25: 0 | DJ25: 0 | DK25: 0 | DL25: 0 | DM25: 0 | DN25: 0 | DO25: 0 | DP25: 0 | DQ25: 0 | DR25: 0 | DS25: 0 | DT25: 0 | DU25: 0 | DV25: 0 | DW25: 0 | DX25: 0 | DY25: 0 | DZ25: =DZ7 -> 0 | EA25: 0 | EB25: 0 | EC25: =EC7 -> 0 | ED25: =ED7 -> 0 | EE25: 0 | EF25: 0 | EG25: =EG7 -> 0 | EH25: =EH7 -> 0 | EI25: 0 | EJ25: 0 | EK25: =EK7 -> 0 | EL25: =EL7 -> 0 | EM25: 0 | EN25: 0 | EO25: =EO7 -> 0 | EP25: =EP7 -> 0 | EQ25: 0 | ER25: 0 | ES25: 0
A26: ضریب گشادی پشت چادر نسبت به جلو چادر (به درجه) c1 | B26: (از -5 الی 5) | C26: 3 | D26: بهینه=3 | E26: ='طراحی همه الگوها'!Q233 -> 3 | F26: ضریب گشادی پشت چادر نسبت به جلو چادر (درجه) | G26: 1 | H26: 1 | I26: 0 | J26: 0 | K26: 1 | L26: 0 | M26: -5 | N26: -5 | O26: 5 | P26: 5 | Q26: 3 | R26: 3 | T26: b | U26: 20.1 | V26: 20.6 | W26: 22.1 | X26: 23 | Y26: 23.5 | Z26: 24 | AA26: 25 | AB26: 26 | AC26: 27 | AD26: 27.9 | AE26: 28.9 | AF26: 29.9 | AG26: 30.9 | AH26: 32.1 | AI26: 33.3 | AJ26: 34.8 | AK26: 35.8 | AL26: 36.8 | AM26: 32.2 | AN26: 32.7 | AO26: 33.7 | AP26: 35.2 | AQ26: 36.9 | AR26: 38.7 | AS26: 40.6 | AT26: 42.3 | AU26: 44.3 | AV26: 47.5 | AW26: 51 | AX26: 54.8 | AY26: 59.2 | AZ26: 63.6 | BA26: 37 | BB26: 39 | BC26: 41 | BD26: 43 | BE26: 45 | BF26: 47 | BG26: 49 | BH26: 51 | BI26: 53 | BJ26: 55.5 | BK26: 58 | BL26: 60.5 | BM26: 63 | BN26: 65.5 | BO26: 23 | BP26: 23.5 | BQ26: 24 | BR26: 25 | BS26: 26 | BT26: 27 | BU26: 27.9 | BV26: 28.9 | BW26: 29.9 | BX26: 30.9 | BY26: 32.1 | BZ26: 33.3 | CA26: 34.8 | CB26: 35.8 | CC26: 36.8 | CD26: 34.2 | CE26: 34.7 | CF26: 35.7 | CG26: 37.1 | CH26: 38.8 | CI26: 40.6 | CJ26: 42.4 | CK26: 44.2 | CL26: 46.1 | CM26: 49.4 | CN26: 52.8 | CO26: 56.7 | CP26: 60.7 | CQ26: 64.5 | CR26: 37.8 | CS26: 39.8 | CT26: 41.8 | CU26: 43.9 | CV26: 45.9 | CW26: 48 | CX26: 50 | CY26: 52 | CZ26: 54.1 | DA26: 56.6 | DB26: 59.2 | DC26: 61.7 | DD26: 64.3 | DE26: 66.8 | DF26: =DF8 -> 0 | DG26: 0 | DH26: 0 | DI26: 0 | DJ26: 0 | DK26: 0 | DL26: 0 | DM26: 0 | DN26: 0 | DO26: 0 | DP26: 0 | DQ26: 0 | DR26: 0 | DS26: 0 | DT26: 0 | DU26: 0 | DV26: 0 | DW26: 0 | DX26: 0 | DY26: 0 | DZ26: 0 | EA26: 0 | EB26: 0 | EC26: =EC8 -> 0 | ED26: 0 | EE26: 0 | EF26: 0 | EG26: =EG8 -> 0 | EH26: 0 | EI26: 0 | EJ26: 0 | EK26: =EK8 -> 0 | EL26: 0 | EM26: 0 | EN26: 0 | EO26: =EO8 -> 0 | EP26: 0 | EQ26: 0 | ER26: 0 | ES26: 0
A27: ضریب بلند شدن آستین نسبت به مچ c2 | B27: (از -0.4 الی 0.4) | C27: 0 | D27: آستین تا مچ=0 آستین کوتاه تر از مچ = منفی آستین بلند تر از مچ = مثبت | E27: ='طراحی همه الگوها'!Q234 -> 10 | F27: بلند شدن آستین چادر نسبت به مچ اندام | G27: 30 | H27: -0.45 | I27: 10 | J27: 0 | K27: -0.0225 | L27: 0.225 | M27: -0.4 | N27: 27.77777778 | O27: 0.4 | P27: -7.777777778 | Q27: 0 | R27: 10 | T27: s1 | U27: 43 | V27: 45 | W27: 47 | X27: 50 | Y27: 52 | Z27: 54 | AA27: 56 | AB27: 58 | AC27: 60 | AD27: 62 | AE27: 64 | AF27: 66 | AG27: 68 | AH27: 71 | AI27: 75 | AJ27: 78 | AK27: 82 | AL27: 86 | AM27: 80 | AN27: 84 | AO27: 88 | AP27: 92 | AQ27: 97 | AR27: 102 | AS27: 107 | AT27: 112 | AU27: 117 | AV27: 122 | AW27: 128 | AX27: 134 | AY27: 140 | AZ27: 146 | BA27: 88 | BB27: 92 | BC27: 96 | BD27: 100 | BE27: 104 | BF27: 108 | BG27: 112 | BH27: 116 | BI27: 120 | BJ27: 124 | BK27: 128 | BL27: 132 | BM27: 136 | BN27: 140 | BO27: 50 | BP27: 52 | BQ27: 54 | BR27: 56 | BS27: 58 | BT27: 60 | BU27: 62 | BV27: 64 | BW27: 66 | BX27: 68 | BY27: 71 | BZ27: 75 | CA27: 78 | CB27: 82 | CC27: 86 | CD27: 80 | CE27: 84 | CF27: 88 | CG27: 92 | CH27: 97 | CI27: 102 | CJ27: 107 | CK27: 112 | CL27: 117 | CM27: 122 | CN27: 128 | CO27: 134 | CP27: 140 | CQ27: 146 | CR27: 88 | CS27: 92 | CT27: 96 | CU27: 100 | CV27: 104 | CW27: 108 | CX27: 112 | CY27: 116 | CZ27: 120 | DA27: 124 | DB27: 128 | DC27: 132 | DD27: 136 | DE27: 140 | DF27: ='اندازه های شخصی'!G22 -> 0 | DG27: ='اندازه های شخصی'!I22 -> 0 | DH27: ='اندازه های شخصی'!K22 -> 0 | DI27: ='اندازه های شخصی'!M22 -> 0 | DJ27: ='اندازه های شخصی'!O22 -> 0 | DK27: ='اندازه های شخصی'!Q22 -> 0 | DL27: ='اندازه های شخصی'!S22 -> 0 | DM27: ='اندازه های شخصی'!U22 -> 0 | DN27: ='اندازه های شخصی'!W22 -> 0 | DO27: ='اندازه های شخصی'!Y22 -> 0 | DP27: ='اندازه های شخصی'!AA22 -> 0 | DQ27: ='اندازه های شخصی'!AC22 -> 0 | DR27: ='اندازه های شخصی'!AE22 -> 0 | DS27: ='اندازه های شخصی'!AG22 -> 0 | DT27: ='اندازه های شخصی'!AI22 -> 0 | DU27: ='اندازه های شخصی'!AK22 -> 0 | DV27: ='اندازه های شخصی'!AM22 -> 0 | DW27: ='اندازه های شخصی'!AO22 -> 0 | DX27: ='اندازه های شخصی'!AQ22 -> 0 | DY27: ='اندازه های شخصی'!AS22 -> 0 | DZ27: ='اندازه های شخصی'!AU22 -> 0 | EA27: ='اندازه های شخصی'!AW22 -> 0 | EB27: ='اندازه های شخصی'!AY22 -> 0 | EC27: ='اندازه های شخصی'!BA22 -> 0 | ED27: ='اندازه های شخصی'!BC22 -> 0 | EE27: ='اندازه های شخصی'!BE22 -> 0 | EF27: ='اندازه های شخصی'!BG22 -> 0 | EG27: ='اندازه های شخصی'!BI22 -> 0 | EH27: ='اندازه های شخصی'!BK22 -> 0 | EI27: ='اندازه های شخصی'!BM22 -> 0 | EJ27: ='اندازه های شخصی'!BO22 -> 0 | EK27: ='اندازه های شخصی'!BQ22 -> 0 | EL27: ='اندازه های شخصی'!BS22 -> 0 | EM27: ='اندازه های شخصی'!BU22 -> 0 | EN27: ='اندازه های شخصی'!BW22 -> 0 | EO27: ='اندازه های شخصی'!BY22 -> 0 | EP27: ='اندازه های شخصی'!CA22 -> 0 | EQ27: ='اندازه های شخصی'!CC22 -> 0 | ER27: ='اندازه های شخصی'!CE22 -> 0 | ES27: ='اندازه های شخصی'!CG22 -> 0
A28: ضریب گشادی دور مچ c3 | B28: (از 1.1 الی 3) | C28: 1.7 | D28: بدون گشادی=1 | E28: ='طراحی همه الگوها'!Q235 -> 7 | F28: ضریب گشادی دور مچ | G28: 1 | H28: 1.1 | I28: 0 | J28: 1 | K28: 0.1 | L28: 1 | M28: 1.1 | N28: 1 | O28: 3 | P28: 20 | Q28: 1 | R28: 0 | T28: s2 | U28: 21.5 | V28: 22.5 | W28: 23.5 | X28: 25 | Y28: 26 | Z28: 27 | AA28: 28 | AB28: 29 | AC28: 30 | AD28: 31 | AE28: 32 | AF28: 33 | AG28: 34 | AH28: 35.5 | AI28: 37.5 | AJ28: 39 | AK28: 41 | AL28: 43 | AM28: 38.9 | AN28: 40.2 | AO28: 41.5 | AP28: 42.8 | AQ28: 44.3 | AR28: 45.9 | AS28: 47.5 | AT28: 49.1 | AU28: 50.9 | AV28: 53.6 | AW28: 56.5 | AX28: 59.8 | AY28: 63.7 | AZ28: 67.5 | BA28: 44 | BB28: 46 | BC28: 48 | BD28: 50 | BE28: 52 | BF28: 54 | BG28: 56 | BH28: 58 | BI28: 60 | BJ28: 62 | BK28: 64 | BL28: 66 | BM28: 68 | BN28: 70 | BO28: 25 | BP28: 26 | BQ28: 27 | BR28: 28 | BS28: 29 | BT28: 30 | BU28: 31 | BV28: 32 | BW28: 33 | BX28: 34 | BY28: 35.5 | BZ28: 37.5 | CA28: 39 | CB28: 41 | CC28: 43 | CD28: 38.9 | CE28: 40.2 | CF28: 41.5 | CG28: 42.8 | CH28: 44.3 | CI28: 45.9 | CJ28: 47.5 | CK28: 49.1 | CL28: 50.9 | CM28: 53.6 | CN28: 56.5 | CO28: 59.8 | CP28: 63.7 | CQ28: 67.5 | CR28: 44 | CS28: 46 | CT28: 48 | CU28: 50 | CV28: 52 | CW28: 54 | CX28: 56 | CY28: 58 | CZ28: 60 | DA28: 62 | DB28: 64 | DC28: 66 | DD28: 68 | DE28: 70 | DF28: ='اندازه های شخصی'!G23 -> 0 | DG28: ='اندازه های شخصی'!I23 -> 0 | DH28: ='اندازه های شخصی'!K23 -> 0 | DI28: ='اندازه های شخصی'!M23 -> 0 | DJ28: ='اندازه های شخصی'!O23 -> 0 | DK28: ='اندازه های شخصی'!Q23 -> 0 | DL28: ='اندازه های شخصی'!S23 -> 0 | DM28: ='اندازه های شخصی'!U23 -> 0 | DN28: ='اندازه های شخصی'!W23 -> 0 | DO28: ='اندازه های شخصی'!Y23 -> 0 | DP28: ='اندازه های شخصی'!AA23 -> 0 | DQ28: ='اندازه های شخصی'!AC23 -> 0 | DR28: ='اندازه های شخصی'!AE23 -> 0 | DS28: ='اندازه های شخصی'!AG23 -> 0 | DT28: ='اندازه های شخصی'!AI23 -> 0 | DU28: ='اندازه های شخصی'!AK23 -> 0 | DV28: ='اندازه های شخصی'!AM23 -> 0 | DW28: ='اندازه های شخصی'!AO23 -> 0 | DX28: ='اندازه های شخصی'!AQ23 -> 0 | DY28: ='اندازه های شخصی'!AS23 -> 0 | DZ28: ='اندازه های شخصی'!AU23 -> 0 | EA28: ='اندازه های شخصی'!AW23 -> 0 | EB28: ='اندازه های شخصی'!AY23 -> 0 | EC28: ='اندازه های شخصی'!BA23 -> 0 | ED28: ='اندازه های شخصی'!BC23 -> 0 | EE28: ='اندازه های شخصی'!BE23 -> 0 | EF28: ='اندازه های شخصی'!BG23 -> 0 | EG28: ='اندازه های شخصی'!BI23 -> 0 | EH28: ='اندازه های شخصی'!BK23 -> 0 | EI28: ='اندازه های شخصی'!BM23 -> 0 | EJ28: ='اندازه های شخصی'!BO23 -> 0 | EK28: ='اندازه های شخصی'!BQ23 -> 0 | EL28: ='اندازه های شخصی'!BS23 -> 0 | EM28: ='اندازه های شخصی'!BU23 -> 0 | EN28: ='اندازه های شخصی'!BW23 -> 0 | EO28: ='اندازه های شخصی'!BY23 -> 0 | EP28: ='اندازه های شخصی'!CA23 -> 0 | EQ28: ='اندازه های شخصی'!CC23 -> 0 | ER28: ='اندازه های شخصی'!CE23 -> 0 | ES28: ='اندازه های شخصی'!CG23 -> 0
A29: ضریب بلند شدن آستین به سمت زیر بغل c4 | B29: (از 0 الی 1) | C29: 0.7 | D29: آستین تا زیر بغل=0 بدون آستین= 1 | E29: ='طراحی همه الگوها'!Q236 -> 30 | F29: بلند شدن آستین به سمت زیر بغل | G29: 30 | H29: 0.7 | I29: 10 | J29: 0.1 | K29: 0.03 | L29: -0.2 | M29: 0 | N29: 6.666666667 | O29: 1 | P29: 40 | Q29: 0 | R29: 6.666666667 | T29: t1 | U29: 15.8 | V29: 16.2 | W29: 18.3 | X29: 20.3 | Y29: 21.3 | Z29: 24.4 | AA29: 26.5 | AB29: 26.9 | AC29: 28.6 | AD29: 30.2 | AE29: 31.8 | AF29: 33.3 | AG29: 35.5 | AH29: 36.5 | AI29: 37.3 | AJ29: 38.2 | AK29: 39 | AL29: 39.8 | AM29: 43.6 | AN29: 43.8 | AO29: 44.1 | AP29: 44.4 | AQ29: 44.8 | AR29: 45 | AS29: 45 | AT29: 45.6 | AU29: 45.9 | AV29: 46.3 | AW29: 46.3 | AX29: 46.6 | AY29: 46.3 | AZ29: 46.5 | BA29: 46.9 | BB29: 47.2 | BC29: 47.3 | BD29: 47.5 | BE29: 47.7 | BF29: 48 | BG29: 48.1 | BH29: 48.1 | BI29: 48.3 | BJ29: 48.2 | BK29: 48.6 | BL29: 48.7 | BM29: 48.8 | BN29: 48.9 | BO29: 21.8 | BP29: 22.8 | BQ29: 25.8 | BR29: 28.2 | BS29: 28.4 | BT29: 30.2 | BU29: 31.7 | BV29: 33.3 | BW29: 34.9 | BX29: 37.2 | BY29: 38.2 | BZ29: 39.1 | CA29: 39.7 | CB29: 40.5 | CC29: 40.9 | CD29: 43.6 | CE29: 43.8 | CF29: 44.1 | CG29: 44.4 | CH29: 44.8 | CI29: 45 | CJ29: 45 | CK29: 45.6 | CL29: 45.9 | CM29: 46.3 | CN29: 46.3 | CO29: 46.6 | CP29: 46.3 | CQ29: 46.5 | CR29: 46.3 | CS29: 46.3 | CT29: 46 | CU29: 46 | CV29: 45.6 | CW29: 45.6 | CX29: 45.4 | CY29: 45 | CZ29: 44.8 | DA29: 44.4 | DB29: 44.4 | DC29: 44.2 | DD29: 44 | DE29: 43.6 | DF29: ='اندازه های شخصی'!G24 -> 0 | DG29: ='اندازه های شخصی'!I24 -> 0 | DH29: ='اندازه های شخصی'!K24 -> 0 | DI29: ='اندازه های شخصی'!M24 -> 0 | DJ29: ='اندازه های شخصی'!O24 -> 0 | DK29: ='اندازه های شخصی'!Q24 -> 0 | DL29: ='اندازه های شخصی'!S24 -> 0 | DM29: ='اندازه های شخصی'!U24 -> 0 | DN29: ='اندازه های شخصی'!W24 -> 0 | DO29: ='اندازه های شخصی'!Y24 -> 0 | DP29: ='اندازه های شخصی'!AA24 -> 0 | DQ29: ='اندازه های شخصی'!AC24 -> 0 | DR29: ='اندازه های شخصی'!AE24 -> 0 | DS29: ='اندازه های شخصی'!AG24 -> 0 | DT29: ='اندازه های شخصی'!AI24 -> 0 | DU29: ='اندازه های شخصی'!AK24 -> 0 | DV29: ='اندازه های شخصی'!AM24 -> 0 | DW29: ='اندازه های شخصی'!AO24 -> 0 | DX29: ='اندازه های شخصی'!AQ24 -> 0 | DY29: ='اندازه های شخصی'!AS24 -> 0 | DZ29: ='اندازه های شخصی'!AU24 -> 0 | EA29: ='اندازه های شخصی'!AW24 -> 0 | EB29: ='اندازه های شخصی'!AY24 -> 0 | EC29: ='اندازه های شخصی'!BA24 -> 0 | ED29: ='اندازه های شخصی'!BC24 -> 0 | EE29: ='اندازه های شخصی'!BE24 -> 0 | EF29: ='اندازه های شخصی'!BG24 -> 0 | EG29: ='اندازه های شخصی'!BI24 -> 0 | EH29: ='اندازه های شخصی'!BK24 -> 0 | EI29: ='اندازه های شخصی'!BM24 -> 0 | EJ29: ='اندازه های شخصی'!BO24 -> 0 | EK29: ='اندازه های شخصی'!BQ24 -> 0 | EL29: ='اندازه های شخصی'!BS24 -> 0 | EM29: ='اندازه های شخصی'!BU24 -> 0 | EN29: ='اندازه های شخصی'!BW24 -> 0 | EO29: ='اندازه های شخصی'!BY24 -> 0 | EP29: ='اندازه های شخصی'!CA24 -> 0 | EQ29: ='اندازه های شخصی'!CC24 -> 0 | ER29: ='اندازه های شخصی'!CE24 -> 0 | ES29: ='اندازه های شخصی'!CG24 -> 0
A30: ضریب گشادی پایین چادر (به درجه) c5 | B30: (از 0 الی حداکثر) | C30: 20 | D30: چادر راسته بدون گشادی=0 | E30: ='طراحی همه الگوها'!Q237 -> 20 | F30: ضریب گشادی پایین چادر (درجه) | G30: 21 | H30: 21 | I30: 20 | J30: 20 | K30: 1 | L30: 0 | M30: 0 | N30: 0 | O30: 2 | P30: 2 | Q30: 0 | R30: 0 | T30: t2 | U30: 19.4 | V30: 19.9 | W30: 22.2 | X30: 24.5 | Y30: 25.7 | Z30: 28.7 | AA30: 31 | AB30: 31.6 | AC30: 33.4 | AD30: 35.2 | AE30: 36.9 | AF30: 38.6 | AG30: 40.9 | AH30: 42.1 | AI30: 43.3 | AJ30: 44.5 | AK30: 45.7 | AL30: 46.9 | AM30: 50.8 | AN30: 51.4 | AO30: 51.9 | AP30: 52.5 | AQ30: 53.5 | AR30: 54.3 | AS30: 55.1 | AT30: 56.4 | AU30: 57.5 | AV30: 58.7 | AW30: 59.8 | AX30: 61 | AY30: 62.1 | AZ30: 63.3 | BA30: 53.7 | BB30: 54.3 | BC30: 54.7 | BD30: 55.3 | BE30: 55.6 | BF30: 56.2 | BG30: 56.8 | BH30: 57.2 | BI30: 57.7 | BJ30: 58.1 | BK30: 58.7 | BL30: 59.1 | BM30: 59.7 | BN30: 60.1 | BO30: 26.6 | BP30: 27.9 | BQ30: 31.1 | BR30: 33.6 | BS30: 34.2 | BT30: 36.1 | BU30: 37.9 | BV30: 39.8 | BW30: 41.8 | BX30: 44.3 | BY30: 45.5 | BZ30: 46.9 | CA30: 48 | CB30: 49.4 | CC30: 50.6 | CD30: 50.8 | CE30: 51.4 | CF30: 51.9 | CG30: 52.5 | CH30: 53.5 | CI30: 54.3 | CJ30: 55.1 | CK30: 56.4 | CL30: 57.5 | CM30: 58.7 | CN30: 59.8 | CO30: 61 | CP30: 62.1 | CQ30: 63.3 | CR30: 55.9 | CS30: 56.4 | CT30: 56.7 | CU30: 57.3 | CV30: 57.7 | CW30: 58.3 | CX30: 58.9 | CY30: 59.3 | CZ30: 59.9 | DA30: 60.2 | DB30: 60.8 | DC30: 61.4 | DD30: 62 | DE30: 62.4 | DF30: ='اندازه های شخصی'!G25 -> 0 | DG30: ='اندازه های شخصی'!I25 -> 0 | DH30: ='اندازه های شخصی'!K25 -> 0 | DI30: ='اندازه های شخصی'!M25 -> 0 | DJ30: ='اندازه های شخصی'!O25 -> 0 | DK30: ='اندازه های شخصی'!Q25 -> 0 | DL30: ='اندازه های شخصی'!S25 -> 0 | DM30: ='اندازه های شخصی'!U25 -> 0 | DN30: ='اندازه های شخصی'!W25 -> 0 | DO30: ='اندازه های شخصی'!Y25 -> 0 | DP30: ='اندازه های شخصی'!AA25 -> 0 | DQ30: ='اندازه های شخصی'!AC25 -> 0 | DR30: ='اندازه های شخصی'!AE25 -> 0 | DS30: ='اندازه های شخصی'!AG25 -> 0 | DT30: ='اندازه های شخصی'!AI25 -> 0 | DU30: ='اندازه های شخصی'!AK25 -> 0 | DV30: ='اندازه های شخصی'!AM25 -> 0 | DW30: ='اندازه های شخصی'!AO25 -> 0 | DX30: ='اندازه های شخصی'!AQ25 -> 0 | DY30: ='اندازه های شخصی'!AS25 -> 0 | DZ30: ='اندازه های شخصی'!AU25 -> 0 | EA30: ='اندازه های شخصی'!AW25 -> 0 | EB30: ='اندازه های شخصی'!AY25 -> 0 | EC30: ='اندازه های شخصی'!BA25 -> 0 | ED30: ='اندازه های شخصی'!BC25 -> 0 | EE30: ='اندازه های شخصی'!BE25 -> 0 | EF30: ='اندازه های شخصی'!BG25 -> 0 | EG30: ='اندازه های شخصی'!BI25 -> 0 | EH30: ='اندازه های شخصی'!BK25 -> 0 | EI30: ='اندازه های شخصی'!BM25 -> 0 | EJ30: ='اندازه های شخصی'!BO25 -> 0 | EK30: ='اندازه های شخصی'!BQ25 -> 0 | EL30: ='اندازه های شخصی'!BS25 -> 0 | EM30: ='اندازه های شخصی'!BU25 -> 0 | EN30: ='اندازه های شخصی'!BW25 -> 0 | EO30: ='اندازه های شخصی'!BY25 -> 0 | EP30: ='اندازه های شخصی'!CA25 -> 0 | EQ30: ='اندازه های شخصی'!CC25 -> 0 | ER30: ='اندازه های شخصی'!CE25 -> 0 | ES30: ='اندازه های شخصی'!CG25 -> 0
A31: حداکثر مقدار c5 برای اندام شما | B31: =ROUND(DEGREES(محاسبات!BL46-RADIANS(45)+محاسبات!BL42),0) -> 52 | F31: حداکثر مقدار ضریب گشادی پایین چادر برای اندام شما | T31: t3 | U31: 33 | V31: 34 | W31: 38 | X31: 42 | Y31: 44 | Z31: 49 | AA31: 53 | AB31: 54 | AC31: 57 | AD31: 60 | AE31: 63 | AF31: 66 | AG31: 70 | AH31: 72 | AI31: 74 | AJ31: 76 | AK31: 78 | AL31: 80 | AM31: 80 | AN31: 81 | AO31: 82 | AP31: 83 | AQ31: 84.4 | AR31: 85.7 | AS31: 87 | AT31: 88.9 | AU31: 90.8 | AV31: 92.6 | AW31: 94.5 | AX31: 96.3 | AY31: 98.2 | AZ31: 100 | BA31: 86.8 | BB31: 87.6 | BC31: 88.4 | BD31: 89.2 | BE31: 90 | BF31: 90.8 | BG31: 91.6 | BH31: 92.4 | BI31: 93.2 | BJ31: 94 | BK31: 94.8 | BL31: 95.6 | BM31: 96.4 | BN31: 97.2 | BO31: 42 | BP31: 44 | BQ31: 49 | BR31: 53 | BS31: 54 | BT31: 57 | BU31: 60 | BV31: 63 | BW31: 66 | BX31: 70 | BY31: 72 | BZ31: 74 | CA31: 76 | CB31: 78 | CC31: 80 | CD31: 80 | CE31: 81 | CF31: 82 | CG31: 83 | CH31: 84.4 | CI31: 85.7 | CJ31: 87 | CK31: 88.9 | CL31: 90.8 | CM31: 92.6 | CN31: 94.5 | CO31: 96.3 | CP31: 98.2 | CQ31: 100 | CR31: 88.2 | CS31: 89 | CT31: 89.7 | CU31: 90.5 | CV31: 91.3 | CW31: 92.1 | CX31: 92.9 | CY31: 93.7 | CZ31: 94.5 | DA31: 95.3 | DB31: 96.1 | DC31: 97.1 | DD31: 97.9 | DE31: 98.7 | DF31: ='اندازه های شخصی'!G26 -> 0 | DG31: ='اندازه های شخصی'!I26 -> 0 | DH31: ='اندازه های شخصی'!K26 -> 0 | DI31: ='اندازه های شخصی'!M26 -> 0 | DJ31: ='اندازه های شخصی'!O26 -> 0 | DK31: ='اندازه های شخصی'!Q26 -> 0 | DL31: ='اندازه های شخصی'!S26 -> 0 | DM31: ='اندازه های شخصی'!U26 -> 0 | DN31: ='اندازه های شخصی'!W26 -> 0 | DO31: ='اندازه های شخصی'!Y26 -> 0 | DP31: ='اندازه های شخصی'!AA26 -> 0 | DQ31: ='اندازه های شخصی'!AC26 -> 0 | DR31: ='اندازه های شخصی'!AE26 -> 0 | DS31: ='اندازه های شخصی'!AG26 -> 0 | DT31: ='اندازه های شخصی'!AI26 -> 0 | DU31: ='اندازه های شخصی'!AK26 -> 0 | DV31: ='اندازه های شخصی'!AM26 -> 0 | DW31: ='اندازه های شخصی'!AO26 -> 0 | DX31: ='اندازه های شخصی'!AQ26 -> 0 | DY31: ='اندازه های شخصی'!AS26 -> 0 | DZ31: ='اندازه های شخصی'!AU26 -> 0 | EA31: ='اندازه های شخصی'!AW26 -> 0 | EB31: ='اندازه های شخصی'!AY26 -> 0 | EC31: ='اندازه های شخصی'!BA26 -> 0 | ED31: ='اندازه های شخصی'!BC26 -> 0 | EE31: ='اندازه های شخصی'!BE26 -> 0 | EF31: ='اندازه های شخصی'!BG26 -> 0 | EG31: ='اندازه های شخصی'!BI26 -> 0 | EH31: ='اندازه های شخصی'!BK26 -> 0 | EI31: ='اندازه های شخصی'!BM26 -> 0 | EJ31: ='اندازه های شخصی'!BO26 -> 0 | EK31: ='اندازه های شخصی'!BQ26 -> 0 | EL31: ='اندازه های شخصی'!BS26 -> 0 | EM31: ='اندازه های شخصی'!BU26 -> 0 | EN31: ='اندازه های شخصی'!BW26 -> 0 | EO31: ='اندازه های شخصی'!BY26 -> 0 | EP31: ='اندازه های شخصی'!CA26 -> 0 | EQ31: ='اندازه های شخصی'!CC26 -> 0 | ER31: ='اندازه های شخصی'!CE26 -> 0 | ES31: ='اندازه های شخصی'!CG26 -> 0
A32: انتخاب چادر تا پایین پیشانی=1 انتخاب چادر تا بالای پیشانی=0 انتخاب چادر روی سر = -1 | B32: -1 یا 0 یا 1 | C32: =K32*E32+L32 -> 0 | E32: ='طراحی همه الگوها'!Q239 -> 2 | F32: انتخاب چادر تا پایین پیشانی=3 انتخاب چادر تا بالای پیشانی=2 انتخاب چادر روی سر = 1 | G32: 2 | H32: 0 | I32: 1 | J32: -1 | K32: =(J32-H32)/(I32-G32) -> 1 | L32: =H32-G32*K32 -> -2 | M32: 0 | N32: =(M32-L32)/K32 -> 2 | O32: 1 | P32: =(O32-L32)/K32 -> 3 | Q32: 0 | R32: =(Q32-L32)/K32 -> 2 | T32: t4 | U32: 8.1 | V32: 8.3 | W32: 9.4 | X32: 10.4 | Y32: 10.9 | Z32: 12.5 | AA32: 13.6 | AB32: 13.8 | AC32: 14.7 | AD32: 15.5 | AE32: 16.3 | AF32: 17.1 | AG32: 18.2 | AH32: 18.7 | AI32: 19.1 | AJ32: 19.6 | AK32: 20 | AL32: 20.4 | AM32: 21.9 | AN32: 22.1 | AO32: 22.3 | AP32: 22.5 | AQ32: 22.8 | AR32: 23 | AS32: 23.1 | AT32: 23.5 | AU32: 23.7 | AV32: 23.9 | AW32: 23.9 | AX32: 24 | AY32: 23.8 | AZ32: 23.8 | BA32: 24.7 | BB32: 24.8 | BC32: 24.8 | BD32: 24.9 | BE32: 25 | BF32: 25.1 | BG32: 25.1 | BH32: 25.1 | BI32: 25.2 | BJ32: 25.1 | BK32: 25.3 | BL32: 25.4 | BM32: 25.4 | BN32: 25.4 | BO32: 10.8 | BP32: 11.3 | BQ32: 12.8 | BR32: 14 | BS32: 14.1 | BT32: 15 | BU32: 15.8 | BV32: 16.6 | BW32: 17.4 | BX32: 18.6 | BY32: 19 | BZ32: 19.4 | CA32: 19.7 | CB32: 20.1 | CC32: 20.3 | CD32: 21.9 | CE32: 22.1 | CF32: 22.3 | CG32: 22.5 | CH32: 22.8 | CI32: 23 | CJ32: 23.1 | CK32: 23.5 | CL32: 23.7 | CM32: 23.9 | CN32: 23.9 | CO32: 24 | CP32: 23.8 | CQ32: 23.8 | CR32: 22.9 | CS32: 22.9 | CT32: 22.7 | CU32: 22.7 | CV32: 22.5 | CW32: 22.5 | CX32: 22.4 | CY32: 22.2 | CZ32: 22.1 | DA32: 21.9 | DB32: 21.9 | DC32: 21.8 | DD32: 21.7 | DE32: 21.5 | DF32: ='اندازه های شخصی'!G27 -> 0 | DG32: ='اندازه های شخصی'!I27 -> 0 | DH32: ='اندازه های شخصی'!K27 -> 0 | DI32: ='اندازه های شخصی'!M27 -> 0 | DJ32: ='اندازه های شخصی'!O27 -> 0 | DK32: ='اندازه های شخصی'!Q27 -> 0 | DL32: ='اندازه های شخصی'!S27 -> 0 | DM32: ='اندازه های شخصی'!U27 -> 0 | DN32: ='اندازه های شخصی'!W27 -> 0 | DO32: ='اندازه های شخصی'!Y27 -> 0 | DP32: ='اندازه های شخصی'!AA27 -> 0 | DQ32: ='اندازه های شخصی'!AC27 -> 0 | DR32: ='اندازه های شخصی'!AE27 -> 0 | DS32: ='اندازه های شخصی'!AG27 -> 0 | DT32: ='اندازه های شخصی'!AI27 -> 0 | DU32: ='اندازه های شخصی'!AK27 -> 0 | DV32: ='اندازه های شخصی'!AM27 -> 0 | DW32: ='اندازه های شخصی'!AO27 -> 0 | DX32: ='اندازه های شخصی'!AQ27 -> 0 | DY32: ='اندازه های شخصی'!AS27 -> 0 | DZ32: ='اندازه های شخصی'!AU27 -> 0 | EA32: ='اندازه های شخصی'!AW27 -> 0 | EB32: ='اندازه های شخصی'!AY27 -> 0 | EC32: ='اندازه های شخصی'!BA27 -> 0 | ED32: ='اندازه های شخصی'!BC27 -> 0 | EE32: ='اندازه های شخصی'!BE27 -> 0 | EF32: ='اندازه های شخصی'!BG27 -> 0 | EG32: ='اندازه های شخصی'!BI27 -> 0 | EH32: ='اندازه های شخصی'!BK27 -> 0 | EI32: ='اندازه های شخصی'!BM27 -> 0 | EJ32: ='اندازه های شخصی'!BO27 -> 0 | EK32: ='اندازه های شخصی'!BQ27 -> 0 | EL32: ='اندازه های شخصی'!BS27 -> 0 | EM32: ='اندازه های شخصی'!BU27 -> 0 | EN32: ='اندازه های شخصی'!BW27 -> 0 | EO32: ='اندازه های شخصی'!BY27 -> 0 | EP32: ='اندازه های شخصی'!CA27 -> 0 | EQ32: ='اندازه های شخصی'!CC27 -> 0 | ER32: ='اندازه های شخصی'!CE27 -> 0 | ES32: ='اندازه های شخصی'!CG27 -> 0
A33: ضریب فاصله افقی مرغک از خط مرکزی جلو | B33: (از -1 الی 4) | C33: =K33*E33+L33 -> 2 | D33: خط مرکزی جلو=0 خط پهلو=1 | E33: ='طراحی همه الگوها'!Q240 -> 40 | F33: ضریب فاصله افقی مرغک از خط مرکزی جلو | G33: 20 | H33: 1 | I33: 0 | J33: 0 | K33: =(J33-H33)/(I33-G33) -> 0.05 | L33: =H33-G33*K33 -> 0 | M33: -1 | N33: =(M33-L33)/K33 -> -20 | O33: 4 | P33: =(O33-L33)/K33 -> 80 | Q33: 0 | R33: =(Q33-L33)/K33 -> 0 | T33: t5 | U33: 10.1 | V33: 10.4 | W33: 11.6 | X33: 12.8 | Y33: 13.4 | Z33: 15 | AA33: 16.2 | AB33: 16.5 | AC33: 17.5 | AD33: 18.4 | AE33: 19.3 | AF33: 20.2 | AG33: 21.4 | AH33: 22 | AI33: 22.6 | AJ33: 23.3 | AK33: 23.9 | AL33: 24.5 | AM33: 25.4 | AN33: 25.7 | AO33: 26 | AP33: 26.3 | AQ33: 26.7 | AR33: 27 | AS33: 27.3 | AT33: 27.8 | AU33: 28.2 | AV33: 28.7 | AW33: 29.1 | AX33: 29.6 | AY33: 30 | AZ33: 30.5 | BA33: 28.8 | BB33: 29.1 | BC33: 29.3 | BD33: 29.6 | BE33: 29.8 | BF33: 30.1 | BG33: 30.4 | BH33: 30.6 | BI33: 30.9 | BJ33: 31.1 | BK33: 31.4 | BL33: 31.7 | BM33: 32 | BN33: 32.2 | BO33: 13.7 | BP33: 14.4 | BQ33: 16 | BR33: 17.3 | BS33: 17.6 | BT33: 18.6 | BU33: 19.6 | BV33: 20.6 | BW33: 21.6 | BX33: 22.9 | BY33: 23.5 | BZ33: 24.2 | CA33: 24.8 | CB33: 25.5 | CC33: 26.1 | CD33: 25.4 | CE33: 25.7 | CF33: 26 | CG33: 26.3 | CH33: 26.7 | CI33: 27 | CJ33: 27.3 | CK33: 27.8 | CL33: 28.2 | CM33: 28.7 | CN33: 29.1 | CO33: 29.6 | CP33: 30 | CQ33: 30.5 | CR33: 28.8 | CS33: 29.1 | CT33: 29.3 | CU33: 29.6 | CV33: 29.8 | CW33: 30.1 | CX33: 30.4 | CY33: 30.6 | CZ33: 30.9 | DA33: 31.1 | DB33: 31.4 | DC33: 31.7 | DD33: 32 | DE33: 32.2 | DF33: ='اندازه های شخصی'!G28 -> 0 | DG33: ='اندازه های شخصی'!I28 -> 0 | DH33: ='اندازه های شخصی'!K28 -> 0 | DI33: ='اندازه های شخصی'!M28 -> 0 | DJ33: ='اندازه های شخصی'!O28 -> 0 | DK33: ='اندازه های شخصی'!Q28 -> 0 | DL33: ='اندازه های شخصی'!S28 -> 0 | DM33: ='اندازه های شخصی'!U28 -> 0 | DN33: ='اندازه های شخصی'!W28 -> 0 | DO33: ='اندازه های شخصی'!Y28 -> 0 | DP33: ='اندازه های شخصی'!AA28 -> 0 | DQ33: ='اندازه های شخصی'!AC28 -> 0 | DR33: ='اندازه های شخصی'!AE28 -> 0 | DS33: ='اندازه های شخصی'!AG28 -> 0 | DT33: ='اندازه های شخصی'!AI28 -> 0 | DU33: ='اندازه های شخصی'!AK28 -> 0 | DV33: ='اندازه های شخصی'!AM28 -> 0 | DW33: ='اندازه های شخصی'!AO28 -> 0 | DX33: ='اندازه های شخصی'!AQ28 -> 0 | DY33: ='اندازه های شخصی'!AS28 -> 0 | DZ33: ='اندازه های شخصی'!AU28 -> 0 | EA33: ='اندازه های شخصی'!AW28 -> 0 | EB33: ='اندازه های شخصی'!AY28 -> 0 | EC33: ='اندازه های شخصی'!BA28 -> 0 | ED33: ='اندازه های شخصی'!BC28 -> 0 | EE33: ='اندازه های شخصی'!BE28 -> 0 | EF33: ='اندازه های شخصی'!BG28 -> 0 | EG33: ='اندازه های شخصی'!BI28 -> 0 | EH33: ='اندازه های شخصی'!BK28 -> 0 | EI33: ='اندازه های شخصی'!BM28 -> 0 | EJ33: ='اندازه های شخصی'!BO28 -> 0 | EK33: ='اندازه های شخصی'!BQ28 -> 0 | EL33: ='اندازه های شخصی'!BS28 -> 0 | EM33: ='اندازه های شخصی'!BU28 -> 0 | EN33: ='اندازه های شخصی'!BW28 -> 0 | EO33: ='اندازه های شخصی'!BY28 -> 0 | EP33: ='اندازه های شخصی'!CA28 -> 0 | EQ33: ='اندازه های شخصی'!CC28 -> 0 | ER33: ='اندازه های شخصی'!CE28 -> 0 | ES33: ='اندازه های شخصی'!CG28 -> 0
A34: ضریب فاصله عمودی مرغک از زمین | B34: (از 0 الی 5) | C34: =K34*E34+L34 -> 1.25 | D34: خط زمین=0 خط زانو=1 خط باسن=2 خط کمر=3 خط سینه=4 | E34: ='طراحی همه الگوها'!Q241 -> 35 | F34: ضریب فاصله عمودی مرغک از زمین | G34: 10 | H34: 0 | I34: 30 | J34: 1 | K34: =(J34-H34)/(I34-G34) -> 0.05 | L34: =H34-G34*K34 -> -0.5 | M34: 0 | N34: =(M34-L34)/K34 -> 10 | O34: 5 | P34: =(O34-L34)/K34 -> 110 | Q34: 0 | R34: =(Q34-L34)/K34 -> 10 | T34: t6 | U34: 16.8 | V34: 17.3 | W34: 19.4 | X34: 21.4 | Y34: 22.4 | Z34: 25 | AA34: 27 | AB34: 27.5 | AC34: 29.1 | AD34: 30.6 | AE34: 32.1 | AF34: 33.7 | AG34: 35.7 | AH34: 36.7 | AI34: 37.7 | AJ34: 38.8 | AK34: 39.8 | AL34: 40.8 | AM34: 39 | AN34: 39.5 | AO34: 40 | AP34: 40.5 | AQ34: 41 | AR34: 41.5 | AS34: 42 | AT34: 42.7 | AU34: 43.4 | AV34: 44.1 | AW34: 44.8 | AX34: 45.5 | AY34: 46.2 | AZ34: 46.9 | BA34: 44.3 | BB34: 44.7 | BC34: 45.1 | BD34: 45.5 | BE34: 45.9 | BF34: 46.3 | BG34: 46.7 | BH34: 47.1 | BI34: 47.5 | BJ34: 47.9 | BK34: 48.3 | BL34: 48.8 | BM34: 49.2 | BN34: 49.6 | BO34: 21.1 | BP34: 22.1 | BQ34: 24.6 | BR34: 26.6 | BS34: 27.1 | BT34: 28.6 | BU34: 30.2 | BV34: 31.7 | BW34: 33.2 | BX34: 35.2 | BY34: 36.2 | BZ34: 37.2 | CA34: 38.2 | CB34: 39.2 | CC34: 40.2 | CD34: 39 | CE34: 39.5 | CF34: 40 | CG34: 40.5 | CH34: 41 | CI34: 41.5 | CJ34: 42 | CK34: 42.7 | CL34: 43.4 | CM34: 44.1 | CN34: 44.8 | CO34: 45.5 | CP34: 46.2 | CQ34: 46.9 | CR34: 44.3 | CS34: 44.7 | CT34: 45.1 | CU34: 45.5 | CV34: 45.9 | CW34: 46.3 | CX34: 46.7 | CY34: 47.1 | CZ34: 47.5 | DA34: 47.9 | DB34: 48.3 | DC34: 48.8 | DD34: 49.2 | DE34: 49.6 | DF34: ='اندازه های شخصی'!G29 -> 0 | DG34: ='اندازه های شخصی'!I29 -> 0 | DH34: ='اندازه های شخصی'!K29 -> 0 | DI34: ='اندازه های شخصی'!M29 -> 0 | DJ34: ='اندازه های شخصی'!O29 -> 0 | DK34: ='اندازه های شخصی'!Q29 -> 0 | DL34: ='اندازه های شخصی'!S29 -> 0 | DM34: ='اندازه های شخصی'!U29 -> 0 | DN34: ='اندازه های شخصی'!W29 -> 0 | DO34: ='اندازه های شخصی'!Y29 -> 0 | DP34: ='اندازه های شخصی'!AA29 -> 0 | DQ34: ='اندازه های شخصی'!AC29 -> 0 | DR34: ='اندازه های شخصی'!AE29 -> 0 | DS34: ='اندازه های شخصی'!AG29 -> 0 | DT34: ='اندازه های شخصی'!AI29 -> 0 | DU34: ='اندازه های شخصی'!AK29 -> 0 | DV34: ='اندازه های شخصی'!AM29 -> 0 | DW34: ='اندازه های شخصی'!AO29 -> 0 | DX34: ='اندازه های شخصی'!AQ29 -> 0 | DY34: ='اندازه های شخصی'!AS29 -> 0 | DZ34: ='اندازه های شخصی'!AU29 -> 0 | EA34: ='اندازه های شخصی'!AW29 -> 0 | EB34: ='اندازه های شخصی'!AY29 -> 0 | EC34: ='اندازه های شخصی'!BA29 -> 0 | ED34: ='اندازه های شخصی'!BC29 -> 0 | EE34: ='اندازه های شخصی'!BE29 -> 0 | EF34: ='اندازه های شخصی'!BG29 -> 0 | EG34: ='اندازه های شخصی'!BI29 -> 0 | EH34: ='اندازه های شخصی'!BK29 -> 0 | EI34: ='اندازه های شخصی'!BM29 -> 0 | EJ34: ='اندازه های شخصی'!BO29 -> 0 | EK34: ='اندازه های شخصی'!BQ29 -> 0 | EL34: ='اندازه های شخصی'!BS29 -> 0 | EM34: ='اندازه های شخصی'!BU29 -> 0 | EN34: ='اندازه های شخصی'!BW29 -> 0 | EO34: ='اندازه های شخصی'!BY29 -> 0 | EP34: ='اندازه های شخصی'!CA29 -> 0 | EQ34: ='اندازه های شخصی'!CC29 -> 0 | ER34: ='اندازه های شخصی'!CE29 -> 0 | ES34: ='اندازه های شخصی'!CG29 -> 0
T35: v | U35: 25 | V35: 27 | W35: 27 | X35: 28 | Y35: 28 | Z35: 30 | AA35: 30 | AB35: 31 | AC35: 31 | AD35: 32 | AE35: 32 | AF35: 33 | AG35: 34 | AH35: 35 | AI35: 36 | AJ35: 37 | AK35: 38 | AL35: 39 | AM35: 36 | AN35: 37 | AO35: 38 | AP35: 39 | AQ35: 40.2 | AR35: 41.4 | AS35: 42.6 | AT35: 43.8 | AU35: 45 | AV35: 46 | AW35: 47 | AX35: 48 | AY35: 49 | AZ35: 50 | BA35: 39 | BB35: 40 | BC35: 41 | BD35: 42 | BE35: 43 | BF35: 44 | BG35: 45 | BH35: 46 | BI35: 47 | BJ35: 48 | BK35: 49 | BL35: 50 | BM35: 51 | BN35: 52 | BO35: 28 | BP35: 28 | BQ35: 30 | BR35: 30 | BS35: 31 | BT35: 31 | BU35: 32 | BV35: 32 | BW35: 33 | BX35: 34 | BY35: 35 | BZ35: 36 | CA35: 37 | CB35: 38 | CC35: 39 | CD35: 36 | CE35: 37 | CF35: 38 | CG35: 39 | CH35: 40.2 | CI35: 41.4 | CJ35: 42.6 | CK35: 43.8 | CL35: 45 | CM35: 46 | CN35: 47 | CO35: 48 | CP35: 49 | CQ35: 50 | CR35: 39 | CS35: 40 | CT35: 41 | CU35: 42 | CV35: 43 | CW35: 44 | CX35: 45 | CY35: 46 | CZ35: 47 | DA35: 48 | DB35: 49 | DC35: 50 | DD35: 51 | DE35: 52 | DF35: ='اندازه های شخصی'!G30 -> 0 | DG35: ='اندازه های شخصی'!I30 -> 0 | DH35: ='اندازه های شخصی'!K30 -> 0 | DI35: ='اندازه های شخصی'!M30 -> 0 | DJ35: ='اندازه های شخصی'!O30 -> 0 | DK35: ='اندازه های شخصی'!Q30 -> 0 | DL35: ='اندازه های شخصی'!S30 -> 0 | DM35: ='اندازه های شخصی'!U30 -> 0 | DN35: ='اندازه های شخصی'!W30 -> 0 | DO35: ='اندازه های شخصی'!Y30 -> 0 | DP35: ='اندازه های شخصی'!AA30 -> 0 | DQ35: ='اندازه های شخصی'!AC30 -> 0 | DR35: ='اندازه های شخصی'!AE30 -> 0 | DS35: ='اندازه های شخصی'!AG30 -> 0 | DT35: ='اندازه های شخصی'!AI30 -> 0 | DU35: ='اندازه های شخصی'!AK30 -> 0 | DV35: ='اندازه های شخصی'!AM30 -> 0 | DW35: ='اندازه های شخصی'!AO30 -> 0 | DX35: ='اندازه های شخصی'!AQ30 -> 0 | DY35: ='اندازه های شخصی'!AS30 -> 0 | DZ35: ='اندازه های شخصی'!AU30 -> 0 | EA35: ='اندازه های شخصی'!AW30 -> 0 | EB35: ='اندازه های شخصی'!AY30 -> 0 | EC35: ='اندازه های شخصی'!BA30 -> 0 | ED35: ='اندازه های شخصی'!BC30 -> 0 | EE35: ='اندازه های شخصی'!BE30 -> 0 | EF35: ='اندازه های شخصی'!BG30 -> 0 | EG35: ='اندازه های شخصی'!BI30 -> 0 | EH35: ='اندازه های شخصی'!BK30 -> 0 | EI35: ='اندازه های شخصی'!BM30 -> 0 | EJ35: ='اندازه های شخصی'!BO30 -> 0 | EK35: ='اندازه های شخصی'!BQ30 -> 0 | EL35: ='اندازه های شخصی'!BS30 -> 0 | EM35: ='اندازه های شخصی'!BU30 -> 0 | EN35: ='اندازه های شخصی'!BW30 -> 0 | EO35: ='اندازه های شخصی'!BY30 -> 0 | EP35: ='اندازه های شخصی'!CA30 -> 0 | EQ35: ='اندازه های شخصی'!CC30 -> 0 | ER35: ='اندازه های شخصی'!CE30 -> 0 | ES35: ='اندازه های شخصی'!CG30 -> 0
A36: متغیرهای ورودی چادر شماره 5 | F36: متغیرهای ورودی چادر شماره 5 | G36: x1 | H36: y1 | I36: x2 | J36: y2(بهینه) | K36: a | L36: b | N36: کمترین | P36: بیشترین | T36: v3 | U36: 17.7 | V36: 18.4 | W36: 19.2 | X36: 20.4 | Y36: 21.2 | Z36: 22 | AA36: 22.7 | AB36: 23.5 | AC36: 24.2 | AD36: 25.2 | AE36: 26 | AF36: 27 | AG36: 27.8 | AH36: 28.9 | AI36: 30.5 | AJ36: 31.8 | AK36: 33.4 | AL36: 35.1 | AM36: 31.9 | AN36: 32.9 | AO36: 33.9 | AP36: 34.8 | AQ36: 36 | AR36: 37.1 | AS36: 38.3 | AT36: 39.5 | AU36: 40.9 | AV36: 43.2 | AW36: 45.7 | AX36: 48.6 | AY36: 52.1 | AZ36: 55.5 | BA36: 35.2 | BB36: 36.9 | BC36: 38.6 | BD36: 40.2 | BE36: 41.9 | BF36: 43.6 | BG36: 45.4 | BH36: 47.3 | BI36: 49.1 | BJ36: 51.8 | BK36: 52.8 | BL36: 54.6 | BM36: 56.5 | BN36: 58.3 | BO36: 20.4 | BP36: 21.2 | BQ36: 22 | BR36: 22.7 | BS36: 23.5 | BT36: 24.2 | BU36: 25.2 | BV36: 26 | BW36: 27 | BX36: 27.8 | BY36: 28.9 | BZ36: 30.5 | CA36: 31.8 | CB36: 33.4 | CC36: 35.1 | CD36: 31.9 | CE36: 32.9 | CF36: 33.9 | CG36: 34.8 | CH36: 36 | CI36: 37.1 | CJ36: 38.3 | CK36: 39.5 | CL36: 40.9 | CM36: 43.2 | CN36: 45.7 | CO36: 48.6 | CP36: 52.1 | CQ36: 55.5 | CR36: 35.5 | CS36: 37.2 | CT36: 38.9 | CU36: 40.6 | CV36: 42.3 | CW36: 44 | CX36: 45.8 | CY36: 47.7 | CZ36: 49.5 | DA36: 51.4 | DB36: 53.2 | DC36: 55.1 | DD36: 56.9 | DE36: 58.8 | DF36: ='اندازه های شخصی'!G31 -> 0 | DG36: ='اندازه های شخصی'!I31 -> 0 | DH36: ='اندازه های شخصی'!K31 -> 0 | DI36: ='اندازه های شخصی'!M31 -> 0 | DJ36: ='اندازه های شخصی'!O31 -> 0 | DK36: ='اندازه های شخصی'!Q31 -> 0 | DL36: ='اندازه های شخصی'!S31 -> 0 | DM36: ='اندازه های شخصی'!U31 -> 0 | DN36: ='اندازه های شخصی'!W31 -> 0 | DO36: ='اندازه های شخصی'!Y31 -> 0 | DP36: ='اندازه های شخصی'!AA31 -> 0 | DQ36: ='اندازه های شخصی'!AC31 -> 0 | DR36: ='اندازه های شخصی'!AE31 -> 0 | DS36: ='اندازه های شخصی'!AG31 -> 0 | DT36: ='اندازه های شخصی'!AI31 -> 0 | DU36: ='اندازه های شخصی'!AK31 -> 0 | DV36: ='اندازه های شخصی'!AM31 -> 0 | DW36: ='اندازه های شخصی'!AO31 -> 0 | DX36: ='اندازه های شخصی'!AQ31 -> 0 | DY36: ='اندازه های شخصی'!AS31 -> 0 | DZ36: ='اندازه های شخصی'!AU31 -> 0 | EA36: ='اندازه های شخصی'!AW31 -> 0 | EB36: ='اندازه های شخصی'!AY31 -> 0 | EC36: ='اندازه های شخصی'!BA31 -> 0 | ED36: ='اندازه های شخصی'!BC31 -> 0 | EE36: ='اندازه های شخصی'!BE31 -> 0 | EF36: ='اندازه های شخصی'!BG31 -> 0 | EG36: ='اندازه های شخصی'!BI31 -> 0 | EH36: ='اندازه های شخصی'!BK31 -> 0 | EI36: ='اندازه های شخصی'!BM31 -> 0 | EJ36: ='اندازه های شخصی'!BO31 -> 0 | EK36: ='اندازه های شخصی'!BQ31 -> 0 | EL36: ='اندازه های شخصی'!BS31 -> 0 | EM36: ='اندازه های شخصی'!BU31 -> 0 | EN36: ='اندازه های شخصی'!BW31 -> 0 | EO36: ='اندازه های شخصی'!BY31 -> 0 | EP36: ='اندازه های شخصی'!CA31 -> 0 | EQ36: ='اندازه های شخصی'!CC31 -> 0 | ER36: ='اندازه های شخصی'!CE31 -> 0 | ES36: ='اندازه های شخصی'!CG31 -> 0
A37: ضریب فاصله لبه چادر تا زمین j0 | B37: (از -0.1 الی 0.5) | C37: =K37*E37+L37 -> 0 | D37: خط زمین=0 خط زانو=1 | E37: ='طراحی همه الگوها'!Q249 -> 10 | F37: ضریب فاصله لبه چادر تا زمین | G37: 10 | H37: 0 | I37: 30 | J37: 1 | K37: =(J37-H37)/(I37-G37) -> 0.05 | L37: =H37-G37*K37 -> -0.5 | M37: -0.1 | N37: =(M37-L37)/K37 -> 8 | O37: 0.5 | P37: =(O37-L37)/K37 -> 20 | Q37: 0 | R37: =(Q37-L37)/K37 -> 10 | T37: w2 | U37: 16 | V37: 17 | W37: 18 | X37: 19 | Y37: 20 | Z37: 21 | AA37: 22 | AB37: 23 | AC37: 24 | AD37: 24 | AE37: 25 | AF37: 25 | AG37: 26 | AH37: 27.5 | AI37: 29 | AJ37: 30 | AK37: 31.5 | AL37: 33 | AM37: 27 | AN37: 28.2 | AO37: 29.4 | AP37: 30.6 | AQ37: 32 | AR37: 33.8 | AS37: 35.4 | AT37: 37 | AU37: 38.5 | AV37: 40 | AW37: 41.5 | AX37: 43 | AY37: 44.5 | AZ37: 46 | BA37: 33.9 | BB37: 35.1 | BC37: 36.3 | BD37: 37.6 | BE37: 38.8 | BF37: 40 | BG37: 40.7 | BH37: 41.3 | BI37: 41.9 | BJ37: 42.5 | BK37: 43.1 | BL37: 43.7 | BM37: 44.4 | BN37: 45 | BO37: 19 | BP37: 20 | BQ37: 21 | BR37: 22 | BS37: 23 | BT37: 24 | BU37: 24 | BV37: 25 | BW37: 25 | BX37: 26 | BY37: 27.5 | BZ37: 29 | CA37: 30 | CB37: 31.5 | CC37: 33 | CD37: 27 | CE37: 28.2 | CF37: 29.4 | CG37: 30.6 | CH37: 32 | CI37: 33.8 | CJ37: 35.4 | CK37: 37 | CL37: 38.5 | CM37: 40 | CN37: 41.5 | CO37: 43 | CP37: 44.5 | CQ37: 46 | CR37: 33.9 | CS37: 35.1 | CT37: 36.3 | CU37: 37.6 | CV37: 38.8 | CW37: 40 | CX37: 40.7 | CY37: 41.3 | CZ37: 41.9 | DA37: 42.5 | DB37: 43.1 | DC37: 43.7 | DD37: 44.4 | DE37: 45 | DF37: ='اندازه های شخصی'!G32 -> 0 | DG37: ='اندازه های شخصی'!I32 -> 0 | DH37: ='اندازه های شخصی'!K32 -> 0 | DI37: ='اندازه های شخصی'!M32 -> 0 | DJ37: ='اندازه های شخصی'!O32 -> 0 | DK37: ='اندازه های شخصی'!Q32 -> 0 | DL37: ='اندازه های شخصی'!S32 -> 0 | DM37: ='اندازه های شخصی'!U32 -> 0 | DN37: ='اندازه های شخصی'!W32 -> 0 | DO37: ='اندازه های شخصی'!Y32 -> 0 | DP37: ='اندازه های شخصی'!AA32 -> 0 | DQ37: ='اندازه های شخصی'!AC32 -> 0 | DR37: ='اندازه های شخصی'!AE32 -> 0 | DS37: ='اندازه های شخصی'!AG32 -> 0 | DT37: ='اندازه های شخصی'!AI32 -> 0 | DU37: ='اندازه های شخصی'!AK32 -> 0 | DV37: ='اندازه های شخصی'!AM32 -> 0 | DW37: ='اندازه های شخصی'!AO32 -> 0 | DX37: ='اندازه های شخصی'!AQ32 -> 0 | DY37: ='اندازه های شخصی'!AS32 -> 0 | DZ37: ='اندازه های شخصی'!AU32 -> 0 | EA37: ='اندازه های شخصی'!AW32 -> 0 | EB37: ='اندازه های شخصی'!AY32 -> 0 | EC37: ='اندازه های شخصی'!BA32 -> 0 | ED37: ='اندازه های شخصی'!BC32 -> 0 | EE37: ='اندازه های شخصی'!BE32 -> 0 | EF37: ='اندازه های شخصی'!BG32 -> 0 | EG37: ='اندازه های شخصی'!BI32 -> 0 | EH37: ='اندازه های شخصی'!BK32 -> 0 | EI37: ='اندازه های شخصی'!BM32 -> 0 | EJ37: ='اندازه های شخصی'!BO32 -> 0 | EK37: ='اندازه های شخصی'!BQ32 -> 0 | EL37: ='اندازه های شخصی'!BS32 -> 0 | EM37: ='اندازه های شخصی'!BU32 -> 0 | EN37: ='اندازه های شخصی'!BW32 -> 0 | EO37: ='اندازه های شخصی'!BY32 -> 0 | EP37: ='اندازه های شخصی'!CA32 -> 0 | EQ37: ='اندازه های شخصی'!CC32 -> 0 | ER37: ='اندازه های شخصی'!CE32 -> 0 | ES37: ='اندازه های شخصی'!CG32 -> 0
A38: ضریب گشادی دامن چادر d1 | B38: (از 1.5 الی 2.3) | C38: =K38*E38+L38 -> 1.8 | D38: بهینه=1.8 | E38: ='طراحی همه الگوها'!Q250 -> 20 | F38: ضریب گشادی دامن چادر | G38: 21 | H38: 1.85 | I38: 20 | J38: 1.8 | K38: =(J38-H38)/(I38-G38) -> 0.05 | L38: =H38-G38*K38 -> 0.8 | M38: 1.5 | N38: =(M38-L38)/K38 -> 14 | O38: 2.3 | P38: =(O38-L38)/K38 -> 30 | Q38: 1.8 | R38: =(Q38-L38)/K38 -> 20 | T38: w10 | U38: 17 | V38: 18 | W38: 21 | X38: 23 | Y38: 27 | Z38: 31 | AA38: 35 | AB38: 38 | AC38: 41 | AD38: 44 | AE38: 46 | AF38: 48 | AG38: 50 | AH38: 52 | AI38: 54 | AJ38: 56 | AK38: 58 | AL38: 60 | AM38: 57.2 | AN38: 57.8 | AO38: 58.4 | AP38: 59 | AQ38: 59.5 | AR38: 60 | AS38: 60.5 | AT38: 61 | AU38: 61.2 | AV38: 62 | AW38: 62.5 | AX38: 63 | AY38: 63.5 | AZ38: 64 | BA38: 60 | BB38: 60.3 | BC38: 60.8 | BD38: 61.4 | BE38: 62 | BF38: 62.5 | BG38: 63 | BH38: 63.5 | BI38: 64 | BJ38: 64.4 | BK38: 64.8 | BL38: 65.2 | BM38: 65.6 | BN38: 66 | BO38: 23 | BP38: 27 | BQ38: 31 | BR38: 35 | BS38: 38 | BT38: 41 | BU38: 44 | BV38: 46 | BW38: 48 | BX38: 50 | BY38: 52 | BZ38: 54 | CA38: 56 | CB38: 58 | CC38: 60 | CD38: 57.2 | CE38: 57.8 | CF38: 58.4 | CG38: 59 | CH38: 59.5 | CI38: 60 | CJ38: 60.5 | CK38: 61 | CL38: 61.2 | CM38: 62 | CN38: 62.5 | CO38: 63 | CP38: 63.5 | CQ38: 64 | CR38: 60 | CS38: 60.3 | CT38: 60.8 | CU38: 61.4 | CV38: 62 | CW38: 62.5 | CX38: 63 | CY38: 63.5 | CZ38: 64 | DA38: 64.4 | DB38: 64.8 | DC38: 65.2 | DD38: 65.6 | DE38: 66 | DF38: ='اندازه های شخصی'!G33 -> 0 | DG38: ='اندازه های شخصی'!I33 -> 0 | DH38: ='اندازه های شخصی'!K33 -> 0 | DI38: ='اندازه های شخصی'!M33 -> 0 | DJ38: ='اندازه های شخصی'!O33 -> 0 | DK38: ='اندازه های شخصی'!Q33 -> 0 | DL38: ='اندازه های شخصی'!S33 -> 0 | DM38: ='اندازه های شخصی'!U33 -> 0 | DN38: ='اندازه های شخصی'!W33 -> 0 | DO38: ='اندازه های شخصی'!Y33 -> 0 | DP38: ='اندازه های شخصی'!AA33 -> 0 | DQ38: ='اندازه های شخصی'!AC33 -> 0 | DR38: ='اندازه های شخصی'!AE33 -> 0 | DS38: ='اندازه های شخصی'!AG33 -> 0 | DT38: ='اندازه های شخصی'!AI33 -> 0 | DU38: ='اندازه های شخصی'!AK33 -> 0 | DV38: ='اندازه های شخصی'!AM33 -> 0 | DW38: ='اندازه های شخصی'!AO33 -> 0 | DX38: ='اندازه های شخصی'!AQ33 -> 0 | DY38: ='اندازه های شخصی'!AS33 -> 0 | DZ38: ='اندازه های شخصی'!AU33 -> 0 | EA38: ='اندازه های شخصی'!AW33 -> 0 | EB38: ='اندازه های شخصی'!AY33 -> 0 | EC38: ='اندازه های شخصی'!BA33 -> 0 | ED38: ='اندازه های شخصی'!BC33 -> 0 | EE38: ='اندازه های شخصی'!BE33 -> 0 | EF38: ='اندازه های شخصی'!BG33 -> 0 | EG38: ='اندازه های شخصی'!BI33 -> 0 | EH38: ='اندازه های شخصی'!BK33 -> 0 | EI38: ='اندازه های شخصی'!BM33 -> 0 | EJ38: ='اندازه های شخصی'!BO33 -> 0 | EK38: ='اندازه های شخصی'!BQ33 -> 0 | EL38: ='اندازه های شخصی'!BS33 -> 0 | EM38: ='اندازه های شخصی'!BU33 -> 0 | EN38: ='اندازه های شخصی'!BW33 -> 0 | EO38: ='اندازه های شخصی'!BY33 -> 0 | EP38: ='اندازه های شخصی'!CA33 -> 0 | EQ38: ='اندازه های شخصی'!CC33 -> 0 | ER38: ='اندازه های شخصی'!CE33 -> 0 | ES38: ='اندازه های شخصی'!CG33 -> 0
A39: ضریب بلند شدن دسته چادر d2 | B39: (از 0.1 الی 1) | C39: =K39*E39+L39 -> 0.5 | D39: بهینه=0.5 | E39: ='طراحی همه الگوها'!Q251 -> 20 | F39: ضریب بلند شدن دسته چادر | G39: 21 | H39: 0.55 | I39: 20 | J39: 0.5 | K39: =(J39-H39)/(I39-G39) -> 0.05 | L39: =H39-G39*K39 -> -0.5 | M39: 0.1 | N39: =(M39-L39)/K39 -> 12 | O39: 1 | P39: =(O39-L39)/K39 -> 30 | Q39: 0.5 | R39: =(Q39-L39)/K39 -> 20 | T39: w11 | U39: 10 | V39: 10 | W39: 10.5 | X39: 11 | Y39: 12 | Z39: 12 | AA39: 13 | AB39: 13 | AC39: 13 | AD39: 14 | AE39: 14 | AF39: 15 | AG39: 16 | AH39: 15 | AI39: 16 | AJ39: 16.5 | AK39: 17 | AL39: 17.5 | AM39: 16.5 | AN39: 17 | AO39: 17.5 | AP39: 18 | AQ39: 18.5 | AR39: 19 | AS39: 19.5 | AT39: 20 | AU39: 20.5 | AV39: 21 | AW39: 21.5 | AX39: 22 | AY39: 22.5 | AZ39: 23 | BA39: 17.9 | BB39: 18.3 | BC39: 18.7 | BD39: 19.1 | BE39: 19.5 | BF39: 19.9 | BG39: 20.3 | BH39: 20.7 | BI39: 21.1 | BJ39: 21.5 | BK39: 21.9 | BL39: 22.3 | BM39: 22.7 | BN39: 23.1 | BO39: 11 | BP39: 12 | BQ39: 12 | BR39: 13 | BS39: 13 | BT39: 13 | BU39: 14 | BV39: 14 | BW39: 15 | BX39: 16 | BY39: 15 | BZ39: 16 | CA39: 16.5 | CB39: 17 | CC39: 17.5 | CD39: 16.5 | CE39: 17 | CF39: 17.5 | CG39: 18 | CH39: 18.5 | CI39: 19 | CJ39: 19.5 | CK39: 20 | CL39: 20.5 | CM39: 21 | CN39: 21.5 | CO39: 22 | CP39: 22.5 | CQ39: 23 | CR39: 17.9 | CS39: 18.3 | CT39: 18.7 | CU39: 19.1 | CV39: 19.5 | CW39: 19.9 | CX39: 20.3 | CY39: 20.7 | CZ39: 21.1 | DA39: 21.5 | DB39: 21.9 | DC39: 22.3 | DD39: 22.7 | DE39: 23.1 | DF39: ='اندازه های شخصی'!G34 -> 0 | DG39: ='اندازه های شخصی'!I34 -> 0 | DH39: ='اندازه های شخصی'!K34 -> 0 | DI39: ='اندازه های شخصی'!M34 -> 0 | DJ39: ='اندازه های شخصی'!O34 -> 0 | DK39: ='اندازه های شخصی'!Q34 -> 0 | DL39: ='اندازه های شخصی'!S34 -> 0 | DM39: ='اندازه های شخصی'!U34 -> 0 | DN39: ='اندازه های شخصی'!W34 -> 0 | DO39: ='اندازه های شخصی'!Y34 -> 0 | DP39: ='اندازه های شخصی'!AA34 -> 0 | DQ39: ='اندازه های شخصی'!AC34 -> 0 | DR39: ='اندازه های شخصی'!AE34 -> 0 | DS39: ='اندازه های شخصی'!AG34 -> 0 | DT39: ='اندازه های شخصی'!AI34 -> 0 | DU39: ='اندازه های شخصی'!AK34 -> 0 | DV39: ='اندازه های شخصی'!AM34 -> 0 | DW39: ='اندازه های شخصی'!AO34 -> 0 | DX39: ='اندازه های شخصی'!AQ34 -> 0 | DY39: ='اندازه های شخصی'!AS34 -> 0 | DZ39: ='اندازه های شخصی'!AU34 -> 0 | EA39: ='اندازه های شخصی'!AW34 -> 0 | EB39: ='اندازه های شخصی'!AY34 -> 0 | EC39: ='اندازه های شخصی'!BA34 -> 0 | ED39: ='اندازه های شخصی'!BC34 -> 0 | EE39: ='اندازه های شخصی'!BE34 -> 0 | EF39: ='اندازه های شخصی'!BG34 -> 0 | EG39: ='اندازه های شخصی'!BI34 -> 0 | EH39: ='اندازه های شخصی'!BK34 -> 0 | EI39: ='اندازه های شخصی'!BM34 -> 0 | EJ39: ='اندازه های شخصی'!BO34 -> 0 | EK39: ='اندازه های شخصی'!BQ34 -> 0 | EL39: ='اندازه های شخصی'!BS34 -> 0 | EM39: ='اندازه های شخصی'!BU34 -> 0 | EN39: ='اندازه های شخصی'!BW34 -> 0 | EO39: ='اندازه های شخصی'!BY34 -> 0 | EP39: ='اندازه های شخصی'!CA34 -> 0 | EQ39: ='اندازه های شخصی'!CC34 -> 0 | ER39: ='اندازه های شخصی'!CE34 -> 0 | ES39: ='اندازه های شخصی'!CG34 -> 0
A40: انتخاب چادر تا پایین پیشانی=1 انتخاب چادر تا بالای پیشانی=0 انتخاب چادر روی سر = -1 | B40: -1 یا 0 یا 1 | C40: =K40*E40+L40 -> 0 | E40: ='طراحی همه الگوها'!Q252 -> 2 | F40: انتخاب چادر تا پایین پیشانی=3 انتخاب چادر تا بالای پیشانی=2 انتخاب چادر روی سر = 1 | G40: 2 | H40: 0 | I40: 1 | J40: -1 | K40: =(J40-H40)/(I40-G40) -> 1 | L40: =H40-G40*K40 -> -2 | M40: 0 | N40: =(M40-L40)/K40 -> 2 | O40: 1 | P40: =(O40-L40)/K40 -> 3 | Q40: 0 | R40: =(Q40-L40)/K40 -> 2 | T40: w12 | U40: 37 | V40: 38 | W40: 42 | X40: 45 | Y40: 47 | Z40: 49 | AA40: 50 | AB40: 51 | AC40: 52 | AD40: 53 | AE40: 53.5 | AF40: 54 | AG40: 54.5 | AH40: 55 | AI40: 55.5 | AJ40: 56 | AK40: 56.5 | AL40: 57 | AM40: 57 | AN40: 57 | AO40: 57 | AP40: 57 | AQ40: 57 | AR40: 57 | AS40: 57 | AT40: 57 | AU40: 57 | AV40: 57 | AW40: 57 | AX40: 57 | AY40: 57 | AZ40: 57 | BA40: 59 | BB40: 59 | BC40: 59 | BD40: 59 | BE40: 59 | BF40: 59 | BG40: 59 | BH40: 59 | BI40: 59 | BJ40: 59 | BK40: 59 | BL40: 59 | BM40: 59 | BN40: 59 | BO40: 45 | BP40: 47 | BQ40: 49 | BR40: 50 | BS40: 51 | BT40: 52 | BU40: 53 | BV40: 53.5 | BW40: 54 | BX40: 54.5 | BY40: 55 | BZ40: 55.5 | CA40: 56 | CB40: 56.5 | CC40: 57 | CD40: 57 | CE40: 57 | CF40: 57 | CG40: 57 | CH40: 57 | CI40: 57 | CJ40: 57 | CK40: 57 | CL40: 57 | CM40: 57 | CN40: 57 | CO40: 57 | CP40: 57 | CQ40: 57 | CR40: 59 | CS40: 59 | CT40: 59 | CU40: 59 | CV40: 59 | CW40: 59 | CX40: 59 | CY40: 59 | CZ40: 59 | DA40: 59 | DB40: 59 | DC40: 59 | DD40: 59 | DE40: 59 | DF40: ='اندازه های شخصی'!G35 -> 0 | DG40: ='اندازه های شخصی'!I35 -> 0 | DH40: ='اندازه های شخصی'!K35 -> 0 | DI40: ='اندازه های شخصی'!M35 -> 0 | DJ40: ='اندازه های شخصی'!O35 -> 0 | DK40: ='اندازه های شخصی'!Q35 -> 0 | DL40: ='اندازه های شخصی'!S35 -> 0 | DM40: ='اندازه های شخصی'!U35 -> 0 | DN40: ='اندازه های شخصی'!W35 -> 0 | DO40: ='اندازه های شخصی'!Y35 -> 0 | DP40: ='اندازه های شخصی'!AA35 -> 0 | DQ40: ='اندازه های شخصی'!AC35 -> 0 | DR40: ='اندازه های شخصی'!AE35 -> 0 | DS40: ='اندازه های شخصی'!AG35 -> 0 | DT40: ='اندازه های شخصی'!AI35 -> 0 | DU40: ='اندازه های شخصی'!AK35 -> 0 | DV40: ='اندازه های شخصی'!AM35 -> 0 | DW40: ='اندازه های شخصی'!AO35 -> 0 | DX40: ='اندازه های شخصی'!AQ35 -> 0 | DY40: ='اندازه های شخصی'!AS35 -> 0 | DZ40: ='اندازه های شخصی'!AU35 -> 0 | EA40: ='اندازه های شخصی'!AW35 -> 0 | EB40: ='اندازه های شخصی'!AY35 -> 0 | EC40: ='اندازه های شخصی'!BA35 -> 0 | ED40: ='اندازه های شخصی'!BC35 -> 0 | EE40: ='اندازه های شخصی'!BE35 -> 0 | EF40: ='اندازه های شخصی'!BG35 -> 0 | EG40: ='اندازه های شخصی'!BI35 -> 0 | EH40: ='اندازه های شخصی'!BK35 -> 0 | EI40: ='اندازه های شخصی'!BM35 -> 0 | EJ40: ='اندازه های شخصی'!BO35 -> 0 | EK40: ='اندازه های شخصی'!BQ35 -> 0 | EL40: ='اندازه های شخصی'!BS35 -> 0 | EM40: ='اندازه های شخصی'!BU35 -> 0 | EN40: ='اندازه های شخصی'!BW35 -> 0 | EO40: ='اندازه های شخصی'!BY35 -> 0 | EP40: ='اندازه های شخصی'!CA35 -> 0 | EQ40: ='اندازه های شخصی'!CC35 -> 0 | ER40: ='اندازه های شخصی'!CE35 -> 0 | ES40: ='اندازه های شخصی'!CG35 -> 0
U42: سایز مناسب برای الگوهای شلوار | V42: =IF(W43=1,(IF(Y43<U9-1," کوچکتر از یک ماهه ",IF(Y43<V9-1,U6,IF(Y43<W9-1,V6,IF(Y43<X9-1,W6,IF(Y43<Y9-1,X6,IF(Y43<Z9-1,Y6,IF(Y43<AA9-1,Z6,IF(Y43<AB9-1,AA6,IF(Y43<AC9-1,AB6,IF(Y43<AD9-1,AC6,IF(Y43<AE9-1,AD6,IF(Y43<AF9-1,AE6,IF(Y43<AG9-1,AF6,IF(Y43<AH9-1,AG6,IF(Y43<AI9-1,AH6,IF(Y43<AJ9-1,AI6,IF(Y43<AK9-1,AJ6,IF(Y43<AL9-1,AK6,IF(Y43<AL9+3,AL6," بزرگتر از 14 ساله ")))))))))))))))))))),IF(W43=2,(IF(Y43<AM9-1," کوچکتر از سایز 34 ",IF(Y43<AN9-1,AM6,IF(Y43<AO9-1,AN6,IF(Y43<AP9-1,AO6,IF(Y43<AQ9-1,AP6,IF(Y43<AR9-1,AQ6,IF(Y43<AS9-1,AR6,IF(Y43<AT9-1,AS6,IF(Y43<AU9-1,AT6,IF(Y43<AV9-1,AU6,IF(Y43<AW9-1,AV6,IF(Y43<AX9-1,AW6,IF(Y43<AY9-1,AX6,IF(Y43<AZ9-1,AY6,IF(Y43<AZ9+3,AZ6," بزرگتر از سایز 60 ")))))))))))))))),IF(Y43<BA9-1," کوچکتراز سایز 37 ",IF(Y43<BB9-1,BA6,IF(Y43<BC9-1,BB6,IF(Y43<BD9-1,BC6,IF(Y43<BE9-1,BD6,IF(Y43<BF9-1,BE6,IF(Y43<BG9-1,BF6,IF(Y43<BH9-1,BG6,IF(Y43<BI9-1,BH6,IF(Y43<BJ9-1,BI6,IF(Y43<BK9-1,BJ6,IF(Y43<BL9-1,BK6,IF(Y43<BM9-1,BL6,IF(Y43<BN9-1,BM6,IF(Y43<BN9+3,BN6," بزرگتر از سایز 50 "))))))))))))))))) -> کوچکتر از سایز 34 | W42: انتخاب نوع اندازه گیری | X42: کمر اندام | Y42: باسن اندام | Z42: دور سینه اندام
U43: سایز مناسب برای الگوهای دامن | V43: =IF(W43=1,(IF(X43<U7-1," کوچکتر از یک ماهه ",IF(X43<V7-1,U6,IF(X43<W7-1,V6,IF(X43<X7-1,W6,IF(X43<Y7-1,X6,IF(X43<Z7-1,Y6,IF(X43<AA7-1,Z6,IF(X43<AB7-1,AA6,IF(X43<AC7-1,AB6,IF(X43<AD7-1,AC6,IF(X43<AE7-1,AD6,IF(X43<AF7-1,AE6,IF(X43<AG7-1,AF6,IF(X43<AH7-1,AG6,IF(X43<AI7-1,AH6,IF(X43<AJ7-1,AI6,IF(X43<AK7-1,AJ6,IF(X43<AL7-1,AK6,IF(X43<AL7+3,AL6," بزرگتر از 14 ساله ")))))))))))))))))))),IF(W43=2,(IF(X43<AM7-1," کوچکتر از سایز 34 ",IF(X43<AN7-1,AM6,IF(X43<AO7-1,AN6,IF(X43<AP7-1,AO6,IF(X43<AQ7-1,AP6,IF(X43<AR7-1,AQ6,IF(X43<AS7-1,AR6,IF(X43<AT7-1,AS6,IF(X43<AU7-1,AT6,IF(X43<AV7-1,AU6,IF(X43<AW7-1,AV6,IF(X43<AX7-1,AW6,IF(X43<AY7-1,AX6,IF(X43<AZ7-1,AY6,IF(X43<AZ7+3,AZ6," بزرگتر از سایز 60 ")))))))))))))))),IF(X43<BA7-1," کوچکتر از سایز 37 ",IF(X43<BB7-1,BA6,IF(X43<BC7-1,BB6,IF(X43<BD7-1,BC6,IF(X43<BE7-1,BD6,IF(X43<BF7-1,BE6,IF(X43<BG7-1,BF6,IF(X43<BH7-1,BG6,IF(X43<BI7-1,BH6,IF(X43<BJ7-1,BI6,IF(X43<BK7-1,BJ6,IF(X43<BL7-1,BK6,IF(X43<BM7-1,BL6,IF(X43<BN7-1,BM6,IF(X43<BN7+3,BN6," بزرگتر از سایز 50 "))))))))))))))))) -> کوچکتر از سایز 34 | W43: 2 | X43: ='اندازه گیری و تحلیل'!E275 -> 0 | Y43: ='اندازه گیری و تحلیل'!E272 -> 0 | Z43: ='اندازه گیری و تحلیل'!E269 -> 0
U44: سایز مناسب برای الگوهای پیراهن | V44: =IF(W43=1,(IF(Z43<U27-1," کوچکتر از یک ماهه ",IF(Z43<V27-1,U6,IF(Z43<W27-1,V6,IF(Z43<X27-1,W6,IF(Z43<Y27-1,X6,IF(Z43<Z27-1,Y6,IF(Z43<AA27-1,Z6,IF(Z43<AB27-1,AA6,IF(Z43<AC27-1,AB6,IF(Z43<AD27-1,AC6,IF(Z43<AE27-1,AD6,IF(Z43<AF27-1,AE6,IF(Z43<AG27-1,AF6,IF(Z43<AH27-1,AG6,IF(Z43<AI27-1,AH6,IF(Z43<AJ27-1,AI6,IF(Z43<AK27-1,AJ6,IF(Z43<AL27-1,AK6,IF(Z43<AL27+3,AL6," بزرگتر از 14 ساله ")))))))))))))))))))),IF(W43=2,(IF(Z43<AM27-1," کوچکتر از سایز 34 ",IF(Z43<AN27-1,AM6,IF(Z43<AO27-1,AN6,IF(Z43<AP27-1,AO6,IF(Z43<AQ27-1,AP6,IF(Z43<AR27-1,AQ6,IF(Z43<AS27-1,AR6,IF(Z43<AT27-1,AS6,IF(Z43<AU27-1,AT6,IF(Z43<AV27-1,AU6,IF(Z43<AW27-1,AV6,IF(Z43<AX27-1,AW6,IF(Z43<AY27-1,AX6,IF(Z43<AZ27-1,AY6,IF(Z43<AZ27+3,AZ6," بزرگتر از سایز 60 ")))))))))))))))),IF(Z43<BA27-1," کوچکتر از سایز 37 ",IF(Z43<BB27-1,BA6,IF(Z43<BC27-1,BB6,IF(Z43<BD27-1,BC6,IF(Z43<BE27-1,BD6,IF(Z43<BF27-1,BE6,IF(Z43<BG27-1,BF6,IF(Z43<BH27-1,BG6,IF(Z43<BI27-1,BH6,IF(Z43<BJ27-1,BI6,IF(Z43<BK27-1,BJ6,IF(Z43<BL27-1,BK6,IF(Z43<BM27-1,BL6,IF(Z43<BN27-1,BM6,IF(Z43<BN27+3,BN6," بزرگتر از سایز 50 "))))))))))))))))) -> کوچکتر از سایز 34
A46: متغیرهای ورودی پیراهن | F46: متغیرهای ورودی پیراهن
B48: برچسب الگو : | F48: پنج ساله میل سه
A50: متغیرهای ورودی - شیفت الگو پیراهن | F50: متغیرهای ورودی - شیفت الگو پیراهن | G50: x1 | H50: y1 | I50: x2 | J50: y2(بهینه) | K50: a | L50: b | M50: کمترین قبلی | N50: کمترین جدید | O50: بیشترین قبلی | P50: بیشترین جدید | S50: اندازه های خوانده شده در محاسبه الگوها | W50: اندازه های خوانده شده برای بررسی اندازه ها | AJ50: رنج تغییرات اندزه ها | AK50: رنج تغییرات متغیرها مثبت و منفی | AL50: رنج تغییرات متغیرها مثبت | AO50: انتخاب نوع سایزبندی | AP50: رنج تغییرات کوچک متغیرها مثبت و منفی
A51: شیفت افقی کل الگو جلو پیراهن برحسب سانتیمتر | B51: (از -100 الی100) | C51: =K51*E51+L51 -> 5 | D51: بدون شیفت=0 | E51: ='طراحی مدل 16'!B331 -> 5 | F51: شیفت افقی کل الگو جلو پیراهن (سانتیمتر) | G51: 1 | H51: 1 | I51: 0 | J51: 0 | K51: =(J51-H51)/(I51-G51) -> 1 | L51: =H51-G51*K51 -> 0 | M51: -100 | N51: =(M51-L51)/K51 -> -100 | O51: 100 | P51: =(O51-L51)/K51 -> 100 | S51: اندازه ها در دامن و شلوار | U51: اندازه شخص | W51: اندازه شخص | AJ51: =U6 -> 1ماهه | AK51: -100 | AL51: 1 | AM51: اندازه جدید | AO51: سایزبندی بچگانه | AP51: -50
A52: شیفت عمودی کل الگو جلو پیراهن برحسب سانتیمتر | B52: (از -100 الی100) | C52: 5 | D52: بدون شیفت =0 | E52: ='طراحی مدل 16'!B332 -> 5 | F52: شیفت عمودی کل الگو جلو پیراهن (سانتیمتر) | G52: 1 | H52: 1 | I52: 0 | J52: 0 | K52: 1 | L52: 0 | M52: -100 | N52: -100 | O52: 100 | P52: 100 | S52: دور کمر | T52: a | U52: =OFFSET('متغیرها '!T5,2,'متغیرها '!U5) -> 68 | W52: =OFFSET('متغیرها '!T5,2,'متغیرها '!Y5) -> 131 | AJ52: =V6 -> 1 تا 3 ماهه | AK52: -99 | AL52: 2 | AM52: اندازه های موجود | AO52: سایزبندی زنانه | AP52: -49.5
A53: شیفت افقی کل الگو پشت پیراهن برحسب سانتیمتر | B53: (از -100 الی100) | C53: 5 | D53: بدون شیفت=0 | E53: ='طراحی مدل 16'!B333 -> 5 | F53: شیفت افقی کل الگو پشت پیراهن (سانتیمتر) | G53: 1 | H53: 1 | I53: 0 | J53: 0 | K53: 1 | L53: 0 | M53: -100 | N53: -100 | O53: 100 | P53: 100 | S53: نوار کمر از پشت بین دو خط پهلو | T53: b | U53: =OFFSET('متغیرها '!T5,3,'متغیرها '!U5) -> 33.7 | W53: =OFFSET('متغیرها '!T5,3,'متغیرها '!Y5) -> 63.6 | AJ53: =W6 -> 3 تا 6 ماهه | AK53: -98 | AL53: 3 | AM53: انتخاب نوع اندازه گیری | AO53: سایزبندی مردانه | AP53: -49
A54: شیفت عمودی کل الگو پشت پیراهن برحسب سانتیمتر | B54: (از -100 الی100) | C54: 5 | D54: بدون شیفت =0 | E54: ='طراحی مدل 16'!B334 -> 5 | F54: شیفت عمودی کل الگو پشت پیراهن (سانتیمتر) | G54: 1 | H54: 1 | I54: 0 | J54: 0 | K54: 1 | L54: 0 | M54: -100 | N54: -100 | O54: 100 | P54: 100 | S54: دور باسن | T54: c | U54: =OFFSET('متغیرها '!T5,4,'متغیرها '!U5) -> 93 | W54: =OFFSET('متغیرها '!T5,4,'متغیرها '!Y5) -> 150 | AJ54: =X6 -> 6ماهه تا یکساله | AK54: -97 | AL54: 4 | AM54: اندازه گیری پیشرفته و با جزئیات | AP54: -48.5
A55: شیفت افقی تکه پهلو جلو برحسب سانتیمتر | B55: (از -100 الی100) | C55: 0 | D55: بدون شیفت=0 | E55: ='طراحی همه الگوها'!B187 -> 0 | F55: شیفت افقی تکه پهلو جلو (سانتیمتر) | G55: 1 | H55: 1 | I55: 0 | J55: 0 | K55: 1 | L55: 0 | M55: -100 | N55: -100 | O55: 100 | P55: 100 | S55: نوار باسن از پشت بین دو خط پهلو | T55: d | U55: =OFFSET('متغیرها '!T5,5,'متغیرها '!U5) -> 50.4 | W55: =OFFSET('متغیرها '!T5,5,'متغیرها '!Y5) -> 79.8 | AJ55: =Y6 -> بچگانه 1 ساله | AK55: -96 | AL55: 5 | AM55: اندازه گیری مردان و بچه ها | AP55: -48
A56: شیفت افقی تکه پهلو پشت برحسب سانتیمتر | B56: (از -100 الی100) | C56: 0 | D56: بدون شیفت=0 | E56: ='طراحی همه الگوها'!B188 -> 0 | F56: شیفت افقی تکه پهلو پشت (سانتیمتر) | G56: 1 | H56: 1 | I56: 0 | J56: 0 | K56: 1 | L56: 0 | M56: -100 | N56: -100 | O56: 100 | P56: 100 | S56: فاصله نوار کمر تا زمین، از قسمت جلو | T56: e | U56: =OFFSET('متغیرها '!T5,6,'متغیرها '!U5) -> 103 | W56: =OFFSET('متغیرها '!T5,6,'متغیرها '!Y5) -> 108.9 | AJ56: =Z6 -> بچگانه 2 ساله | AK56: -95 | AL56: 6 | AM56: اندازه گیری زنان | AP56: -47.5
